Workbook

Sheet Guidance
C1: THE CONTENTS OF THE WORKBOOK INCLUDE ESTIMATES
C2: BASED ON SMALL SAMPLE SIZES WHICH MAY BE UNRELIABLE
C3: THEY ARE PROVIDED ON A CAVEAT EMPTOR BASIS
G5: Users should follow the guidelines set out in general terms below
G6: and in more detail in the Working Futures technical documentation available on line at:
G7: https://www.gov.uk/government/publications/uk-labour-market-projections-2014-to-2024
G9: If in doubt about what to do please contact:
G11: UKCES: email: working.futures@ukces.org.uk
G12: All other enquiries: Rob Wilson, IER, University of Warwick, email: r.a.wilson@warwick.ac.uk, tel: 024 7652 3530
G14: Copyright: Warwick Institute for Employment Research / Cambridge Econometrics, 2015
G17: REPORTING
G18: The projections presented in this Workbook are calculated from a number of different data sources, using
G19: a variety of econometric and statistical techniques. As a result, precise margins of error cannot be assigned
G20: to the estimates. For further details, see the Working Futures Technical Report.
G22: However, as a general rule of thumb, it is not advisable to use any statistics or analyses in published reports etc which are not
G23: based on data for at least 10,000 individuals. This should provide a reasonable degree of statistical robustness to
G24: the estimates whether historic or forecast.
G26: For unpublished analyses, a more lenient criterion can be used. However, the uncertainties associated with
G27: projections involving fewer than 1,000 individuals are probably too great to make such estimates useful.
G28: However, there is inevitably some degree of judgement required on the part of the researcher.
G30: For cases in between 1,000 and 10,000 individuals, it is difficult to prescribe general rules, and an element of
G31: judgement by on behalf of the user is needed.
G33: Thus, in summary, CE/IER advise:
G35: PUBLISHED ANALYSIS: Ideally, a minimum of 10,000 individuals per cell
G36: UNPUBLISHED ANALYSIS: A minimum of 1,000 individuals per cell

Sheet Info
A1: East of England
A2: c152 | B2: <-MDM forecast identifier
A3: Occupational forecast: Saturday, 23 January 2016 at 03:23

Sheet Table 3.2
A1: Table 3.2 | B1: =CONCATENATE("Employment by Sector, ",B3,"-",F3) -> Employment by Sector, 1994-2024
B3: =All!F7 -> 1994 | C3: =All!P7 -> 2004 | D3: =All!Z7 -> 2014 | E3: =All!AE7 -> 2019 | F3: =All!AJ7 -> 2024
A4: Levels (000s)
A5: =names!A4 -> Primary sector and utilities | B5: =All!F36/1000 -> 85.532 | C5: =All!P36/1000 -> 67.486 | D5: =All!Z36/1000 -> 70.191 | E5: =All!AE36/1000 -> 64.236 | F5: =All!AJ36/1000 -> 61.851
A6: =names!A5 -> Manufacturing | B6: =All!F64/1000 -> 308.306 | C6: =All!P64/1000 -> 297.644 | D6: =All!Z64/1000 -> 231.223 | E6: =All!AE64/1000 -> 227.466 | F6: =All!AJ64/1000 -> 208.429
A7: =names!A6 -> Construction | B7: =All!F92/1000 -> 159.544 | C7: =All!P92/1000 -> 235.097 | D7: =All!Z92/1000 -> 210.879 | E7: =All!AE92/1000 -> 238.441 | F7: =All!AJ92/1000 -> 257.715
A8: =names!A7 -> Trade, accomod. and transport | B8: =All!F120/1000 -> 680.031 | C8: =All!P120/1000 -> 774.187 | D8: =All!Z120/1000 -> 797.024 | E8: =All!AE120/1000 -> 843.929 | F8: =All!AJ120/1000 -> 870.459
A9: =names!A8 -> Business and other services | B9: =All!F148/1000 -> 579.358 | C9: =All!P148/1000 -> 805.515 | D9: =All!Z148/1000 -> 922.482 | E9: =All!AE148/1000 -> 973.783 | F9: =All!AJ148/1000 -> 1002.67
A10: =names!A9 -> Non-market services | B10: =All!F176/1000 -> 517.459 | C10: =All!P176/1000 -> 573.994 | D10: =All!Z176/1000 -> 722.098 | E10: =All!AE176/1000 -> 729.479 | F10: =All!AJ176/1000 -> 763.64
A12: Total | B12: =All!F8/1000 -> 2330.23 | C12: =All!P8/1000 -> 2753.923 | D12: =All!Z8/1000 -> 2953.897 | E12: =All!AE8/1000 -> 3077.334 | F12: =All!AJ8/1000 -> 3164.764
A14: Shares (%) | B14: =B3 -> 1994 | C14: =C3 -> 2004 | D14: =D3 -> 2014 | E14: =E3 -> 2019 | F14: =F3 -> 2024
A15: =A5 -> Primary sector and utilities | B15: =B5/B$12*100 -> 3.67053896 | C15: =C5/C$12*100 -> 2.450540556 | D15: =D5/D$12*100 -> 2.376216909 | E15: =E5/E$12*100 -> 2.087391229 | F15: =F5/F$12*100 -> 1.954363738
A16: Manufacturing | B16: =B6/B$12*100 -> 13.23071113 | C16: 10.80800008 | D16: 7.827727236 | E16: 7.391657844 | F16: 6.585925522
A17: Construction | B17: 6.846706119 | C17: 8.53680368 | D17: 7.139009925 | E17: 7.748297715 | F17: 8.143261235
A18: Trade, accomod. and transport | B18: 29.1829991 | C18: 28.11215128 | D18: 26.98211888 | E18: 27.42403002 | F18: 27.50470493
A19: Business and other services | B19: 24.86269596 | C19: 29.24972848 | D19: 31.22932181 | E19: 31.64372148 | F19: 31.68229922
A20: Non-market services | B20: 22.20634873 | C20: 20.84277592 | D20: 24.44560525 | E20: 23.70490171 | F20: 24.12944536
A22: Total | B22: 100 | C22: 100 | D22: 100 | E22: 100 | F22: 100
A24: Growth (% pa) | B24: =CONCATENATE(B3,"-",C3) -> 1994-2004 | C24: =CONCATENATE(C3,"-",D3) -> 2004-2014 | D24: =CONCATENATE(D3,"-",E3) -> 2014-2019 | E24: =CONCATENATE(E3,"-",F3) -> 2019-2024 | F24: =CONCATENATE(D3,"-",F3) -> 2014-2024
A25: =A15 -> Primary sector and utilities | B25: =(EXP(LN(C5/B5)/(C$3-B$3))-1)*100 -> -2.34184705 | C25: =(EXP(LN(D5/C5)/(D$3-C$3))-1)*100 -> 0.3937725421 | D25: =(EXP(LN(E5/D5)/(E$3-D$3))-1)*100 -> -1.757498553 | E25: =(EXP(LN(F5/E5)/(F$3-E$3))-1)*100 -> -0.7538548396 | F25: =(EXP(LN(F5/D5)/(F$3-D$3))-1)*100 -> -1.256951842
A26: Manufacturing | B26: =(EXP(LN(C6/B6)/(C$3-B$3))-1)*100 -> -0.3513279418 | C26: =(EXP(LN(D6/C6)/(D$3-C$3))-1)*100 -> -2.493539912 | D26: -0.3271005795 | E26: -1.732856725 | F26: -1.032474579
A27: Construction | B27: =(EXP(LN(C7/B7)/(C$3-B$3))-1)*100 -> 3.952912361 | C27: -1.08124888 | D27: 2.487174527 | E27: 1.566795986 | F27: 2.025947417
A28: Trade, accomod. and transport | B28: =(EXP(LN(C8/B8)/(C$3-B$3))-1)*100 -> 1.305194883 | C28: 0.2911364292 | D28: 1.150236458 | E28: 0.6209658665 | F28: 0.885254076
A29: Business and other services | B29: =(EXP(LN(C9/B9)/(C$3-B$3))-1)*100 -> 3.350519119 | C29: 1.365093862 | D29: 1.088291731 | E29: 0.5863771929 | F29: 0.8370221785
A30: Non-market services | B30: =(EXP(LN(C10/B10)/(C$3-B$3))-1)*100 -> 1.04228078 | C30: 2.321966687 | D30: 0.2036013257 | E30: 0.9195197086 | F30: 0.5609234189
A32: Total | B32: =(EXP(LN(C12/B12)/(C$3-B$3))-1)*100 -> 1.68462712 | C32: =(EXP(LN(D12/C12)/(D$3-C$3))-1)*100 -> 0.7034514266 | D32: =(EXP(LN(E12/D12)/(E$3-D$3))-1)*100 -> 0.8221275035 | E32: =(EXP(LN(F12/E12)/(F$3-E$3))-1)*100 -> 0.5618695897 | F32: =(EXP(LN(F12/D12)/(F$3-D$3))-1)*100 -> 0.6919144607
A34: Change (000s) | B34: =B24 -> 1994-2004 | C34: =C24 -> 2004-2014 | D34: =D24 -> 2014-2019 | E34: =E24 -> 2019-2024 | F34: =F24 -> 2014-2024
A35: =A25 -> Primary sector and utilities | B35: =C5-B5 -> -18.046 | C35: =D5-C5 -> 2.705 | D35: =E5-D5 -> -5.955 | E35: =F5-E5 -> -2.385 | F35: =F5-D5 -> -8.34
A36: Manufacturing | B36: =C6-B6 -> -10.662 | C36: -66.421 | D36: -3.757 | E36: -19.037 | F36: =F6-D6 -> -22.794
A37: Construction | B37: 75.553 | C37: -24.218 | D37: 27.562 | E37: 19.274 | F37: 46.836
A38: Trade, accomod. and transport | B38: 94.156 | C38: 22.837 | D38: 46.905 | E38: 26.53 | F38: 73.435
A39: Business and other services | B39: 226.157 | C39: 116.967 | D39: 51.301 | E39: 28.887 | F39: 80.188
A40: Non-market services | B40: 56.535 | C40: 148.104 | D40: 7.381 | E40: 34.161 | F40: 41.542
A42: Total | B42: 423.693 | C42: =D12-C12 -> 199.974 | D42: =E12-D12 -> 123.437 | E42: =F12-E12 -> 87.43 | F42: 210.867
A44: =CELL("filename",$A$1) -> R:\Research Info\Individual research project info\Working Futures_ CG data task\East of England\[6EE_East_of_Eng.xlsm]Table 3.2

Sheet Table 3.3
A1: Table 3.3 | B1: Projections of Employment for 6 Broad Industrial Sectors
G2: Absolute levels and changes (000s)
B3: Levels | E3: Changes
B4: =All!Z7 -> 2014 | C4: =All!AE7 -> 2019 | D4: =All!AJ7 -> 2024 | E4: =CONCATENATE(B4,"-",C4) -> 2014-2019 | F4: =CONCATENATE(C4,"-",D4) -> 2019-2024 | G4: =CONCATENATE(B4,"-",D4) -> 2014-2024
A6: =All!A35 -> Primary sector and utilities | B6: =All!Z36/1000 -> 70.191 | C6: =All!AE36/1000 -> 64.236 | D6: =All!AJ36/1000 -> 61.851 | E6: =C6-B6 -> -5.955 | F6: -2.385 | G6: =D6-B6 -> -8.34
A7: =All!A63 -> Manufacturing | B7: =All!Z64/1000 -> 231.223 | C7: =All!AE64/1000 -> 227.466 | D7: =All!AJ64/1000 -> 208.429 | E7: -3.757 | F7: -19.037 | G7: -22.794
A8: =All!A91 -> Construction | B8: =All!Z92/1000 -> 210.879 | C8: =All!AE92/1000 -> 238.441 | D8: =All!AJ92/1000 -> 257.715 | E8: 27.562 | F8: 19.274 | G8: 46.836
A9: =All!A119 -> Trade, accomod. and transport | B9: =All!Z120/1000 -> 797.024 | C9: =All!AE120/1000 -> 843.929 | D9: =All!AJ120/1000 -> 870.459 | E9: 46.905 | F9: 26.53 | G9: 73.435
A10: =All!A147 -> Business and other services | B10: =All!Z148/1000 -> 922.482 | C10: =All!AE148/1000 -> 973.783 | D10: =All!AJ148/1000 -> 1002.67 | E10: 51.301 | F10: 28.887 | G10: 80.188
A11: =All!A175 -> Non-market services | B11: =All!Z176/1000 -> 722.098 | C11: =All!AE176/1000 -> 729.479 | D11: =All!AJ176/1000 -> 763.64 | E11: 7.381 | F11: 34.161 | G11: 41.542
A13: =All!A7 -> All industries | B13: =All!Z8/1000 -> 2953.897 | C13: =All!AE8/1000 -> 3077.334 | D13: =All!AJ8/1000 -> 3164.764 | E13: =C13-B13 -> 123.437 | F13: =D13-C13 -> 87.43 | G13: =D13-B13 -> 210.867
A15: =CELL("filename",$A$1) -> R:\Research Info\Individual research project info\Working Futures_ CG data task\East of England\[6EE_East_of_Eng.xlsm]Table 3.3

Sheet Table 3.8
A1: Table 3.8 Composition of Employment by Broad Industrial Sector
F2: Shares of total employment (%)
B3: =All!F7 -> 1994 | C3: =All!P7 -> 2004 | D3: =All!Z7 -> 2014 | E3: =All!AE7 -> 2019 | F3: =All!AJ7 -> 2024
A4: Primary sector & utilities, of which: | B4: =(All!F36/All!F8)*100 -> 3.67053896 | C4: =(All!P36/All!P8)*100 -> 2.450540556 | D4: =(All!Z36/All!Z8)*100 -> 2.376216909 | E4: =(All!AE36/All!AE8)*100 -> 2.087391229 | F4: =(All!AJ36/All!AJ8)*100 -> 1.954363738
A6: Female employees | B6: =Females!F36/All!F36*100 -> 26.02417809 | C6: =Females!P36/All!P36*100 -> 27.98506357 | D6: =Females!Z36/All!Z36*100 -> 24.21820461 | E6: =Females!AE36/All!AE36*100 -> 24.81318887 | F6: =Females!AJ36/All!AJ36*100 -> 26.14670741
A7: Self-employed | B7: =SE!F36/All!F36*100 -> 16.22433709 | C7: =SE!P36/All!P36*100 -> 20.21308123 | D7: =SE!Z36/All!Z36*100 -> 19.9512758 | E7: =SE!AE36/All!AE36*100 -> 17.93075534 | F7: =SE!AJ36/All!AJ36*100 -> 16.60765388
A8: Part-time employees | B8: =PT!F36/All!F36*100 -> 13.8825235 | C8: =PT!P36/All!P36*100 -> 15.18685357 | D8: =PT!Z36/All!Z36*100 -> 9.955692325 | E8: =PT!AE36/All!AE36*100 -> 10.37424497 | F8: =PT!AJ36/All!AJ36*100 -> 11.27386784
A10: Manufacturing, of which: | B10: =All!F64/All!F8*100 -> 13.23071113 | C10: =All!P64/All!P8*100 -> 10.80800008 | D10: =All!Z64/All!Z8*100 -> 7.827727236 | E10: =All!AE64/All!AE8*100 -> 7.391657844 | F10: =All!AJ64/All!AJ8*100 -> 6.585925522
A12: Female employees | B12: =Females!F64/All!F64*100 -> 30.07369302 | C12: =Females!P64/All!P64*100 -> 25.84631305 | D12: =Females!Z64/All!Z64*100 -> 25.54503661 | E12: =Females!AE64/All!AE64*100 -> 26.33844179 | F12: =Females!AJ64/All!AJ64*100 -> 27.40021782
A13: Self-employed | B13: =SE!F64/All!F64*100 -> 7.85648025 | C13: =SE!P64/All!P64*100 -> 9.075607101 | D13: =SE!Z64/All!Z64*100 -> 5.677635875 | E13: =SE!AE64/All!AE64*100 -> 5.872526004 | F13: =SE!AH64/All!AH64*100 -> 6.057855717
A14: Part-time employees | B14: =PT!F64/All!F64*100 -> 8.802942531 | C14: =PT!P64/All!P64*100 -> 8.021999436 | D14: =PT!Z64/All!Z64*100 -> 8.198578861 | E14: =PT!AE64/All!AE64*100 -> 9.085313849 | F14: =PT!AH64/All!AH64*100 -> 9.776291844
A16: Construction, of which: | B16: =All!F92/All!F8*100 -> 6.846706119 | C16: =All!P92/All!P8*100 -> 8.53680368 | D16: =All!Z92/All!Z8*100 -> 7.139009925 | E16: =All!AE92/All!AE8*100 -> 7.748297715 | F16: =All!AH92/All!AH8*100 -> 8.014589653
A18: Female employees | B18: =Females!F92/All!F92*100 -> 14.01619616 | C18: =Females!P92/All!P92*100 -> 13.20901585 | D18: =Females!Z92/All!Z92*100 -> 11.29130923 | E18: =Females!AE92/All!AE92*100 -> 11.5152176 | F18: =Females!AH92/All!AH92*100 -> 11.69576179
A19: Self-employed | B19: =SE!F92/All!F92*100 -> 46.25244447 | C19: =SE!P92/All!P92*100 -> 39.07791252 | D19: =SE!Z92/All!Z92*100 -> 42.62539181 | E19: =SE!AE92/All!AE92*100 -> 41.68662269 | F19: =SE!AH92/All!AH92*100 -> 40.8390247
A20: Part-time employees | B20: =PT!F92/All!F92*100 -> 4.840670912 | C20: =PT!P92/All!P92*100 -> 5.903946031 | D20: =PT!Z92/All!Z92*100 -> 6.071254132 | E20: =PT!AE92/All!AE92*100 -> 6.225020026 | F20: =PT!AH92/All!AH92*100 -> 6.346540499
A22: Distribution, transport etc, of which: | B22: =All!F120/All!F8*100 -> 29.1829991 | C22: =All!P120/All!P8*100 -> 28.11215128 | D22: =All!Z120/All!Z8*100 -> 26.98211888 | E22: =All!AE120/All!AE8*100 -> 27.42403002 | F22: =All!AH120/All!AH8*100 -> 27.43354853
A24: Female employees | B24: =Females!F120/All!F120*100 -> 45.87526157 | C24: =Females!P120/All!P120*100 -> 47.17348651 | D24: =Females!Z120/All!Z120*100 -> 43.76292307 | E24: =Females!AE120/All!AE120*100 -> 44.31344343 | F24: =Females!AH120/All!AH120*100 -> 44.64860531
A25: Self-employed | B25: =SE!F120/All!F120*100 -> 13.44821045 | C25: =SE!P120/All!P120*100 -> 9.122989665 | D25: =SE!Z120/All!Z120*100 -> 9.905724294 | E25: =SE!AE120/All!AE120*100 -> 9.008577736 | F25: =SE!AH120/All!AH120*100 -> 8.495544486
A26: Part-time employees | B26: =PT!F120/All!F120*100 -> 31.5137104 | C26: =PT!P120/All!P120*100 -> 36.3075071 | D26: =PT!Z120/All!Z120*100 -> 36.12463364 | E26: =PT!AE120/All!AE120*100 -> 37.13191513 | F26: =PT!AH120/All!AH120*100 -> 37.8676702
A28: Business & other services, of which: | B28: =All!F148/All!F8*100 -> 24.86269596 | C28: =All!P148/All!P8*100 -> 29.24972848 | D28: =All!Z148/All!Z8*100 -> 31.22932181 | E28: =All!AE148/All!AE8*100 -> 31.64372148 | F28: =All!AH148/All!AH8*100 -> 31.67248352
A30: Female employees | B30: =Females!F148/All!F148*100 -> 48.17608456 | C30: =Females!P148/All!P148*100 -> 46.68268127 | D30: =Females!Z148/All!Z148*100 -> 44.9545899 | E30: =Females!AE148/All!AE148*100 -> 44.79540103 | F30: =Females!AH148/All!AH148*100 -> 44.724763
A31: Self-employed | B31: =SE!F148/All!F148*100 -> 18.15319716 | C31: =SE!P148/All!P148*100 -> 16.99633154 | D31: =SE!Z148/All!Z148*100 -> 20.11681529 | E31: =SE!AE148/All!AE148*100 -> 19.42866121 | F31: =SE!AH148/All!AH148*100 -> 19.02053161
A32: Part-time employees | B32: =PT!F148/All!F148*100 -> 20.19994546 | C32: =PT!P148/All!P148*100 -> 22.34185583 | D32: =PT!Z148/All!Z148*100 -> 24.69630844 | E32: =PT!AE148/All!AE148*100 -> 24.78488534 | F32: =PT!AH148/All!AH148*100 -> 24.86717901
A34: Non-marketed services services, of which: | B34: =All!F176/All!F8*100 -> 22.20634873 | C34: =All!P176/All!P8*100 -> 20.84277592 | D34: =All!Z176/All!Z8*100 -> 24.44560525 | E34: =All!AE176/All!AE8*100 -> 23.70490171 | F34: =All!AH176/All!AH8*100 -> 23.97253442
A36: Female employees | B36: =Females!F176/All!F176*100 -> 72.57792405 | C36: =Females!P176/All!P176*100 -> 72.18507511 | D36: =Females!Z176/All!Z176*100 -> 73.78735296 | E36: =Females!AE176/All!AE176*100 -> 74.26286432 | F36: =Females!AH176/All!AH176*100 -> 74.52786654
A37: Self-employed | B37: =SE!F176/All!F176*100 -> 5.296651522 | C37: =SE!P176/All!P176*100 -> 5.528977655 | D37: =SE!Z176/All!Z176*100 -> 10.00695196 | E37: =SE!AE176/All!AE176*100 -> 9.609049746 | F37: =SE!AH176/All!AH176*100 -> 9.351576712
A38: Part-time employees | B38: =PT!F176/All!F176*100 -> 46.23052261 | C38: =PT!P176/All!P176*100 -> 42.22221835 | D38: =PT!Z176/All!Z176*100 -> 43.78048409 | E38: =PT!AE176/All!AE176*100 -> 44.98566785 | F38: =PT!AH176/All!AH176*100 -> 45.67691134
A40: =CELL("filename",$A$1) -> R:\Research Info\Individual research project info\Working Futures_ CG data task\East of England\[6EE_East_of_Eng.xlsm]Table 3.8

Sheet Figure 3.2
B4: Figure 3.2: Changes in Employment Structure by Broad Sector, (per cent p.a.)
M12: Primary sector and utilities
M14: Manufacturing
M16: Construction
M18: Trade, accomod. and transport
M20: Business and other services
M22: Non-market services
A29: =CELL("filename",$A$1) -> R:\Research Info\Individual research project info\Working Futures_ CG data task\East of England\[6EE_East_of_Eng.xlsm]Figure 3.2
B35: ='Table 3.2'!B34 -> 1994-2004 | C35: ='Table 3.2'!C34 -> 2004-2014 | D35: ='Table 3.2'!D34 -> 2014-2019 | E35: ='Table 3.2'!E34 -> 2019-2024 | F35: ='Table 3.2'!F34 -> 2014-2024
A37: All Industries | B37: ='Table 3.2'!B32 -> 1.68462712 | C37: ='Table 3.2'!C32 -> 0.7034514266 | D37: ='Table 3.2'!D32 -> 0.8221275035 | E37: ='Table 3.2'!E32 -> 0.5618695897 | F37: ='Table 3.2'!F32 -> 0.6919144607
A38: Non-marketed services | B38: ='Table 3.2'!B30 -> 1.04228078 | C38: ='Table 3.2'!C30 -> 2.321966687 | D38: ='Table 3.2'!D30 -> 0.2036013257 | E38: ='Table 3.2'!E30 -> 0.9195197086 | F38: ='Table 3.2'!F30 -> 0.5609234189
A39: Business & other services | B39: ='Table 3.2'!B29 -> 3.350519119 | C39: ='Table 3.2'!C29 -> 1.365093862 | D39: ='Table 3.2'!D29 -> 1.088291731 | E39: ='Table 3.2'!E29 -> 0.5863771929 | F39: ='Table 3.2'!F29 -> 0.8370221785
A40: Distribution, transport etc | B40: ='Table 3.2'!B28 -> 1.305194883 | C40: ='Table 3.2'!C28 -> 0.2911364292 | D40: ='Table 3.2'!D28 -> 1.150236458 | E40: ='Table 3.2'!E28 -> 0.6209658665 | F40: ='Table 3.2'!F28 -> 0.885254076
A41: Construction | B41: ='Table 3.2'!B27 -> 3.952912361 | C41: ='Table 3.2'!C27 -> -1.08124888 | D41: ='Table 3.2'!D27 -> 2.487174527 | E41: ='Table 3.2'!E27 -> 1.566795986 | F41: ='Table 3.2'!F27 -> 2.025947417
A42: Manufacturing | B42: ='Table 3.2'!B26 -> -0.3513279418 | C42: ='Table 3.2'!C26 -> -2.493539912 | D42: ='Table 3.2'!D26 -> -0.3271005795 | E42: ='Table 3.2'!E26 -> -1.732856725 | F42: ='Table 3.2'!F26 -> -1.032474579
A43: Primary sector & utilities | B43: ='Table 3.2'!B25 -> -2.34184705 | C43: ='Table 3.2'!C25 -> 0.3937725421 | D43: ='Table 3.2'!D25 -> -1.757498553 | E43: ='Table 3.2'!E25 -> -0.7538548396 | F43: ='Table 3.2'!F25 -> -1.256951842

Sheet Figure 3.3
B4: Figure 3.3: Changes in Employment Structure by Broad Sector, (000s)
A29: =CELL("filename",$A$1) -> R:\Research Info\Individual research project info\Working Futures_ CG data task\East of England\[6EE_East_of_Eng.xlsm]Figure 3.3
A35: LEVELS | B35: =All!F7 -> 1994 | C35: =All!P7 -> 2004 | D35: =All!Z7 -> 2014 | E35: =All!AE7 -> 2019 | F35: =All!AJ7 -> 2024
A37: All Industries | B37: =0.001*All!F8 -> 2330.23 | C37: =0.001*All!P8 -> 2753.923 | D37: =0.001*All!Z8 -> 2953.897 | E37: =0.001*All!AE8 -> 3077.334 | F37: =0.001*All!AJ8 -> 3164.764
A38: Non-marketed services | B38: =0.001*All!F176 -> 517.459 | C38: =0.001*All!P176 -> 573.994 | D38: =0.001*All!Z176 -> 722.098 | E38: =0.001*All!AE176 -> 729.479 | F38: =0.001*All!AJ176 -> 763.64
A39: Business and other services | B39: =0.001*All!F148 -> 579.358 | C39: =0.001*All!P148 -> 805.515 | D39: =0.001*All!Z148 -> 922.482 | E39: =0.001*All!AE148 -> 973.783 | F39: =0.001*All!AJ148 -> 1002.67
A40: Distribution, transport etc | B40: =0.001*All!F120 -> 680.031 | C40: =0.001*All!P120 -> 774.187 | D40: =0.001*All!Z120 -> 797.024 | E40: =0.001*All!AE120 -> 843.929 | F40: =0.001*All!AJ120 -> 870.459
A41: Construction | B41: =0.001*All!F92 -> 159.544 | C41: =0.001*All!P92 -> 235.097 | D41: =0.001*All!Z92 -> 210.879 | E41: =0.001*All!AE92 -> 238.441 | F41: =0.001*All!AJ92 -> 257.715
A42: Manufacturing | B42: =0.001*All!F64 -> 308.306 | C42: =0.001*All!P64 -> 297.644 | D42: =0.001*All!Z64 -> 231.223 | E42: =0.001*All!AE64 -> 227.466 | F42: =0.001*All!AJ64 -> 208.429
A43: Primary sector and utilities | B43: =0.001*All!F36 -> 85.532 | C43: =0.001*All!P36 -> 67.486 | D43: =0.001*All!Z36 -> 70.191 | E43: =0.001*All!AE36 -> 64.236 | F43: =0.001*All!AJ36 -> 61.851
A45: CHANGE | C45: =CONCATENATE(B35,"-",C35) -> 1994-2004 | D45: =CONCATENATE(C35,"-",D35) -> 2004-2014 | E45: =CONCATENATE(D35,"-",E35) -> 2014-2019 | F45: =CONCATENATE(E35,"-",F35) -> 2019-2024 | G45: =CONCATENATE(D35,"-",F35) -> 2014-2024
A46: All Industries | C46: =C37-B37 -> 423.693 | D46: =D37-C37 -> 199.974 | E46: =E37-D37 -> 123.437 | F46: =F37-E37 -> 87.43 | G46: =E46+F46 -> 210.867
A47: Non-marketed services | C47: =C38-B38 -> 56.535 | D47: 148.104 | E47: 7.381 | F47: 34.161 | G47: =E47+F47 -> 41.542
A48: Business and other services | C48: 226.157 | D48: 116.967 | E48: 51.301 | F48: 28.887 | G48: 80.188
A49: Distribution, transport etc | C49: 94.156 | D49: 22.837 | E49: 46.905 | F49: 26.53 | G49: 73.435
A50: Construction | C50: 75.553 | D50: -24.218 | E50: 27.562 | F50: 19.274 | G50: 46.836
A51: Manufacturing | C51: -10.662 | D51: -66.421 | E51: -3.757 | F51: -19.037 | G51: -22.794
A52: Primary sector and utilities | C52: -18.046 | D52: 2.705 | E52: -5.955 | F52: -2.385 | G52: -8.34

Sheet Figure 3.6
M2: Total Employment (FT+PT+SE) by Gender
M4: =CONCATENATE($M$2,CHAR(13),O4) -> Total Employment (FT+PT+SE) by Gender Primary sector and utilities | O4: =names!A4 -> Primary sector and utilities | P4: =Females!F7 -> 1994 | Q4: =Females!G7 -> 1995 | R4: =Females!H7 -> 1996 | S4: =Females!I7 -> 1997 | T4: =Females!J7 -> 1998 | U4: =Females!K7 -> 1999 | V4: =Females!L7 -> 2000 | W4: =Females!M7 -> 2001 | X4: =Females!N7 -> 2002 | Y4: =Females!O7 -> 2003 | Z4: =Females!P7 -> 2004 | AA4: =Females!Q7 -> 2005 | AB4: =Females!R7 -> 2006 | AC4: =Females!S7 -> 2007 | AD4: =Females!T7 -> 2008 | AE4: =Females!U7 -> 2009 | AF4: =Females!V7 -> 2010 | AG4: =Females!W7 -> 2011 | AH4: =Females!X7 -> 2012 | AI4: =Females!Y7 -> 2013 | AJ4: =Females!Z7 -> 2014 | AK4: =Females!AA7 -> 2015 | AL4: =Females!AB7 -> 2016 | AM4: =Females!AC7 -> 2017 | AN4: =Females!AD7 -> 2018 | AO4: =Females!AE7 -> 2019 | AP4: =Females!AF7 -> 2020 | AQ4: =Females!AG7 -> 2021 | AR4: =Females!AH7 -> 2022 | AS4: =Females!AI7 -> 2023 | AT4: =Females!AJ7 -> 2024
O5: Women | P5: =Females!F36/1000 -> 22.259 | Q5: =Females!G36/1000 -> 18.216 | R5: =Females!H36/1000 -> 15.686 | S5: =Females!I36/1000 -> 16.605 | T5: =Females!J36/1000 -> 22.908 | U5: =Females!K36/1000 -> 20.745 | V5: =Females!L36/1000 -> 17.357 | W5: =Females!M36/1000 -> 13.767 | X5: =Females!N36/1000 -> 15.76 | Y5: =Females!O36/1000 -> 15.498 | Z5: =Females!P36/1000 -> 18.886 | AA5: =Females!Q36/1000 -> 16.283 | AB5: =Females!R36/1000 -> 16.97 | AC5: =Females!S36/1000 -> 14.304 | AD5: =Females!T36/1000 -> 13.249 | AE5: =Females!U36/1000 -> 11.268 | AF5: =Females!V36/1000 -> 17.454 | AG5: =Females!W36/1000 -> 14.595 | AH5: =Females!X36/1000 -> 17.561 | AI5: =Females!Y36/1000 -> 16.048 | AJ5: =Females!Z36/1000 -> 16.999 | AK5: =Females!AA36/1000 -> 16.006 | AL5: =Females!AB36/1000 -> 15.929 | AM5: =Females!AC36/1000 -> 15.956 | AN5: =Females!AD36/1000 -> 15.952 | AO5: =Females!AE36/1000 -> 15.939 | AP5: =Females!AF36/1000 -> 15.961 | AQ5: =Females!AG36/1000 -> 15.975 | AR5: =Females!AH36/1000 -> 16.038 | AS5: =Females!AI36/1000 -> 16.096 | AT5: =Females!AJ36/1000 -> 16.172
O6: Men | P6: =Males!F36/1000 -> 63.273 | Q6: =Males!G36/1000 -> 60.194 | R6: =Males!H36/1000 -> 53.208 | S6: =Males!I36/1000 -> 54.935 | T6: =Males!J36/1000 -> 59.366 | U6: =Males!K36/1000 -> 50.151 | V6: =Males!L36/1000 -> 46.596 | W6: =Males!M36/1000 -> 34.216 | X6: =Males!N36/1000 -> 42.812 | Y6: =Males!O36/1000 -> 41.874 | Z6: =Males!P36/1000 -> 48.6 | AA6: =Males!Q36/1000 -> 36.333 | AB6: =Males!R36/1000 -> 48.373 | AC6: =Males!S36/1000 -> 44.458 | AD6: =Males!T36/1000 -> 44.457 | AE6: =Males!U36/1000 -> 43.665 | AF6: =Males!V36/1000 -> 48.077 | AG6: =Males!W36/1000 -> 47.382 | AH6: =Males!X36/1000 -> 54.944 | AI6: =Males!Y36/1000 -> 45.295 | AJ6: =Males!Z36/1000 -> 53.192 | AK6: =Males!AA36/1000 -> 50.965 | AL6: =Males!AB36/1000 -> 50.145 | AM6: =Males!AC36/1000 -> 49.614 | AN6: =Males!AD36/1000 -> 49.032 | AO6: =Males!AE36/1000 -> 48.297 | AP6: =Males!AF36/1000 -> 47.681 | AQ6: =Males!AG36/1000 -> 47.059 | AR6: =Males!AH36/1000 -> 46.59 | AS6: =Males!AI36/1000 -> 46.105 | AT6: =Males!AJ36/1000 -> 45.679
M7: =CONCATENATE($M$2,CHAR(13),O7) -> Total Employment (FT+PT+SE) by Gender Manufacturing | O7: =names!A5 -> Manufacturing
O8: Women | P8: =Females!F64/1000 -> 92.719 | Q8: =Females!G64/1000 -> 93.612 | R8: =Females!H64/1000 -> 96.707 | S8: =Females!I64/1000 -> 92.792 | T8: =Females!J64/1000 -> 102.541 | U8: =Females!K64/1000 -> 93.038 | V8: =Females!L64/1000 -> 90.257 | W8: =Females!M64/1000 -> 90.708 | X8: =Females!N64/1000 -> 89.103 | Y8: =Females!O64/1000 -> 78.091 | Z8: =Females!P64/1000 -> 76.93 | AA8: =Females!Q64/1000 -> 71.31 | AB8: =Females!R64/1000 -> 69.15 | AC8: =Females!S64/1000 -> 70.697 | AD8: =Females!T64/1000 -> 71.204 | AE8: =Females!U64/1000 -> 59.61 | AF8: =Females!V64/1000 -> 59.167 | AG8: =Females!W64/1000 -> 58.226 | AH8: =Females!X64/1000 -> 55.248 | AI8: =Females!Y64/1000 -> 53.963 | AJ8: =Females!Z64/1000 -> 59.066 | AK8: =Females!AA64/1000 -> 60.622 | AL8: =Females!AB64/1000 -> 60.997 | AM8: =Females!AC64/1000 -> 60.869 | AN8: =Females!AD64/1000 -> 60.464 | AO8: =Females!AE64/1000 -> 59.911 | AP8: =Females!AF64/1000 -> 59.361 | AQ8: =Females!AG64/1000 -> 58.789 | AR8: =Females!AH64/1000 -> 58.232 | AS8: =Females!AI64/1000 -> 57.694 | AT8: =Females!AJ64/1000 -> 57.11
O9: Men | P9: =Males!F64/1000 -> 215.587 | Q9: =Males!G64/1000 -> 225.763 | R9: =Males!H64/1000 -> 259.067 | S9: =Males!I64/1000 -> 256.768 | T9: =Males!J64/1000 -> 261.407 | U9: =Males!K64/1000 -> 256.384 | V9: =Males!L64/1000 -> 251.886 | W9: =Males!M64/1000 -> 255.901 | X9: =Males!N64/1000 -> 239.144 | Y9: =Males!O64/1000 -> 227.04 | Z9: =Males!P64/1000 -> 220.714 | AA9: =Males!Q64/1000 -> 205.988 | AB9: =Males!R64/1000 -> 198.966 | AC9: =Males!S64/1000 -> 195.098 | AD9: =Males!T64/1000 -> 189.294 | AE9: =Males!U64/1000 -> 177.399 | AF9: =Males!V64/1000 -> 171.702 | AG9: =Males!W64/1000 -> 179.141 | AH9: =Males!X64/1000 -> 187.821 | AI9: =Males!Y64/1000 -> 176.461 | AJ9: =Males!Z64/1000 -> 172.157 | AK9: =Males!AA64/1000 -> 175.03 | AL9: =Males!AB64/1000 -> 174.94 | AM9: =Males!AC64/1000 -> 173.42 | AN9: =Males!AD64/1000 -> 170.8 | AO9: =Males!AE64/1000 -> 167.555 | AP9: =Males!AF64/1000 -> 164.327 | AQ9: =Males!AG64/1000 -> 160.985 | AR9: =Males!AH64/1000 -> 157.719 | AS9: =Males!AI64/1000 -> 154.567 | AT9: =Males!AJ64/1000 -> 151.319
M10: =CONCATENATE($M$2,CHAR(13),O10) -> Total Employment (FT+PT+SE) by Gender Construction | O10: =names!A6 -> Construction
O11: Women | P11: =Females!F92/1000 -> 22.362 | Q11: =Females!G92/1000 -> 20.323 | R11: =Females!H92/1000 -> 21.672 | S11: =Females!I92/1000 -> 21.366 | T11: =Females!J92/1000 -> 26.091 | U11: =Females!K92/1000 -> 26.876 | V11: =Females!L92/1000 -> 27.398 | W11: =Females!M92/1000 -> 28.301 | X11: =Females!N92/1000 -> 26.116 | Y11: =Females!O92/1000 -> 30.951 | Z11: =Females!P92/1000 -> 31.054 | AA11: =Females!Q92/1000 -> 29.429 | AB11: =Females!R92/1000 -> 29.581 | AC11: =Females!S92/1000 -> 30.4 | AD11: =Females!T92/1000 -> 32.584 | AE11: =Females!U92/1000 -> 37.835 | AF11: =Females!V92/1000 -> 26.028 | AG11: =Females!W92/1000 -> 26.898 | AH11: =Females!X92/1000 -> 24.923 | AI11: =Females!Y92/1000 -> 24.877 | AJ11: =Females!Z92/1000 -> 23.811 | AK11: =Females!AA92/1000 -> 24.535 | AL11: =Females!AB92/1000 -> 25.662 | AM11: =Females!AC92/1000 -> 26.336 | AN11: =Females!AD92/1000 -> 26.849 | AO11: =Females!AE92/1000 -> 27.457 | AP11: =Females!AF92/1000 -> 28.13 | AQ11: =Females!AG92/1000 -> 28.728 | AR11: =Females!AH92/1000 -> 29.318 | AS11: =Females!AI92/1000 -> 29.915 | AT11: =Females!AJ92/1000 -> 30.431
O12: Men | P12: =Males!F92/1000 -> 137.182 | Q12: =Males!G92/1000 -> 142.109 | R12: =Males!H92/1000 -> 145.489 | S12: =Males!I92/1000 -> 159.878 | T12: =Males!J92/1000 -> 157.955 | U12: =Males!K92/1000 -> 171.831 | V12: =Males!L92/1000 -> 179.393 | W12: =Males!M92/1000 -> 179.663 | X12: =Males!N92/1000 -> 185.304 | Y12: =Males!O92/1000 -> 194.079 | Z12: =Males!P92/1000 -> 204.043 | AA12: =Males!Q92/1000 -> 196.482 | AB12: =Males!R92/1000 -> 195.36 | AC12: =Males!S92/1000 -> 199.258 | AD12: =Males!T92/1000 -> 195.608 | AE12: =Males!U92/1000 -> 203.264 | AF12: =Males!V92/1000 -> 191.169 | AG12: =Males!W92/1000 -> 195.15 | AH12: =Males!X92/1000 -> 184.065 | AI12: =Males!Y92/1000 -> 183.807 | AJ12: =Males!Z92/1000 -> 187.068 | AK12: =Males!AA92/1000 -> 192.94 | AL12: =Males!AB92/1000 -> 200.907 | AM12: =Males!AC92/1000 -> 204.943 | AN12: =Males!AD92/1000 -> 207.61 | AO12: =Males!AE92/1000 -> 210.984 | AP12: =Males!AF92/1000 -> 214.861 | AQ12: =Males!AG92/1000 -> 218.123 | AR12: =Males!AH92/1000 -> 221.354 | AS12: =Males!AI92/1000 -> 224.629 | AT12: =Males!AJ92/1000 -> 227.284
M13: =CONCATENATE($M$2,CHAR(13),O13) -> Total Employment (FT+PT+SE) by Gender Trade, accomod. and transport | O13: =names!A7 -> Trade, accomod. and transport
O14: Women | P14: =Females!F120/1000 -> 311.966 | Q14: =Females!G120/1000 -> 317.708 | R14: =Females!H120/1000 -> 336.122 | S14: =Females!I120/1000 -> 348.557 | T14: =Females!J120/1000 -> 334.397 | U14: =Females!K120/1000 -> 336.135 | V14: =Females!L120/1000 -> 342.978 | W14: =Females!M120/1000 -> 354.995 | X14: =Females!N120/1000 -> 356.942 | Y14: =Females!O120/1000 -> 361.737 | Z14: =Females!P120/1000 -> 365.211 | AA14: =Females!Q120/1000 -> 349.355 | AB14: =Females!R120/1000 -> 357.757 | AC14: =Females!S120/1000 -> 352.826 | AD14: =Females!T120/1000 -> 345.946 | AE14: =Females!U120/1000 -> 342.673 | AF14: =Females!V120/1000 -> 343.106 | AG14: =Females!W120/1000 -> 347.228 | AH14: =Females!X120/1000 -> 347.221 | AI14: =Females!Y120/1000 -> 336.807 | AJ14: =Females!Z120/1000 -> 348.801 | AK14: =Females!AA120/1000 -> 354.127 | AL14: =Females!AB120/1000 -> 361.445 | AM14: =Females!AC120/1000 -> 367.363 | AN14: =Females!AD120/1000 -> 371.166 | AO14: =Females!AE120/1000 -> 373.974 | AP14: =Females!AF120/1000 -> 376.865 | AQ14: =Females!AG120/1000 -> 379.768 | AR14: =Females!AH120/1000 -> 383.102 | AS14: =Females!AI120/1000 -> 386.787 | AT14: =Females!AJ120/1000 -> 390.542
O15: Men | P15: =Males!F120/1000 -> 368.065 | Q15: =Males!G120/1000 -> 381.465 | R15: =Males!H120/1000 -> 370.466 | S15: =Males!I120/1000 -> 388.328 | T15: =Males!J120/1000 -> 385.542 | U15: =Males!K120/1000 -> 383.307 | V15: =Males!L120/1000 -> 388.934 | W15: =Males!M120/1000 -> 406.998 | X15: =Males!N120/1000 -> 397.961 | Y15: =Males!O120/1000 -> 407.765 | Z15: =Males!P120/1000 -> 408.976 | AA15: =Males!Q120/1000 -> 423.776 | AB15: =Males!R120/1000 -> 433.823 | AC15: =Males!S120/1000 -> 431.096 | AD15: =Males!T120/1000 -> 447.697 | AE15: =Males!U120/1000 -> 442.564 | AF15: =Males!V120/1000 -> 442.068 | AG15: =Males!W120/1000 -> 450.927 | AH15: =Males!X120/1000 -> 444.781 | AI15: =Males!Y120/1000 -> 447.555 | AJ15: =Males!Z120/1000 -> 448.223 | AK15: =Males!AA120/1000 -> 457.002 | AL15: =Males!AB120/1000 -> 461.388 | AM15: =Males!AC120/1000 -> 466.167 | AN15: =Males!AD120/1000 -> 468.712 | AO15: =Males!AE120/1000 -> 469.955 | AP15: =Males!AF120/1000 -> 471.374 | AQ15: =Males!AG120/1000 -> 472.883 | AR15: =Males!AH120/1000 -> 474.936 | AS15: =Males!AI120/1000 -> 477.379 | AT15: =Males!AJ120/1000 -> 479.917
M16: =CONCATENATE($M$2,CHAR(13),O16) -> Total Employment (FT+PT+SE) by Gender Business and other services | O16: =names!A8 -> Business and other services
O17: Women | P17: =Females!F148/1000 -> 279.112 | Q17: =Females!G148/1000 -> 291.667 | R17: =Females!H148/1000 -> 292.502 | S17: =Females!I148/1000 -> 306.915 | T17: =Females!J148/1000 -> 320.382 | U17: =Females!K148/1000 -> 333.115 | V17: =Females!L148/1000 -> 341.919 | W17: =Females!M148/1000 -> 347.47 | X17: =Females!N148/1000 -> 361.097 | Y17: =Females!O148/1000 -> 366.57 | Z17: =Females!P148/1000 -> 376.036 | AA17: =Females!Q148/1000 -> 364.197 | AB17: =Females!R148/1000 -> 377.991 | AC17: =Females!S148/1000 -> 398.363 | AD17: =Females!T148/1000 -> 407.343 | AE17: =Females!U148/1000 -> 378.134 | AF17: =Females!V148/1000 -> 385.712 | AG17: =Females!W148/1000 -> 346.442 | AH17: =Females!X148/1000 -> 398.987 | AI17: =Females!Y148/1000 -> 388.844 | AJ17: =Females!Z148/1000 -> 414.698 | AK17: =Females!AA148/1000 -> 423.065 | AL17: =Females!AB148/1000 -> 427.54 | AM17: =Females!AC148/1000 -> 430.877 | AN17: =Females!AD148/1000 -> 433.848 | AO17: =Females!AE148/1000 -> 436.21 | AP17: =Females!AF148/1000 -> 438.302 | AQ17: =Females!AG148/1000 -> 440.585 | AR17: =Females!AH148/1000 -> 443.052 | AS17: =Females!AI148/1000 -> 445.407 | AT17: =Females!AJ148/1000 -> 447.936
O18: Men | P18: =Males!F148/1000 -> 300.246 | Q18: =Males!G148/1000 -> 313.115 | R18: =Males!H148/1000 -> 309.468 | S18: =Males!I148/1000 -> 328.319 | T18: =Males!J148/1000 -> 356.677 | U18: =Males!K148/1000 -> 368.809 | V18: =Males!L148/1000 -> 389.811 | W18: =Males!M148/1000 -> 413.233 | X18: =Males!N148/1000 -> 409.488 | Y18: =Males!O148/1000 -> 419.337 | Z18: =Males!P148/1000 -> 429.479 | AA18: =Males!Q148/1000 -> 430.082 | AB18: =Males!R148/1000 -> 451.142 | AC18: =Males!S148/1000 -> 451.728 | AD18: =Males!T148/1000 -> 456.843 | AE18: =Males!U148/1000 -> 457.81 | AF18: =Males!V148/1000 -> 447.206 | AG18: =Males!W148/1000 -> 432.751 | AH18: =Males!X148/1000 -> 472.005 | AI18: =Males!Y148/1000 -> 486.205 | AJ18: =Males!Z148/1000 -> 507.784 | AK18: =Males!AA148/1000 -> 519.318 | AL18: =Males!AB148/1000 -> 525.301 | AM18: =Males!AC148/1000 -> 529.893 | AN18: =Males!AD148/1000 -> 534.112 | AO18: =Males!AE148/1000 -> 537.573 | AP18: =Males!AF148/1000 -> 540.676 | AQ18: =Males!AG148/1000 -> 543.998 | AR18: =Males!AH148/1000 -> 547.567 | AS18: =Males!AI148/1000 -> 551.014 | AT18: =Males!AJ148/1000 -> 554.734
M19: =CONCATENATE($M$2,CHAR(13),O19) -> Total Employment (FT+PT+SE) by Gender Non-market services | O19: =names!A9 -> Non-market services
O20: Women | P20: =Females!F176/1000 -> 375.561 | Q20: =Females!G176/1000 -> 375.328 | R20: =Females!H176/1000 -> 371.147 | S20: =Females!I176/1000 -> 366.789 | T20: =Females!J176/1000 -> 372.356 | U20: =Females!K176/1000 -> 366.067 | V20: =Females!L176/1000 -> 389.972 | W20: =Females!M176/1000 -> 380.59 | X20: =Females!N176/1000 -> 402.95 | Y20: =Females!O176/1000 -> 405.855 | Z20: =Females!P176/1000 -> 414.338 | AA20: =Females!Q176/1000 -> 438.963 | AB20: =Females!R176/1000 -> 470.055 | AC20: =Females!S176/1000 -> 469.011 | AD20: =Females!T176/1000 -> 466.182 | AE20: =Females!U176/1000 -> 474.126 | AF20: =Females!V176/1000 -> 475.488 | AG20: =Females!W176/1000 -> 493.074 | AH20: =Females!X176/1000 -> 492.896 | AI20: =Females!Y176/1000 -> 505.412 | AJ20: =Females!Z176/1000 -> 532.817 | AK20: =Females!AA176/1000 -> 535.359 | AL20: =Females!AB176/1000 -> 534.249 | AM20: =Females!AC176/1000 -> 534.246 | AN20: =Females!AD176/1000 -> 537.247 | AO20: =Females!AE176/1000 -> 541.732 | AP20: =Females!AF176/1000 -> 547.995 | AQ20: =Females!AG176/1000 -> 553.308 | AR20: =Females!AH176/1000 -> 558.801 | AS20: =Females!AI176/1000 -> 564.506 | AT20: =Females!AJ176/1000 -> 570.356
O21: Men | P21: =Males!F176/1000 -> 141.898 | Q21: =Males!G176/1000 -> 139.955 | R21: =Males!H176/1000 -> 132.973 | S21: =Males!I176/1000 -> 131.973 | T21: =Males!J176/1000 -> 131.044 | U21: =Males!K176/1000 -> 142.029 | V21: =Males!L176/1000 -> 145.201 | W21: =Males!M176/1000 -> 149.646 | X21: =Males!N176/1000 -> 149.167 | Y21: =Males!O176/1000 -> 152.305 | Z21: =Males!P176/1000 -> 159.656 | AA21: =Males!Q176/1000 -> 163.989 | AB21: =Males!R176/1000 -> 176.949 | AC21: =Males!S176/1000 -> 187.746 | AD21: =Males!T176/1000 -> 179.584 | AE21: =Males!U176/1000 -> 182.999 | AF21: =Males!V176/1000 -> 174.412 | AG21: =Males!W176/1000 -> 176.862 | AH21: =Males!X176/1000 -> 182.398 | AI21: =Males!Y176/1000 -> 191.825 | AJ21: =Males!Z176/1000 -> 189.281 | AK21: =Males!AA176/1000 -> 189.823 | AL21: =Males!AB176/1000 -> 188.134 | AM21: =Males!AC176/1000 -> 187.232 | AN21: =Males!AD176/1000 -> 187.211 | AO21: =Males!AE176/1000 -> 187.747 | AP21: =Males!AF176/1000 -> 188.999 | AQ21: =Males!AG176/1000 -> 189.957 | AR21: =Males!AH176/1000 -> 190.987 | AS21: =Males!AI176/1000 -> 192.102 | AT21: =Males!AJ176/1000 -> 193.284
M22: =CONCATENATE($M$2,CHAR(13),O22) -> Total Employment (FT+PT+SE) by Gender All industries | O22: =names!A3 -> All industries
O23: Women | P23: =P5+P8+P11+P14+P17+P20 -> 1103.979 | Q23: =Q5+Q8+Q11+Q14+Q17+Q20 -> 1116.854 | R23: 1133.836 | S23: 1153.024 | T23: 1178.675 | U23: 1175.976 | V23: 1209.881 | W23: 1215.831 | X23: 1251.968 | Y23: 1258.702 | Z23: 1282.455 | AA23: 1269.537 | AB23: 1321.504 | AC23: 1335.601 | AD23: 1336.508 | AE23: 1303.646 | AF23: 1306.955 | AG23: 1286.463 | AH23: 1336.836 | AI23: 1325.951 | AJ23: 1396.192 | AK23: 1413.714 | AL23: 1425.822 | AM23: 1435.647 | AN23: 1445.526 | AO23: 1455.223 | AP23: 1466.614 | AQ23: 1477.153 | AR23: 1488.543 | AS23: 1500.405 | AT23: 1512.547
O24: Men | P24: =P6+P9+P12+P15+P18+P21 -> 1226.251 | Q24: =Q6+Q9+Q12+Q15+Q18+Q21 -> 1262.601 | R24: 1270.671 | S24: 1320.201 | T24: 1351.991 | U24: 1372.511 | V24: 1401.821 | W24: 1439.657 | X24: 1423.876 | Y24: 1442.4 | Z24: 1471.468 | AA24: 1456.65 | AB24: 1504.613 | AC24: 1509.384 | AD24: 1513.483 | AE24: 1507.701 | AF24: 1474.634 | AG24: 1482.213 | AH24: 1526.014 | AI24: 1531.148 | AJ24: 1557.705 | AK24: 1585.078 | AL24: 1600.815 | AM24: 1611.269 | AN24: 1617.477 | AO24: 1622.111 | AP24: 1627.918 | AQ24: 1633.005 | AR24: 1639.153 | AS24: 1645.796 | AT24: 1652.217
B57: =CELL("filename",$A$1) -> R:\Research Info\Individual research project info\Working Futures_ CG data task\East of England\[6EE_East_of_Eng.xlsm]Figure 3.6
B115: =$B$57 -> R:\Research Info\Individual research project info\Working Futures_ CG data task\East of England\[6EE_East_of_Eng.xlsm]Figure 3.6
B173: =$B$57 -> R:\Research Info\Individual research project info\Working Futures_ CG data task\East of England\[6EE_East_of_Eng.xlsm]Figure 3.6
B203: =$B$57 -> R:\Research Info\Individual research project info\Working Futures_ CG data task\East of England\[6EE_East_of_Eng.xlsm]Figure 3.6

Sheet Figure 3.7
M2: Total Employment by Status
M4: =CONCATENATE($M$2,CHAR(13),O4) -> Total Employment by Status Primary sector and utilities | O4: =names!A4 -> Primary sector and utilities | P4: =All!F7 -> 1994 | Q4: =All!G7 -> 1995 | R4: =All!H7 -> 1996 | S4: =All!I7 -> 1997 | T4: =All!J7 -> 1998 | U4: =All!K7 -> 1999 | V4: =All!L7 -> 2000 | W4: =All!M7 -> 2001 | X4: =All!N7 -> 2002 | Y4: =All!O7 -> 2003 | Z4: =All!P7 -> 2004 | AA4: =All!Q7 -> 2005 | AB4: =All!R7 -> 2006 | AC4: =All!S7 -> 2007 | AD4: =All!T7 -> 2008 | AE4: =All!U7 -> 2009 | AF4: =All!V7 -> 2010 | AG4: =All!W7 -> 2011 | AH4: =All!X7 -> 2012 | AI4: =All!Y7 -> 2013 | AJ4: =All!Z7 -> 2014 | AK4: =All!AA7 -> 2015 | AL4: =All!AB7 -> 2016 | AM4: =All!AC7 -> 2017 | AN4: =All!AD7 -> 2018 | AO4: =All!AE7 -> 2019 | AP4: =All!AF7 -> 2020 | AQ4: =All!AG7 -> 2021 | AR4: =All!AH7 -> 2022 | AS4: =All!AI7 -> 2023 | AT4: =All!AJ7 -> 2024
O5: FT | P5: =FT!F36/1000 -> 59.781 | Q5: =FT!G36/1000 -> 51.813 | R5: =FT!H36/1000 -> 43.17 | S5: =FT!I36/1000 -> 47.671 | T5: =FT!J36/1000 -> 56.459 | U5: =FT!K36/1000 -> 47.958 | V5: =FT!L36/1000 -> 44.175 | W5: =FT!M36/1000 -> 33.07 | X5: =FT!N36/1000 -> 40.23 | Y5: =FT!O36/1000 -> 37.915 | Z5: =FT!P36/1000 -> 43.596 | AA5: =FT!Q36/1000 -> 32.978 | AB5: =FT!R36/1000 -> 40.831 | AC5: =FT!S36/1000 -> 40.177 | AD5: =FT!T36/1000 -> 38.96 | AE5: =FT!U36/1000 -> 40.882 | AF5: =FT!V36/1000 -> 40.095 | AG5: =FT!W36/1000 -> 43.348 | AH5: =FT!X36/1000 -> 43.029 | AI5: =FT!Y36/1000 -> 41.794 | AJ5: =FT!Z36/1000 -> 49.199 | AK5: =FT!AA36/1000 -> 47.8 | AL5: =FT!AB36/1000 -> 47.215 | AM5: =FT!AC36/1000 -> 46.894 | AN5: =FT!AD36/1000 -> 46.551 | AO5: =FT!AE36/1000 -> 46.054 | AP5: =FT!AF36/1000 -> 45.668 | AQ5: =FT!AG36/1000 -> 45.282 | AR5: =FT!AH36/1000 -> 45.039 | AS5: =FT!AI36/1000 -> 44.788 | AT5: =FT!AJ36/1000 -> 44.606
O6: PT | P6: =PT!F36/1000 -> 11.874 | Q6: =PT!G36/1000 -> 12.481 | R6: =PT!H36/1000 -> 12.435 | S6: =PT!I36/1000 -> 11.511 | T6: =PT!J36/1000 -> 11.349 | U6: =PT!K36/1000 -> 10.358 | V6: =PT!L36/1000 -> 9.278 | W6: =PT!M36/1000 -> 7.769 | X6: =PT!N36/1000 -> 12.216 | Y6: =PT!O36/1000 -> 6.363 | Z6: =PT!P36/1000 -> 10.249 | AA6: =PT!Q36/1000 -> 9.374 | AB6: =PT!R36/1000 -> 7.206 | AC6: =PT!S36/1000 -> 6.47 | AD6: =PT!T36/1000 -> 5.315 | AE6: =PT!U36/1000 -> 6.361 | AF6: =PT!V36/1000 -> 8.466 | AG6: =PT!W36/1000 -> 5.285 | AH6: =PT!X36/1000 -> 12.85 | AI6: =PT!Y36/1000 -> 7.361 | AJ6: =PT!Z36/1000 -> 6.988 | AK6: =PT!AA36/1000 -> 6.479 | AL6: =PT!AB36/1000 -> 6.502 | AM6: =PT!AC36/1000 -> 6.569 | AN6: =PT!AD36/1000 -> 6.621 | AO6: =PT!AE36/1000 -> 6.664 | AP6: =PT!AF36/1000 -> 6.72 | AQ6: =PT!AG36/1000 -> 6.769 | AR6: =PT!AH36/1000 -> 6.838 | AS6: =PT!AI36/1000 -> 6.904 | AT6: =PT!AJ36/1000 -> 6.973
O7: SE | P7: =SE!F36/1000 -> 13.877 | Q7: =SE!G36/1000 -> 14.116 | R7: =SE!H36/1000 -> 13.289 | S7: =SE!I36/1000 -> 12.358 | T7: =SE!J36/1000 -> 14.466 | U7: =SE!K36/1000 -> 12.58 | V7: =SE!L36/1000 -> 10.5 | W7: =SE!M36/1000 -> 7.144 | X7: =SE!N36/1000 -> 6.126 | Y7: =SE!O36/1000 -> 13.094 | Z7: =SE!P36/1000 -> 13.641 | AA7: =SE!Q36/1000 -> 10.264 | AB7: =SE!R36/1000 -> 17.306 | AC7: =SE!S36/1000 -> 12.115 | AD7: =SE!T36/1000 -> 13.431 | AE7: =SE!U36/1000 -> 7.69 | AF7: =SE!V36/1000 -> 16.97 | AG7: =SE!W36/1000 -> 13.344 | AH7: =SE!X36/1000 -> 16.626 | AI7: =SE!Y36/1000 -> 12.188 | AJ7: =SE!Z36/1000 -> 14.004 | AK7: =SE!AA36/1000 -> 12.692 | AL7: =SE!AB36/1000 -> 12.357 | AM7: =SE!AC36/1000 -> 12.107 | AN7: =SE!AD36/1000 -> 11.812 | AO7: =SE!AE36/1000 -> 11.518 | AP7: =SE!AF36/1000 -> 11.254 | AQ7: =SE!AG36/1000 -> 10.983 | AR7: =SE!AH36/1000 -> 10.751 | AS7: =SE!AI36/1000 -> 10.509 | AT7: =SE!AJ36/1000 -> 10.272
M8: =CONCATENATE($M$2,CHAR(13),O8) -> Total Employment by Status Manufacturing | O8: =names!A5 -> Manufacturing
O9: FT | P9: =FT!F64/1000 -> 256.944 | Q9: =FT!G64/1000 -> 269.102 | R9: =FT!H64/1000 -> 300.828 | S9: =FT!I64/1000 -> 296.963 | T9: =FT!J64/1000 -> 307.647 | U9: =FT!K64/1000 -> 300.083 | V9: =FT!L64/1000 -> 295.002 | W9: =FT!M64/1000 -> 296.587 | X9: =FT!N64/1000 -> 274.127 | Y9: =FT!O64/1000 -> 260.826 | Z9: =FT!P64/1000 -> 246.754 | AA9: =FT!Q64/1000 -> 233.806 | AB9: =FT!R64/1000 -> 226.842 | AC9: =FT!S64/1000 -> 221.826 | AD9: =FT!T64/1000 -> 211.188 | AE9: =FT!U64/1000 -> 206.276 | AF9: =FT!V64/1000 -> 196.986 | AG9: =FT!W64/1000 -> 204.142 | AH9: =FT!X64/1000 -> 203.902 | AI9: =FT!Y64/1000 -> 192.12 | AJ9: =FT!Z64/1000 -> 199.138 | AK9: =FT!AA64/1000 -> 202.652 | AL9: =FT!AB64/1000 -> 202.386 | AM9: =FT!AC64/1000 -> 200.447 | AN9: =FT!AD64/1000 -> 197.286 | AO9: =FT!AE64/1000 -> 193.442 | AP9: =FT!AF64/1000 -> 189.606 | AQ9: =FT!AG64/1000 -> 185.639 | AR9: =FT!AH64/1000 -> 181.757 | AS9: =FT!AI64/1000 -> 177.995 | AT9: =FT!AJ64/1000 -> 174.132
O10: PT | P10: =PT!F64/1000 -> 27.14 | Q10: =PT!G64/1000 -> 27.474 | R10: =PT!H64/1000 -> 27.975 | S10: =PT!I64/1000 -> 27.294 | T10: =PT!J64/1000 -> 28.22 | U10: =PT!K64/1000 -> 24.333 | V10: =PT!L64/1000 -> 24.029 | W10: =PT!M64/1000 -> 23.088 | X10: =PT!N64/1000 -> 28.086 | Y10: =PT!O64/1000 -> 24.294 | Z10: =PT!P64/1000 -> 23.877 | AA10: =PT!Q64/1000 -> 22.497 | AB10: =PT!R64/1000 -> 21.267 | AC10: =PT!S64/1000 -> 22.197 | AD10: =PT!T64/1000 -> 25.312 | AE10: =PT!U64/1000 -> 15.78 | AF10: =PT!V64/1000 -> 15.837 | AG10: =PT!W64/1000 -> 17.036 | AH10: =PT!X64/1000 -> 22.28 | AI10: =PT!Y64/1000 -> 18.313 | AJ10: =PT!Z64/1000 -> 18.957 | AK10: =PT!AA64/1000 -> 19.61 | AL10: =PT!AB64/1000 -> 20.026 | AM10: =PT!AC64/1000 -> 20.311 | AN10: =PT!AD64/1000 -> 20.514 | AO10: =PT!AE64/1000 -> 20.666 | AP10: =PT!AF64/1000 -> 20.822 | AQ10: =PT!AG64/1000 -> 20.968 | AR10: =PT!AH64/1000 -> 21.112 | AS10: =PT!AI64/1000 -> 21.263 | AT10: =PT!AJ64/1000 -> 21.388
O11: SE | P11: =SE!F64/1000 -> 24.222 | Q11: =SE!G64/1000 -> 22.799 | R11: =SE!H64/1000 -> 26.971 | S11: =SE!I64/1000 -> 25.303 | T11: =SE!J64/1000 -> 28.081 | U11: =SE!K64/1000 -> 25.006 | V11: =SE!L64/1000 -> 23.112 | W11: =SE!M64/1000 -> 26.934 | X11: =SE!N64/1000 -> 26.034 | Y11: =SE!O64/1000 -> 20.011 | Z11: =SE!P64/1000 -> 27.013 | AA11: =SE!Q64/1000 -> 20.995 | AB11: =SE!R64/1000 -> 20.007 | AC11: =SE!S64/1000 -> 21.772 | AD11: =SE!T64/1000 -> 23.998 | AE11: =SE!U64/1000 -> 14.953 | AF11: =SE!V64/1000 -> 18.046 | AG11: =SE!W64/1000 -> 16.189 | AH11: =SE!X64/1000 -> 16.887 | AI11: =SE!Y64/1000 -> 19.991 | AJ11: =SE!Z64/1000 -> 13.128 | AK11: =SE!AA64/1000 -> 13.39 | AL11: =SE!AB64/1000 -> 13.525 | AM11: =SE!AC64/1000 -> 13.531 | AN11: =SE!AD64/1000 -> 13.464 | AO11: =SE!AE64/1000 -> 13.358 | AP11: =SE!AF64/1000 -> 13.26 | AQ11: =SE!AG64/1000 -> 13.167 | AR11: =SE!AH64/1000 -> 13.082 | AS11: =SE!AI64/1000 -> 13.003 | AT11: =SE!AJ64/1000 -> 12.909
M12: =CONCATENATE($M$2,CHAR(13),O12) -> Total Employment by Status Construction | O12: =names!A6 -> Construction
O13: FT | P13: =FT!F92/1000 -> 78.028 | Q13: =FT!G92/1000 -> 73.931 | R13: =FT!H92/1000 -> 78.019 | S13: =FT!I92/1000 -> 94.343 | T13: =FT!J92/1000 -> 96.934 | U13: =FT!K92/1000 -> 103.153 | V13: =FT!L92/1000 -> 116.262 | W13: =FT!M92/1000 -> 120.227 | X13: =FT!N92/1000 -> 116.026 | Y13: =FT!O92/1000 -> 116.908 | Z13: =FT!P92/1000 -> 129.346 | AA13: =FT!Q92/1000 -> 123.159 | AB13: =FT!R92/1000 -> 119.027 | AC13: =FT!S92/1000 -> 118.016 | AD13: =FT!T92/1000 -> 121.381 | AE13: =FT!U92/1000 -> 130.253 | AF13: =FT!V92/1000 -> 110.082 | AG13: =FT!W92/1000 -> 112.143 | AH13: =FT!X92/1000 -> 109.802 | AI13: =FT!Y92/1000 -> 106.002 | AJ13: =FT!Z92/1000 -> 108.188 | AK13: =FT!AA92/1000 -> 111.15 | AL13: =FT!AB92/1000 -> 116.352 | AM13: =FT!AC92/1000 -> 119.31 | AN13: =FT!AD92/1000 -> 121.502 | AO13: =FT!AE92/1000 -> 124.2 | AP13: =FT!AF92/1000 -> 127.171 | AQ13: =FT!AG92/1000 -> 129.791 | AR13: =FT!AH92/1000 -> 132.391 | AS13: =FT!AI92/1000 -> 135.015 | AT13: =FT!AJ92/1000 -> 137.247
O14: PT | P14: =PT!F92/1000 -> 7.723 | Q14: =PT!G92/1000 -> 8.981 | R14: =PT!H92/1000 -> 10.177 | S14: =PT!I92/1000 -> 8.946 | T14: =PT!J92/1000 -> 11.77 | U14: =PT!K92/1000 -> 15.047 | V14: =PT!L92/1000 -> 15.042 | W14: =PT!M92/1000 -> 15.878 | X14: =PT!N92/1000 -> 15.424 | Y14: =PT!O92/1000 -> 13.99 | Z14: =PT!P92/1000 -> 13.88 | AA14: =PT!Q92/1000 -> 14.836 | AB14: =PT!R92/1000 -> 17.181 | AC14: =PT!S92/1000 -> 13.996 | AD14: =PT!T92/1000 -> 18.923 | AE14: =PT!U92/1000 -> 18.825 | AF14: =PT!V92/1000 -> 12.922 | AG14: =PT!W92/1000 -> 13.953 | AH14: =PT!X92/1000 -> 13.101 | AI14: =PT!Y92/1000 -> 12.959 | AJ14: =PT!Z92/1000 -> 12.803 | AK14: =PT!AA92/1000 -> 13.178 | AL14: =PT!AB92/1000 -> 13.815 | AM14: =PT!AC92/1000 -> 14.199 | AN14: =PT!AD92/1000 -> 14.495 | AO14: =PT!AE92/1000 -> 14.843 | AP14: =PT!AF92/1000 -> 15.227 | AQ14: =PT!AG92/1000 -> 15.57 | AR14: =PT!AH92/1000 -> 15.909 | AS14: =PT!AI92/1000 -> 16.251 | AT14: =PT!AJ92/1000 -> 16.55
O15: SE | P15: =SE!F92/1000 -> 73.793 | Q15: =SE!G92/1000 -> 79.52 | R15: =SE!H92/1000 -> 78.965 | S15: =SE!I92/1000 -> 77.955 | T15: =SE!J92/1000 -> 75.342 | U15: =SE!K92/1000 -> 80.507 | V15: =SE!L92/1000 -> 75.487 | W15: =SE!M92/1000 -> 71.859 | X15: =SE!N92/1000 -> 79.97 | Y15: =SE!O92/1000 -> 94.132 | Z15: =SE!P92/1000 -> 91.871 | AA15: =SE!Q92/1000 -> 87.916 | AB15: =SE!R92/1000 -> 88.733 | AC15: =SE!S92/1000 -> 97.646 | AD15: =SE!T92/1000 -> 87.888 | AE15: =SE!U92/1000 -> 92.021 | AF15: =SE!V92/1000 -> 94.193 | AG15: =SE!W92/1000 -> 95.952 | AH15: =SE!X92/1000 -> 86.085 | AI15: =SE!Y92/1000 -> 89.723 | AJ15: =SE!Z92/1000 -> 89.888 | AK15: =SE!AA92/1000 -> 93.147 | AL15: =SE!AB92/1000 -> 96.402 | AM15: =SE!AC92/1000 -> 97.77 | AN15: =SE!AD92/1000 -> 98.462 | AO15: =SE!AE92/1000 -> 99.398 | AP15: =SE!AF92/1000 -> 100.593 | AQ15: =SE!AG92/1000 -> 101.49 | AR15: =SE!AH92/1000 -> 102.372 | AS15: =SE!AI92/1000 -> 103.278 | AT15: =SE!AJ92/1000 -> 103.918
M16: =CONCATENATE($M$2,CHAR(13),O16) -> Total Employment by Status Trade, accomod. and transport | O16: =names!A7 -> Trade, accomod. and transport
O17: FT | P17: =FT!F120/1000 -> 374.276 | Q17: =FT!G120/1000 -> 379.749 | R17: =FT!H120/1000 -> 366.626 | S17: =FT!I120/1000 -> 380.174 | T17: =FT!J120/1000 -> 390.962 | U17: =FT!K120/1000 -> 397.524 | V17: =FT!L120/1000 -> 406.402 | W17: =FT!M120/1000 -> 424.084 | X17: =FT!N120/1000 -> 414.744 | Y17: =FT!O120/1000 -> 411.586 | Z17: =FT!P120/1000 -> 422.47 | AA17: =FT!Q120/1000 -> 427.762 | AB17: =FT!R120/1000 -> 422.169 | AC17: =FT!S120/1000 -> 426.067 | AD17: =FT!T120/1000 -> 432.11 | AE17: =FT!U120/1000 -> 430.734 | AF17: =FT!V120/1000 -> 408.115 | AG17: =FT!W120/1000 -> 406.2 | AH17: =FT!X120/1000 -> 408.136 | AI17: =FT!Y120/1000 -> 428.96 | AJ17: =FT!Z120/1000 -> 430.151 | AK17: =FT!AA120/1000 -> 439.535 | AL17: =FT!AB120/1000 -> 444.953 | AM17: =FT!AC120/1000 -> 450.004 | AN17: =FT!AD120/1000 -> 452.929 | AO17: =FT!AE120/1000 -> 454.536 | AP17: =FT!AF120/1000 -> 456.162 | AQ17: =FT!AG120/1000 -> 457.937 | AR17: =FT!AH120/1000 -> 460.224 | AS17: =FT!AI120/1000 -> 462.874 | AT17: =FT!AJ120/1000 -> 465.551
O18: PT | P18: =PT!F120/1000 -> 214.303 | Q18: =PT!G120/1000 -> 223.834 | R18: =PT!H120/1000 -> 256.043 | S18: =PT!I120/1000 -> 272.862 | T18: =PT!J120/1000 -> 258.211 | U18: =PT!K120/1000 -> 252.882 | V18: =PT!L120/1000 -> 262.568 | W18: =PT!M120/1000 -> 268.738 | X18: =PT!N120/1000 -> 274.041 | Y18: =PT!O120/1000 -> 285.14 | Z18: =PT!P120/1000 -> 281.088 | AA18: =PT!Q120/1000 -> 274.952 | AB18: =PT!R120/1000 -> 292.776 | AC18: =PT!S120/1000 -> 286.245 | AD18: =PT!T120/1000 -> 297.554 | AE18: =PT!U120/1000 -> 283.716 | AF18: =PT!V120/1000 -> 304.154 | AG18: =PT!W120/1000 -> 311.733 | AH18: =PT!X120/1000 -> 297.985 | AI18: =PT!Y120/1000 -> 279.854 | AJ18: =PT!Z120/1000 -> 287.922 | AK18: =PT!AA120/1000 -> 292.422 | AL18: =PT!AB120/1000 -> 299.499 | AM18: =PT!AC120/1000 -> 305.493 | AN18: =PT!AD120/1000 -> 309.768 | AO18: =PT!AE120/1000 -> 313.367 | AP18: =PT!AF120/1000 -> 317.148 | AQ18: =PT!AG120/1000 -> 320.85 | AR18: =PT!AH120/1000 -> 324.919 | AS18: =PT!AI120/1000 -> 329.298 | AT18: =PT!AJ120/1000 -> 333.801
O19: SE | P19: =SE!F120/1000 -> 91.452 | Q19: =SE!G120/1000 -> 95.59 | R19: =SE!H120/1000 -> 83.919 | S19: =SE!I120/1000 -> 83.849 | T19: =SE!J120/1000 -> 70.766 | U19: =SE!K120/1000 -> 69.036 | V19: =SE!L120/1000 -> 62.942 | W19: =SE!M120/1000 -> 69.171 | X19: =SE!N120/1000 -> 66.118 | Y19: =SE!O120/1000 -> 72.776 | Z19: =SE!P120/1000 -> 70.629 | AA19: =SE!Q120/1000 -> 70.417 | AB19: =SE!R120/1000 -> 76.635 | AC19: =SE!S120/1000 -> 71.61 | AD19: =SE!T120/1000 -> 63.979 | AE19: =SE!U120/1000 -> 70.787 | AF19: =SE!V120/1000 -> 72.905 | AG19: =SE!W120/1000 -> 80.222 | AH19: =SE!X120/1000 -> 85.881 | AI19: =SE!Y120/1000 -> 75.548 | AJ19: =SE!Z120/1000 -> 78.951 | AK19: =SE!AA120/1000 -> 79.172 | AL19: =SE!AB120/1000 -> 78.381 | AM19: =SE!AC120/1000 -> 78.033 | AN19: =SE!AD120/1000 -> 77.181 | AO19: =SE!AE120/1000 -> 76.026 | AP19: =SE!AF120/1000 -> 74.929 | AQ19: =SE!AG120/1000 -> 73.864 | AR19: =SE!AH120/1000 -> 72.895 | AS19: =SE!AI120/1000 -> 71.994 | AT19: =SE!AJ120/1000 -> 71.107
M20: =CONCATENATE($M$2,CHAR(13),O20) -> Total Employment by Status Business and other services | O20: =names!A8 -> Business and other services
O21: FT | P21: =FT!F148/1000 -> 357.156 | Q21: =FT!G148/1000 -> 364.116 | R21: =FT!H148/1000 -> 348.782 | S21: =FT!I148/1000 -> 378.404 | T21: =FT!J148/1000 -> 405.249 | U21: =FT!K148/1000 -> 425.593 | V21: =FT!L148/1000 -> 457.481 | W21: =FT!M148/1000 -> 480.95 | X21: =FT!N148/1000 -> 465.076 | Y21: =FT!O148/1000 -> 472.857 | Z21: =FT!P148/1000 -> 488.64 | AA21: =FT!Q148/1000 -> 485.174 | AB21: =FT!R148/1000 -> 497.884 | AC21: =FT!S148/1000 -> 507.231 | AD21: =FT!T148/1000 -> 513.317 | AE21: =FT!U148/1000 -> 489.197 | AF21: =FT!V148/1000 -> 468.761 | AG21: =FT!W148/1000 -> 435.086 | AH21: =FT!X148/1000 -> 468.349 | AI21: =FT!Y148/1000 -> 509.036 | AJ21: =FT!Z148/1000 -> 509.089 | AK21: =FT!AA148/1000 -> 521.728 | AL21: =FT!AB148/1000 -> 528.629 | AM21: =FT!AC148/1000 -> 533.994 | AN21: =FT!AD148/1000 -> 538.997 | AO21: =FT!AE148/1000 -> 543.239 | AP21: =FT!AF148/1000 -> 547.222 | AQ21: =FT!AG148/1000 -> 551.417 | AR21: =FT!AH148/1000 -> 555.859 | AS21: =FT!AI148/1000 -> 560.116 | AT21: =FT!AJ148/1000 -> 564.55
O22: PT | P22: =PT!F148/1000 -> 117.03 | Q22: =PT!G148/1000 -> 126.757 | R22: =PT!H148/1000 -> 140.871 | S22: =PT!I148/1000 -> 150.303 | T22: =PT!J148/1000 -> 149.694 | U22: =PT!K148/1000 -> 157.503 | V22: =PT!L148/1000 -> 161.039 | W22: =PT!M148/1000 -> 165.639 | X22: =PT!N148/1000 -> 179.531 | Y22: =PT!O148/1000 -> 189.319 | Z22: =PT!P148/1000 -> 179.967 | AA22: =PT!Q148/1000 -> 183.213 | AB22: =PT!R148/1000 -> 196.177 | AC22: =PT!S148/1000 -> 204.562 | AD22: =PT!T148/1000 -> 216.01 | AE22: =PT!U148/1000 -> 200.162 | AF22: =PT!V148/1000 -> 223.372 | AG22: =PT!W148/1000 -> 195.439 | AH22: =PT!X148/1000 -> 222.934 | AI22: =PT!Y148/1000 -> 205.996 | AJ22: =PT!Z148/1000 -> 227.819 | AK22: =PT!AA148/1000 -> 232.28 | AL22: =PT!AB148/1000 -> 235.382 | AM22: =PT!AC148/1000 -> 237.614 | AN22: =PT!AD148/1000 -> 239.65 | AO22: =PT!AE148/1000 -> 241.351 | AP22: =PT!AF148/1000 -> 242.862 | AQ22: =PT!AG148/1000 -> 244.521 | AR22: =PT!AH148/1000 -> 246.339 | AS22: =PT!AI148/1000 -> 248.104 | AT22: =PT!AJ148/1000 -> 250.017
O23: SE | P23: =SE!F148/1000 -> 105.172 | Q23: =SE!G148/1000 -> 113.909 | R23: =SE!H148/1000 -> 112.317 | S23: =SE!I148/1000 -> 106.527 | T23: =SE!J148/1000 -> 122.116 | U23: =SE!K148/1000 -> 118.828 | V23: =SE!L148/1000 -> 113.21 | W23: =SE!M148/1000 -> 114.114 | X23: =SE!N148/1000 -> 125.978 | Y23: =SE!O148/1000 -> 123.731 | Z23: =SE!P148/1000 -> 136.908 | AA23: =SE!Q148/1000 -> 125.892 | AB23: =SE!R148/1000 -> 135.072 | AC23: =SE!S148/1000 -> 138.298 | AD23: =SE!T148/1000 -> 134.859 | AE23: =SE!U148/1000 -> 146.585 | AF23: =SE!V148/1000 -> 140.785 | AG23: =SE!W148/1000 -> 148.668 | AH23: =SE!X148/1000 -> 179.709 | AI23: =SE!Y148/1000 -> 160.017 | AJ23: =SE!Z148/1000 -> 185.574 | AK23: =SE!AA148/1000 -> 188.375 | AL23: =SE!AB148/1000 -> 188.83 | AM23: =SE!AC148/1000 -> 189.162 | AN23: =SE!AD148/1000 -> 189.313 | AO23: =SE!AE148/1000 -> 189.193 | AP23: =SE!AF148/1000 -> 188.894 | AQ23: =SE!AG148/1000 -> 188.645 | AR23: =SE!AH148/1000 -> 188.421 | AS23: =SE!AI148/1000 -> 188.201 | AT23: =SE!AJ148/1000 -> 188.103
M24: =CONCATENATE($M$2,CHAR(13),O24) -> Total Employment by Status Non-market services | O24: =names!A9 -> Non-market services
O25: FT | P25: =FT!F176/1000 -> 250.827 | Q25: =FT!G176/1000 -> 248.91 | R25: =FT!H176/1000 -> 245.042 | S25: =FT!I176/1000 -> 246.934 | T25: =FT!J176/1000 -> 256.94 | U25: =FT!K176/1000 -> 255.299 | V25: =FT!L176/1000 -> 268.789 | W25: =FT!M176/1000 -> 276.777 | X25: =FT!N176/1000 -> 286.311 | Y25: =FT!O176/1000 -> 289.285 | Z25: =FT!P176/1000 -> 299.905 | AA25: =FT!Q176/1000 -> 316.847 | AB25: =FT!R176/1000 -> 335.142 | AC25: =FT!S176/1000 -> 338.026 | AD25: =FT!T176/1000 -> 324.307 | AE25: =FT!U176/1000 -> 316.05 | AF25: =FT!V176/1000 -> 313.073 | AG25: =FT!W176/1000 -> 325.303 | AH25: =FT!X176/1000 -> 339.803 | AI25: =FT!Y176/1000 -> 337.02 | AJ25: =FT!Z176/1000 -> 333.7 | AK25: =FT!AA176/1000 -> 334.562 | AL25: =FT!AB176/1000 -> 331.73 | AM25: =FT!AC176/1000 -> 330.001 | AN25: =FT!AD176/1000 -> 330.125 | AO25: =FT!AE176/1000 -> 331.222 | AP25: =FT!AF176/1000 -> 333.64 | AQ25: =FT!AG176/1000 -> 335.356 | AR25: =FT!AH176/1000 -> 337.191 | AS25: =FT!AI176/1000 -> 339.155 | AT25: =FT!AJ176/1000 -> 341.213
O26: PT | P26: =PT!F176/1000 -> 239.224 | Q26: =PT!G176/1000 -> 236.163 | R26: =PT!H176/1000 -> 228.877 | S26: =PT!I176/1000 -> 222.903 | T26: =PT!J176/1000 -> 216.9 | U26: =PT!K176/1000 -> 218.051 | V26: =PT!L176/1000 -> 230.939 | W26: =PT!M176/1000 -> 223.245 | X26: =PT!N176/1000 -> 229.034 | Y26: =PT!O176/1000 -> 236.995 | Z26: =PT!P176/1000 -> 242.353 | AA26: =PT!Q176/1000 -> 253.98 | AB26: =PT!R176/1000 -> 264.944 | AC26: =PT!S176/1000 -> 273.976 | AD26: =PT!T176/1000 -> 274.404 | AE26: =PT!U176/1000 -> 288.847 | AF26: =PT!V176/1000 -> 289.049 | AG26: =PT!W176/1000 -> 290.738 | AH26: =PT!X176/1000 -> 287.336 | AI26: =PT!Y176/1000 -> 296.861 | AJ26: =PT!Z176/1000 -> 316.138 | AK26: =PT!AA176/1000 -> 318.231 | AL26: =PT!AB176/1000 -> 319.232 | AM26: =PT!AC176/1000 -> 320.884 | AN26: =PT!AD176/1000 -> 324.109 | AO26: =PT!AE176/1000 -> 328.161 | AP26: =PT!AF176/1000 -> 333.183 | AQ26: =PT!AG176/1000 -> 337.78 | AR26: =PT!AH176/1000 -> 342.48 | AS26: =PT!AI176/1000 -> 347.304 | AT26: =PT!AJ176/1000 -> 352.217
O27: SE | P27: =SE!F176/1000 -> 27.408 | Q27: =SE!G176/1000 -> 30.21 | R27: =SE!H176/1000 -> 30.201 | S27: =SE!I176/1000 -> 28.925 | T27: =SE!J176/1000 -> 29.56 | U27: =SE!K176/1000 -> 34.746 | V27: =SE!L176/1000 -> 35.445 | W27: =SE!M176/1000 -> 30.214 | X27: =SE!N176/1000 -> 36.772 | Y27: =SE!O176/1000 -> 31.88 | Z27: =SE!P176/1000 -> 31.736 | AA27: =SE!Q176/1000 -> 32.125 | AB27: =SE!R176/1000 -> 46.918 | AC27: =SE!S176/1000 -> 44.755 | AD27: =SE!T176/1000 -> 47.055 | AE27: =SE!U176/1000 -> 52.228 | AF27: =SE!V176/1000 -> 47.778 | AG27: =SE!W176/1000 -> 53.895 | AH27: =SE!X176/1000 -> 48.155 | AI27: =SE!Y176/1000 -> 63.356 | AJ27: =SE!Z176/1000 -> 72.26 | AK27: =SE!AA176/1000 -> 72.389 | AL27: =SE!AB176/1000 -> 71.421 | AM27: =SE!AC176/1000 -> 70.593 | AN27: =SE!AD176/1000 -> 70.224 | AO27: =SE!AE176/1000 -> 70.096 | AP27: =SE!AF176/1000 -> 70.171 | AQ27: =SE!AG176/1000 -> 70.129 | AR27: =SE!AH176/1000 -> 70.117 | AS27: =SE!AI176/1000 -> 70.149 | AT27: =SE!AJ176/1000 -> 70.21
M28: =CONCATENATE($M$2,CHAR(13),O28) -> Total Employment by Status All industries | O28: =names!A3 -> All industries
O29: FT | P29: =P5+P9+P13+P17+P21+P25 -> 1377.012 | Q29: =Q5+Q9+Q13+Q17+Q21+Q25 -> 1387.621 | R29: 1382.467 | S29: 1444.489 | T29: 1514.191 | U29: 1529.61 | V29: 1588.111 | W29: 1631.695 | X29: 1596.514 | Y29: 1589.377 | Z29: 1630.711 | AA29: 1619.726 | AB29: 1641.895 | AC29: 1651.343 | AD29: 1641.263 | AE29: 1613.392 | AF29: 1537.112 | AG29: 1526.222 | AH29: 1573.021 | AI29: 1614.932 | AJ29: 1629.465 | AK29: 1657.427 | AL29: 1671.265 | AM29: 1680.65 | AN29: 1687.39 | AO29: 1692.693 | AP29: 1699.469 | AQ29: 1705.422 | AR29: 1712.461 | AS29: 1719.943 | AT29: 1727.299
O30: PT | P30: =P6+P10+P14+P18+P22+P26 -> 617.294 | Q30: =Q6+Q10+Q14+Q18+Q22+Q26 -> 635.69 | R30: 676.378 | S30: 693.819 | T30: 676.144 | U30: 678.174 | V30: 702.895 | W30: 704.357 | X30: 738.332 | Y30: 756.101 | Z30: 751.414 | AA30: 758.852 | AB30: 799.551 | AC30: 807.446 | AD30: 837.518 | AE30: 813.691 | AF30: 853.8 | AG30: 834.184 | AH30: 856.486 | AI30: 821.344 | AJ30: 870.627 | AK30: 882.2 | AL30: 894.456 | AM30: 905.07 | AN30: 915.157 | AO30: 925.052 | AP30: 935.962 | AQ30: 946.458 | AR30: 957.597 | AS30: 969.124 | AT30: 980.946
O31: SE | P31: =P7+P11+P15+P19+P23+P27 -> 335.924 | Q31: =Q7+Q11+Q15+Q19+Q23+Q27 -> 356.144 | R31: 345.662 | S31: 334.917 | T31: 340.331 | U31: 340.703 | V31: 320.696 | W31: 319.436 | X31: 340.998 | Y31: 355.624 | Z31: 371.798 | AA31: 347.609 | AB31: 384.671 | AC31: 386.196 | AD31: 371.21 | AE31: 384.264 | AF31: 390.677 | AG31: 408.27 | AH31: 433.343 | AI31: 420.823 | AJ31: 453.805 | AK31: 459.165 | AL31: 460.916 | AM31: 461.196 | AN31: 460.456 | AO31: 459.589 | AP31: 459.101 | AQ31: 458.278 | AR31: 457.638 | AS31: 457.134 | AT31: 456.519
B57: =CELL("filename",$A$1) -> R:\Research Info\Individual research project info\Working Futures_ CG data task\East of England\[6EE_East_of_Eng.xlsm]Figure 3.7
B112: =$B$57 -> R:\Research Info\Individual research project info\Working Futures_ CG data task\East of England\[6EE_East_of_Eng.xlsm]Figure 3.7
B167: =$B$57 -> R:\Research Info\Individual research project info\Working Futures_ CG data task\East of England\[6EE_East_of_Eng.xlsm]Figure 3.7
B196: =$B$57 -> R:\Research Info\Individual research project info\Working Futures_ CG data task\East of England\[6EE_East_of_Eng.xlsm]Figure 3.7

Sheet Table 6.x.3
A1: Table 6.0.4 | B1: Changing Composition of Employment by Occupation
B2: =names!A3 -> All industries | H2: =D4&" - "&F4 -> 2014 - 2024
A3: SOC2010 Major Groups | H3: Net Change | I3: Replacement | J3: Total
A4: Employment Levels (000s) | B4: =All!F7 -> 1994 | C4: =All!P7 -> 2004 | D4: =All!Z7 -> 2014 | E4: =All!AE7 -> 2019 | F4: =All!AJ7 -> 2024 | I4: Demands | J4: Requirement
A5: ="1. "&names!B4 -> 1. Managers, directors and senior officials | B5: =(All!F9+All!F10)/1000 -> 193.099017 | C5: =(All!P9+All!P10)/1000 -> 260.186721 | D5: =(All!Z9+All!Z10)/1000 -> 313.449475 | E5: =(All!AE9+All!AE10)/1000 -> 345.671574 | F5: =(All!AJ9+All!AJ10)/1000 -> 366.625231 | H5: =F5-D5 -> 53.175756 | I5: =D5*I17/100 -> 132.5941724 | J5: =I5+H5 -> 185.7699284
A6: ="2. "&names!B5 -> 2. Professional occupations | B6: =(All!F11+All!F12+All!F13+All!F14)/1000 -> 353.897639 | C6: =(All!P11+All!P12+All!P13+All!P14)/1000 -> 461.73857 | D6: =(All!Z11+All!Z12+All!Z13+All!Z14)/1000 -> 562.132272 | E6: =(All!AE11+All!AE12+All!AE13+All!AE14)/1000 -> 609.614702 | F6: =(All!AJ11+All!AJ12+All!AJ13+All!AJ14)/1000 -> 639.875882 | H6: 77.74361 | I6: 221.8201836 | J6: 299.5637936
A7: ="3. "&names!B6 -> 3. Associate professional and technical | B7: =(All!F15+All!F16+All!F17+All!F18+All!F19)/1000 -> 282.141462 | C7: =(All!P15+All!P16+All!P17+All!P18+All!P19)/1000 -> 359.646097 | D7: =(All!Z15+All!Z16+All!Z17+All!Z18+All!Z19)/1000 -> 397.281173 | E7: =(All!AE15+All!AE16+All!AE17+All!AE18+All!AE19)/1000 -> 429.087811 | F7: =(All!AJ15+All!AJ16+All!AJ17+All!AJ18+All!AJ19)/1000 -> 448.957577 | H7: 51.676404 | I7: 148.9343398 | J7: 200.6107438
A8: ="4. "&names!B7 -> 4. Administrative and secretarial | B8: =(All!F20+All!F21)/1000 -> 353.25404 | C8: =(All!P20+All!P21)/1000 -> 356.16019 | D8: =(All!Z20+All!Z21)/1000 -> 309.690137 | E8: =(All!AE20+All!AE21)/1000 -> 287.714758 | F8: =(All!AJ20+All!AJ21)/1000 -> 275.058057 | H8: -34.63208 | I8: 132.4194773 | J8: 97.78739727
A9: ="5. "&names!B8 -> 5. Skilled trades occupations | B9: =(All!F22+All!F23+All!F24+All!F25)/1000 -> 329.795636 | C9: =(All!P22+All!P23+All!P24+All!P25)/1000 -> 363.641077 | D9: =(All!Z22+All!Z23+All!Z24+All!Z25)/1000 -> 324.850414 | E9: =(All!AE22+All!AE23+All!AE24+All!AE25)/1000 -> 324.770301 | F9: =(All!AJ22+All!AJ23+All!AJ24+All!AJ25)/1000 -> 321.749432 | H9: -3.100982 | I9: 119.6499313 | J9: 116.5489493
A10: ="6. "&names!B9 -> 6. Caring, leisure and other service | B10: =(All!F26+All!F27)/1000 -> 145.771249 | C10: =(All!P26+All!P27)/1000 -> 202.942178 | D10: =(All!Z26+All!Z27)/1000 -> 283.983479 | E10: =(All!AE26+All!AE27)/1000 -> 311.086677 | F10: =(All!AJ26+All!AJ27)/1000 -> 335.408486 | H10: 51.425007 | I10: 128.1793093 | J10: 179.6043163
A11: ="7. "&names!B10 -> 7. Sales and customer service | B11: =(All!F28+All!F29)/1000 -> 195.768802 | C11: =(All!P28+All!P29)/1000 -> 225.732981 | D11: =(All!Z28+All!Z29)/1000 -> 230.161695 | E11: =(All!AE28+All!AE29)/1000 -> 230.921313 | F11: =(All!AJ28+All!AJ29)/1000 -> 230.738197 | H11: 0.576502 | I11: 84.21110194 | J11: 84.78760394
A12: ="8. "&names!B11 -> 8. Process, plant and machine operatives | B12: =(All!F30+All!F31)/1000 -> 183.209416 | C12: =(All!P30+All!P31)/1000 -> 189.946774 | D12: =(All!Z30+All!Z31)/1000 -> 184.719204 | E12: =(All!AE30+All!AE31)/1000 -> 180.339585 | F12: =(All!AJ30+All!AJ31)/1000 -> 177.625165 | H12: -7.094039 | I12: 70.983482 | J12: 63.889443
A13: ="9. "&names!B12 -> 9. Elementary occupations | B13: =(All!F32+All!F33)/1000 -> 293.292738 | C13: =(All!P32+All!P33)/1000 -> 333.92841 | D13: =(All!Z32+All!Z33)/1000 -> 347.629152 | E13: =(All!AE32+All!AE33)/1000 -> 358.127278 | F13: =(All!AJ32+All!AJ33)/1000 -> 368.725971 | H13: 21.096819 | I13: 140.4819256 | J13: 161.5787446
A14: Total | B14: =All!F8/1000 -> 2330.23 | C14: =All!P8/1000 -> 2753.923 | D14: =All!Z8/1000 -> 2953.897 | E14: =All!AE8/1000 -> 3077.334 | F14: =All!AJ8/1000 -> 3164.764 | H14: 210.867 | I14: =SUM(I5:I13) -> 1179.273923 | J14: 1390.140923
A16: Percentage Shares | B16: =B$4 -> 1994 | C16: =C$4 -> 2004 | D16: =D$4 -> 2014 | E16: =E$4 -> 2019 | F16: =F$4 -> 2024 | H16: Percentage Changes
A17: =A$5 -> 1. Managers, directors and senior officials | B17: =B5/B$14*100 -> 8.286693459 | C17: 9.447857511 | D17: 10.61138811 | E17: 11.23282601 | F17: 11.58459939 | H17: =H5/D5*100 -> 16.96469774 | I17: 42.30160933 | J17: =J5/D5*100 -> 59.26630707
A18: =A$6 -> 2. Professional occupations | B18: 15.1872407 | C18: 16.76657517 | D18: 19.03019205 | E18: 19.80983221 | F18: 20.21875508 | H18: 13.83012751 | I18: 39.46049617 | J18: 53.29062368
A19: =A$7 -> 3. Associate professional and technical | B19: 12.10788042 | C19: 13.05941005 | D19: 13.44939153 | E19: 13.9434917 | F19: 14.18613132 | H19: 13.00751395 | I19: 37.4883961 | J19: 50.49591005
A20: =A$8 -> 4. Administrative and secretarial | B20: 15.15962115 | C20: 12.93283037 | D20: 10.48412104 | E20: 9.349481012 | F20: 8.691265984 | H20: -11.18281658 | I20: 42.75870021 | J20: 31.57588363
A21: =A$9 -> 5. Skilled trades occupations | B21: 14.15292207 | C21: 13.20447511 | D21: 10.99735075 | E21: 10.55362535 | F21: 10.16661691 | H21: -0.9545876706 | I21: 36.8323161 | J21: 35.87772843
A22: =A$10 -> 6. Caring, leisure and other service | B22: 6.25565927 | C22: 7.369203061 | D22: 9.61385854 | E22: 10.10896695 | F22: 10.59821478 | H22: 18.10845025 | I22: 45.13618531 | J22: 63.24463555
A23: =A$11 -> 7. Sales and customer service | B23: 8.401265197 | C23: 8.196778959 | D23: 7.791798258 | E23: 7.503940521 | F23: 7.290850029 | H23: 0.2504769527 | I23: 36.58780056 | J23: 36.83827752
A24: =A$12 -> 8. Process, plant and machine operatives | B24: 7.862288959 | C24: 6.897316083 | D24: 6.253407075 | E24: 5.860253876 | F24: 5.612588016 | H24: -3.840444765 | I24: 38.42777603 | J24: 34.58733127
A25: =A$13 -> 9. Elementary occupations | B25: 12.58642872 | C25: 12.12555362 | D25: 11.76849267 | E25: 11.63758234 | F25: 11.65097843 | H25: 6.068771528 | I25: 40.41143409 | J25: 46.48020562
A26: Total | B26: 100 | C26: 100 | D26: 100 | E26: 100 | F26: 100 | H26: 7.138603682 | I26: 39.92264872 | J26: 47.06125242
A27: =CELL("filename",$A$1) -> R:\Research Info\Individual research project info\Working Futures_ CG data task\East of England\[6EE_East_of_Eng.xlsm]Table 6.x.3
A29: Table 6.1.4 | B29: Changing Composition of Employment by Occupation
B30: =names!A4 -> Primary sector and utilities | H30: =H$2 -> 2014 - 2024
A31: SOC2010 Major Groups | H31: Net Change | I31: Replacement | J31: Total
A32: Employment Levels (000s) | B32: =B$4 -> 1994 | C32: =C$4 -> 2004 | D32: =D$4 -> 2014 | E32: =E$4 -> 2019 | F32: =F$4 -> 2024 | I32: Demands | J32: Requirement
A33: =A$5 -> 1. Managers, directors and senior officials | B33: =(All!F37+All!F38)/1000 -> 6.513972 | C33: =(All!P37+All!P38)/1000 -> 5.159497 | D33: =(All!Z37+All!Z38)/1000 -> 6.394166 | E33: =(All!AF37+All!AF38)/1000 -> 6.081614 | F33: =(All!AJ37+All!AJ38)/1000 -> 6.101368 | H33: =F33-D33 -> -0.292798 | I33: =D33*I45/100 -> 2.424893822 | J33: =I33+H33 -> 2.132095822
A34: =A$6 -> 2. Professional occupations | B34: =(All!F39+All!F40+All!F41+All!F42)/1000 -> 7.054429 | C34: =(All!P39+All!P40+All!P41+All!P42)/1000 -> 4.591323 | D34: =(All!Z39+All!Z40+All!Z41+All!Z42)/1000 -> 4.925742 | E34: =(All!AF39+All!AF40+All!AF41+All!AF42)/1000 -> 5.342209 | F34: =(All!AJ39+All!AJ40+All!AJ41+All!AJ42)/1000 -> 5.498705 | H34: 0.572963 | I34: 1.770572531 | J34: 2.343535531
A35: =A$7 -> 3. Associate professional and technical | B35: =(All!F43+All!F44+All!F45+All!F46+All!F47)/1000 -> 6.539977 | C35: =(All!P43+All!P44+All!P45+All!P46+All!P47)/1000 -> 3.86194 | D35: =(All!Z43+All!Z44+All!Z45+All!Z46+All!Z47)/1000 -> 4.87586 | E35: =(All!AF43+All!AF44+All!AF45+All!AF46+All!AF47)/1000 -> 5.212024 | F35: =(All!AJ43+All!AJ44+All!AJ45+All!AJ46+All!AJ47)/1000 -> 5.399062 | H35: 0.523202 | I35: 1.710469987 | J35: 2.233671987
A36: =A$8 -> 4. Administrative and secretarial | B36: =(All!F48+All!F49)/1000 -> 7.318261 | C36: =(All!P48+All!P49)/1000 -> 4.688196 | D36: =(All!Z48+All!Z49)/1000 -> 3.889543 | E36: =(All!AF48+All!AF49)/1000 -> 3.260791 | F36: =(All!AJ48+All!AJ49)/1000 -> 3.083699 | H36: -0.805844 | I36: 1.537354805 | J36: 0.731510805
A37: =A$9 -> 5. Skilled trades occupations | B37: =(All!F50+All!F51+All!F52+All!F53)/1000 -> 26.337264 | C37: =(All!P50+All!P51+All!P52+All!P53)/1000 -> 24.798779 | D37: =(All!Z50+All!Z51+All!Z52+All!Z53)/1000 -> 29.808748 | E37: =(All!AF50+All!AF51+All!AF52+All!AF53)/1000 -> 26.189262 | F37: =(All!AJ50+All!AJ51+All!AJ52+All!AJ53)/1000 -> 25.114888 | H37: -4.69386 | I37: 14.0940705 | J37: 9.400210501
A38: =A$10 -> 6. Caring, leisure and other service | B38: =(All!F54+All!F55)/1000 -> 3.237073 | C38: =(All!P54+All!P55)/1000 -> 2.871274 | D38: =(All!Z54+All!Z55)/1000 -> 2.011776 | E38: =(All!AF54+All!AF55)/1000 -> 1.979013 | F38: =(All!AJ54+All!AJ55)/1000 -> 1.979903 | H38: -0.031873 | I38: 0.768265414 | J38: 0.736392414
A39: =A$11 -> 7. Sales and customer service | B39: =(All!F56+All!F57)/1000 -> 3.358008 | C39: =(All!P56+All!P57)/1000 -> 1.725095 | D39: =(All!Z56+All!Z57)/1000 -> 1.646016 | E39: =(All!AF56+All!AF57)/1000 -> 1.586426 | F39: =(All!AJ56+All!AJ57)/1000 -> 1.569122 | H39: -0.076894 | I39: 0.5452155993 | J39: 0.4683215993
A40: =A$12 -> 8. Process, plant and machine operatives | B40: =(All!F58+All!F59)/1000 -> 10.070214 | C40: =(All!P58+All!P59)/1000 -> 7.302964 | D40: =(All!Z58+All!Z59)/1000 -> 6.377509 | E40: =(All!AF58+All!AF59)/1000 -> 5.890566 | F40: =(All!AJ58+All!AJ59)/1000 -> 5.736484 | H40: -0.641025 | I40: 2.351436354 | J40: 1.710411354
A41: =A$13 -> 9. Elementary occupations | B41: =(All!F60+All!F61)/1000 -> 15.102802 | C41: =(All!P60+All!P61)/1000 -> 12.486929 | D41: =(All!Z60+All!Z61)/1000 -> 10.26164 | E41: =(All!AF60+All!AF61)/1000 -> 8.100098 | F41: =(All!AJ60+All!AJ61)/1000 -> 7.367772 | H41: -2.893868 | I41: 2.933021051 | J41: 0.03915305067
A42: Total | B42: =All!F36/1000 -> 85.532 | C42: =All!P36/1000 -> 67.486 | D42: =All!Z36/1000 -> 70.191 | E42: =All!AF36/1000 -> 63.642 | F42: =All!AJ36/1000 -> 61.851 | H42: -8.34 | I42: =SUM(I33:I41) -> 28.13530006 | J42: 19.79530006
A44: Percentage Shares | B44: =B$4 -> 1994 | C44: =C$4 -> 2004 | D44: =D$4 -> 2014 | E44: =E$4 -> 2019 | F44: =F$4 -> 2024 | H44: Percentage Changes
A45: =A$5 -> 1. Managers, directors and senior officials | B45: =B33/B$42*100 -> 7.615830333 | C45: 7.645284948 | D45: 9.109666481 | E45: 9.555975614 | F45: 9.864623046 | H45: =H33/D33*100 -> -4.579142925 | I45: 37.92353564 | J45: =J33/D33*100 -> 33.34439272
A46: =A$6 -> 2. Professional occupations | B46: 8.247707291 | C46: 6.80337107 | D46: 7.017626191 | E46: 8.394156375 | F46: 8.890244297 | H46: 11.63201402 | I46: 35.94529578 | J46: 47.5773098
A47: =A$7 -> 3. Associate professional and technical | B47: 7.646234158 | C47: 5.722579498 | D47: 6.9465601 | E47: 8.189598064 | F47: 8.729142617 | H47: 10.73045576 | I47: 35.0803753 | J47: 45.81083106
A48: =A$8 -> 4. Administrative and secretarial | B48: 8.556167282 | C48: 6.946916397 | D48: 5.541369976 | E48: 5.123646334 | F48: 4.985689803 | H48: -20.71821805 | I48: 39.52533254 | J48: 18.80711449
A49: =A$9 -> 5. Skilled trades occupations | B49: 30.79229294 | C49: 36.74655336 | D49: 42.46804861 | E49: 41.15090978 | F49: 40.60546798 | H49: -15.74658553 | I49: 47.28165873 | J49: 31.5350732
A50: =A$10 -> 6. Caring, leisure and other service | B50: 3.784633821 | C50: 4.254621699 | D50: 2.866145232 | E50: 3.10960215 | F50: 3.201084865 | H50: -1.584321515 | I50: 38.1884173 | J50: 36.60409578
A51: =A$11 -> 7. Sales and customer service | B51: 3.926025347 | C51: 2.556226477 | D51: 2.345052785 | E51: 2.492734358 | F51: 2.536938772 | H51: -4.671522027 | I51: 33.12334748 | J51: 28.45182546
A52: =A$12 -> 8. Process, plant and machine operatives | B52: 11.77362157 | C52: 10.82145037 | D52: 9.085935519 | E52: 9.255783916 | F52: 9.274682705 | H52: -10.05133823 | I52: 36.87076497 | J52: 26.81942674
A53: =A$13 -> 9. Elementary occupations | B53: 17.65748726 | C53: 18.50299173 | D53: 14.6195951 | E53: 12.72759813 | F53: 11.91213077 | H53: -28.2008334 | I53: 28.58238109 | J53: 0.3815476928
A54: Total | B54: 100 | C54: 100 | D54: 100 | E54: 100 | F54: 100 | H54: -11.8818652 | I54: 40.08391366 | J54: 28.20204879
A55: =$A$27 -> R:\Research Info\Individual research project info\Working Futures_ CG data task\East of England\[6EE_East_of_Eng.xlsm]Table 6.x.3
A57: Table 6.2.4 | B57: Changing Composition of Employment by Occupation
B58: =names!A5 -> Manufacturing | H58: =H$2 -> 2014 - 2024
A59: SOC2010 Major Groups | H59: Net Change | I59: Replacement | J59: Total
A60: Employment Levels (000s) | B60: =B$4 -> 1994 | C60: =C$4 -> 2004 | D60: =D$4 -> 2014 | E60: =E$4 -> 2019 | F60: =F$4 -> 2024 | I60: Demands | J60: Requirement
A61: =A$5 -> 1. Managers, directors and senior officials | B61: =(All!F65+All!F66)/1000 -> 26.240078 | C61: =(All!P65+All!P66)/1000 -> 32.094485 | D61: =(All!Z65+All!Z66)/1000 -> 29.091213 | E61: =(All!AF65+All!AF66)/1000 -> 30.715087 | F61: =(All!AJ65+All!AJ66)/1000 -> 29.519961 | H61: =F61-D61 -> 0.428748 | I61: =D61*I73/100 -> 10.8383262 | J61: =I61+H61 -> 11.2670742
A62: =A$6 -> 2. Professional occupations | B62: =(All!F67+All!F68+All!F69+All!F70)/1000 -> 31.80199 | C62: =(All!P67+All!P68+All!P69+All!P70)/1000 -> 36.345463 | D62: =(All!Z67+All!Z68+All!Z69+All!Z70)/1000 -> 33.784954 | E62: =(All!AF67+All!AF68+All!AF69+All!AF70)/1000 -> 34.822306 | F62: =(All!AJ67+All!AJ68+All!AJ69+All!AJ70)/1000 -> 33.062406 | H62: -0.722548 | I62: 11.03064516 | J62: 10.30809716
A63: =A$7 -> 3. Associate professional and technical | B63: =(All!F71+All!F72+All!F73+All!F74+All!F75)/1000 -> 38.06118 | C63: =(All!P71+All!P72+All!P73+All!P74+All!P75)/1000 -> 41.39242 | D63: =(All!Z71+All!Z72+All!Z73+All!Z74+All!Z75)/1000 -> 33.869387 | E63: =(All!AF71+All!AF72+All!AF73+All!AF74+All!AF75)/1000 -> 35.11718 | F63: =(All!AJ71+All!AJ72+All!AJ73+All!AJ74+All!AJ75)/1000 -> 33.833518 | H63: -0.035869 | I63: 11.92023921 | J63: 11.88437021
A64: =A$8 -> 4. Administrative and secretarial | B64: =(All!F76+All!F77)/1000 -> 30.325856 | C64: =(All!P76+All!P77)/1000 -> 25.170612 | D64: =(All!Z76+All!Z77)/1000 -> 17.370568 | E64: =(All!AF76+All!AF77)/1000 -> 16.284401 | F64: =(All!AJ76+All!AJ77)/1000 -> 15.072716 | H64: -2.297852 | I64: 7.381128504 | J64: 5.083276504
A65: =A$9 -> 5. Skilled trades occupations | B65: =(All!F78+All!F79+All!F80+All!F81)/1000 -> 82.191344 | C65: =(All!P78+All!P79+All!P80+All!P81)/1000 -> 73.557228 | D65: =(All!Z78+All!Z79+All!Z80+All!Z81)/1000 -> 52.952249 | E65: =(All!AF78+All!AF79+All!AF80+All!AF81)/1000 -> 47.497223 | F65: =(All!AJ78+All!AJ79+All!AJ80+All!AJ81)/1000 -> 42.806288 | H65: -10.145961 | I65: 16.65399481 | J65: 6.50803381
A66: =A$10 -> 6. Caring, leisure and other service | B66: =(All!F82+All!F83)/1000 -> 2.461544 | C66: =(All!P82+All!P83)/1000 -> 2.872077 | D66: =(All!Z82+All!Z83)/1000 -> 2.534058 | E66: =(All!AF82+All!AF83)/1000 -> 2.930041 | F66: =(All!AJ82+All!AJ83)/1000 -> 2.896961 | H66: 0.362903 | I66: 1.142444716 | J66: 1.505347716
A67: =A$11 -> 7. Sales and customer service | B67: =(All!F84+All!F85)/1000 -> 6.875157 | C67: =(All!P84+All!P85)/1000 -> 7.792145 | D67: =(All!Z84+All!Z85)/1000 -> 7.078163 | E67: =(All!AF84+All!AF85)/1000 -> 7.024493 | F67: =(All!AJ84+All!AJ85)/1000 -> 6.679705 | H67: -0.398458 | I67: 2.417645043 | J67: 2.019187043
A68: =A$12 -> 8. Process, plant and machine operatives | B68: =(All!F86+All!F87)/1000 -> 67.721026 | C68: =(All!P86+All!P87)/1000 -> 58.169661 | D68: =(All!Z86+All!Z87)/1000 -> 38.422455 | E68: =(All!AF86+All!AF87)/1000 -> 33.488419 | F68: =(All!AJ86+All!AJ87)/1000 -> 29.896413 | H68: -8.526042 | I68: 12.07717682 | J68: 3.551134818
A69: =A$13 -> 9. Elementary occupations | B69: =(All!F88+All!F89)/1000 -> 22.627824 | C69: =(All!P88+All!P89)/1000 -> 20.249911 | D69: =(All!Z88+All!Z89)/1000 -> 16.119953 | E69: =(All!AF88+All!AF89)/1000 -> 15.808848 | F69: =(All!AJ88+All!AJ89)/1000 -> 14.661032 | H69: -1.458921 | I69: 6.025320228 | J69: 4.566399228
A70: Total | B70: =All!F64/1000 -> 308.306 | C70: =All!P64/1000 -> 297.644 | D70: =All!Z64/1000 -> 231.223 | E70: =All!AF64/1000 -> 223.688 | F70: =All!AJ64/1000 -> 208.429 | H70: -22.794 | I70: =SUM(I61:I69) -> 79.48692069 | J70: 56.69292069
A72: Percentage Shares | B72: =B$4 -> 1994 | C72: =C$4 -> 2004 | D72: =D$4 -> 2014 | E72: =E$4 -> 2019 | F72: =F$4 -> 2024 | H72: Percentage Changes
A73: =A$5 -> 1. Managers, directors and senior officials | B73: =B61/B$70*100 -> 8.511050061 | C73: 10.78284293 | D73: 12.58145297 | E73: 13.73121804 | F73: 14.16307759 | H73: =H61/D61*100 -> 1.473805853 | I73: 37.25635711 | J73: =J61/D61*100 -> 38.73016296
A74: =A$6 -> 2. Professional occupations | B74: 10.31507334 | C74: 12.21105179 | D74: 14.61141582 | E74: 15.56735542 | F74: 15.86267074 | H74: -2.138668 | I74: 32.64957875 | J74: 30.51091075
A75: =A$7 -> 3. Associate professional and technical | B75: 12.34526088 | C75: 13.90668718 | D75: 14.64793165 | E75: 15.69917921 | F75: 16.23263461 | H75: -0.1059038949 | I75: 35.19472971 | J75: 35.08882581
A76: =A$8 -> 4. Administrative and secretarial | B76: 9.83628473 | C76: 8.456616629 | D76: 7.512474105 | E76: 7.279961822 | F76: 7.231582937 | H76: -13.22842178 | I76: 42.49215399 | J76: 29.26373222
A77: =A$9 -> 5. Skilled trades occupations | B77: 26.65901539 | C77: 24.71315666 | D77: 22.90094368 | E77: 21.23369291 | F77: 20.53758738 | H77: -19.16058561 | I77: 31.45096785 | J77: 12.29038225
A78: =A$10 -> 6. Caring, leisure and other service | B78: 0.7984093725 | C78: 0.9649369717 | D78: 1.095936823 | E78: 1.309878491 | F78: 1.389903037 | H78: 14.32102186 | I78: 45.08360568 | J78: 59.40462753
A79: =A$11 -> 7. Sales and customer service | B79: 2.229978333 | C79: 2.617941232 | D79: 3.061184657 | E79: 3.140308376 | F79: 3.204786762 | H79: -5.629398475 | I79: 34.15639119 | J79: 28.52699271
A80: =A$12 -> 8. Process, plant and machine operatives | B80: 21.96552321 | C80: 19.54336758 | D80: 16.61705583 | E80: 14.97103957 | F80: 14.34369162 | H80: -22.19025827 | I80: 31.43260059 | J80: 9.242342318
A81: =A$13 -> 9. Elementary occupations | B81: 7.339404358 | C81: 6.803399699 | D81: 6.971604468 | E81: 7.067365259 | F81: 7.034065317 | H81: -9.0504048 | I81: 37.37802603 | J81: 28.32762123
A82: Total | B82: 100 | C82: 100 | D82: 100 | E82: 100 | F82: 100 | H82: -9.858015855 | I82: 34.37673609 | J82: 24.51872032
A83: =$A$27 -> R:\Research Info\Individual research project info\Working Futures_ CG data task\East of England\[6EE_East_of_Eng.xlsm]Table 6.x.3
A85: Table 6.3.4 | B85: Changing Composition of Employment by Occupation
B86: =names!A6 -> Construction | H86: =H$2 -> 2014 - 2024
A87: SOC2010 Major Groups | H87: Net Change | I87: Replacement | J87: Total
A88: Employment Levels (000s) | B88: =B$4 -> 1994 | C88: 1992 | D88: 2002 | E88: 2007 | F88: 2012 | I88: Demands | J88: Requirement
A89: =A$5 -> 1. Managers, directors and senior officials | B89: =(All!F93+All!F94)/1000 -> 10.858025 | C89: =(All!P93+All!P94)/1000 -> 19.05012 | D89: =(All!Z93+All!Z94)/1000 -> 22.199003 | E89: =(All!AF93+All!AF94)/1000 -> 28.542677 | F89: =(All!AJ93+All!AJ94)/1000 -> 31.855421 | H89: =F89-D89 -> 9.656418 | I89: =D89*I101/100 -> 9.45054711 | J89: =I89+H89 -> 19.10696511
A90: =A$6 -> 2. Professional occupations | B90: =(All!F95+All!F96+All!F97+All!F98)/1000 -> 11.027337 | C90: =(All!P95+All!P96+All!P97+All!P98)/1000 -> 20.658902 | D90: =(All!Z95+All!Z96+All!Z97+All!Z98)/1000 -> 21.193281 | E90: =(All!AF95+All!AF96+All!AF97+All!AF98)/1000 -> 26.762355 | F90: =(All!AJ95+All!AJ96+All!AJ97+All!AJ98)/1000 -> 29.661288 | H90: 8.468007 | I90: 8.228957901 | J90: 16.6969649
A91: =A$7 -> 3. Associate professional and technical | B91: =(All!F99+All!F100+All!F101+All!F102+All!F103)/1000 -> 9.515106 | C91: =(All!P99+All!P100+All!P101+All!P102+All!P103)/1000 -> 15.772895 | D91: =(All!Z99+All!Z100+All!Z101+All!Z102+All!Z103)/1000 -> 16.259316 | E91: =(All!AF99+All!AF100+All!AF101+All!AF102+All!AF103)/1000 -> 20.459426 | F91: =(All!AJ99+All!AJ100+All!AJ101+All!AJ102+All!AJ103)/1000 -> 22.643613 | H91: 6.384297 | I91: 6.354465301 | J91: 12.7387623
A92: =A$8 -> 4. Administrative and secretarial | B92: =(All!F104+All!F105)/1000 -> 18.156608 | C92: =(All!P104+All!P105)/1000 -> 22.941233 | D92: =(All!Z104+All!Z105)/1000 -> 16.396542 | E92: =(All!AF104+All!AF105)/1000 -> 17.63002 | F92: =(All!AJ104+All!AJ105)/1000 -> 18.44031 | H92: 2.043768 | I92: 7.779358042 | J92: 9.823126042
A93: =A$9 -> 5. Skilled trades occupations | B93: =(All!F106+All!F107+All!F108+All!F109)/1000 -> 83.378388 | C93: =(All!P106+All!P107+All!P108+All!P109)/1000 -> 116.065622 | D93: =(All!Z106+All!Z107+All!Z108+All!Z109)/1000 -> 98.534824 | E93: =(All!AF106+All!AF107+All!AF108+All!AF109)/1000 -> 109.017109 | F93: =(All!AJ106+All!AJ107+All!AJ108+All!AJ109)/1000 -> 111.50915 | H93: 12.974326 | I93: 34.3560813 | J93: 47.3304073
A94: =A$10 -> 6. Caring, leisure and other service | B94: =(All!F110+All!F111)/1000 -> 0.158145 | C94: =(All!P110+All!P111)/1000 -> 0.31549 | D94: =(All!Z110+All!Z111)/1000 -> 0.455299 | E94: =(All!AF110+All!AF111)/1000 -> 0.596059 | F94: =(All!AJ110+All!AJ111)/1000 -> 0.660429 | H94: 0.20513 | I94: 0.2470575146 | J94: 0.4521875146
A95: =A$11 -> 7. Sales and customer service | B95: =(All!F112+All!F113)/1000 -> 1.663523 | C95: =(All!P112+All!P113)/1000 -> 2.995999 | D95: =(All!Z112+All!Z113)/1000 -> 3.62772 | E95: =(All!AF112+All!AF113)/1000 -> 4.373286 | F95: =(All!AJ112+All!AJ113)/1000 -> 4.73521 | H95: 1.10749 | I95: 1.287102919 | J95: 2.394592919
A96: =A$12 -> 8. Process, plant and machine operatives | B96: =(All!F114+All!F115)/1000 -> 13.552001 | C96: =(All!P114+All!P115)/1000 -> 20.604832 | D96: =(All!Z114+All!Z115)/1000 -> 19.751534 | E96: =(All!AF114+All!AF115)/1000 -> 21.658665 | F96: =(All!AJ114+All!AJ115)/1000 -> 23.72407 | H96: 3.972536 | I96: 7.21297454 | J96: 11.18551054
A97: =A$13 -> 9. Elementary occupations | B97: =(All!F116+All!F117)/1000 -> 11.234868 | C97: =(All!P116+All!P117)/1000 -> 16.691908 | D97: =(All!Z116+All!Z117)/1000 -> 12.461482 | E97: =(All!AF116+All!AF117)/1000 -> 13.951402 | F97: =(All!AJ116+All!AJ117)/1000 -> 14.48551 | H97: 2.024028 | I97: 4.304045236 | J97: 6.328073236
A98: Total | B98: =All!F92/1000 -> 159.544 | C98: =All!P92/1000 -> 235.097 | D98: =All!Z92/1000 -> 210.879 | E98: =All!AF92/1000 -> 242.991 | F98: =All!AJ92/1000 -> 257.715 | H98: 46.836 | I98: =SUM(I89:I97) -> 79.22058986 | J98: 126.0565899
A100: Percentage Shares | B100: =B$4 -> 1994 | C100: =C$4 -> 2004 | D100: =D$4 -> 2014 | E100: =E$4 -> 2019 | F100: =F$4 -> 2024 | H100: Percentage Changes
A101: =A$5 -> 1. Managers, directors and senior officials | B101: =B89/B$98*100 -> 6.805661761 | C101: 8.103089363 | D101: 10.52689125 | E101: 11.74639266 | F101: 12.36071668 | H101: =H89/D89*100 -> 43.49933193 | I101: 42.57194393 | J101: =J89/D89*100 -> 86.07127586
A102: =A$6 -> 2. Professional occupations | B102: 6.91178421 | C102: 8.78739499 | D102: 10.04997226 | E102: 11.01372273 | F102: 11.50933706 | H102: 39.95609269 | I102: 38.82814512 | J102: 78.7842378
A103: =A$7 -> 3. Associate professional and technical | B103: 5.963938475 | C103: 6.709100924 | D103: 7.710258489 | E103: 8.419828718 | F103: 8.786299983 | H103: 39.26547095 | I103: 39.08199644 | J103: 78.34746739
A104: =A$8 -> 4. Administrative and secretarial | B104: 11.38031389 | C104: 9.758198956 | D104: 7.775331825 | E104: 7.255420983 | F104: 7.155311099 | H104: 12.46462821 | I104: 47.44511399 | J104: 59.9097422
A105: =A$9 -> 5. Skilled trades occupations | B105: 52.26043474 | C105: 49.36924844 | D105: 46.72576406 | E105: 44.86466947 | F105: 43.26839726 | H105: 13.16724938 | I105: 34.86694338 | J105: 48.03419276
A106: =A$10 -> 6. Caring, leisure and other service | B106: 0.09912312591 | C106: 0.1341956724 | D106: 0.2159053296 | E106: 0.2453008548 | F106: 0.2562633141 | H106: 45.05390963 | I106: 54.26269652 | J106: 99.31660615
A107: =A$11 -> 7. Sales and customer service | B107: 1.042673494 | C107: 1.274367176 | D107: 1.720285092 | E107: 1.799772831 | F107: 1.83738238 | H107: 30.52854134 | I107: 35.47966544 | J107: 66.00820678
A108: =A$12 -> 8. Process, plant and machine operatives | B108: 8.494209121 | C108: 8.764395973 | D108: 9.366287776 | E108: 8.913360989 | F108: 9.205544885 | H108: 20.11254417 | I108: 36.51855365 | J108: 56.63109782
A109: =A$13 -> 9. Elementary occupations | B109: 7.041861806 | C109: 7.100008932 | D109: 5.909304388 | E109: 5.741530345 | F109: 5.620747725 | H109: 16.24227359 | I109: 34.5387911 | J109: 50.78106469
A110: Total | B110: 100 | C110: 100 | D110: 100 | E110: 100 | F110: 100 | H110: 22.20989288 | I110: 37.56684606 | J110: 59.7767392
A111: =$A$27 -> R:\Research Info\Individual research project info\Working Futures_ CG data task\East of England\[6EE_East_of_Eng.xlsm]Table 6.x.3
A113: Table 6.4.4 | B113: Changing Composition of Employment by Occupation
B114: =names!A7 -> Trade, accomod. and transport | H114: =H$2 -> 2014 - 2024
A115: SOC2010 Major Groups | H115: Net Change | I115: Replacement | J115: Total
A116: Employment Levels (000s) | B116: =B$4 -> 1994 | C116: =C$4 -> 2004 | D116: =D$4 -> 2014 | E116: =E$4 -> 2019 | F116: =F$4 -> 2024 | I116: Demands | J116: Requirement
A117: =A$5 -> 1. Managers, directors and senior officials | B117: =(All!F121+All!F122)/1000 -> 80.952835 | C117: =(All!P121+All!P122)/1000 -> 92.120298 | D117: =(All!Z121+All!Z122)/1000 -> 96.588232 | E117: =(All!AF121+All!AF122)/1000 -> 110.694463 | F117: =(All!AJ121+All!AJ122)/1000 -> 115.29996 | H117: =F117-D117 -> 18.711728 | I117: =D117*I129/100 -> 41.76971415 | J117: =I117+H117 -> 60.48144215
A118: =A$6 -> 2. Professional occupations | B118: =(All!F123+All!F124+All!F125+All!F126)/1000 -> 32.037122 | C118: =(All!P123+All!P124+All!P125+All!P126)/1000 -> 41.288822 | D118: =(All!Z123+All!Z124+All!Z125+All!Z126)/1000 -> 45.862115 | E118: =(All!AF123+All!AF124+All!AF125+All!AF126)/1000 -> 54.581744 | F118: =(All!AJ123+All!AJ124+All!AJ125+All!AJ126)/1000 -> 57.110729 | H118: 11.248614 | I118: 18.6997473 | J118: 29.9483613
A119: =A$7 -> 3. Associate professional and technical | B119: =(All!F127+All!F128+All!F129+All!F130+All!F131)/1000 -> 51.398611 | C119: =(All!P127+All!P128+All!P129+All!P130+All!P131)/1000 -> 58.789944 | D119: =(All!Z127+All!Z128+All!Z129+All!Z130+All!Z131)/1000 -> 61.419453 | E119: =(All!AF127+All!AF128+All!AF129+All!AF130+All!AF131)/1000 -> 72.190833 | F119: =(All!AJ127+All!AJ128+All!AJ129+All!AJ130+All!AJ131)/1000 -> 75.120646 | H119: 13.701193 | I119: 24.48457359 | J119: 38.18576659
A120: =A$8 -> 4. Administrative and secretarial | B120: =(All!F132+All!F133)/1000 -> 64.216378 | C120: =(All!P132+All!P133)/1000 -> 72.131454 | D120: =(All!Z132+All!Z133)/1000 -> 62.13189 | E120: =(All!AF132+All!AF133)/1000 -> 63.614765 | F120: =(All!AJ132+All!AJ133)/1000 -> 64.288066 | H120: 2.156176 | I120: 27.78156968 | J120: 29.93774568
A121: =A$9 -> 5. Skilled trades occupations | B121: =(All!F134+All!F135+All!F136+All!F137)/1000 -> 87.720128 | C121: =(All!P134+All!P135+All!P136+All!P137)/1000 -> 88.078654 | D121: =(All!Z134+All!Z135+All!Z136+All!Z137)/1000 -> 85.246182 | E121: =(All!AF134+All!AF135+All!AF136+All!AF137)/1000 -> 82.332896 | F121: =(All!AJ134+All!AJ135+All!AJ136+All!AJ137)/1000 -> 82.742022 | H121: -2.50416 | I121: 30.57929666 | J121: 28.07513666
A122: =A$10 -> 6. Caring, leisure and other service | B122: =(All!F138+All!F139)/1000 -> 11.810951 | C122: =(All!P138+All!P139)/1000 -> 16.619962 | D122: =(All!Z138+All!Z139)/1000 -> 19.274814 | E122: =(All!AF138+All!AF139)/1000 -> 22.980658 | F122: =(All!AJ138+All!AJ139)/1000 -> 24.58805 | H122: 5.313236 | I122: 9.578856116 | J122: 14.89209212
A123: =A$11 -> 7. Sales and customer service | B123: =(All!F140+All!F141)/1000 -> 157.068018 | C123: =(All!P140+All!P141)/1000 -> 170.50458 | D123: =(All!Z140+All!Z141)/1000 -> 165.81453 | E123: =(All!AF140+All!AF141)/1000 -> 166.527764 | F123: =(All!AJ140+All!AJ141)/1000 -> 164.981078 | H123: -0.833452 | I123: 61.3372121 | J123: 60.5037601
A124: =A$12 -> 8. Process, plant and machine operatives | B124: =(All!F142+All!F143)/1000 -> 71.131485 | C124: =(All!P142+All!P143)/1000 -> 78.712643 | D124: =(All!Z142+All!Z143)/1000 -> 93.191175 | E124: =(All!AF142+All!AF143)/1000 -> 91.203957 | F124: =(All!AJ142+All!AJ143)/1000 -> 91.383164 | H124: -1.808011 | I124: 38.40663332 | J124: 36.59862232
A125: =A$13 -> 9. Elementary occupations | B125: =(All!F144+All!F145)/1000 -> 123.695471 | C125: =(All!P144+All!P145)/1000 -> 155.940644 | D125: =(All!Z144+All!Z145)/1000 -> 167.495608 | E125: =(All!AF144+All!AF145)/1000 -> 184.11192 | F125: =(All!AJ144+All!AJ145)/1000 -> 194.945286 | H125: 27.449678 | I125: 72.69919622 | J125: 100.1488742
A126: Total | B126: =All!F120/1000 -> 680.031 | C126: =All!P120/1000 -> 774.187 | D126: =All!Z120/1000 -> 797.024 | E126: =All!AF120/1000 -> 848.239 | F126: =All!AJ120/1000 -> 870.459 | H126: 73.435 | I126: =SUM(I117:I125) -> 325.3367991 | J126: 398.7717991
A128: Percentage Shares | B128: =B$4 -> 1994 | C128: =C$4 -> 2004 | D128: =D$4 -> 2014 | E128: =E$4 -> 2019 | F128: =F$4 -> 2024 | H128: Percentage Changes
A129: =A$5 -> 1. Managers, directors and senior officials | B129: =B117/B$126*100 -> 11.90428598 | C129: 11.89897247 | D129: 12.11861023 | E129: 13.04991435 | F129: 13.24588062 | H129: =H117/D117*100 -> 19.37267886 | I129: 43.24513793 | J129: =J117/D117*100 -> 62.61781678
A130: =A$6 -> 2. Professional occupations | B130: 4.711126699 | C130: 5.333184618 | D130: 5.754169887 | E130: 6.434712858 | F130: 6.560990121 | H130: 24.52702846 | I130: 40.77384416 | J130: 65.30087262
A131: =A$7 -> 3. Associate professional and technical | B131: 7.558274696 | C131: 7.593765331 | D131: 7.706098311 | E131: 8.510671285 | F131: 8.63000394 | H131: 22.307579 | I131: 39.86452564 | J131: 62.17210464
A132: =A$8 -> 4. Administrative and secretarial | B132: 9.443154503 | C132: 9.317058282 | D132: 7.795485456 | E132: 7.499627463 | F132: 7.385536366 | H132: 3.470320958 | I132: 44.71386542 | J132: 48.18418638
A133: =A$9 -> 5. Skilled trades occupations | B133: 12.89943076 | C133: 11.37692237 | D133: 10.69556023 | E133: 9.706332295 | F133: 9.505562238 | H133: -2.937562647 | I133: 35.87174926 | J133: 32.93418661
A134: =A$10 -> 6. Caring, leisure and other service | B134: 1.73682538 | C134: 2.14676325 | D134: 2.418348005 | E134: 2.709219689 | F134: 2.824722359 | H134: 27.56569272 | I134: 49.69623113 | J134: 77.26192386
A135: =A$11 -> 7. Sales and customer service | B135: 23.09718498 | C135: 22.02369453 | D135: 20.8042079 | E135: 19.63217489 | F135: 18.95334278 | H135: -0.5026411135 | I135: 36.99145793 | J135: 36.48881681
A136: =A$12 -> 8. Process, plant and machine operatives | B136: 10.46003565 | C136: 10.16713572 | D136: 11.69239258 | E136: 10.75215323 | F136: 10.49827321 | H136: -1.940109672 | I136: 41.21273642 | J136: 39.27262675
A137: =A$13 -> 9. Elementary occupations | B137: 18.18968121 | C137: 20.14250356 | D137: 21.01512727 | E137: 21.70519394 | F137: 22.39568848 | H137: 16.38829718 | I137: 43.40364329 | J137: 59.79194047
A138: Total | B138: 100 | C138: 100 | D138: 100 | E138: 100 | F138: 100 | H138: 9.213649777 | I138: 40.81894644 | J138: 50.03259615
A139: =$A$27 -> R:\Research Info\Individual research project info\Working Futures_ CG data task\East of England\[6EE_East_of_Eng.xlsm]Table 6.x.3
A141: Table 6.5.4 | B141: Changing Composition of Employment by Occupation
B142: =names!A8 -> Business and other services | H142: =H$2 -> 2014 - 2024
A143: SOC2010 Major Groups | H143: Net Change | I143: Replacement | J143: Total
A144: Employment Levels (000s) | B144: =B$4 -> 1994 | C144: =C$4 -> 2004 | D144: =D$4 -> 2014 | E144: =E$4 -> 2019 | F144: =F$4 -> 2024 | I144: Demands | J144: Requirement
A145: =A$5 -> 1. Managers, directors and senior officials | B145: =(All!F149+All!F150)/1000 -> 54.101793 | C145: =(All!P149+All!P150)/1000 -> 90.946003 | D145: =(All!Z149+All!Z150)/1000 -> 127.557807 | E145: =(All!AF149+All!AF150)/1000 -> 142.480433 | F145: =(All!AJ149+All!AJ150)/1000 -> 149.871969 | H145: =F145-D145 -> 22.314162 | I145: =D145*I157/100 -> 55.48770421 | J145: =I145+H145 -> 77.80186621
A146: =A$6 -> 2. Professional occupations | B146: =(All!F151+All!F152+All!F153+All!F154)/1000 -> 108.599202 | C146: =(All!P151+All!P152+All!P153+All!P154)/1000 -> 166.343435 | D146: =(All!Z151+All!Z152+All!Z153+All!Z154)/1000 -> 207.638475 | E146: =(All!AF151+All!AF152+All!AF153+All!AF154)/1000 -> 231.957633 | F146: =(All!AJ151+All!AJ152+All!AJ153+All!AJ154)/1000 -> 239.267797 | H146: 31.629322 | I146: 78.48904123 | J146: 110.1183632
A147: =A$7 -> 3. Associate professional and technical | B147: =(All!F155+All!F156+All!F157+All!F158+All!F159)/1000 -> 109.261969 | C147: =(All!P155+All!P156+All!P157+All!P158+All!P159)/1000 -> 163.334238 | D147: =(All!Z155+All!Z156+All!Z157+All!Z158+All!Z159)/1000 -> 192.583512 | E147: =(All!AF155+All!AF156+All!AF157+All!AF158+All!AF159)/1000 -> 211.079141 | F147: =(All!AJ155+All!AJ156+All!AJ157+All!AJ158+All!AJ159)/1000 -> 217.890032 | H147: 25.30652 | I147: 73.50892492 | J147: 98.81544492
A148: =A$8 -> 4. Administrative and secretarial | B148: =(All!F160+All!F161)/1000 -> 133.218606 | C148: =(All!P160+All!P161)/1000 -> 139.949781 | D148: =(All!Z160+All!Z161)/1000 -> 116.869356 | E148: =(All!AF160+All!AF161)/1000 -> 107.207004 | F148: =(All!AJ160+All!AJ161)/1000 -> 102.231322 | H148: -14.638034 | I148: 50.69014162 | J148: 36.05210762
A149: =A$9 -> 5. Skilled trades occupations | B149: =(All!F162+All!F163+All!F164+All!F165)/1000 -> 33.464854 | C149: =(All!P162+All!P163+All!P164+All!P165)/1000 -> 47.949555 | D149: =(All!Z162+All!Z163+All!Z164+All!Z165)/1000 -> 46.935827 | E149: =(All!AF162+All!AF163+All!AF164+All!AF165)/1000 -> 48.244522 | F149: =(All!AJ162+All!AJ163+All!AJ164+All!AJ165)/1000 -> 50.686505 | H149: 3.750678 | I149: 19.28026969 | J149: 23.03094769
A150: =A$10 -> 6. Caring, leisure and other service | B150: =(All!F166+All!F167)/1000 -> 33.343251 | C150: =(All!P166+All!P167)/1000 -> 47.641532 | D150: =(All!Z166+All!Z167)/1000 -> 55.622288 | E150: =(All!AF166+All!AF167)/1000 -> 60.504856 | F150: =(All!AJ166+All!AJ167)/1000 -> 62.00392 | H150: 6.381632 | I150: 25.32030461 | J150: 31.70193661
A151: =A$11 -> 7. Sales and customer service | B151: =(All!F168+All!F169)/1000 -> 22.687217 | C151: =(All!P168+All!P169)/1000 -> 36.950007 | D151: =(All!Z168+All!Z169)/1000 -> 43.049838 | E151: =(All!AF168+All!AF169)/1000 -> 43.097282 | F151: =(All!AJ168+All!AJ169)/1000 -> 43.980339 | H151: 0.930501 | I151: 15.44023308 | J151: 16.37073408
A152: =A$12 -> 8. Process, plant and machine operatives | B152: =(All!F170+All!F171)/1000 -> 13.787198 | C152: =(All!P170+All!P171)/1000 -> 20.202397 | D152: =(All!Z170+All!Z171)/1000 -> 20.663285 | E152: =(All!AF170+All!AF171)/1000 -> 20.899655 | F152: =(All!AJ170+All!AJ171)/1000 -> 21.564181 | H152: 0.900896 | I152: 8.486318057 | J152: 9.387214057
A153: =A$13 -> 9. Elementary occupations | B153: =(All!F172+All!F173)/1000 -> 70.893912 | C153: =(All!P172+All!P173)/1000 -> 92.198052 | D153: =(All!Z172+All!Z173)/1000 -> 111.561613 | E153: =(All!AF172+All!AF173)/1000 -> 113.507474 | F153: =(All!AJ172+All!AJ173)/1000 -> 115.173935 | H153: 3.612322 | I153: 43.4329351 | J153: 47.0452571
A154: Total | B154: =All!F148/1000 -> 579.358 | C154: =All!P148/1000 -> 805.515 | D154: =All!Z148/1000 -> 922.482 | E154: =All!AF148/1000 -> 978.978 | F154: =All!AJ148/1000 -> 1002.67 | H154: 80.188 | I154: =SUM(I145:I153) -> 370.1358725 | J154: 450.3238725
A156: Percentage Shares | B156: =B$4 -> 1994 | C156: =C$4 -> 2004 | D156: =D$4 -> 2014 | E156: =E$4 -> 2019 | F156: =F$4 -> 2024 | H156: Percentage Changes
A157: =A$5 -> 1. Managers, directors and senior officials | B157: =B145/B$154*100 -> 9.338231801 | C157: 11.29041706 | D157: 13.82767436 | E157: 14.55399743 | F157: 14.94728764 | H157: =H145/D145*100 -> 17.49337224 | I157: 43.5000456 | J157: =J145/D145*100 -> 60.99341784
A158: =A$6 -> 2. Professional occupations | B158: 18.74474884 | C158: 20.65056951 | D158: 22.50867497 | E158: 23.69385553 | F158: 23.86306532 | H158: 15.23288109 | I158: 37.80081761 | J158: 53.03369871
A159: =A$7 -> 3. Associate professional and technical | B159: 18.85914564 | C159: 20.27699521 | D159: 20.87666881 | E159: 21.56117308 | F159: 21.73098148 | H159: 13.14054341 | I159: 38.16989531 | J159: 51.31043873
A160: =A$8 -> 4. Administrative and secretarial | B160: 22.99417735 | C160: 17.37395095 | D160: 12.66901208 | E160: 10.95091044 | F160: 10.19590912 | H160: -12.52512592 | I160: 43.3733387 | J160: 30.84821278
A161: =A$9 -> 5. Skilled trades occupations | B161: 5.776196065 | C161: 5.952658237 | D161: 5.087993804 | E161: 4.92804966 | F161: 5.055153241 | H161: 7.991076838 | I161: 41.07793752 | J161: 49.06901435
A162: =A$10 -> 6. Caring, leisure and other service | B162: 5.755206798 | C162: 5.914418974 | D162: 6.029633966 | E162: 6.180410183 | F162: 6.183881038 | H162: 11.47315623 | I162: 45.52186815 | J162: 56.99502438
A163: =A$11 -> 7. Sales and customer service | B163: 3.91592366 | C163: 4.587128359 | D163: 4.666740164 | E163: 4.402272778 | F163: 4.386322419 | H163: 2.161450642 | I163: 35.86594933 | J163: 38.02739997
A164: =A$12 -> 8. Process, plant and machine operatives | B164: 2.379737226 | C164: 2.508010031 | D164: 2.2399662 | E164: 2.134844195 | F164: 2.150675796 | H164: 4.359887598 | I164: 41.06954948 | J164: 45.42943708
A165: =A$13 -> 9. Elementary occupations | B165: 12.23663296 | C165: 11.44585166 | D165: 12.09363576 | E165: 11.5944867 | F165: 11.48672395 | H165: 3.23796143 | I165: 38.93179198 | J165: 42.16975341
A166: Total | B166: 100 | C166: 100 | D166: 100 | E166: 100 | F166: 100 | H166: 8.692635737 | I166: 40.12391266 | J166: 48.81654845
A167: =$A$27 -> R:\Research Info\Individual research project info\Working Futures_ CG data task\East of England\[6EE_East_of_Eng.xlsm]Table 6.x.3
A169: Table 6.6.4 | B169: Changing Composition of Employment by Occupation
B170: =names!A9 -> Non-market services | H170: =H$2 -> 2014 - 2024
A171: SOC2010 Major Groups | H171: Net Change | I171: Replacement | J171: Total
A172: Employment Levels (000s) | B172: =B$4 -> 1994 | C172: =C$4 -> 2004 | D172: =D$4 -> 2014 | E172: =E$4 -> 2019 | F172: =F$4 -> 2024 | I172: Demands | J172: Requirement
A173: =A$5 -> 1. Managers, directors and senior officials | B173: =(All!F177+All!F178)/1000 -> 14.432314 | C173: =(All!P177+All!P178)/1000 -> 20.816318 | D173: =(All!Z177+All!Z178)/1000 -> 31.619055 | E173: =(All!AF177+All!AF178)/1000 -> 32.279869 | F173: =(All!AJ177+All!AJ178)/1000 -> 33.976554 | H173: =F173-D173 -> 2.357499 | I173: =D173*I185/100 -> 12.62298667 | J173: =I173+H173 -> 14.98048567
A174: =A$6 -> 2. Professional occupations | B174: =(All!F179+All!F180+All!F181+All!F182)/1000 -> 163.37756 | C174: =(All!P179+All!P180+All!P181+All!P182)/1000 -> 192.510626 | D174: =(All!Z179+All!Z180+All!Z181+All!Z182)/1000 -> 248.727705 | E174: =(All!AF179+All!AF180+All!AF181+All!AF182)/1000 -> 263.677448 | F174: =(All!AJ179+All!AJ180+All!AJ181+All!AJ182)/1000 -> 275.274959 | H174: 26.547254 | I174: 103.6012188 | J174: 130.1484728
A175: =A$7 -> 3. Associate professional and technical | B175: =(All!F183+All!F184+All!F185+All!F186+All!F187)/1000 -> 67.364621 | C175: =(All!P183+All!P184+All!P185+All!P186+All!P187)/1000 -> 76.494657 | D175: =(All!Z183+All!Z184+All!Z185+All!Z186+All!Z187)/1000 -> 88.273645 | E175: =(All!AF183+All!AF184+All!AF185+All!AF186+All!AF187)/1000 -> 90.337344 | F175: =(All!AJ183+All!AJ184+All!AJ185+All!AJ186+All!AJ187)/1000 -> 94.070706 | H175: 5.797061 | I175: 30.95566405 | J175: 36.75272505
A176: =A$8 -> 4. Administrative and secretarial | B176: =(All!F188+All!F189)/1000 -> 100.01833 | C176: =(All!P188+All!P189)/1000 -> 91.278914 | D176: =(All!Z188+All!Z189)/1000 -> 93.032239 | E176: =(All!AF188+All!AF189)/1000 -> 74.994612 | F176: =(All!AJ188+All!AJ189)/1000 -> 71.941944 | H176: -21.090295 | I176: 37.24992444 | J176: 16.15962944
A177: =A$9 -> 5. Skilled trades occupations | B177: =(All!F190+All!F191+All!F192+All!F193)/1000 -> 16.703658 | C177: =(All!P190+All!P191+All!P192+All!P193)/1000 -> 13.191239 | D177: =(All!Z190+All!Z191+All!Z192+All!Z193)/1000 -> 11.372584 | E177: =(All!AF190+All!AF191+All!AF192+All!AF193)/1000 -> 9.998535 | F177: =(All!AJ190+All!AJ191+All!AJ192+All!AJ193)/1000 -> 8.890581 | H177: -2.482003 | I177: 4.686218476 | J177: 2.204215476
A178: =A$10 -> 6. Caring, leisure and other service | B178: =(All!F194+All!F195)/1000 -> 94.760285 | C178: =(All!P194+All!P195)/1000 -> 132.621844 | D178: =(All!Z194+All!Z195)/1000 -> 204.085244 | E178: =(All!AF194+All!AF195)/1000 -> 227.101347 | F178: =(All!AJ194+All!AJ195)/1000 -> 243.279224 | H178: 39.19398 | I178: 91.12238069 | J178: 130.3163607
A179: =A$11 -> 7. Sales and customer service | B179: =(All!F196+All!F197)/1000 -> 4.116878 | C179: =(All!P196+All!P197)/1000 -> 5.765156 | D179: =(All!Z196+All!Z197)/1000 -> 8.945429 | E179: =(All!AF196+All!AF197)/1000 -> 8.291813 | F179: =(All!AJ196+All!AJ197)/1000 -> 8.792744 | H179: -0.152685 | I179: 3.183693193 | J179: 3.031008193
A180: =A$12 -> 8. Process, plant and machine operatives | B180: =(All!F198+All!F199)/1000 -> 6.94749 | C180: =(All!P198+All!P199)/1000 -> 4.954276 | D180: =(All!Z198+All!Z199)/1000 -> 6.313245 | E180: =(All!AF198+All!AF199)/1000 -> 5.686883 | F180: =(All!AJ198+All!AJ199)/1000 -> 5.320853 | H180: -0.992392 | I180: 2.448941133 | J180: 1.456549133
A181: =A$13 -> 9. Elementary occupations | B181: =(All!F200+All!F201)/1000 -> 49.737862 | C181: =(All!P200+All!P201)/1000 -> 36.360968 | D181: =(All!Z200+All!Z201)/1000 -> 29.728856 | E181: =(All!AF200+All!AF201)/1000 -> 24.62615 | F181: =(All!AJ200+All!AJ201)/1000 -> 22.092438 | H181: -7.636418 | I181: 11.08740909 | J181: 3.450991091
A182: Total | B182: =All!F176/1000 -> 517.459 | C182: =All!P176/1000 -> 573.994 | D182: =All!Z176/1000 -> 722.098 | E182: =All!AF176/1000 -> 736.994 | F182: =All!AJ176/1000 -> 763.64 | H182: 41.542 | I182: =SUM(I173:I181) -> 296.9584366 | J182: 338.5004366
A184: Percentage Shares | B184: =B$4 -> 1994 | C184: =C$4 -> 2004 | D184: =D$4 -> 2014 | E184: =E$4 -> 2019 | F184: =F$4 -> 2024 | H184: Percentage Changes
A185: =A$5 -> 1. Managers, directors and senior officials | B185: =B173/B$182*100 -> 2.789073917 | C185: 3.626574145 | D185: 4.378776149 | E185: 4.379936472 | F185: 4.449289456 | H185: =H173/D173*100 -> 7.455943892 | I185: 39.92208707 | J185: =J173/D173*100 -> 47.37803096
A186: =A$6 -> 2. Professional occupations | B186: 31.57304443 | C186: 33.53878717 | D186: 34.44514526 | E186: 35.77742125 | F186: 36.04773964 | H186: 10.67321954 | I186: 41.65246442 | J186: 52.32568396
A187: =A$7 -> 3. Associate professional and technical | B187: 13.01834947 | C187: 13.3267346 | D187: 12.22460732 | E187: 12.25754131 | F187: 12.31872427 | H187: 6.5671481 | I187: 35.06784391 | J187: 41.63499201
A188: =A$8 -> 4. Administrative and secretarial | B188: 19.32874489 | C188: 15.90241605 | D188: 12.88360292 | E188: 10.17574254 | F188: 9.420923996 | H188: -22.66987791 | I188: 40.03980216 | J188: 17.36992425
A189: =A$9 -> 5. Skilled trades occupations | B189: 3.228015746 | C189: 2.298149284 | D189: 1.574936366 | E189: 1.356664369 | F189: 1.164237206 | H189: -21.82444201 | I189: 41.2062771 | J189: 19.38183509
A190: =A$10 -> 6. Caring, leisure and other service | B190: 18.31261704 | C190: 23.10509239 | D190: 28.26281807 | E190: 30.81454489 | F190: 31.85784192 | H190: 19.20471036 | I190: 44.64917644 | J190: 63.85388681
A191: =A$11 -> 7. Sales and customer service | B191: 0.7955950133 | C191: 1.004393077 | D191: 1.238810937 | E191: 1.12508555 | F191: 1.151425279 | H191: -1.706849386 | I191: 35.59016782 | J191: 33.88331843
A192: =A$12 -> 8. Process, plant and machine operatives | B192: 1.342616516 | C192: 0.8631233079 | D192: 0.8742919936 | E192: 0.7716321978 | F192: 0.6967750511 | H192: -15.71920621 | I192: 38.79052901 | J192: 23.0713228
A193: =A$13 -> 9. Elementary occupations | B193: 9.611942589 | C193: 6.334729631 | D193: 4.117011264 | E193: 3.341431545 | F193: 2.893043581 | H193: -25.68688819 | I193: 37.29510847 | J193: 11.60822028
A194: Total | B194: 100 | C194: 100 | D194: 100 | E194: 100 | F194: 100 | H194: 5.75295874 | I194: 41.12439527 | J194: 46.87735412
A195: =$A$27 -> R:\Research Info\Individual research project info\Working Futures_ CG data task\East of England\[6EE_East_of_Eng.xlsm]Table 6.x.3

Sheet RD Charts(Occupations)
Z2: Values for the charts are written here by program RD_VBtab6x3PGeneratorWF5.xlsm
C4: ="Components of Replacement Demand, "&Z9&", "&AA9 -> Components of Replacement Demand, All occupations, 2014- 2024
Z9: All occupations | AA9: 2014- 2024
Z10: periods | AA10: 2014- 2015 | AB10: 2015- 2016 | AC10: 2016- 2017 | AD10: 2017- 2018 | AE10: 2018- 2019 | AF10: 2019- 2020 | AG10: 2020- 2021 | AH10: 2021- 2022 | AI10: 2022- 2023 | AJ10: 2023- 2024
Z11: labels
Z12: Expansion demand | AA12: 44.895008 | AB12: 27.844998 | AC12: 20.278997 | AD12: 16.086997 | AE12: 14.331001 | AF12: 17.198005 | AG12: 15.626 | AH12: 17.537998 | AI12: 18.504998 | AJ12: 18.563001
Z13: Replacement demand | AA13: 114.0772727 | AB13: 115.6689142 | AC13: 116.6363478 | AD13: 117.32597 | AE13: 117.8617638 | AF13: 118.3431631 | AG13: 118.9427165 | AH13: 119.4811568 | AI13: 120.0932161 | AJ13: 120.8434003
Z14: Net requirement | AA14: 158.9722807 | AB14: 143.5139122 | AC14: 136.9153448 | AD14: 133.412967 | AE14: 132.1927648 | AF14: 135.5411681 | AG14: 134.5687165 | AH14: 137.0191548 | AI14: 138.5982141 | AJ14: 139.4064013
C29: ="Components of Replacement Demand, "&Z34&", "&AA34 -> Components of Replacement Demand, Corporate managers and directors, 2014- 2024
Z34: Corporate managers and directors | AA34: 2014- 2024
Z35: periods | AA35: 2014- 2015 | AB35: 2015- 2016 | AC35: 2016- 2017 | AD35: 2017- 2018 | AE35: 2018- 2019 | AF35: 2019- 2020 | AG35: 2020- 2021 | AH35: 2021- 2022 | AI35: 2022- 2023 | AJ35: 2023- 2024
Z36: labels
Z37: Expansion demand | AA37: 7.234142 | AB37: 5.29057 | AC37: 4.562897 | AD37: 4.056941 | AE37: 3.816884 | AF37: 3.945797 | AG37: 4.163823 | AH37: 4.287842 | AI37: 1.16959 | AJ37: 1.141413
Z38: Replacement demand | AA38: 7.306135727 | AB38: 7.564342758 | AC38: 7.755183634 | AD38: 7.921066526 | AE38: 8.07024104 | AF38: 8.211298063 | AG38: 8.357125922 | AH38: 8.510909471 | AI38: 8.669015029 | AJ38: 8.711153933
Z39: Net requirement | AA39: 14.54027773 | AB39: 12.85491276 | AC39: 12.31808063 | AD39: 11.97800753 | AE39: 11.88712504 | AF39: 12.15709506 | AG39: 12.52094892 | AH39: 12.79875147 | AI39: 9.838605029 | AJ39: 9.852566933
C54: ="Components of Replacement Demand, "&Z59&", "&AA59 -> Components of Replacement Demand, Other managers and proprietors, 2014- 2024
Z59: Other managers and proprietors | AA59: 2014- 2024
Z60: periods | AA60: 2014- 2015 | AB60: 2015- 2016 | AC60: 2016- 2017 | AD60: 2017- 2018 | AE60: 2018- 2019 | AF60: 2019- 2020 | AG60: 2020- 2021 | AH60: 2021- 2022 | AI60: 2022- 2023 | AJ60: 2023- 2024
Z61: labels
Z62: Expansion demand | AA62: 2.536768 | AB62: 1.482349 | AC62: 1.186861 | AD62: 1.034391 | AE62: 1.020296 | AF62: 1.176771 | AG62: 1.554793 | AH62: 1.740022 | AI62: 0.88449 | AJ62: 0.889116
Z63: Replacement demand | AA63: 4.819772745 | AB63: 4.943417441 | AC63: 5.014663889 | AD63: 5.072227193 | AE63: 5.123076417 | AF63: 5.173406593 | AG63: 5.230938787 | AH63: 5.308103787 | AI63: 5.394328438 | AJ63: 5.437764981
Z64: Net requirement | AA64: 7.356540745 | AB64: 6.425766441 | AC64: 6.201524889 | AD64: 6.106618193 | AE64: 6.143372417 | AF64: 6.350177593 | AG64: 6.785731787 | AH64: 7.048125787 | AI64: 6.278818438 | AJ64: 6.326880981
C79: ="Components of Replacement Demand, "&Z84&", "&AA84 -> Components of Replacement Demand, Science, research, engineering and technology professionals, 2014- 2024
Z84: Science, research, engineering and technology professionals | AA84: 2014- 2024
Z85: periods | AA85: 2014- 2015 | AB85: 2015- 2016 | AC85: 2016- 2017 | AD85: 2017- 2018 | AE85: 2018- 2019 | AF85: 2019- 2020 | AG85: 2020- 2021 | AH85: 2021- 2022 | AI85: 2022- 2023 | AJ85: 2023- 2024
Z86: labels
Z87: Expansion demand | AA87: 4.818599 | AB87: 3.249299 | AC87: 2.605806 | AD87: 1.947208 | AE87: 1.762208 | AF87: 1.795573 | AG87: 1.914137 | AH87: 1.994149 | AI87: 0.72086 | AJ87: 0.700994
Z88: Replacement demand | AA88: 4.897142581 | AB88: 5.037087331 | AC88: 5.132841188 | AD88: 5.210368482 | AE88: 5.269496249 | AF88: 5.323533373 | AG88: 5.378644954 | AH88: 5.437090661 | AI88: 5.497854143 | AJ88: 5.519082297
Z89: Net requirement | AA89: 9.715741581 | AB89: 8.286386331 | AC89: 7.738647188 | AD89: 7.157576482 | AE89: 7.031704249 | AF89: 7.119106373 | AG89: 7.292781954 | AH89: 7.431239661 | AI89: 6.218714143 | AJ89: 6.220076297
C104: ="Components of Replacement Demand, "&Z109&", "&AA109 -> Components of Replacement Demand, Health professionals, 2014- 2024
Z109: Health professionals | AA109: 2014- 2024
Z110: periods | AA110: 2014- 2015 | AB110: 2015- 2016 | AC110: 2016- 2017 | AD110: 2017- 2018 | AE110: 2018- 2019 | AF110: 2019- 2020 | AG110: 2020- 2021 | AH110: 2021- 2022 | AI110: 2022- 2023 | AJ110: 2023- 2024
Z111: labels
Z112: Expansion demand | AA112: 2.115828 | AB112: 1.868093 | AC112: 2.032487 | AD112: 2.639495 | AE112: 2.023257 | AF112: 2.076895 | AG112: 2.364716 | AH112: 2.485446 | AI112: 0.792944 | AJ112: 0.792996
Z113: Replacement demand | AA113: 4.144794873 | AB113: 4.225718491 | AC113: 4.298399597 | AD113: 4.377277657 | AE113: 4.479695278 | AF113: 4.559063039 | AG113: 4.640575452 | AH113: 4.73238346 | AI113: 4.828770873 | AJ113: 4.859271461
Z114: Net requirement | AA114: 6.260622873 | AB114: 6.093811491 | AC114: 6.330886597 | AD114: 7.016772657 | AE114: 6.502952278 | AF114: 6.635958039 | AG114: 7.005291452 | AH114: 7.21782946 | AI114: 5.621714873 | AJ114: 5.652267461
C129: ="Components of Replacement Demand, "&Z134&", "&AA134 -> Components of Replacement Demand, Teaching and educational professionals, 2014- 2024
Z134: Teaching and educational professionals | AA134: 2014- 2024
Z135: periods | AA135: 2014- 2015 | AB135: 2015- 2016 | AC135: 2016- 2017 | AD135: 2017- 2018 | AE135: 2018- 2019 | AF135: 2019- 2020 | AG135: 2020- 2021 | AH135: 2021- 2022 | AI135: 2022- 2023 | AJ135: 2023- 2024
Z136: labels
Z137: Expansion demand | AA137: 3.329341 | AB137: 1.23693 | AC137: 1.222813 | AD137: 0.621199 | AE137: 0.831358 | AF137: 1.161432 | AG137: 1.608919 | AH137: 1.820893 | AI137: 0.495469 | AJ137: 0.506538
Z138: Replacement demand | AA138: 5.819127895 | AB138: 5.959095923 | AC138: 6.015110867 | AD138: 6.068844678 | AE138: 6.097477188 | AF138: 6.135329638 | AG138: 6.187059784 | AH138: 6.256163676 | AI138: 6.334146217 | AJ138: 6.355327912
Z139: Net requirement | AA139: 9.148468895 | AB139: 7.196025923 | AC139: 7.237923867 | AD139: 6.690043678 | AE139: 6.928835188 | AF139: 7.296761638 | AG139: 7.795978784 | AH139: 8.077056676 | AI139: 6.829615217 | AJ139: 6.861865912
C154: ="Components of Replacement Demand, "&Z159&", "&AA159 -> Components of Replacement Demand, Business, media and public service professionals, 2014- 2024
Z159: Business, media and public service professionals | AA159: 2014- 2024
Z160: periods | AA160: 2014- 2015 | AB160: 2015- 2016 | AC160: 2016- 2017 | AD160: 2017- 2018 | AE160: 2018- 2019 | AF160: 2019- 2020 | AG160: 2020- 2021 | AH160: 2021- 2022 | AI160: 2022- 2023 | AJ160: 2023- 2024
Z161: labels
Z162: Expansion demand | AA162: 4.428566 | AB162: 3.052085 | AC162: 2.844937 | AD162: 2.514708 | AE162: 2.338214 | AF162: 2.495094 | AG162: 2.495845 | AH162: 2.626828 | AI162: 0.71556 | AJ162: 0.695892
Z163: Replacement demand | AA163: 5.737074587 | AB163: 5.913834798 | AC163: 6.035803915 | AD163: 6.149547013 | AE163: 6.25019024 | AF163: 6.343802053 | AG163: 6.443679564 | AH163: 6.543559905 | AI163: 6.648659635 | AJ163: 6.67725632
Z164: Net requirement | AA164: 10.16564059 | AB164: 8.965919798 | AC164: 8.880740915 | AD164: 8.664255013 | AE164: 8.58840424 | AF164: 8.838896053 | AG164: 8.939524564 | AH164: 9.170387905 | AI164: 7.364219635 | AJ164: 7.37314832
C179: ="Components of Replacement Demand, "&Z184&", "&AA184 -> Components of Replacement Demand, Science, engineering and technology associate professionals, 2014- 2024
Z184: Science, engineering and technology associate professionals | AA184: 2014- 2024
Z185: periods | AA185: 2014- 2015 | AB185: 2015- 2016 | AC185: 2016- 2017 | AD185: 2017- 2018 | AE185: 2018- 2019 | AF185: 2019- 2020 | AG185: 2020- 2021 | AH185: 2021- 2022 | AI185: 2022- 2023 | AJ185: 2023- 2024
Z186: labels
Z187: Expansion demand | AA187: 1.076809 | AB187: 0.563562 | AC187: 0.386703 | AD187: 0.186556 | AE187: 0.134828 | AF187: 0.151882 | AG187: 0.171683 | AH187: 0.211453 | AI187: 0.232365 | AJ187: 0.222698
Z188: Replacement demand | AA188: 1.555749143 | AB188: 1.586942115 | AC188: 1.603112179 | AD188: 1.614127654 | AE188: 1.61932807 | AF188: 1.623106698 | AG188: 1.627402689 | AH188: 1.632213979 | AI188: 1.638166889 | AJ188: 1.645165063
Z189: Net requirement | AA189: 2.632558143 | AB189: 2.150504115 | AC189: 1.989815179 | AD189: 1.800683654 | AE189: 1.75415607 | AF189: 1.774988698 | AG189: 1.799085689 | AH189: 1.843666979 | AI189: 1.870531889 | AJ189: 1.867863063
C204: ="Components of Replacement Demand, "&Z209&", "&AA209 -> Components of Replacement Demand, Health and social care associate professionals, 2014- 2024
Z209: Health and social care associate professionals | AA209: 2014- 2024
Z210: periods | AA210: 2014- 2015 | AB210: 2015- 2016 | AC210: 2016- 2017 | AD210: 2017- 2018 | AE210: 2018- 2019 | AF210: 2019- 2020 | AG210: 2020- 2021 | AH210: 2021- 2022 | AI210: 2022- 2023 | AJ210: 2023- 2024
Z211: labels
Z212: Expansion demand | AA212: 0.61089 | AB212: 0.671075 | AC212: 0.765088 | AD212: 0.972199 | AE212: 0.780536 | AF212: 0.796036 | AG212: 0.81643 | AH212: 0.859424 | AI212: 0.212886 | AJ212: 0.213062
Z213: Replacement demand | AA213: 1.24293653 | AB213: 1.266771307 | AC213: 1.292678222 | AD213: 1.321876843 | AE213: 1.359446181 | AF213: 1.390045981 | AG213: 1.421319997 | AH213: 1.453552815 | AI213: 1.487387233 | AJ213: 1.496067265
Z214: Net requirement | AA214: 1.85382653 | AB214: 1.937846307 | AC214: 2.057766222 | AD214: 2.294075843 | AE214: 2.139982181 | AF214: 2.186081981 | AG214: 2.237749997 | AH214: 2.312976815 | AI214: 1.700273233 | AJ214: 1.709129265
C229: ="Components of Replacement Demand, "&Z234&", "&AA234 -> Components of Replacement Demand, Protective service occupations, 2014- 2024
Z234: Protective service occupations | AA234: 2014- 2024
Z235: periods | AA235: 2014- 2015 | AB235: 2015- 2016 | AC235: 2016- 2017 | AD235: 2017- 2018 | AE235: 2018- 2019 | AF235: 2019- 2020 | AG235: 2020- 2021 | AH235: 2021- 2022 | AI235: 2022- 2023 | AJ235: 2023- 2024
Z236: labels
Z237: Expansion demand | AA237: 0.179542 | AB237: -0.411866 | AC237: -0.024591 | AD237: 0.065188 | AE237: 0.078744 | AF237: 0.064228 | AG237: 0.104926 | AH237: 0.118627 | AI237: 0.218387 | AJ237: 0.211099
Z238: Replacement demand | AA238: 0.7475342729 | AB238: 0.7549989164 | AC238: 0.7463810449 | AD238: 0.7479731876 | AE238: 0.751928907 | AF238: 0.7563853824 | AG238: 0.7605486909 | AH238: 0.7660800938 | AI238: 0.7719617986 | AJ238: 0.7778858826
Z239: Net requirement | AA239: 0.9270762729 | AB239: 0.3431329164 | AC239: 0.7217900449 | AD239: 0.8131611876 | AE239: 0.830672907 | AF239: 0.8206133824 | AG239: 0.8654746909 | AH239: 0.8847070938 | AI239: 0.9903487986 | AJ239: 0.9889848826
C254: ="Components of Replacement Demand, "&Z259&", "&AA259 -> Components of Replacement Demand, Culture, media and sports occupations, 2014- 2024
Z259: Culture, media and sports occupations | AA259: 2014- 2024
Z260: periods | AA260: 2014- 2015 | AB260: 2015- 2016 | AC260: 2016- 2017 | AD260: 2017- 2018 | AE260: 2018- 2019 | AF260: 2019- 2020 | AG260: 2020- 2021 | AH260: 2021- 2022 | AI260: 2022- 2023 | AJ260: 2023- 2024
Z261: labels
Z262: Expansion demand | AA262: 1.332776 | AB262: 1.183096 | AC262: 1.114983 | AD262: 0.96126 | AE262: 0.741373 | AF262: 0.826893 | AG262: 0.752099 | AH262: 0.787125 | AI262: 0.285048 | AJ262: 0.287253
Z263: Replacement demand | AA263: 2.672165384 | AB263: 2.720242149 | AC263: 2.766703288 | AD263: 2.810428015 | AE263: 2.848400713 | AF263: 2.878195034 | AG263: 2.911369682 | AH263: 2.939871481 | AI263: 2.969383633 | AJ263: 2.980705181
Z264: Net requirement | AA264: 4.004941384 | AB264: 3.903338149 | AC264: 3.881686288 | AD264: 3.771688015 | AE264: 3.589773713 | AF264: 3.705088034 | AG264: 3.663468682 | AH264: 3.726996481 | AI264: 3.254431633 | AJ264: 3.267958181
C279: ="Components of Replacement Demand, "&Z284&", "&AA284 -> Components of Replacement Demand, Business and public service associate professionals, 2014- 2024
Z284: Business and public service associate professionals | AA284: 2014- 2024
Z285: periods | AA285: 2014- 2015 | AB285: 2015- 2016 | AC285: 2016- 2017 | AD285: 2017- 2018 | AE285: 2018- 2019 | AF285: 2019- 2020 | AG285: 2020- 2021 | AH285: 2021- 2022 | AI285: 2022- 2023 | AJ285: 2023- 2024
Z286: labels
Z287: Expansion demand | AA287: 5.828426 | AB287: 4.236522 | AC287: 3.77078 | AD287: 3.342629 | AE287: 3.25953 | AF287: 3.469103 | AG287: 3.273751 | AH287: 3.447721 | AI287: 1.071589 | AJ287: 1.064001
Z288: Replacement demand | AA288: 7.638099814 | AB288: 7.847710522 | AC288: 8.001984698 | AD288: 8.139966846 | AE288: 8.263164866 | AF288: 8.383714948 | AG288: 8.511997695 | AH288: 8.632739981 | AI288: 8.759679797 | AJ288: 8.79874027
Z289: Net requirement | AA289: 13.46652581 | AB289: 12.08423252 | AC289: 11.7727647 | AD289: 11.48259585 | AE289: 11.52269487 | AF289: 11.85281795 | AG289: 11.78574869 | AH289: 12.08046098 | AI289: 9.831268797 | AJ289: 9.86274127
C304: ="Components of Replacement Demand, "&Z309&", "&AA309 -> Components of Replacement Demand, Administrative occupations, 2014- 2024
Z309: Administrative occupations | AA309: 2014- 2024
Z310: periods | AA310: 2014- 2015 | AB310: 2015- 2016 | AC310: 2016- 2017 | AD310: 2017- 2018 | AE310: 2018- 2019 | AF310: 2019- 2020 | AG310: 2020- 2021 | AH310: 2021- 2022 | AI310: 2022- 2023 | AJ310: 2023- 2024
Z311: labels
Z312: Expansion demand | AA312: 0.279168 | AB312: -1.25096 | AC312: -1.270066 | AD312: -1.59763 | AE312: -1.507797 | AF312: -1.336734 | AG312: -1.813817 | AH312: -1.772949 | AI312: 1.247009 | AJ312: 1.26318
Z313: Replacement demand | AA313: 10.05720488 | AB313: 10.06803058 | AC313: 10.00851279 | AD313: 9.947653577 | AE313: 9.873768472 | AF313: 9.804800097 | AG313: 9.74334738 | AH313: 9.662742259 | AI313: 9.583623156 | AJ313: 9.642199242
Z314: Net requirement | AA314: 10.33637288 | AB314: 8.817070575 | AC314: 8.738446787 | AD314: 8.350023577 | AE314: 8.365971472 | AF314: 8.468066097 | AG314: 7.92953038 | AH314: 7.889793259 | AI314: 10.83063216 | AJ314: 10.90537924
C329: ="Components of Replacement Demand, "&Z334&", "&AA334 -> Components of Replacement Demand, Secretarial and related occupations, 2014- 2024
Z334: Secretarial and related occupations | AA334: 2014- 2024
Z335: periods | AA335: 2014- 2015 | AB335: 2015- 2016 | AC335: 2016- 2017 | AD335: 2017- 2018 | AE335: 2018- 2019 | AF335: 2019- 2020 | AG335: 2020- 2021 | AH335: 2021- 2022 | AI335: 2022- 2023 | AJ335: 2023- 2024
Z336: labels
Z337: Expansion demand | AA337: -2.838718 | AB337: -3.38542 | AC337: -3.430166 | AD337: -3.517352 | AE337: -3.456436 | AF337: -3.386433 | AG337: -3.756163 | AH337: -3.796267 | AI337: 0.342665 | AJ337: 0.352808
Z338: Replacement demand | AA338: 4.209004257 | AB338: 4.052838424 | AC338: 3.867290556 | AD338: 3.679408638 | AE338: 3.486773754 | AF338: 3.297508829 | AG338: 3.111966958 | AH338: 2.906495712 | AI338: 2.698763568 | AJ338: 2.717543719
Z339: Net requirement | AA339: 1.370286257 | AB339: 0.6674184241 | AC339: 0.4371245561 | AD339: 0.1620566376 | AE339: 0.03033775413 | AF339: -0.08892417068 | AG339: -0.6441960423 | AH339: -0.8897712882 | AI339: 3.041428568 | AJ339: 3.070351719
C354: ="Components of Replacement Demand, "&Z359&", "&AA359 -> Components of Replacement Demand, Skilled agricultural and related trades, 2014- 2024
Z359: Skilled agricultural and related trades | AA359: 2014- 2024
Z360: periods | AA360: 2014- 2015 | AB360: 2015- 2016 | AC360: 2016- 2017 | AD360: 2017- 2018 | AE360: 2018- 2019 | AF360: 2019- 2020 | AG360: 2020- 2021 | AH360: 2021- 2022 | AI360: 2022- 2023 | AJ360: 2023- 2024
Z361: labels
Z362: Expansion demand | AA362: 0.620769 | AB362: 0.311622 | AC362: 0.222987 | AD362: -0.107909 | AE362: -0.093078 | AF362: -0.049564 | AG362: 0.102981 | AH362: 0.175456 | AI362: 0.20956 | AJ362: 0.201609
Z363: Replacement demand | AA363: 2.309517986 | AB363: 2.344384893 | AC363: 2.361934362 | AD363: 2.374610286 | AE363: 2.369217886 | AF363: 2.364807189 | AG363: 2.362917354 | AH363: 2.369335057 | AI363: 2.379712208 | AJ363: 2.391589989
Z364: Net requirement | AA364: 2.930286986 | AB364: 2.656006893 | AC364: 2.584921362 | AD364: 2.266701286 | AE364: 2.276139886 | AF364: 2.315243189 | AG364: 2.465898354 | AH364: 2.544791057 | AI364: 2.589272208 | AJ364: 2.593198989
C379: ="Components of Replacement Demand, "&Z384&", "&AA384 -> Components of Replacement Demand, Skilled metal, electrical and electronic trades, 2014- 2024
Z384: Skilled metal, electrical and electronic trades | AA384: 2014- 2024
Z385: periods | AA385: 2014- 2015 | AB385: 2015- 2016 | AC385: 2016- 2017 | AD385: 2017- 2018 | AE385: 2018- 2019 | AF385: 2019- 2020 | AG385: 2020- 2021 | AH385: 2021- 2022 | AI385: 2022- 2023 | AJ385: 2023- 2024
Z386: labels
Z387: Expansion demand | AA387: 0.447575 | AB387: -0.589615 | AC387: -1.250326 | AD387: -1.619347 | AE387: -1.664542 | AF387: -1.636733 | AG387: -1.794472 | AH387: -1.702189 | AI387: 0.547978 | AJ387: 0.534907
Z388: Replacement demand | AA388: 3.47220709 | AB388: 3.48588852 | AC388: 3.467255261 | AD388: 3.427971077 | AE388: 3.377169111 | AF388: 3.324970379 | AG388: 3.273635234 | AH388: 3.217363076 | AI388: 3.163955395 | AJ388: 3.18108031
Z389: Net requirement | AA389: 3.91978209 | AB389: 2.89627352 | AC389: 2.216929261 | AD389: 1.808624077 | AE389: 1.712627111 | AF389: 1.688237379 | AG389: 1.479163234 | AH389: 1.515174076 | AI389: 3.711933395 | AJ389: 3.71598731
C404: ="Components of Replacement Demand, "&Z409&", "&AA409 -> Components of Replacement Demand, Skilled construction and building trades, 2014- 2024
Z409: Skilled construction and building trades | AA409: 2014- 2024
Z410: periods | AA410: 2014- 2015 | AB410: 2015- 2016 | AC410: 2016- 2017 | AD410: 2017- 2018 | AE410: 2018- 2019 | AF410: 2019- 2020 | AG410: 2020- 2021 | AH410: 2021- 2022 | AI410: 2022- 2023 | AJ410: 2023- 2024
Z411: labels
Z412: Expansion demand | AA412: 1.886389 | AB412: 2.078792 | AC412: 0.99714 | AD412: 0.774305 | AE412: 0.963306 | AF412: 0.959693 | AG412: -0.157869 | AH412: -0.13253 | AI412: 0.276627 | AJ412: 0.226571
Z413: Replacement demand | AA413: 3.283387193 | AB413: 3.345420359 | AC413: 3.413272417 | AD413: 3.446030447 | AE413: 3.471583056 | AF413: 3.50334916 | AG413: 3.535014678 | AH413: 3.5305277 | AI413: 3.52690647 | AJ413: 3.535960792
Z414: Net requirement | AA414: 5.169776193 | AB414: 5.424212359 | AC414: 4.410412417 | AD414: 4.220335447 | AE414: 4.434889056 | AF414: 4.46304216 | AG414: 3.377145678 | AH414: 3.3979977 | AI414: 3.80353347 | AJ414: 3.762531792
C429: ="Components of Replacement Demand, "&Z434&", "&AA434 -> Components of Replacement Demand, Textiles, printing and other skilled trades, 2014- 2024
Z434: Textiles, printing and other skilled trades | AA434: 2014- 2024
Z435: periods | AA435: 2014- 2015 | AB435: 2015- 2016 | AC435: 2016- 2017 | AD435: 2017- 2018 | AE435: 2018- 2019 | AF435: 2019- 2020 | AG435: 2020- 2021 | AH435: 2021- 2022 | AI435: 2022- 2023 | AJ435: 2023- 2024
Z436: labels
Z437: Expansion demand | AA437: -0.057355 | AB437: -0.451271 | AC437: -0.78536 | AD437: -0.866013 | AE437: -0.898183 | AF437: -0.764151 | AG437: -0.7357 | AH437: -0.663121 | AI437: 0.641275 | AJ437: 0.738804
Z438: Replacement demand | AA438: 2.865887865 | AB438: 2.874571431 | AC438: 2.865943414 | AD438: 2.843526042 | AE438: 2.816193997 | AF438: 2.78684286 | AG438: 2.762578925 | AH438: 2.742960139 | AI438: 2.726420001 | AJ438: 2.754031357
Z439: Net requirement | AA439: 2.808532865 | AB439: 2.423300431 | AC439: 2.080583414 | AD439: 1.977513042 | AE439: 1.918010997 | AF439: 2.02269186 | AG439: 2.026878925 | AH439: 2.079839139 | AI439: 3.367695001 | AJ439: 3.492835357
C454: ="Components of Replacement Demand, "&Z459&", "&AA459 -> Components of Replacement Demand, Caring personal service occupations, 2014- 2024
Z459: Caring personal service occupations | AA459: 2014- 2024
Z460: periods | AA460: 2014- 2015 | AB460: 2015- 2016 | AC460: 2016- 2017 | AD460: 2017- 2018 | AE460: 2018- 2019 | AF460: 2019- 2020 | AG460: 2020- 2021 | AH460: 2021- 2022 | AI460: 2022- 2023 | AJ460: 2023- 2024
Z461: labels
Z462: Expansion demand | AA462: 6.778921 | AB462: 4.52271 | AC462: 4.78222 | AD462: 5.605343 | AE462: 4.986593 | AF462: 5.085722 | AG462: 6.422248 | AH462: 6.774561 | AI462: 2.946748 | AJ462: 2.988798
Z463: Replacement demand | AA463: 9.219117783 | AB463: 9.488435868 | AC463: 9.667871954 | AD463: 9.857662955 | AE463: 10.08132673 | AF463: 10.28075431 | AG463: 10.48429269 | AH463: 10.74059849 | AI463: 11.01109111 | AJ463: 11.13136235
Z464: Net requirement | AA464: 15.99803878 | AB464: 14.01114587 | AC464: 14.45009195 | AD464: 15.46300596 | AE464: 15.06791973 | AF464: 15.36647631 | AG464: 16.90654069 | AH464: 17.51515949 | AI464: 13.95783911 | AJ464: 14.12016035
C479: ="Components of Replacement Demand, "&Z484&", "&AA484 -> Components of Replacement Demand, Leisure, travel and related personal service occupations, 2014- 2024
Z484: Leisure, travel and related personal service occupations | AA484: 2014- 2024
Z485: periods | AA485: 2014- 2015 | AB485: 2015- 2016 | AC485: 2016- 2017 | AD485: 2017- 2018 | AE485: 2018- 2019 | AF485: 2019- 2020 | AG485: 2020- 2021 | AH485: 2021- 2022 | AI485: 2022- 2023 | AJ485: 2023- 2024
Z486: labels
Z487: Expansion demand | AA487: 0.367857 | AB487: 0.240813 | AC487: 0.015756 | AD487: -0.082741 | AE487: -0.114274 | AF487: -0.080425 | AG487: -0.144373 | AH487: -0.177648 | AI487: 0.252788 | AJ487: 0.253389
Z488: Replacement demand | AA488: 2.604672519 | AB488: 2.62197591 | AC488: 2.632990343 | AD488: 2.634106146 | AE488: 2.630614529 | AF488: 2.625648634 | AG488: 2.622239578 | AH488: 2.616109467 | AI488: 2.608589999 | AJ488: 2.61984796
Z489: Net requirement | AA489: 2.972529519 | AB489: 2.86278891 | AC489: 2.648746343 | AD489: 2.551365146 | AE489: 2.516340529 | AF489: 2.545223634 | AG489: 2.477866578 | AH489: 2.438461467 | AI489: 2.861377999 | AJ489: 2.87323696
C504: ="Components of Replacement Demand, "&Z509&", "&AA509 -> Components of Replacement Demand, Sales occupations, 2014- 2024
Z509: Sales occupations | AA509: 2014- 2024
Z510: periods | AA510: 2014- 2015 | AB510: 2015- 2016 | AC510: 2016- 2017 | AD510: 2017- 2018 | AE510: 2018- 2019 | AF510: 2019- 2020 | AG510: 2020- 2021 | AH510: 2021- 2022 | AI510: 2022- 2023 | AJ510: 2023- 2024
Z511: labels
Z512: Expansion demand | AA512: -1.416998 | AB512: 0.01075 | AC512: -0.832457 | AD512: -1.149841 | AE512: -1.071951 | AF512: -0.894367 | AG512: -2.094258 | AH512: -2.256455 | AI512: 1.045294 | AJ512: 1.053774
Z513: Replacement demand | AA513: 6.950614996 | AB513: 6.874428252 | AC513: 6.862367078 | AD513: 6.81765636 | AE513: 6.762674744 | AF513: 6.713134529 | AG513: 6.671473457 | AH513: 6.579205825 | AI513: 6.480648075 | AJ513: 6.519765809
Z514: Net requirement | AA514: 5.533616996 | AB514: 6.885178252 | AC514: 6.029910078 | AD514: 5.66781536 | AE514: 5.690723744 | AF514: 5.818767529 | AG514: 4.577215457 | AH514: 4.322750825 | AI514: 7.525942075 | AJ514: 7.573539809
C529: ="Components of Replacement Demand, "&Z534&", "&AA534 -> Components of Replacement Demand, Customer service occupations, 2014- 2024
Z534: Customer service occupations | AA534: 2014- 2024
Z535: periods | AA535: 2014- 2015 | AB535: 2015- 2016 | AC535: 2016- 2017 | AD535: 2017- 2018 | AE535: 2018- 2019 | AF535: 2019- 2020 | AG535: 2020- 2021 | AH535: 2021- 2022 | AI535: 2022- 2023 | AJ535: 2023- 2024
Z536: labels
Z537: Expansion demand | AA537: 1.489756 | AB537: 1.143212 | AC537: 0.908164 | AD537: 0.839795 | AE537: 0.839187 | AF537: 0.874118 | AG537: 0.833842 | AH537: 0.845413 | AI537: 0.203348 | AJ537: 0.206175
Z538: Replacement demand | AA538: 1.55508227 | AB538: 1.601318064 | AC538: 1.636712741 | AD538: 1.664944758 | AE538: 1.690506403 | AF538: 1.716492759 | AG538: 1.743605318 | AH538: 1.769716054 | AI538: 1.796100638 | AJ538: 1.804654175
Z539: Net requirement | AA539: 3.04483827 | AB539: 2.744530064 | AC539: 2.544876741 | AD539: 2.504739758 | AE539: 2.529693403 | AF539: 2.590610759 | AG539: 2.577447318 | AH539: 2.615129054 | AI539: 1.999448638 | AJ539: 2.010829175
C554: ="Components of Replacement Demand, "&Z559&", "&AA559 -> Components of Replacement Demand, Process, plant and machine operatives, 2014- 2024
Z559: Process, plant and machine operatives | AA559: 2014- 2024
Z560: periods | AA560: 2014- 2015 | AB560: 2015- 2016 | AC560: 2016- 2017 | AD560: 2017- 2018 | AE560: 2018- 2019 | AF560: 2019- 2020 | AG560: 2020- 2021 | AH560: 2021- 2022 | AI560: 2022- 2023 | AJ560: 2023- 2024
Z561: labels
Z562: Expansion demand | AA562: -0.488821 | AB562: -1.055414 | AC562: -1.680066 | AD562: -1.87808 | AE562: -1.892927 | AF562: -1.817238 | AG562: -1.8253 | AH562: -1.756312 | AI562: 0.495368 | AJ562: 0.476142
Z563: Replacement demand | AA563: 2.490433181 | AB563: 2.469294134 | AC563: 2.430394256 | AD563: 2.370297223 | AE563: 2.303326875 | AF563: 2.236038054 | AG563: 2.17097183 | AH563: 2.106564155 | AI563: 2.044037332 | AJ563: 2.060762802
Z564: Net requirement | AA564: 2.001612181 | AB564: 1.413880134 | AC564: 0.7503282559 | AD564: 0.4922172234 | AE564: 0.4103998746 | AF564: 0.4188000545 | AG564: 0.3456718295 | AH564: 0.3502521552 | AI564: 2.539405332 | AJ564: 2.536904802
C579: ="Components of Replacement Demand, "&Z584&", "&AA584 -> Components of Replacement Demand, Transport and mobile machine drivers and operatives, 2014- 2024
Z584: Transport and mobile machine drivers and operatives | AA584: 2014- 2024
Z585: periods | AA585: 2014- 2015 | AB585: 2015- 2016 | AC585: 2016- 2017 | AD585: 2017- 2018 | AE585: 2018- 2019 | AF585: 2019- 2020 | AG585: 2020- 2021 | AH585: 2021- 2022 | AI585: 2022- 2023 | AJ585: 2023- 2024
Z586: labels
Z587: Expansion demand | AA587: 0.805836 | AB587: 0.801559 | AC587: 0.589706 | AD587: 0.257309 | AE587: 0.161279 | AF587: 0.3058 | AG587: 0.139757 | AH587: 0.104065 | AI587: 0.589164 | AJ587: 0.574136
Z588: Replacement demand | AA588: 4.728845567 | AB588: 4.764411216 | AC588: 4.799844541 | AD588: 4.826232569 | AE588: 4.838207617 | AF588: 4.846018185 | AG588: 4.860100191 | AH588: 4.867069516 | AI588: 4.872485916 | AJ588: 4.898146454
Z589: Net requirement | AA589: 5.534681567 | AB589: 5.565970216 | AC589: 5.389550541 | AD589: 5.083541569 | AE589: 4.999486617 | AF589: 5.151818185 | AG589: 4.999857191 | AH589: 4.971134516 | AI589: 5.461649916 | AJ589: 5.472282454
C604: ="Components of Replacement Demand, "&Z609&", "&AA609 -> Components of Replacement Demand, Elementary trades and related occupations, 2014- 2024
Z609: Elementary trades and related occupations | AA609: 2014- 2024
Z610: periods | AA610: 2014- 2015 | AB610: 2015- 2016 | AC610: 2016- 2017 | AD610: 2017- 2018 | AE610: 2018- 2019 | AF610: 2019- 2020 | AG610: 2020- 2021 | AH610: 2021- 2022 | AI610: 2022- 2023 | AJ610: 2023- 2024
Z611: labels
Z612: Expansion demand | AA612: 0.262176 | AB612: 0.300756 | AC612: -0.023726 | AD612: -0.118577 | AE612: -0.113315 | AF612: -0.048341 | AG612: -0.207792 | AH612: -0.181166 | AI612: 0.198764 | AJ612: 0.19683
Z613: Replacement demand | AA613: 1.778441725 | AB613: 1.789654846 | AC613: 1.803084987 | AD613: 1.805830653 | AE613: 1.805042062 | AF613: 1.804594274 | AG613: 1.806395365 | AH613: 1.802589667 | AI613: 1.799733624 | AJ613: 1.806980605
Z614: Net requirement | AA614: 2.040617725 | AB614: 2.090410846 | AC614: 1.779358987 | AD614: 1.687253653 | AE614: 1.691727062 | AF614: 1.756253274 | AG614: 1.598603365 | AH614: 1.621423667 | AI614: 1.998497624 | AJ614: 2.003810605
C629: ="Components of Replacement Demand, "&Z634&", "&AA634 -> Components of Replacement Demand, Elementary administration and service occupations, 2014- 2024
Z634: Elementary administration and service occupations | AA634: 2014- 2024
Z635: periods | AA635: 2014- 2015 | AB635: 2015- 2016 | AC635: 2016- 2017 | AD635: 2017- 2018 | AE635: 2018- 2019 | AF635: 2019- 2020 | AG635: 2020- 2021 | AH635: 2021- 2022 | AI635: 2022- 2023 | AJ635: 2023- 2024
Z636: labels
Z637: Expansion demand | AA637: 3.266766 | AB637: 2.745749 | AC637: 1.566427 | AD637: 1.205961 | AE637: 1.405911 | AF637: 2.026954 | AG637: 1.435794 | AH637: 1.69761 | AI637: 2.709222 | AJ637: 2.770816
Z638: Replacement demand | AA638: 11.97232187 | AB638: 12.06809994 | AC638: 12.15601062 | AD638: 12.19633519 | AE638: 12.2229134 | AF638: 12.26032305 | AG638: 12.32351434 | AH638: 12.35721034 | AI638: 12.40179488 | AJ638: 12.52105419
Z639: Net requirement | AA639: 15.23908787 | AB639: 14.81384894 | AC639: 13.72243762 | AD639: 13.40229619 | AE639: 13.6288244 | AF639: 14.28727705 | AG639: 13.75930834 | AH639: 14.05482034 | AI639: 15.11101688 | AJ639: 15.29187019

Sheet TableQ
A1: =Info!A1 -> East of England | F1: 000s | I1: The results in this sheet provide illustrative
A2: Total | I2: projections of the implications of changing
A3: QCF group | B3: Base year level | C3: Change | D3: Projected level | E3: Replacement | F3: Total requirement | I3: occupational employment structure for the
B4: ='Table 7.x.1'!D4 -> 2014 | C4: =B4&"-"&D4 -> 2014-2024 | D4: ='Table 7.x.1'!F4 -> 2024 | E4: Demand | F4: =C4 -> 2014-2024 | I4: numbers employed by qualification.
A5: QCF 7-8 | B5: =('Table 7.x.1'!D5+'Table 7.x.1'!D6)*0.001 -> 250.271797 | C5: =D5-B5 -> 82.89421304 | D5: =('Table 7.x.1'!F5+'Table 7.x.1'!F6)*0.001 -> 333.16601 | E5: =F5-C5 -> 99.91513037 | F5: =C5+('Table 6.x.3'!I26/100*TableQ!B5) -> 182.8093434
A6: QCF 4-6 | B6: =SUM('Table 7.x.1'!D7:D9)*0.001 -> 831.7913316 | C6: 349.8317641 | D6: =SUM('Table 7.x.1'!F7:F9)*0.001 -> 1181.623096 | E6: =F6-C6 -> 332.0731314 | F6: =C6+('Table 6.x.3'!I26/100*TableQ!B6) -> 681.9048956
A7: QCF 3 | B7: ='Table 7.x.1'!D10*0.001 -> 623.1117812 | C7: 25.54564904 | D7: ='Table 7.x.1'!F10*0.001 -> 648.6574303 | E7: 248.7627276 | F7: =C7+('Table 6.x.3'!I26/100*TableQ!B7) -> 274.3083766
A8: QCF 2 | B8: ='Table 7.x.1'!D11*0.001 -> 659.5301784 | C8: -9.324402587 | D8: ='Table 7.x.1'!F11*0.001 -> 650.2057758 | E8: 263.3019163 | F8: =C8+('Table 6.x.3'!I26/100*TableQ!B8) -> 253.9775137
A9: QCF 1 | B9: ='Table 7.x.1'!D12*0.001 -> 428.3268778 | C9: -128.5410967 | D9: ='Table 7.x.1'!F12*0.001 -> 299.7857811 | E9: 170.9994348 | F9: =C9+('Table 6.x.3'!I26/100*TableQ!B9) -> 42.45833814
A10: No Qual | B10: ='Table 7.x.1'!D13*0.001 -> 160.8650339 | C10: -109.539127 | D10: ='Table 7.x.1'!F13*0.001 -> 51.32590698 | E10: 64.22158241 | F10: =C10+('Table 6.x.3'!I26/100*TableQ!B10) -> -45.31754454
A12: Total | B12: =SUM(B5:B11) -> 2953.897 | C12: =SUM(C5:C11) -> 210.867 | D12: =SUM(D5:D11) -> 3164.764 | E12: =F12-C12 -> 1179.273923 | F12: =SUM(F5:F11) -> 1390.140923
B14: % share | C14: % change | D14: % share | E14: % share | F14: % of base year level
A15: =A5 -> QCF 7-8 | B15: =(B5/B12)*100 -> 8.472597284 | C15: =IF(B5>0,C5/B5*100,0) -> 33.12167573 | D15: =IF(D12>0,D5/D12*100,0) -> 10.52735718 | E15: =IF(E12>0,E5/E12*100,0) -> 8.472597284 | F15: =IF(B5>1,F5/B5*100,0) -> 73.04432445
A16: QCF 4-6 | B16: =(B6/B12)*100 -> 28.15911765 | C16: =IF(B6>0,C6/B6*100,0) -> 42.05763523 | D16: =IF(D12>0,D6/D12*100,0) -> 37.3368471 | E16: =IF(E12>0,E6/E12*100,0) -> 28.15911765 | F16: =IF(B6>1,F6/B6*100,0) -> 81.98028395
A17: QCF 3 | B17: =(B7/B12)*100 -> 21.09456698 | C17: 4.099689623 | D17: =IF(D12>0,D7/D12*100,0) -> 20.49623385 | E17: =IF(E12>0,E7/E12*100,0) -> 21.09456698 | F17: 44.02233835
A18: QCF 2 | B18: =(B8/B12)*100 -> 22.32746025 | C18: -1.413794682 | D18: =IF(D12>0,D8/D12*100,0) -> 20.54515837 | E18: =IF(E12>0,E8/E12*100,0) -> 22.32746025 | F18: 38.50885404
A19: QCF 1 | B19: =(B9/B12)*100 -> 14.50039991 | C19: -30.01004684 | D19: =IF(D12>0,D9/D12*100,0) -> 9.472610948 | E19: =IF(E12>0,E9/E12*100,0) -> 14.50039991 | F19: 9.912601879
A20: No Qual | B20: =(B10/B12)*100 -> 5.445857927 | C20: -68.09380776 | D20: =IF(D12>0,D10/D12*100,0) -> 1.621792556 | E20: =IF(E12>0,E10/E12*100,0) -> 5.445857927 | F20: -28.17115904
A22: =A12 -> Total | B22: =(B12/B12)*100 -> 100 | C22: 7.138603682 | D22: =IF(D12>0,D12/D12*100,0) -> 100 | E22: =IF(E12>0,E12/E12*100,0) -> 100 | F22: 47.0612524
A29: =A1 -> East of England
A30: ='Table 7.x.1'!B30 -> Primary sector and utilities
A31: =$A$3 -> QCF group | B31: Base year level | C31: Change | D31: Projected level | E31: Replacement | F31: Total requirement
B32: =B$4 -> 2014 | C32: =C$4 -> 2014-2024 | D32: =D$4 -> 2024 | E32: Demand | F32: =F$4 -> 2014-2024
A33: =A5 -> QCF 7-8 | B33: =('Table 7.x.1'!D33+'Table 7.x.1'!D34)*0.001 -> 2.880824382 | C33: =D33-B33 -> 0.8624783789 | D33: =('Table 7.x.1'!F33+'Table 7.x.1'!F34)*0.001 -> 3.743302761 | E33: =F33-C33 -> 1.154747158 | F33: =C33+('Table 6.x.3'!I54/100*TableQ!B33) -> 2.017225537
A34: =A6 -> QCF 4-6 | B34: =SUM('Table 7.x.1'!D35:D37)*0.001 -> 17.14328013 | C34: 5.539070064 | D34: =SUM('Table 7.x.1'!F35:F37)*0.001 -> 22.68235019 | E34: =F34-C34 -> 6.871697606 | F34: =C34+('Table 6.x.3'!I54/100*TableQ!B34) -> 12.41076767
A35: QCF 3 | B35: ='Table 7.x.1'!D38*0.001 -> 14.0860767 | C35: -3.021098998 | D35: ='Table 7.x.1'!F38*0.001 -> 11.0649777 | E35: 5.646250822 | F35: =C35+('Table 6.x.3'!I54/100*TableQ!B35) -> 2.625151824
A36: QCF 2 | B36: ='Table 7.x.1'!D39*0.001 -> 17.26457638 | C36: -2.192293489 | D36: ='Table 7.x.1'!F39*0.001 -> 15.07228289 | E36: 6.920317891 | F36: =C36+('Table 6.x.3'!I54/100*TableQ!B36) -> 4.728024403
A37: QCF 1 | B37: ='Table 7.x.1'!D40*0.001 -> 11.95086126 | C37: -4.913469545 | D37: ='Table 7.x.1'!F40*0.001 -> 7.037391714 | E37: 4.790372909 | F37: =C37+('Table 6.x.3'!I54/100*TableQ!B37) -> -0.1230966363
A38: No Qual | B38: ='Table 7.x.1'!D41*0.001 -> 6.865381148 | C38: -4.614686411 | D38: ='Table 7.x.1'!F41*0.001 -> 2.250694737 | E38: 2.751913452 | F38: =C38+('Table 6.x.3'!I54/100*TableQ!B38) -> -1.862772959
A40: Total | B40: =SUM(B33:B39) -> 70.191 | C40: =SUM(C33:C39) -> -8.34 | D40: =SUM(D33:D39) -> 61.851 | E40: =F40-C40 -> 28.13529984 | F40: =SUM(F33:F39) -> 19.79529984
B42: % share | C42: % change | D42: % share | E42: % share | F42: % of base year level
A43: =A33 -> QCF 7-8 | B43: =(B33/B40)*100 -> 4.104264623 | C43: =IF(B33>0,C33/B33*100,0) -> 29.9385962 | D43: =IF(D40>0,D33/D40*100,0) -> 6.052129732 | E43: =IF(E40>0,E33/E40*100,0) -> 4.104264623 | F43: =IF(B33>1,F33/B33*100,0) -> 70.02250986
A44: QCF 4-6 | B44: =(B34/B40)*100 -> 24.42375822 | C44: =IF(B34>0,C34/B34*100,0) -> 32.31044481 | D44: =IF(D40>0,D34/D40*100,0) -> 36.67256826 | E44: =IF(E40>0,E34/E40*100,0) -> 24.42375822 | F44: 72.39435847
A45: QCF 3 | B45: =(B35/B40)*100 -> 20.06820917 | C45: -21.44741267 | D45: =IF(D40>0,D35/D40*100,0) -> 17.88973129 | E45: =IF(E40>0,E35/E40*100,0) -> 20.06820917 | F45: 18.63650099
A46: QCF 2 | B46: =(B36/B40)*100 -> 24.59656706 | C46: -12.69821767 | D46: =IF(D40>0,D36/D40*100,0) -> 24.36869718 | E46: =IF(E40>0,E36/E40*100,0) -> 24.59656706 | F46: 27.38569599
A47: QCF 1 | B47: =(B37/B40)*100 -> 17.02620173 | C47: -41.1139368 | D47: =IF(D40>0,D37/D40*100,0) -> 11.37797564 | E47: =IF(E40>0,E37/E40*100,0) -> 17.02620173 | F47: -1.030023139
A48: No Qual | B48: =(B38/B40)*100 -> 9.7809992 | C48: -67.21675478 | D48: =IF(D40>0,D38/D40*100,0) -> 3.638897895 | E48: =IF(E40>0,E38/E40*100,0) -> 9.7809992 | F48: -27.13284112
A50: =A22 -> Total | B50: =(B40/B40)*100 -> 100 | C50: -11.8818652 | D50: =IF(D40>0,D40/D40*100,0) -> 100 | E50: =IF(E40>0,E40/E40*100,0) -> 100 | F50: =IF(B40>1,F40/B40*100,0) -> 28.20204846
A57: =A29 -> East of England
A58: ='Table 7.x.1'!B58 -> Manufacturing
A59: =$A$3 -> QCF group | B59: Base year level | C59: Change | D59: Projected level | E59: Replacement | F59: Total requirement
B60: =B$4 -> 2014 | C60: =C$4 -> 2014-2024 | D60: =D$4 -> 2024 | E60: Demand | F60: =F$4 -> 2014-2024
A61: =A33 -> QCF 7-8 | B61: =('Table 7.x.1'!D61+'Table 7.x.1'!D62)*0.001 -> 12.52458881 | C61: =D61-B61 -> 2.866553094 | D61: =('Table 7.x.1'!F61+'Table 7.x.1'!F62)*0.001 -> 15.3911419 | E61: =F61-C61 -> 4.30554484 | F61: =C61+('Table 6.x.3'!I82/100*TableQ!B61) -> 7.172097934
A62: =A34 -> QCF 4-6 | B62: =SUM('Table 7.x.1'!D63:D65)*0.001 -> 59.32169233 | C62: 16.72344509 | D62: =SUM('Table 7.x.1'!F63:F65)*0.001 -> 76.04513742 | E62: =F62-C62 -> 20.39286162 | F62: =C62+('Table 6.x.3'!I82/100*TableQ!B62) -> 37.11630671
A63: QCF 3 | B63: ='Table 7.x.1'!D66*0.001 -> 56.25677523 | C63: -12.75554997 | D63: ='Table 7.x.1'!F66*0.001 -> 43.50122526 | E63: 19.33924315 | F63: =C63+('Table 6.x.3'!I82/100*TableQ!B63) -> 6.58369318
A64: QCF 2 | B64: ='Table 7.x.1'!D67*0.001 -> 52.6925294 | C64: -6.781838043 | D64: ='Table 7.x.1'!F67*0.001 -> 45.91069136 | E64: 18.11397177 | F64: =C64+('Table 6.x.3'!I82/100*TableQ!B64) -> 11.33213373
A65: QCF 1 | B65: ='Table 7.x.1'!D68*0.001 -> 36.15632288 | C65: -12.4861771 | D65: ='Table 7.x.1'!F68*0.001 -> 23.67014578 | E65: 12.4293637 | F65: =C65+('Table 6.x.3'!I82/100*TableQ!B65) -> -0.05681340466
A66: No Qual | B66: ='Table 7.x.1'!D69*0.001 -> 14.27109135 | C66: -10.36043307 | D66: ='Table 7.x.1'!F69*0.001 -> 3.910658277 | E66: 4.905935409 | F66: =C66+('Table 6.x.3'!I82/100*TableQ!B66) -> -5.45449766
A68: Total | B68: =SUM(B61:B67) -> 231.223 | C68: =SUM(C61:C67) -> -22.794 | D68: =SUM(D61:D67) -> 208.429 | E68: =F68-C68 -> 79.48692048 | F68: =SUM(F61:F67) -> 56.69292048
B70: % share | C70: % change | D70: % share | E70: % share | F70: % of base year level
A71: =A61 -> QCF 7-8 | B71: =(B61/B68)*100 -> 5.416670835 | C71: =IF(B61>0,C61/B61*100,0) -> 22.88740284 | D71: =IF(D68>0,D61/D68*100,0) -> 7.384357215 | E71: =IF(E68>0,E61/E68*100,0) -> 5.416670835 | F71: =IF(B61>1,F61/B61*100,0) -> 57.26413893
A72: QCF 4-6 | B72: =(B62/B68)*100 -> 25.65561918 | C72: =IF(B62>0,C62/B62*100,0) -> 28.19111261 | D72: =IF(D68>0,D62/D68*100,0) -> 36.48491209 | E72: =IF(E68>0,E62/E68*100,0) -> 25.65561918 | F72: 62.5678487
A73: QCF 3 | B73: =(B63/B68)*100 -> 24.33009486 | C73: -22.67380226 | D73: =IF(D68>0,D63/D68*100,0) -> 20.87100416 | E73: =IF(E68>0,E63/E68*100,0) -> 24.33009486 | F73: 11.70293383
A74: QCF 2 | B74: =(B64/B68)*100 -> 22.78861939 | C74: -12.87058739 | D74: =IF(D68>0,D64/D68*100,0) -> 22.02701705 | E74: =IF(E68>0,E64/E68*100,0) -> 22.78861939 | F74: 21.5061487
A75: QCF 1 | B75: =(B65/B68)*100 -> 15.63699238 | C75: -34.53386878 | D75: =IF(D68>0,D65/D68*100,0) -> 11.35645509 | E75: =IF(E68>0,E65/E68*100,0) -> 15.63699238 | F75: -0.1571326953
A76: No Qual | B76: =(B66/B68)*100 -> 6.172003367 | C76: -72.59734254 | D76: =IF(D68>0,D66/D68*100,0) -> 1.876254397 | E76: =IF(E68>0,E66/E68*100,0) -> 6.172003367 | F76: -38.22060645
A78: =A50 -> Total | B78: =(B68/B68)*100 -> 100 | C78: -9.858015855 | D78: =IF(D68>0,D68/D68*100,0) -> 100 | E78: =IF(E68>0,E68/E68*100,0) -> 100 | F78: =IF(B68>1,F68/B68*100,0) -> 24.51872023
A85: =A57 -> East of England
A86: ='Table 7.x.1'!B86 -> Construction
A87: =$A$3 -> QCF group | B87: Base year level | C87: Change | D87: Projected level | E87: Replacement | F87: Total requirement
B88: =B$4 -> 2014 | C88: =C$4 -> 2014-2024 | D88: =D$4 -> 2024 | E88: Demand | F88: =F$4 -> 2014-2024
A89: =A61 -> QCF 7-8 | B89: =('Table 7.x.1'!D89+'Table 7.x.1'!D90)*0.001 -> 6.307084106 | C89: =D89-B89 -> 6.537871954 | D89: =('Table 7.x.1'!F89+'Table 7.x.1'!F90)*0.001 -> 12.84495606 | E89: =F89-C89 -> 2.369372577 | F89: =C89+('Table 6.x.3'!I110/100*TableQ!B89) -> 8.907244531
A90: =A62 -> QCF 4-6 | B90: =SUM('Table 7.x.1'!D91:D93)*0.001 -> 34.88963552 | C90: 29.6336202 | D90: =SUM('Table 7.x.1'!F91:F93)*0.001 -> 64.52325571 | E90: =F90-C90 -> 13.10693567 | F90: =C90+('Table 6.x.3'!I110/100*TableQ!B90) -> 42.74055586
A91: QCF 3 | B91: ='Table 7.x.1'!D94*0.001 -> 65.74388349 | C91: 0.5473328849 | D91: ='Table 7.x.1'!F94*0.001 -> 66.29121637 | E91: 24.6979035 | F91: =C91+('Table 6.x.3'!I110/100*TableQ!B91) -> 25.24523639
A92: QCF 2 | B92: ='Table 7.x.1'!D95*0.001 -> 57.76733162 | C92: 19.12496542 | D92: ='Table 7.x.1'!F95*0.001 -> 76.89229704 | E92: 21.70136454 | F92: =C92+('Table 6.x.3'!I110/100*TableQ!B92) -> 40.82632997
A93: QCF 1 | B93: ='Table 7.x.1'!D96*0.001 -> 32.97000887 | C93: -0.2219840236 | D93: ='Table 7.x.1'!F96*0.001 -> 32.74802485 | E93: 12.38579248 | F93: =C93+('Table 6.x.3'!I110/100*TableQ!B93) -> 12.16380845
A94: No Qual | B94: ='Table 7.x.1'!D97*0.001 -> 13.20105641 | C94: -8.785806434 | D94: ='Table 7.x.1'!F97*0.001 -> 4.415249975 | E94: 4.95922054 | F94: =C94+('Table 6.x.3'!I110/100*TableQ!B94) -> -3.826585894
A96: Total | B96: =SUM(B89:B95) -> 210.879 | C96: =SUM(C89:C95) -> 46.836 | D96: =SUM(D89:D95) -> 257.715 | E96: =F96-C96 -> 79.22058931 | F96: =SUM(F89:F95) -> 126.0565893
B98: % share | C98: % change | D98: % share | E98: % share | F98: % of base year level
A99: =A89 -> QCF 7-8 | B99: =(B89/B96)*100 -> 2.990854521 | C99: =IF(B89>0,C89/B89*100,0) -> 103.6591846 | D99: =IF(D96>0,D89/D96*100,0) -> 4.984170909 | E99: =IF(E96>0,E89/E96*100,0) -> 2.990854521 | F99: =IF(B89>1,F89/B89*100,0) -> 141.2260306
A100: QCF 4-6 | B100: =(B90/B96)*100 -> 16.54486009 | C100: =IF(B90>0,C90/B90*100,0) -> 84.93531033 | D100: =IF(D96>0,D90/D96*100,0) -> 25.03667063 | E100: =IF(E96>0,E90/E96*100,0) -> 16.54486009 | F100: 122.5021564
A101: QCF 3 | B101: =(B91/B96)*100 -> 31.17611687 | C101: 0.8325228992 | D101: =IF(D96>0,D91/D96*100,0) -> 25.7226845 | E101: =IF(E96>0,E91/E96*100,0) -> 31.17611687 | F101: 38.39936896
A102: QCF 2 | B102: =(B92/B96)*100 -> 27.3935914 | C102: 33.10688738 | D102: =IF(D96>0,D92/D96*100,0) -> 29.83617447 | E102: =IF(E96>0,E92/E96*100,0) -> 27.3935914 | F102: 70.67373344
A103: QCF 1 | B103: =(B93/B96)*100 -> 15.63456241 | C103: -0.673290761 | D103: =IF(D96>0,D93/D96*100,0) -> 12.70706977 | E103: =IF(E96>0,E93/E96*100,0) -> 15.63456241 | F103: 36.8935553
A104: No Qual | B104: =(B94/B96)*100 -> 6.260014705 | C104: -66.55381328 | D104: =IF(D96>0,D94/D96*100,0) -> 1.713229721 | E104: =IF(E96>0,E94/E96*100,0) -> 6.260014705 | F104: -28.98696722
A106: =A78 -> Total | B106: =(B96/B96)*100 -> 100 | C106: 22.20989288 | D106: =IF(D96>0,D96/D96*100,0) -> 100 | E106: =IF(E96>0,E96/E96*100,0) -> 100 | F106: =IF(B96>1,F96/B96*100,0) -> 59.77673894
A113: =A85 -> East of England
A114: ='Table 7.x.1'!B114 -> Trade, accomod. and transport
A115: =$A$3 -> QCF group | B115: Base year level | C115: Change | D115: Projected level | E115: Replacement | F115: Total requirement
B116: =B$4 -> 2014 | C116: =C$4 -> 2014-2024 | D116: =D$4 -> 2024 | E116: Demand | F116: =F$4 -> 2014-2024
A117: =A89 -> QCF 7-8 | B117: =('Table 7.x.1'!D117+'Table 7.x.1'!D118)*0.001 -> 18.61399042 | C117: =D117-B117 -> 12.35115298 | D117: =('Table 7.x.1'!F117+'Table 7.x.1'!F118)*0.001 -> 30.9651434 | E117: =F117-C117 -> 7.598034779 | F117: =C117+('Table 6.x.3'!I138/100*TableQ!B117) -> 19.94918776
A118: =A90 -> QCF 4-6 | B118: =SUM('Table 7.x.1'!D119:D121)*0.001 -> 135.8891766 | C118: 115.7389513 | D118: =SUM('Table 7.x.1'!F119:F121)*0.001 -> 251.6281279 | E118: =F118-C118 -> 55.46853021 | F118: =C118+('Table 6.x.3'!I138/100*TableQ!B118) -> 171.2074815
A119: QCF 3 | B119: ='Table 7.x.1'!D122*0.001 -> 186.8740641 | C119: 22.92793245 | D119: ='Table 7.x.1'!F122*0.001 -> 209.8019966 | E119: 76.28002415 | F119: =C119+('Table 6.x.3'!I138/100*TableQ!B119) -> 99.2079566
A120: QCF 2 | B120: ='Table 7.x.1'!D123*0.001 -> 230.7791837 | C120: 10.81313396 | D120: ='Table 7.x.1'!F123*0.001 -> 241.5923176 | E120: 94.20163138 | F120: =C120+('Table 6.x.3'!I138/100*TableQ!B120) -> 105.0147653
A121: QCF 1 | B121: ='Table 7.x.1'!D124*0.001 -> 160.1477691 | C121: -44.53435792 | D121: ='Table 7.x.1'!F124*0.001 -> 115.6134111 | E121: 65.37063207 | F121: =C121+('Table 6.x.3'!I138/100*TableQ!B121) -> 20.83627415
A122: No Qual | B122: ='Table 7.x.1'!D125*0.001 -> 64.71981611 | C122: -43.86181279 | D122: ='Table 7.x.1'!F125*0.001 -> 20.85800332 | E122: 26.41794707 | F122: =C122+('Table 6.x.3'!I138/100*TableQ!B122) -> -17.44386572
A124: Total | B124: =SUM(B117:B123) -> 797.024 | C124: =SUM(C117:C123) -> 73.435 | D124: =SUM(D117:D123) -> 870.459 | E124: =F124-C124 -> 325.3367997 | F124: =SUM(F117:F123) -> 398.7717997
B126: % share | C126: % change | D126: % share | E126: % share | F126: % of base year level
A127: =A117 -> QCF 7-8 | B127: =(B117/B124)*100 -> 2.335436627 | C127: =IF(B117>0,C117/B117*100,0) -> 66.3541385 | D127: =IF(D124>0,D117/D124*100,0) -> 3.557335084 | E127: =IF(E124>0,E117/E124*100,0) -> 2.335436627 | F127: =IF(B117>1,F117/B117*100,0) -> 107.1730849
A128: QCF 4-6 | B128: =(B118/B124)*100 -> 17.04957148 | C128: =IF(B118>0,C118/B118*100,0) -> 85.17157453 | D128: =IF(D124>0,D118/D124*100,0) -> 28.90752211 | E128: =IF(E124>0,E118/E124*100,0) -> 17.04957148 | F128: 125.990521
A129: QCF 3 | B129: =(B119/B124)*100 -> 23.44647892 | C129: 12.26918917 | D129: =IF(D124>0,D119/D124*100,0) -> 24.1024559 | E129: =IF(E124>0,E119/E124*100,0) -> 23.44647892 | F129: 53.08813561
A130: QCF 2 | B130: =(B120/B124)*100 -> 28.95511097 | C130: 4.6854893 | D130: =IF(D124>0,D120/D124*100,0) -> 27.75458897 | E130: =IF(E124>0,E120/E124*100,0) -> 28.95511097 | F130: 45.50443574
A131: QCF 1 | B131: =(B121/B124)*100 -> 20.0932179 | C131: -27.80829117 | D131: =IF(D124>0,D121/D124*100,0) -> 13.28189049 | E131: =IF(E124>0,E121/E124*100,0) -> 20.0932179 | F131: 13.01065527
A132: No Qual | B132: =(B122/B124)*100 -> 8.120184099 | C132: -67.77184397 | D132: =IF(D124>0,D122/D124*100,0) -> 2.39620744 | E132: =IF(E124>0,E122/E124*100,0) -> 8.120184099 | F132: -26.95289753
A134: =A106 -> Total | B134: =(B124/B124)*100 -> 100 | C134: 9.213649777 | D134: =IF(D124>0,D124/D124*100,0) -> 100 | E134: =IF(E124>0,E124/E124*100,0) -> 100 | F134: =IF(B124>1,F124/B124*100,0) -> 50.03259622
A141: =A113 -> East of England
A142: ='Table 7.x.1'!B142 -> Business and other services
A143: =$A$3 -> QCF group | B143: Base year level | C143: Change | D143: Projected level | E143: Replacement | F143: Total requirement
B144: =B$4 -> 2014 | C144: =C$4 -> 2014-2024 | D144: =D$4 -> 2024 | E144: Demand | F144: =F$4 -> 2014-2024
A145: =A117 -> QCF 7-8 | B145: =('Table 7.x.1'!D145+'Table 7.x.1'!D146)*0.001 -> 99.2217258 | C145: =D145-B145 -> 34.08655932 | D145: =('Table 7.x.1'!F145+'Table 7.x.1'!F146)*0.001 -> 133.3082851 | E145: =F145-C145 -> 39.8116386 | F145: =C145+('Table 6.x.3'!I166/100*TableQ!B145) -> 73.89819792
A146: =A118 -> QCF 4-6 | B146: =SUM('Table 7.x.1'!D147:D149)*0.001 -> 319.2417886 | C146: 129.2532556 | D146: =SUM('Table 7.x.1'!F147:F149)*0.001 -> 448.4950442 | E146: =F146-C146 -> 128.0922964 | F146: =C146+('Table 6.x.3'!I166/100*TableQ!B146) -> 257.345552
A147: QCF 3 | B147: ='Table 7.x.1'!D150*0.001 -> 160.6698153 | C147: -15.11014811 | D147: ='Table 7.x.1'!F150*0.001 -> 145.5596672 | E147: 64.46701637 | F147: =C147+('Table 6.x.3'!I166/100*TableQ!B147) -> 49.35686826
A148: QCF 2 | B148: ='Table 7.x.1'!D151*0.001 -> 173.6420547 | C148: -10.20342568 | D148: ='Table 7.x.1'!F151*0.001 -> 163.438629 | E148: 69.67198637 | F148: =C148+('Table 6.x.3'!I166/100*TableQ!B148) -> 59.46856068
A149: QCF 1 | B149: ='Table 7.x.1'!D152*0.001 -> 122.2909687 | C149: -27.36222823 | D149: ='Table 7.x.1'!F152*0.001 -> 94.92874046 | E149: 49.06792146 | F149: =C149+('Table 6.x.3'!I166/100*TableQ!B149) -> 21.70569324
A150: No Qual | B150: ='Table 7.x.1'!D153*0.001 -> 47.41564685 | C150: -30.47601288 | D150: ='Table 7.x.1'!F153*0.001 -> 16.93963396 | E150: 19.02501273 | F150: =C150+('Table 6.x.3'!I166/100*TableQ!B150) -> -11.45100016
A152: Total | B152: =SUM(B145:B151) -> 922.482 | C152: =SUM(C145:C151) -> 80.188 | D152: =SUM(D145:D151) -> 1002.67 | E152: =F152-C152 -> 370.1358719 | F152: =SUM(F145:F151) -> 450.3238719
B154: % share | C154: % change | D154: % share | E154: % share | F154: % of base year level
A155: =A145 -> QCF 7-8 | B155: =(B145/B152)*100 -> 10.75595251 | C155: =IF(B145>0,C145/B145*100,0) -> 34.35392707 | D155: =IF(D152>0,D145/D152*100,0) -> 13.29532998 | E155: =IF(E152>0,E145/E152*100,0) -> 10.75595251 | F155: =IF(B145>1,F145/B145*100,0) -> 74.47783973
A156: QCF 4-6 | B156: =(B146/B152)*100 -> 34.6068312 | C156: =IF(B146>0,C146/B146*100,0) -> 40.48757405 | D156: =IF(D152>0,D146/D152*100,0) -> 44.73007512 | E156: =IF(E152>0,E146/E152*100,0) -> 34.6068312 | F156: 80.61148671
A157: QCF 3 | B157: =(B147/B152)*100 -> 17.417122 | C157: -9.404472194 | D157: =IF(D152>0,D147/D152*100,0) -> 14.51720578 | E157: =IF(E152>0,E147/E152*100,0) -> 17.417122 | F157: 30.71944046
A158: QCF 2 | B158: =(B148/B152)*100 -> 18.82335425 | C158: -5.87612586 | D158: =IF(D152>0,D148/D152*100,0) -> 16.30034099 | E158: =IF(E152>0,E148/E152*100,0) -> 18.82335425 | F158: 34.2477868
A159: QCF 1 | B159: =(B149/B152)*100 -> 13.25673224 | C159: -22.37469252 | D159: =IF(D152>0,D149/D152*100,0) -> 9.467595566 | E159: =IF(E152>0,E149/E152*100,0) -> 13.25673224 | F159: 17.74922013
A160: No Qual | B160: =(B150/B152)*100 -> 5.14000781 | C160: -64.27416878 | D160: =IF(D152>0,D150/D152*100,0) -> 1.689452558 | E160: =IF(E152>0,E150/E152*100,0) -> 5.14000781 | F160: -24.15025613
A162: =A134 -> Total | B162: =(B152/B152)*100 -> 100 | C162: 8.692635737 | D162: =IF(D152>0,D152/D152*100,0) -> 100 | E162: =IF(E152>0,E152/E152*100,0) -> 100 | F162: =IF(B152>1,F152/B152*100,0) -> 48.81654839
A169: =A141 -> East of England
A170: ='Table 7.x.1'!B170 -> Non-market services
A171: =$A$3 -> QCF group | B171: Base year level | C171: Change | D171: Projected level | E171: Replacement | F171: Total requirement
B172: =B$4 -> 2014 | C172: =C$4 -> 2014-2024 | D172: =D$4 -> 2024 | E172: Demand | F172: =F$4 -> 2014-2024
A173: =A145 -> QCF 7-8 | B173: =('Table 7.x.1'!D173+'Table 7.x.1'!D174)*0.001 -> 110.7235835 | C173: =D173-B173 -> 26.18959731 | D173: =('Table 7.x.1'!F173+'Table 7.x.1'!F174)*0.001 -> 136.9131808 | E173: =F173-C173 -> 45.53440413 | F173: =C173+('Table 6.x.3'!I194/100*TableQ!B173) -> 71.72400144
A174: =A146 -> QCF 4-6 | B174: =SUM('Table 7.x.1'!D175:D177)*0.001 -> 265.3057584 | C174: 52.9434219 | D174: =SUM('Table 7.x.1'!F175:F177)*0.001 -> 318.2491803 | E174: =F174-C174 -> 109.1053888 | F174: =C174+('Table 6.x.3'!I194/100*TableQ!B174) -> 162.0488107
A175: QCF 3 | B175: ='Table 7.x.1'!D178*0.001 -> 139.4811664 | C175: 32.95718079 | D175: ='Table 7.x.1'!F178*0.001 -> 172.4383471 | E175: 57.36078619 | F175: =C175+('Table 6.x.3'!I194/100*TableQ!B175) -> 90.31796697
A176: QCF 2 | B176: ='Table 7.x.1'!D179*0.001 -> 127.3845026 | C176: -20.08494476 | D176: ='Table 7.x.1'!F179*0.001 -> 107.2995578 | E176: 52.38610636 | F176: =C176+('Table 6.x.3'!I194/100*TableQ!B176) -> 32.3011616
A177: QCF 1 | B177: ='Table 7.x.1'!D180*0.001 -> 64.81094707 | C177: -39.02287986 | D177: ='Table 7.x.1'!F180*0.001 -> 25.78806721 | E177: 26.65311005 | F177: =C177+('Table 6.x.3'!I194/100*TableQ!B177) -> -12.3697698
A178: No Qual | B178: ='Table 7.x.1'!D181*0.001 -> 14.39204207 | C178: -11.44037537 | D178: ='Table 7.x.1'!F181*0.001 -> 2.951666703 | E178: 5.91864027 | F178: =C178+('Table 6.x.3'!I194/100*TableQ!B178) -> -5.5217351
A180: Total | B180: =SUM(B173:B179) -> 722.098 | C180: =SUM(C173:C179) -> 41.542 | D180: =SUM(D173:D179) -> 763.64 | E180: =F180-C180 -> 296.9584358 | F180: =SUM(F173:F179) -> 338.5004358
B182: % share | C182: % change | D182: % share | E182: % share | F182: % of base year level
A183: =A173 -> QCF 7-8 | B183: =(B173/B180)*100 -> 15.33359509 | C183: =IF(B173>0,C173/B173*100,0) -> 23.65313376 | D183: =IF(D180>0,D173/D180*100,0) -> 17.92902163 | E183: =IF(E180>0,E173/E180*100,0) -> 15.33359509 | F183: =IF(B173>1,F173/B173*100,0) -> 64.77752904
A184: QCF 4-6 | B184: =(B174/B180)*100 -> 36.74096292 | C184: =IF(B174>0,C174/B174*100,0) -> 19.95562486 | D184: =IF(D180>0,D174/D180*100,0) -> 41.67528945 | E184: =IF(E180>0,E174/E180*100,0) -> 36.74096292 | F184: 61.08002014
A185: QCF 3 | B185: =(B175/B180)*100 -> 19.31609925 | C185: 23.62840923 | D185: =IF(D180>0,D175/D180*100,0) -> 22.5811046 | E185: =IF(E180>0,E175/E180*100,0) -> 19.31609925 | F185: 64.7528045
A186: QCF 2 | B186: =(B176/B180)*100 -> 17.64088844 | C186: -15.76718074 | D186: =IF(D180>0,D176/D180*100,0) -> 14.05106566 | E186: =IF(E180>0,E176/E180*100,0) -> 17.64088844 | F186: 25.35721453
A187: QCF 1 | B187: =(B177/B180)*100 -> 8.975367204 | C187: -60.2103219 | D187: =IF(D180>0,D177/D180*100,0) -> 3.376992721 | E187: =IF(E180>0,E177/E180*100,0) -> 8.975367204 | F187: -19.08592663
A188: No Qual | B188: =(B178/B180)*100 -> 1.993087098 | C188: -79.49098059 | D188: =IF(D180>0,D178/D180*100,0) -> 0.3865259419 | E188: =IF(E180>0,E178/E180*100,0) -> 1.993087098 | F188: -38.36658531
A190: =A162 -> Total | B190: =(B180/B180)*100 -> 100 | C190: 5.75295874 | D190: =IF(D180>0,D180/D180*100,0) -> 100 | E190: =IF(E180>0,E180/E180*100,0) -> 100 | F190: =IF(B180>1,F180/B180*100,0) -> 46.87735401

Sheet Figure 7.1
AT1: Share of all occupations, 1994-2024 | DA1: Data is written here by the initial setup process and the appropriate occupation copied to BL116 when an occupation is selected
AT2: Qualification shares, 2014 | AZ2: When an occupation is selected, data for that occupation is written here.
F3: Click on an occupation from the list and the charts will be customised for that occupation | AT3: Employment by gender and status, 2014 | BB3: Chart data | CJ3: Employment by broad ind sector for current occupation | DA3: Emp x qualification for occupation 1 for every industry
AT4: Replacement demand, 2014-2024 | BB4: Shares of total employment for selected occupation for every sector | CJ4: (obviously not reproduced for every industry - that wouldn't make sense) | DA4: 2012 | DB4: =LEFT(names!$D$4,4) -> QCF8 | DC4: =LEFT(names!$D$5,4) -> QCF7 | DD4: =LEFT(names!$D$6,4) -> QCF6 | DE4: =LEFT(names!$D$7,4) -> QCF5 | DF4: =LEFT(names!$D$8,4) -> QCF4 | DG4: =LEFT(names!$D$9,4) -> QCF3 | DH4: =LEFT(names!$D$10,4) -> QCF2 | DI4: =LEFT(names!$D$11,4) -> QCF1 | DJ4: =LEFT(names!$D$12,7) -> No Qual
BB5: 1994 | BC5: 1995 | BD5: 1996 | BE5: 1997 | BF5: 1998 | BG5: 1999 | BH5: 2000 | BI5: 2001 | BJ5: 2002 | BK5: 2003 | BL5: 2004 | BM5: 2005 | BN5: 2006 | BO5: 2007 | BP5: 2008 | BQ5: 2009 | BR5: 2010 | BS5: 2011 | BT5: 2012 | BU5: 2013 | BV5: 2014 | BW5: 2015 | BX5: 2016 | BY5: 2017 | BZ5: 2018 | CA5: 2019 | CB5: 2020 | CC5: 2021 | CD5: 2022 | CE5: 2023 | CF5: 2024 | CJ5: Industries, 2012 | DA5: =names!$A$3 -> All industries | DB5: 2257.128501 | DC5: 18186.63774 | DD5: 54303.92377 | DE5: 11533.95168 | DF5: 17002.37878 | DG5: 38322.54342 | DH5: 36148.29272 | DI5: 22090.57907 | DJ5: 4209.951724
AZ6: =names!$A$3 -> All industries | BA6: Males | BB6: 84.27267278 | BC6: 83.27631437 | BD6: 82.5208928 | BE6: 81.81896784 | BF6: 80.90853509 | BG6: 80.23076975 | BH6: 79.07731738 | BI6: 77.70311945 | BJ6: 77.18254596 | BK6: 76.18663601 | BL6: 76.63299537 | BM6: 75.02362312 | BN6: 74.77948804 | BO6: 74.52266445 | BP6: 73.3937129 | BQ6: 73.77156532 | BR6: 73.72346837 | BS6: 72.78808978 | BT6: 72.21064693 | BU6: 71.65367894 | BV6: 71.22149938 | BW6: 70.77060136 | BX6: 70.34721754 | BY6: 69.96360933 | BZ6: 69.57048746 | CA6: 69.16559163 | CB6: 68.74996954 | CC6: 68.33231022 | CD6: 67.92836756 | CE6: 68.33231022 | CF6: 67.92836756 | CJ6: Primary sector and utilities | CK6: 33244.42 | DA6: =names!$A$4 -> Primary sector and utilities | DB6: 26.60539815 | DC6: 354.7437093 | DD6: 886.8432827 | DE6: 61.32171959 | DF6: 283.1760781 | DG6: 198.0454269 | DH6: 362.2950676 | DI6: 327.2940617 | DJ6: 127.4717981
BA7: Females | BB7: 15.72732722 | BC7: 16.72368563 | BD7: 17.47910727 | BE7: 18.18103223 | BF7: 19.09146498 | BG7: 19.76923032 | BH7: 20.92268262 | BI7: 22.29688055 | BJ7: 22.81745411 | BK7: 23.81336405 | BL7: 23.36700463 | BM7: 24.97637693 | BN7: 25.22051201 | BO7: 25.4773356 | BP7: 26.60628715 | BQ7: 26.22843468 | BR7: 26.27653163 | BS7: 27.21191022 | BT7: 27.78935307 | BU7: 28.34632106 | BV7: 28.77850067 | BW7: 29.22939869 | BX7: 29.65278251 | BY7: 30.03639072 | BZ7: 30.42951258 | CA7: 30.83440837 | CB7: 31.25003046 | CC7: 31.66768978 | CD7: 32.07163248 | CE7: 31.66768978 | CF7: 32.07163248 | CJ7: Manufacturing | CK7: 240909.521 | DA7: =names!$A$5 -> Manufacturing | DB7: 306.1643112 | DC7: 2043.875039 | DD7: 6524.210921 | DE7: 1265.695263 | DF7: 3228.302591 | DG7: 4529.140502 | DH7: 4168.100146 | DI7: 2190.08469 | DJ7: 541.4013954
AZ8: =names!$A$4 -> Primary sector and utilities | BA8: =BA6 -> Males | BB8: 89.79847307 | BC8: 88.89295889 | BD8: 88.9538962 | BE8: 89.43985242 | BF8: 89.80050262 | BG8: 88.79715572 | BH8: 86.2639995 | BI8: 86.18084411 | BJ8: 85.25411128 | BK8: 83.66738706 | BL8: 83.07249839 | BM8: 83.69039967 | BN8: 82.37109864 | BO8: 83.24776625 | BP8: 84.27965714 | BQ8: 85.51186929 | BR8: 85.06015738 | BS8: 85.04830952 | BT8: 82.52008318 | BU8: 82.06528098 | BV8: 81.65338424 | BW8: 81.33072025 | BX8: 80.98231484 | BY8: 80.5257939 | BZ8: 80.05968565 | CA8: 79.52795164 | CB8: 78.91194821 | CC8: 78.25859193 | CD8: 77.77869969 | CE8: 78.25859193 | CF8: 77.77869969 | CJ8: Construction | CK8: 159563.316 | DA8: =names!$A$6 -> Construction | DB8: 44.02388952 | DC8: 1351.048955 | DD8: 3102.315343 | DE8: 937.9340028 | DF8: 2445.462197 | DG8: 4687.965346 | DH8: 3666.322745 | DI8: 1947.550585 | DJ8: 638.7118466
BA9: =BA7 -> Females | BB9: 10.20152693 | BC9: 11.10704111 | BD9: 11.0461038 | BE9: 10.56014392 | BF9: 10.19949359 | BG9: 11.20284066 | BH9: 13.7360005 | BI9: 13.81915589 | BJ9: 14.74588872 | BK9: 16.33260912 | BL9: 16.92749786 | BM9: 16.30960033 | BN9: 17.62890136 | BO9: 16.75223375 | BP9: 15.72033946 | BQ9: 14.48813071 | BR9: 14.93984262 | BS9: 14.95169048 | BT9: 17.47991682 | BU9: 17.93471902 | BV9: 18.34661576 | BW9: 18.66927975 | BX9: 19.01768516 | BY9: 19.4742061 | BZ9: 19.94031435 | CA9: 20.47204836 | CB9: 21.08804892 | CC9: 21.74140807 | CD9: 22.22130031 | CE9: 21.74140807 | CF9: 22.22130031 | CJ9: Distribution, transport etc | CK9: 566760.586 | DA9: =names!$A$7 -> Trade, accomod. and transport | DB9: 98.45586994 | DC9: 2190.926622 | DD9: 11567.90899 | DE9: 2275.929897 | DF9: 3625.186622 | DG9: 12395.54344 | DH9: 13702.1172 | DI9: 10323.33222 | DJ9: 1588.655359
AZ10: =names!$A$5 -> Manufacturing | BA10: =BA6 -> Males | BB10: 91.02162705 | BC10: 90.43270863 | BD10: 90.06397393 | BE10: 89.83261408 | BF10: 89.72663729 | BG10: 89.15860076 | BH10: 88.28732986 | BI10: 88.30433582 | BJ10: 88.28318372 | BK10: 87.78584532 | BL10: 88.14292234 | BM10: 87.28140921 | BN10: 86.73428205 | BO10: 86.02202292 | BP10: 86.90716154 | BQ10: 85.69122282 | BR10: 85.7513806 | BS10: 86.21545117 | BT10: 84.71938646 | BU10: 84.40414328 | BV10: 84.06286483 | BW10: 83.70755397 | BX10: 83.38936362 | BY10: 83.06740163 | BZ10: 82.752417 | CA10: 82.43899557 | CB10: 82.11018571 | CC10: 81.77191524 | CD10: 81.41897018 | CE10: 81.77191524 | CF10: 81.41897018 | CJ10: Business and other services | CK10: 790592.76 | DA10: =names!$A$8 -> Business and other services | DB10: 1343.589223 | DC10: 8713.947898 | DD10: 25217.45092 | DE10: 2756.073919 | DF10: 6349.640603 | DG10: 13013.75847 | DH10: 11742.79243 | DI10: 6387.352109 | DJ10: 1077.709146
BA11: =BA7 -> Females | BB11: 8.978373322 | BC11: 9.567291367 | BD11: 9.936026065 | BE11: 10.16738592 | BF11: 10.27336271 | BG11: 10.84139924 | BH11: 11.71267046 | BI11: 11.69566418 | BJ11: 11.71681628 | BK11: 12.21415468 | BL11: 11.85707766 | BM11: 12.71859045 | BN11: 13.26571795 | BO11: 13.97797708 | BP11: 13.09283811 | BQ11: 14.30877718 | BR11: 14.24861905 | BS11: 13.78454883 | BT11: 15.28061396 | BU11: 15.59585715 | BV11: 15.93713476 | BW11: 16.29244643 | BX11: 16.61063638 | BY11: 16.93259837 | BZ11: 17.247583 | CA11: 17.56100443 | CB11: 17.88981467 | CC11: 18.22808476 | CD11: 18.58102982 | CE11: 18.22808476 | CF11: 18.58102982 | CJ11: Non-market services | CK11: 284874.551 | DA11: =names!$A$9 -> Non-market services | DB11: 438.2898095 | DC11: 3532.095521 | DD11: 7005.194323 | DE11: 4236.996881 | DF11: 1070.61069 | DG11: 3498.090226 | DH11: 2506.665136 | DI11: 914.9654059 | DJ11: 236.0021785
AZ12: =names!$A$6 -> Construction | BA12: =BA6 -> Males | BB12: 95.14541092 | BC12: 94.48102249 | BD12: 93.77148184 | BE12: 93.80763259 | BF12: 92.7400337 | BG12: 93.75126572 | BH12: 92.28727795 | BI12: 91.9633511 | BJ12: 91.82687739 | BK12: 91.14560937 | BL12: 90.69629405 | BM12: 88.80011611 | BN12: 89.46346888 | BO12: 88.47032985 | BP12: 88.40360788 | BQ12: 88.640802 | BR12: 88.31462157 | BS12: 90.00424871 | BT12: 88.00014336 | BU12: 87.66412408 | BV12: 87.3761805 | BW12: 86.98792684 | BX12: 86.61733909 | BY12: 86.27809285 | BZ12: 86.00690308 | CA12: 85.71607607 | CB12: 85.41028578 | CC12: 85.10658815 | CD12: 84.81679227 | CE12: 85.10658815 | CF12: 84.81679227
BA13: =BA7 -> Females | BB13: 4.854589081 | BC13: 5.518977509 | BD13: 6.228518164 | BE13: 6.192367409 | BF13: 7.259966298 | BG13: 6.248734282 | BH13: 7.712722954 | BI13: 8.036648896 | BJ13: 8.173121766 | BK13: 8.854391459 | BL13: 9.303705951 | BM13: 11.19988389 | BN13: 10.53653112 | BO13: 11.52967088 | BP13: 11.59639212 | BQ13: 11.35919865 | BR13: 11.68537905 | BS13: 9.995751288 | BT13: 11.99985599 | BU13: 12.33587527 | BV13: 12.6238195 | BW13: 13.01207316 | BX13: 13.38266091 | BY13: 13.72190772 | BZ13: 13.99309747 | CA13: 14.2839234 | CB13: 14.58971473 | CC13: 14.89341235 | CD13: 15.18320773 | CE13: 14.89341235 | CF13: 15.18320773
G14: Charts all refer to the selected occupation - current selection is :- | AZ14: =names!$A$7 -> Trade, accomod. and transport | BA14: =BA6 -> Males | BB14: 85.75455724 | BC14: 84.88897337 | BD14: 84.49117658 | BE14: 84.10962294 | BF14: 82.89628305 | BG14: 82.14830639 | BH14: 80.1262631 | BI14: 77.04637985 | BJ14: 76.7415325 | BK14: 75.62627684 | BL14: 76.22867044 | BM14: 75.49290633 | BN14: 74.07104909 | BO14: 74.28418406 | BP14: 72.88087573 | BQ14: 74.37707398 | BR14: 73.6217254 | BS14: 72.5231615 | BT14: 75.36560661 | BU14: 74.56389908 | BV14: 73.70021757 | BW14: 72.74077324 | BX14: 71.80955763 | BY14: 70.97038011 | BZ14: 70.38166045 | CA14: 69.77612891 | CB14: 69.15151838 | CC14: 68.53172572 | CD14: 67.95321695 | CE14: 68.53172572 | CF14: 67.95321695 | CJ14: Employment change by broad industrial sector
BA15: =BA7 -> Females | BB15: 14.2454425 | BC15: 15.11102637 | BD15: 15.50882342 | BE15: 15.89037706 | BF15: 17.10371695 | BG15: 17.85169361 | BH15: 19.8737369 | BI15: 22.95362015 | BJ15: 23.2584675 | BK15: 24.37372296 | BL15: 23.77132938 | BM15: 24.50709386 | BN15: 25.92895091 | BO15: 25.71581594 | BP15: 27.11912427 | BQ15: 25.62292585 | BR15: 26.3782746 | BS15: 27.4768385 | BT15: 24.63439321 | BU15: 25.43610092 | BV15: 26.29978243 | BW15: 27.25922676 | BX15: 28.19044237 | BY15: 29.02962005 | BZ15: 29.61833955 | CA15: 30.22387125 | CB15: 30.84848147 | CC15: 31.46827443 | CD15: 32.04678305 | CE15: 31.46827443 | CF15: 32.04678305 | CJ15: Industries, 2012 - 2022
B16: 11 Corporate managers and directors | AZ16: =names!$A$8 -> Business and other services | BA16: =BA6 -> Males | BB16: 80.68662799 | BC16: 79.92480492 | BD16: 78.82264754 | BE16: 77.44602468 | BF16: 76.70618692 | BG16: 75.92881931 | BH16: 75.56872404 | BI16: 74.87918806 | BJ16: 73.98286822 | BK16: 73.3177044 | BL16: 75.02898593 | BM16: 73.28950523 | BN16: 73.90652229 | BO16: 73.86474143 | BP16: 72.60374087 | BQ16: 72.80199886 | BR16: 73.27474178 | BS16: 72.01505112 | BT16: 70.47180938 | BU16: 70.10903776 | BV16: 69.67098826 | BW16: 69.22527962 | BX16: 68.78515048 | BY16: 68.36863727 | BZ16: 67.95405141 | CA16: 67.55618413 | CB16: 67.15999449 | CC16: 66.78568311 | CD16: 66.40496921 | CE16: 66.78568311 | CF16: 66.40496921 | CJ16: Non-market services | CK16: 17.054493
BA17: =BA7 -> Females | BB17: 19.31337201 | BC17: 20.07519508 | BD17: 21.17735246 | BE17: 22.55397506 | BF17: 23.29381282 | BG17: 24.07118045 | BH17: 24.43127596 | BI17: 25.12081194 | BJ17: 26.01713178 | BK17: 26.6822956 | BL17: 24.97101424 | BM17: 26.71049477 | BN17: 26.09347771 | BO17: 26.13525857 | BP17: 27.39625913 | BQ17: 27.19800127 | BR17: 26.7252581 | BS17: 27.98494888 | BT17: 29.52819062 | BU17: 29.89096224 | BV17: 30.32901174 | BW17: 30.77472038 | BX17: 31.21484964 | BY17: 31.63136273 | BZ17: 32.04594859 | CA17: 32.44381587 | CB17: 32.84000551 | CC17: 33.21431689 | CD17: 33.59503079 | CE17: 33.21431689 | CF17: 33.59503079 | CJ17: Business and other services | CK17: 140.092236
J18: All industries | AZ18: =names!$A$9 -> Non-market services | BA18: =BA6 -> Males | BB18: 66.55106914 | BC18: 64.51740993 | BD18: 63.00896069 | BE18: 61.59908856 | BF18: 59.10411727 | BG18: 57.50676914 | BH18: 56.71412424 | BI18: 56.79761989 | BJ18: 56.8072316 | BK18: 55.96517691 | BL18: 54.49610299 | BM18: 51.41976135 | BN18: 51.69156883 | BO18: 54.76166168 | BP18: 50.01123528 | BQ18: 49.93291434 | BR18: 50.84932849 | BS18: 49.63661675 | BT18: 50.21951079 | BU18: 49.80870187 | BV18: 49.46764093 | BW18: 49.23946565 | BX18: 48.98116294 | BY18: 48.85983705 | BZ18: 48.65615971 | CA18: 48.50311767 | CB18: 48.3906934 | CC18: 48.29117602 | CD18: 48.17183603 | CE18: 48.29117602 | CF18: 48.17183603 | CJ18: Distribution, transport etc | CK18: 103.381583
BA19: =BA7 -> Females | BB19: 33.44893158 | BC19: 35.48258935 | BD19: 36.99103931 | BE19: 38.40091213 | BF19: 40.89588205 | BG19: 42.49323019 | BH19: 43.28587576 | BI19: 43.20238011 | BJ19: 43.1927684 | BK19: 44.03482254 | BL19: 45.50389701 | BM19: 48.58023865 | BN19: 48.30843117 | BO19: 45.23833832 | BP19: 49.9887643 | BQ19: 50.06708566 | BR19: 49.15067151 | BS19: 50.36338325 | BT19: 49.78048921 | BU19: 50.19129849 | BV19: 50.53235907 | BW19: 50.76053435 | BX19: 51.0188367 | BY19: 51.14016331 | BZ19: 51.34383993 | CA19: 51.49688233 | CB19: 51.6093066 | CC19: 51.70882432 | CD19: 51.82816364 | CE19: 51.70882432 | CF19: 51.82816364 | CJ19: Construction | CK19: 44.856419
CJ20: Manufacturing | CK20: 23.593515
CJ21: Primary sector and utilities | CK21: 1.839598
CJ25: =TableQ!A3 -> QCF group | CK25: Base year level
CK26: 2012
CJ27: =TableQ!A5 -> QCF 7-8 | CK27: 1878259.585
CJ28: =TableQ!A6 -> QCF 4-6 | CK28: 7417568.277
CJ29: =TableQ!A7 -> QCF 3 | CK29: 5973784.73
CJ30: =TableQ!A8 -> QCF 2 | CK30: 6685148.396
CJ31: =TableQ!A9 -> QCF 1 | CK31: 5357778.981
CJ32: =TableQ!A10 -> No Qual | CK32: 3124402.429
DA33: Emp x qualification for occupation 2 for every industry
DA34: 2012 | DB34: =DB4 -> QCF8 | DC34: =DC4 -> QCF7 | DD34: QCF6 | DE34: QCF5 | DF34: QCF4 | DG34: QCF3 | DH34: QCF2 | DI34: QCF1 | DJ34: No Qual
DA35: =names!$A$3 -> All industries | DB35: 785.9634873 | DC35: 7279.974214 | DD35: 18740.91152 | DE35: 6563.684269 | DF35: 6545.854892 | DG35: 19688.35742 | DH35: 21034.90653 | DI35: 12486.80603 | DJ35: 4873.432637
DA36: =names!$A$4 -> Primary sector and utilities | DB36: 105.1777669 | DC36: 413.7047858 | DD36: 284.4874124 | DE36: 189.6654315 | DF36: 177.3518595 | DG36: 627.3182114 | DH36: 706.4026045 | DI36: 302.7024021 | DJ36: 274.8913126
DA37: =names!$A$5 -> Manufacturing | DB37: 60.53373564 | DC37: 218.9852873 | DD37: 953.2055304 | DE37: 320.8906588 | DF37: 486.8375191 | DG37: 984.1522357 | DH37: 316.1849849 | DI37: 433.1663754 | DJ37: 132.4332838
DA38: =names!$A$6 -> Construction | DB38: 24.32112228 | DC38: 197.6596492 | DD38: 504.6248996 | DE38: 203.0154418 | DF38: 127.0290614 | DG38: 552.4620609 | DH38: 588.3324848 | DI38: 165.6595439 | DJ38: 214.1888772
DA39: =names!$A$7 -> Trade, accomod. and transport | DB39: 198.9642704 | DC39: 1420.656056 | DD39: 5484.444264 | DE39: 1655.82868 | DF39: 1977.619698 | DG39: 7295.883296 | DH39: 10078.65468 | DI39: 5949.255258 | DJ39: 2318.3747
DA40: =names!$A$8 -> Business and other services | DB40: 357.1349565 | DC40: 4280.851047 | DD40: 9845.962831 | DE40: 2891.537443 | DF40: 3159.839382 | DG40: 8488.020759 | DH40: 8497.723135 | DI40: 5079.940578 | DJ40: 1790.54862
DA41: =names!$A$9 -> Non-market services | DB41: 39.83163555 | DC41: 748.117389 | DD41: 1668.186586 | DE41: 1302.746613 | DF41: 617.1773729 | DG41: 1740.520853 | DH41: 847.6086468 | DI41: 556.0818767 | DJ41: 142.9958431
BB59: Selected occupation as % of all occupations, separately for men and women
BB60: 1994 | BC60: 1995 | BD60: 1996 | BE60: 1997 | BF60: 1998 | BG60: 1999 | BH60: 2000 | BI60: 2001 | BJ60: 2002 | BK60: 2003 | BL60: 2004 | BM60: 2005 | BN60: 2006 | BO60: 2007 | BP60: 2008 | BQ60: 2009 | BR60: 2010 | BS60: 2011 | BT60: 2012 | BU60: 2013 | BV60: 2014 | BW60: 2015 | BX60: 2016 | BY60: 2017 | BZ60: 2018 | CA60: 2019 | CB60: 2020 | CC60: 2021 | CD60: 2022 | CE60: 2023 | CF60: 2024
AZ61: =names!$A$3 -> All industries | BA61: Males | BB61: 7.539115394 | BC61: 7.611604693 | BD61: 7.619693542 | BE61: 7.675710471 | BF61: 7.697782521 | BG61: 7.775482772 | BH61: 7.872591098 | BI61: 7.863378136 | BJ61: 8.074644843 | BK61: 8.168683585 | BL61: 8.572284682 | BM61: 8.479979108 | BN61: 8.61635402 | BO61: 8.786344685 | BP61: 8.581268794 | BQ61: 8.931649487 | BR61: 9.093185181 | BS61: 9.103173604 | BT61: 9.024293131 | BU61: 9.103499532 | BV61: 9.181781155 | BW61: 9.26073374 | BX61: 9.342535195 | BY61: 9.428548668 | BZ61: 9.491583631 | CA61: 9.55231562 | CB61: 9.611524737 | CC61: 9.670236996 | CD61: 9.72816541 | CE61: 9.670236996 | CF61: 9.72816541
BA62: Females | BB62: 1.587500801 | BC62: 1.686287302 | BD62: 1.776967007 | BE62: 1.879646264 | BF62: 1.96245367 | BG62: 2.105153934 | BH62: 2.326579549 | BI62: 2.582752892 | BJ62: 2.683602314 | BK62: 2.889024192 | BL62: 2.928491704 | BM62: 3.202843707 | BN62: 3.281028395 | BO62: 3.360820691 | BP62: 3.500565753 | BQ62: 3.595962363 | BR62: 3.723721095 | BS62: 3.848506868 | BT62: 3.908126251 | BU62: 4.022137177 | BV62: 4.152773528 | BW62: 4.289727583 | BX62: 4.428842193 | BY62: 4.561704031 | BZ62: 4.666900644 | CA62: 4.769108248 | CB62: 4.873825846 | CC62: 4.975978052 | CD62: 5.077307502 | CE62: 4.975978052 | CF62: 5.077307502
AZ63: =names!$A$4 -> Primary sector and utilities | BA63: =BA61 -> Males | BB63: 3.629825763 | BC63: 3.648227366 | BD63: 3.64651541 | BE63: 3.69042325 | BF63: 3.648208564 | BG63: 3.596466858 | BH63: 3.671842306 | BI63: 3.785689981 | BJ63: 4.042282944 | BK63: 4.131384823 | BL63: 4.236814353 | BM63: 4.497159935 | BN63: 3.798590829 | BO63: 4.513104259 | BP63: 4.73421872 | BQ63: 5.051959221 | BR63: 5.040558671 | BS63: 5.264727419 | BT63: 4.428449287 | BU63: 4.504900746 | BV63: 4.590105261 | BW63: 4.650165699 | BX63: 4.710154263 | BY63: 4.776230649 | BZ63: 4.821875245 | CA63: 4.858199162 | CB63: 4.897752258 | CC63: 4.935464907 | CD63: 4.969232268 | CE63: 4.935464907 | CF63: 4.969232268 | DA63: Emp x qualification for occupation 3 for every industry
BA64: =BA62 -> Females | BB64: 1.408432671 | BC64: 1.485225951 | BD64: 1.568172214 | BE64: 1.573142941 | BF64: 1.552114897 | BG64: 1.697533784 | BH64: 1.863755739 | BI64: 1.976121519 | BJ64: 2.259735959 | BK64: 2.298180774 | BL64: 2.441622043 | BM64: 2.712024876 | BN64: 2.685960988 | BO64: 2.729657755 | BP64: 2.79918161 | BQ64: 2.873764361 | BR64: 2.846596015 | BS64: 3.145202278 | BT64: 3.02334922 | BU64: 3.132926732 | BV64: 3.243061626 | BW64: 3.331226083 | BX64: 3.416382732 | BY64: 3.528314967 | BZ64: 3.614827405 | CA64: 3.699199912 | CB64: 3.795333002 | CC64: 3.889879118 | CD64: 3.975059401 | CE64: 3.889879118 | CF64: 3.975059401 | DA64: 2012 | DB64: =DB34 -> QCF8 | DC64: =DC34 -> QCF7 | DD64: QCF6 | DE64: QCF5 | DF64: QCF4 | DG64: QCF3 | DH64: QCF2 | DI64: QCF1 | DJ64: No Qual
AZ65: =names!$A$5 -> Manufacturing | BA65: =BA62 -> Females | BB65: 8.19326554 | BC65: 8.353147642 | BD65: 8.438374804 | BE65: 8.576978858 | BF65: 8.72990394 | BG65: 8.834658673 | BH65: 8.964960965 | BI65: 9.128551272 | BJ65: 9.381915421 | BK65: 9.54170806 | BL65: 10.10948219 | BM65: 10.09597328 | BN65: 10.17650606 | BO65: 10.27946584 | BP65: 10.89256404 | BQ65: 10.70521973 | BR65: 10.94802834 | BS65: 11.44700036 | BT65: 10.46948249 | BU65: 10.61031599 | BV65: 10.77153664 | BW65: 10.94765332 | BX65: 11.1264738 | BY65: 11.30968462 | BZ65: 11.45662705 | CA65: 11.60252462 | CB65: 11.74899524 | CC65: 11.89711444 | CD65: 12.05266926 | CE65: 11.89711444 | CF65: 12.05266926 | DA65: =names!$A$3 -> All industries | DB65: 7369.695237 | DC65: 25276.22087 | DD65: 58593.80798 | DE65: 6301.605999 | DF65: 16856.65794 | DG65: 22971.45863 | DH65: 19132.05759 | DI65: 9686.305612 | DJ65: 1932.589555
BA66: =BA62 -> Females | BB66: 1.841348402 | BC66: 2.002196715 | BD66: 2.15644791 | BE66: 2.321296783 | BF66: 2.477184998 | BG66: 2.643968469 | BH66: 2.996963459 | BI66: 3.242375431 | BJ66: 3.426725759 | BK66: 3.684287046 | BL66: 3.790912805 | BM66: 4.367087011 | BN66: 4.704725668 | BO66: 5.154435149 | BP66: 5.181487423 | BQ66: 5.540320436 | BR66: 5.779210792 | BS66: 5.992660197 | BT66: 6.091197598 | BU66: 6.30572226 | BV66: 6.564391401 | BW66: 6.844504915 | BX66: 7.127291977 | BY66: 7.410274851 | BZ66: 7.671472598 | CA66: 7.93625437 | CB66: 8.211218882 | CC66: 8.483886454 | CD66: 8.76730149 | CE66: 8.483886454 | CF66: 8.76730149 | DA66: =names!$A$4 -> Primary sector and utilities | DB66: 74.17895627 | DC66: 304.7563139 | DD66: 960.0023098 | DE66: 136.6199383 | DF66: 560.8162203 | DG66: 268.0651542 | DH66: 294.633661 | DI66: 93.31219766 | DJ66: 103.9404077
AZ67: =names!$A$6 -> Construction | BA67: =BA61 -> Males | BB67: 5.955776775 | BC67: 5.931300206 | BD67: 5.930960624 | BE67: 5.932488804 | BF67: 5.942193492 | BG67: 6.319267181 | BH67: 6.351478238 | BI67: 6.211943745 | BJ67: 6.392214067 | BK67: 6.41607762 | BL67: 6.023580053 | BM67: 5.679198362 | BN67: 6.570966963 | BO67: 6.304098311 | BP67: 6.537921358 | BQ67: 6.628126577 | BR67: 7.036133407 | BS67: 7.82722256 | BT67: 7.306201186 | BU67: 7.347339792 | BV67: 7.491890217 | BW67: 7.591497582 | BX67: 7.713715151 | BY67: 7.8460038 | BZ67: 7.970285355 | CA67: 8.089023256 | CB67: 8.196625175 | CC67: 8.297168757 | CD67: 8.400824373 | CE67: 8.297168757 | CF67: 8.400824373 | DA67: =names!$A$5 -> Manufacturing | DB67: 803.830082 | DC67: 2259.352746 | DD67: 6837.640708 | DE67: 709.0436675 | DF67: 3835.039121 | DG67: 4276.880967 | DH67: 2647.835166 | DI67: 1449.201056 | DJ67: 284.979105
BA68: =BA62 -> Females | BB68: 2.270888643 | BC68: 2.52444729 | BD68: 2.760090411 | BE68: 2.913434111 | BF68: 3.251805374 | BG68: 3.461482717 | BH68: 3.723138275 | BI68: 3.80280048 | BJ68: 3.979016351 | BK68: 4.356553404 | BL68: 4.631158477 | BM68: 5.309873358 | BN68: 5.829544767 | BO68: 6.107079561 | BP68: 6.222415393 | BQ68: 6.635636808 | BR68: 7.083991151 | BS68: 7.233166677 | BT68: 8.27064347 | BU68: 8.543536907 | BV68: 8.893778368 | BW68: 9.276189257 | BX68: 9.673731637 | BY68: 10.06656862 | BZ68: 10.39475454 | CA68: 10.72872831 | CB68: 11.06514834 | CC68: 11.39385361 | CD68: 11.71835635 | CE68: 11.39385361 | CF68: 11.71835635 | DA68: =names!$A$6 -> Construction | DB68: 106.503118 | DC68: 1218.746632 | DD68: 2983.554768 | DE68: 471.0574711 | DF68: 1642.295968 | DG68: 3369.139242 | DH68: 2302.151298 | DI68: 636.6663899 | DJ68: 295.7486246
AZ69: =names!$A$7 -> Trade, accomod. and transport | BA69: =BA61 -> Males | BB69: 8.32885649 | BC69: 8.412466094 | BD69: 8.443238655 | BE69: 8.496848695 | BF69: 8.593829072 | BG69: 8.609063329 | BH69: 8.577793946 | BI69: 8.410803973 | BJ69: 8.690501432 | BK69: 8.809881532 | BL69: 9.287553672 | BM69: 9.229022482 | BN69: 9.04540253 | BO69: 9.007512615 | BP69: 8.541045579 | BQ69: 9.07468779 | BR69: 8.85253053 | BS69: 8.834540102 | BT69: 9.249269582 | BU69: 9.357096224 | BV69: 9.421635574 | BW69: 9.497521922 | BX69: 9.572811522 | BY69: 9.658085641 | BZ69: 9.719050761 | CA69: 9.773497244 | CB69: 9.821810502 | CC69: 9.868822531 | CD69: 9.92602207 | CE69: 9.868822531 | CF69: 9.92602207 | DA69: =names!$A$7 -> Trade, accomod. and transport | DB69: 248.4409993 | DC69: 979.4378399 | DD69: 4207.801054 | DE69: 481.6619038 | DF69: 1581.381433 | DG69: 3344.431962 | DH69: 3334.462553 | DI69: 2058.095912 | DJ69: 504.2970527
BA70: =BA62 -> Females | BB70: 1.582203936 | BC70: 1.6935619 | BD70: 1.747996837 | BE70: 1.81202745 | BF70: 1.921339877 | BG70: 2.084730539 | BH70: 2.394957001 | BI70: 2.8434337 | BJ70: 2.922881712 | BK70: 3.229983681 | BL70: 3.279498742 | BM70: 3.465804852 | BN70: 3.66496619 | BO70: 3.651599116 | BP70: 3.807707804 | BQ70: 3.893511933 | BR70: 4.069575629 | BS70: 4.166984984 | BT70: 3.89275846 | BU70: 4.074400932 | BV70: 4.269767103 | BW70: 4.492586011 | BX70: 4.713013147 | BY70: 4.923119433 | BZ70: 5.067373571 | CA70: 5.210257257 | CB70: 5.35509757 | CC70: 5.499059857 | CD70: 5.645525475 | CE70: 5.499059857 | CF70: 5.645525475 | DA70: =names!$A$8 -> Business and other services | DB70: 4556.921114 | DC70: 15894.59288 | DD70: 37661.89807 | DE70: 3024.971611 | DF70: 8150.413087 | DG70: 10505.813 | DH70: 9588.984539 | DI70: 4920.625615 | DJ70: 672.4421971
AZ71: =names!$A$8 -> Business and other services | BA71: =BA61 -> Males | BB71: 9.16700183 | BC71: 9.140498109 | BD71: 9.004441012 | BE71: 8.9230226 | BF71: 8.753038987 | BG71: 8.777323702 | BH71: 8.902257653 | BI71: 9.057046658 | BJ71: 9.190194117 | BK71: 9.238358181 | BL71: 10.05726273 | BM71: 10.09582554 | BN71: 10.50000046 | BO71: 10.56241432 | BP71: 10.2669295 | BQ71: 11.02410661 | BR71: 11.44326922 | BS71: 11.04476841 | BT71: 10.93264904 | BU71: 10.96533163 | BV71: 10.99000966 | BW71: 11.02780107 | BX71: 11.06343276 | BY71: 11.10698526 | BZ71: 11.137928 | CA71: 11.17491173 | CB71: 11.21534507 | CC71: 11.25702854 | CD71: 11.28689777 | CE71: 11.25702854 | CF71: 11.28689777 | DA71: =names!$A$9 -> Non-market services | DB71: 1579.820968 | DC71: 4619.334453 | DD71: 5942.911075 | DE71: 1478.251407 | DF71: 1086.712107 | DG71: 1207.128308 | DH71: 963.9903774 | DI71: 528.4044428 | DJ71: 71.18216786
BA72: =BA62 -> Females | BB72: 2.250725613 | BC72: 2.362804166 | BD72: 2.50459165 | BE72: 2.672549437 | BF72: 2.671108766 | BG72: 2.853966929 | BH72: 3.125585697 | BI72: 3.404052868 | BJ72: 3.584202612 | BK72: 3.81927679 | BL72: 3.833335838 | BM72: 4.361503931 | BN72: 4.402010124 | BO72: 4.426174489 | BP72: 4.62662156 | BQ72: 4.794369368 | BR72: 4.938431841 | BS72: 5.180574814 | BT72: 5.602697097 | BU72: 5.699244388 | BV72: 5.813660707 | BW72: 5.94049192 | BX72: 6.063532931 | BY72: 6.187890056 | BZ72: 6.301390254 | CA72: 6.414703537 | CB72: 6.534363119 | CC72: 6.649396757 | CD72: 6.756156515 | CE72: 6.649396757 | CF72: 6.756156515
AZ73: =names!$A$9 -> Non-market services | BA73: =BA61 -> Males | BB73: 5.123722647 | BC73: 5.098496364 | BD73: 5.036057567 | BE73: 5.00875673 | BF73: 4.948861013 | BG73: 4.877050378 | BH73: 4.981573017 | BI73: 4.863667974 | BJ73: 5.06046773 | BK73: 5.111282902 | BL73: 5.075305588 | BM73: 4.79583613 | BN73: 4.848241103 | BO73: 6.105286593 | BP73: 5.345116879 | BQ73: 5.280897141 | BR73: 5.489149375 | BS73: 5.540558598 | BT73: 5.957070219 | BU73: 6.040657326 | BV73: 6.061330441 | BW73: 6.0651867 | BX73: 6.063422204 | BY73: 6.071411171 | BZ73: 6.090182387 | CA73: 6.117161832 | CB73: 6.143074388 | CC73: 6.17692374 | CD73: 6.209081936 | CE73: 6.17692374 | CF73: 6.209081936
BA74: =BA62 -> Females | BB74: 1.038161377 | BC74: 1.095699671 | BD74: 1.150273423 | BE74: 1.205076375 | BF74: 1.290574402 | BG74: 1.369292437 | BH74: 1.441511235 | BI74: 1.535066599 | BJ74: 1.573819845 | BK74: 1.66675416 | BL74: 1.723852058 | BM74: 1.859667941 | BN74: 1.856889227 | BO74: 2.020121101 | BP74: 2.139104925 | BQ74: 2.115002912 | BR74: 2.182999311 | BS74: 2.343934136 | BT74: 2.389728303 | BU74: 2.45457805 | BV74: 2.494277453 | BW74: 2.518586146 | BX74: 2.541517616 | BY74: 2.557635101 | BZ74: 2.590670025 | CA74: 2.624385982 | CB74: 2.65538942 | CC74: 2.688180157 | CD74: 2.721821215 | CE74: 2.688180157 | CF74: 2.721821215
DA93: Emp x qualification for occupation 4 for every industry
DA94: 2012 | DB94: =DB64 -> QCF8 | DC94: =DC64 -> QCF7 | DD94: QCF6 | DE94: QCF5 | DF94: QCF4 | DG94: QCF3 | DH94: QCF2 | DI94: QCF1 | DJ94: No Qual
DA95: =names!$A$3 -> All industries | DB95: 5027.858757 | DC95: 14667.78854 | DD95: 35991.24237 | DE95: 20795.68835 | DF95: 2888.558322 | DG95: 9262.636871 | DH95: 8257.703799 | DI95: 4517.862241 | DJ95: 489.0183371
DA96: =names!$A$4 -> Primary sector and utilities | DB96: 4.6756328 | DC96: 60.26904356 | DD96: 70.44416514 | DE96: 13.05051408 | DF96: 29.07661233 | DG96: 22.37391178 | DH96: 38.59749344 | DI96: 52.19335111 | DJ96: 20.26435516
DA97: =names!$A$5 -> Manufacturing | DB97: 107.7387696 | DC97: 199.4763466 | DD97: 401.0111304 | DE97: 68.43134559 | DF97: 79.98927369 | DG97: 233.5532788 | DH97: 141.3000685 | DI97: 24.6860193 | DJ97: 70.37869361
DA98: =names!$A$6 -> Construction | DB98: 0.233431558 | DC98: 89.49523744 | DD98: 185.4377941 | DE98: 5.508208726 | DF98: 20.75492159 | DG98: 68.1049905 | DH98: 65.04410221 | DI98: 78.75299083 | DJ98: 22.94248618
DA99: =names!$A$7 -> Trade, accomod. and transport | DB99: 89.95424006 | DC99: 1369.97846 | DD99: 3177.218777 | DE99: 844.652821 | DF99: 216.5458295 | DG99: 1629.605992 | DH99: 1459.954001 | DI99: 726.4659449 | DJ99: 142.0621175
DA100: =names!$A$8 -> Business and other services | DB100: 488.0238471 | DC100: 1958.637605 | DD100: 3851.145341 | DE100: 1251.123101 | DF100: 768.6297936 | DG100: 1853.110975 | DH100: 1716.516564 | DI100: 812.3109143 | DJ100: 140.9257317
DA101: =names!$A$9 -> Non-market services | DB101: 4337.232836 | DC101: 10989.93185 | DD101: 28305.98517 | DE101: 18612.92236 | DF101: 1773.561892 | DG101: 5455.887722 | DH101: 4836.29157 | DI101: 2823.45302 | DJ101: 92.44495299
B114: 11 Corporate managers and directors | I114: 34 Culture, media and sports occupations | O114: 62 Leisure, travel and related personal service occupations | BA114: Emp x gender-status for selected occupation for every industry | BK114: Emp x qualification for selected occupation for every industry
B115: 12 Other managers and proprietors | I115: 35 Business and public service associate professionals | O115: 71 Sales occupations | BA115: 2014 | BB115: MFT | BC115: MPT | BD115: MSE | BE115: FSE | BF115: FPT | BG115: FFT | BK115: 2010 | BL115: =DB4 -> QCF8 | BM115: =DC4 -> QCF7 | BN115: QCF6 | BO115: QCF5 | BP115: QCF4 | BQ115: QCF3 | BR115: QCF2 | BS115: QCF1 | BT115: No Qual
B116: 21 Science, research, engineering and technology professionals | I116: 41 Administrative occupations | O116: 72 Customer service occupations | BA116: =names!$A$3 -> All industries | BB116: 1227165.77 | BC116: 71318.499 | BD116: 180034.996 | BE116: 44219.164 | BF116: 118045.245 | BG116: 435161.481 | BK116: =names!$A$3 -> All industries | BL116: 29802.48004 | BM116: 244595.6726 | BN116: 527485.1956 | BO116: 117379.4378 | BP116: 160989.3651 | BQ116: 369141.6555 | BR116: 337483.021 | BS116: 261967.0581 | BT116: 70585.19651
B117: 22 Health professionals | I117: 42 Secretarial and related occupations | O117: 81 Process, plant and machine operatives | BA117: =names!$A$4 -> Primary sector and utilities | BB117: 22756.972 | BC117: 395.403 | BD117: 3992.818 | BE117: 247.113 | BF117: 1284.022 | BG117: 4568.092 | BK117: =names!$A$4 -> Primary sector and utilities | BL117: 428.1362178 | BM117: 5586.823732 | BN117: 9443.356476 | BO117: 1196.18371 | BP117: 3811.548481 | BQ117: 3933.725594 | BR117: 4108.207841 | BS117: 3630.30901 | BT117: 1600.316649
B118: 23 Teaching and educational professionals | I118: 51 Skilled agricultural and related trades | O118: 82 Transport and mobile machine drivers and operatives | BA118: =names!$A$5 -> Manufacturing | BB118: 179574.337 | BC118: 3895.883 | BD118: 19045.226 | BE118: 2363.62 | BF118: 5118.406 | BG118: 30912.049 | BK118: =names!$A$5 -> Manufacturing | BL118: 3317.019497 | BM118: 23685.58053 | BN118: 59204.95555 | BO118: 11630.95043 | BP118: 29598.56288 | BQ118: 44353.78461 | BR118: 39127.493 | BS118: 25965.77145 | BT118: 8280.960307
B119: 24 Business, media and public service professionals | I119: 52 Skilled metal, electrical and electronic trades | O119: 91 Elementary trades and related occupations | BA119: =names!$A$6 -> Construction | BB119: 106696.213 | BC119: 2488.043 | BD119: 30236.075 | BE119: 1978.156 | BF119: 4951.134 | BG119: 13213.694 | BK119: =names!$A$6 -> Construction | BL119: 524.4213088 | BM119: 14572.71099 | BN119: 25051.35506 | BO119: 7744.321123 | BP119: 20122.66444 | BQ119: 39835.80521 | BR119: 28709.92158 | BS119: 19269.94703 | BT119: 8371.156387
B120: 31 Science, engineering and technology associate professionals | I120: 53 Skilled construction and building trades | O120: 92 Elementary administration and service occupations | BA120: =names!$A$7 -> Trade, accomod. and transport | BB120: 356342.719 | BC120: 15115.935 | BD120: 46245.131 | BE120: 14206.531 | BF120: 25517.987 | BG120: 109332.283 | BK120: =names!$A$7 -> Trade, accomod. and transport | BL120: 1372.271305 | BM120: 28273.65802 | BN120: 107603.1244 | BO120: 21299.9469 | BP120: 34645.84399 | BQ120: 116935.983 | BR120: 125855.7569 | BS120: 120173.5957 | BT120: 28000.2695
B121: 32 Health and social care associate professionals | I121: 54 Textiles, printing and other skilled trades | BA121: =names!$A$8 -> Business and other services | BB121: 443691.574 | BC121: 35648.254 | BD121: 71473.961 | BE121: 19289.786 | BF121: 49027.404 | BG121: 171461.78 | BK121: =names!$A$8 -> Business and other services | BL121: 18056.33063 | BM121: 120226.2741 | BN121: 247881.0749 | BO121: 29094.06276 | BP121: 60684.2218 | BQ121: 124165.124 | BR121: 110764.4489 | BS121: 79919.04146 | BT121: 18497.18228
B122: 33 Protective service occupations | I122: 61 Caring personal service occupations | BA122: =names!$A$9 -> Non-market services | BB122: 118103.954 | BC122: 13774.981 | BD122: 9041.785 | BE122: 6133.958 | BF122: 32146.291 | BG122: 105673.582 | BK122: =names!$A$9 -> Non-market services | BL122: 6104.301082 | BM122: 52250.62525 | BN122: 78301.32919 | BO122: 46413.97292 | BP122: 12126.52347 | BQ122: 39917.2331 | BR122: 28917.19273 | BS122: 13008.3935 | BT122: 5835.311376
DA123: Emp x qualification for occupation 5 for every industry
DA124: 2012 | DB124: =DB94 -> QCF8 | DC124: =DC94 -> QCF7 | DD124: QCF6 | DE124: QCF5 | DF124: QCF4 | DG124: QCF3 | DH124: QCF2 | DI124: QCF1 | DJ124: No Qual
DA125: =names!$A$3 -> All industries | DB125: 8655.184599 | DC125: 50498.46811 | DD125: 43789.02454 | DE125: 10605.93447 | DF125: 2122.107699 | DG125: 5486.053773 | DH125: 5344.043506 | DI125: 3339.157157 | DJ125: 508.1490282
DA126: =names!$A$4 -> Primary sector and utilities | DB126: 24.85031767 | DC126: 50.84456002 | DD126: 76.66261271 | DE126: 44.43181064 | DF126: 50.56888447 | DG126: 33.28364431 | DH126: 15.65991834 | DI126: 17.31035403 | DJ126: 11.33690353
DA127: =names!$A$5 -> Manufacturing | DB127: 69.49508569 | DC127: 256.1350788 | DD127: 287.5806366 | DE127: 53.29210177 | DF127: 20.60423476 | DG127: 203.936842 | DH127: 148.1447698 | DI127: 61.59512258 | DJ127: 62.21334394
DA128: =names!$A$6 -> Construction | DB128: 22.71810627 | DC128: 97.93719937 | DD128: 5.735353904 | DE128: 4.242148094 | DF128: 5.030946571 | DG128: 59.28781891 | DH128: 31.02785049 | DI128: 33.42084266 | DJ128: 6.240274416
DA129: =names!$A$7 -> Trade, accomod. and transport | DB129: 69.25287105 | DC129: 151.165933 | DD129: 354.1433564 | DE129: 133.2751875 | DF129: 68.48664054 | DG129: 208.4845689 | DH129: 464.3214653 | DI129: 276.5501919 | DJ129: 73.12443754
DA130: =names!$A$8 -> Business and other services | DB130: 723.1791464 | DC130: 2870.609107 | DD130: 3071.56871 | DE130: 778.2514077 | DF130: 463.575052 | DG130: 877.7785924 | DH130: 676.325493 | DI130: 522.7958373 | DJ130: 70.18615211
DA131: =names!$A$9 -> Non-market services | DB131: 7745.689072 | DC131: 47071.77624 | DD131: 39993.33387 | DE131: 9592.44181 | DF131: 1513.841941 | DG131: 4103.282307 | DH131: 4008.564009 | DI131: 2427.484809 | DJ131: 285.0479167
B137: =B16&" in "&names!A4 -> 11 Corporate managers and directors in Primary sector and utilities
BB144: Replacement Demand etc 2010-2020 for selected occupation | BI144: Males | BJ144: -- (as % 2010) -- | BL144: Females
BB145: job openings | BC145: replacement | BD145: net change | BH145: Ex dem | BI145: RD | BK145: Ex dem | BL145: RD
AZ146: =names!$A$3 -> All industries | BA146: Females | BB146: 437.3966908 | BC146: 262.9343978 | BD146: 174.462293 | BH146: 16.44645223 | BI146: 32.33393789 | BK146: 28.64685793 | BL146: 43.06564131
BA147: Males | BB147: 753.5286666 | BC147: 597.1731166 | BD147: 156.35555 | BH147: 9.372266515 | BI147: 38.11491921 | BK147: 4.76224199 | BL147: 47.62828221
AZ148: =names!$A$4 -> Primary sector and utilities | BA148: =BA146 -> Females | BB148: 4.358225136 | BC148: 2.661326136 | BD148: 1.696899 | BH148: 16.1663655 | BI148: 28.7046654 | BK148: 26.62853437 | BL148: 39.24537257
BA149: =BA147 -> Males | BB149: 10.92573963 | BC149: 10.78304063 | BD149: 0.142699 | BH149: 9.710670724 | BI149: 34.52005166 | BK149: 9.367810641 | BL149: 45.64390242
AZ150: =names!$A$5 -> Manufacturing | BA150: =BA146 -> Females | BB150: 27.63224042 | BC150: 16.87892742 | BD150: 10.753313 | BH150: 4.034236021 | BI150: 36.85389384 | BK150: 19.72584153 | BL150: 47.92804911
BA151: =BA147 -> Males | BB151: 93.94338291 | BC151: 81.10317991 | BD151: 12.840203 | BH151: 11.3916492 | BI151: 34.56867237 | BK151: 25.29520329 | BL151: 46.42393718
AZ152: =names!$A$6 -> Construction | BA152: =BA146 -> Females | BB152: 19.77811994 | BC152: 8.883631943 | BD152: 10.894488 | BH152: 9.640963711 | BI152: 28.32200613 | BK152: -1.084924056 | BL152: 40.10666833
BA153: =BA147 -> Males | BB153: 90.84357553 | BC153: 56.88164453 | BD153: 33.961931 | BH153: 12.14022355 | BI153: 29.3738464 | BK153: 12.9163257 | BL153: 41.62224763 | DA153: Emp x qualification for occupation 6 for every industry
AZ154: =names!$A$7 -> Trade, accomod. and transport | BA154: =BA146 -> Females | BB154: 130.8794195 | BC154: 65.1772135 | BD154: 65.702206 | BH154: -7.021478225 | BI154: 24.51626922 | BK154: 49.74495341 | BL154: 35.63498738 | DA154: 2012 | DB154: =DB124 -> QCF8 | DC154: =DC124 -> QCF7 | DD154: QCF6 | DE154: QCF5 | DF154: QCF4 | DG154: QCF3 | DH154: QCF2 | DI154: QCF1 | DJ154: No Qual
BA155: =BA147 -> Males | BB155: 203.6958172 | BC155: 166.0164402 | BD155: 37.679377 | BH155: 26.84572256 | BI155: 29.94868471 | BK155: 16.08853816 | BL155: 40.37318816 | DA155: =names!$A$3 -> All industries | DB155: 1994.617467 | DC155: 25270.86958 | DD155: 56294.48308 | DE155: 6099.395866 | DF155: 8832.236477 | DG155: 17508.89637 | DH155: 14101.24198 | DI155: 7717.683597 | DJ155: 1634.649941
AZ156: =names!$A$8 -> Business and other services | BA156: =BA146 -> Females | BB156: 178.4512245 | BC156: 105.5662845 | BD156: 72.88494 | BH156: 10.01456366 | BI156: 31.59551349 | BK156: 26.62670104 | BL156: 42.69691049 | DA156: =names!$A$4 -> Primary sector and utilities | DB156: 38.09600305 | DC156: 283.3912803 | DD156: 598.957932 | DE156: 11.68764874 | DF156: 150.6348496 | DG156: 173.3054683 | DH156: 173.6087281 | DI156: 122.2737948 | DJ156: 23.51384352
BA157: =BA147 -> Males | BB157: 289.5733723 | BC157: 222.3660763 | BD157: 67.207296 | BH157: 2.657811079 | BI157: 29.31891312 | BK157: -8.289034631 | BL157: 42.13414284 | DA157: =names!$A$5 -> Manufacturing | DB157: 149.9935858 | DC157: 1103.422013 | DD157: 2595.944195 | DE157: 261.0331896 | DF157: 775.6435537 | DG157: 1123.063185 | DH157: 974.7587239 | DI157: 536.9734023 | DJ157: 107.0323913
AZ158: =names!$A$9 -> Non-market services | BA158: =BA146 -> Females | BB158: 75.83030568 | BC158: 63.29985768 | BD158: 12.530448 | BH158: 8.846898747 | BI158: 41.16089809 | BK158: -29.44797713 | BL158: 47.9680203 | DA158: =names!$A$6 -> Construction | DB158: 0.3212822371 | DC158: 657.911028 | DD158: 1973.293931 | DE158: 502.1893354 | DF158: 854.8534395 | DG158: 1407.039591 | DH158: 846.8915912 | DI158: 474.4945031 | DJ158: 92.24344421
BA159: =BA147 -> Males | BB159: 61.6623772 | BC159: 57.1383332 | BD159: 4.524044 | BH159: -9.728911476 | BI159: 39.27068156 | BK159: -17.90852638 | BL159: 50.7603827 | DA159: =names!$A$7 -> Trade, accomod. and transport | DB159: 115.4610069 | DC159: 786.33904 | DD159: 4503.975703 | DE159: 824.9822623 | DF159: 864.11651 | DG159: 3574.911118 | DH159: 2974.636057 | DI159: 1998.107132 | DJ159: 444.6143848
BH160: -11.44655611 | BI160: 30.77581019 | BK160: -27.90960157 | BL160: 43.10099261 | DA160: =names!$A$8 -> Business and other services | DB160: 1239.333846 | DC160: 16892.48612 | DD160: 36496.64466 | DE160: 2239.065324 | DF160: 4595.991334 | DG160: 8312.499024 | DH160: 6975.343548 | DI160: 3597.772703 | DJ160: 792.7900816
BH161: 7.151409519 | BI161: 30.94506425 | BK161: 23.37931467 | BL161: 43.25168803 | DA161: =names!$A$9 -> Non-market services | DB161: 451.4117425 | DC161: 5547.3201 | DD161: 10125.66665 | DE161: 2260.438106 | DF161: 1590.99679 | DG161: 2918.077987 | DH161: 2156.003334 | DI161: 988.0620621 | DJ161: 174.4557951
BH162: -14.19510593 | BI162: 29.77399679 | BK162: -38.87161354 | BL162: 41.80801052
BH163: 50.79930329 | BI163: 27.24188006 | BK163: 18.48072611 | BL163: 39.4834001
BH164: 11.481574 | BI164: 36.23657762 | BK164: 1.16626638 | BL164: 49.35325316
BH165: 7.984849334 | BI165: 24.27686307 | BK165: -3.83617877 | BL165: 37.8935252
BH166: 35.15879142 | BI166: 20.77198112 | BK166: 17.88830149 | BL166: 35.30435213
BH167: -15.09977571 | BI167: 29.99081043 | BK167: -39.438946 | BL167: 41.65407433
BH168: 8.321701516 | BI168: 37.62633014 | BK168: 16.18806061 | BL168: 47.62372213
BH169: -6.777363694 | BI169: 28.99591485 | BK169: 10.01913932 | BL169: 41.74011747
BH170: 20.50411155 | BI170: 29.20383484 | BK170: -13.07615903 | BL170: 43.44601236
BG171: All occs | BH171: 7.258293363 | BI171: 31.36931632 | BK171: 5.098813149 | BL171: 42.69230701 | BM171: not currently used
BH173: These are 'all industry values & will need updating
BH174: ? Use values for every industry separately when available?
DA183: Emp x qualification for occupation 7 for every industry
DA184: 2012 | DB184: =DB154 -> QCF8 | DC184: =DC154 -> QCF7 | DD184: QCF6 | DE184: QCF5 | DF184: QCF4 | DG184: QCF3 | DH184: QCF2 | DI184: QCF1 | DJ184: No Qual
DA185: All industries | DB185: 776.3030999 | DC185: 4220.910713 | DD185: 12680.73262 | DE185: 2239.277671 | DF185: 6904.878934 | DG185: 10160.8167 | DH185: 8147.680351 | DI185: 5509.749938 | DJ185: 868.0026323
B186: =B16&" in "&names!A5 -> 11 Corporate managers and directors in Manufacturing | DA186: =names!$A$3 -> All industries | DB186: 21.66270778 | DC186: 57.43612223 | DD186: 263.8558708 | DE186: 49.89298555 | DF186: 160.2105265 | DG186: 379.4681889 | DH186: 188.7659741 | DI186: 124.9822651 | DJ186: 30.94492903
DA187: =names!$A$4 -> Primary sector and utilities | DB187: 77.02276382 | DC187: 374.757796 | DD187: 1264.322812 | DE187: 238.0828052 | DF187: 1286.972812 | DG187: 2290.976133 | DH187: 1592.384501 | DI187: 1075.327407 | DJ187: 145.2820876
DA188: =names!$A$5 -> Manufacturing | DB188: 16.48303536 | DC188: 255.0405792 | DD188: 684.1393061 | DE188: 167.8068285 | DF188: 1040.141111 | DG188: 1138.160278 | DH188: 1126.442611 | DI188: 597.4897416 | DJ188: 135.5908322
DA189: =names!$A$6 -> Construction | DB189: 32.8823289 | DC189: 153.4137867 | DD189: 655.1200605 | DE189: 128.8692114 | DF189: 293.9560688 | DG189: 1184.203624 | DH189: 833.3445461 | DI189: 634.9973218 | DJ189: 193.8052991
DA190: =names!$A$7 -> Trade, accomod. and transport | DB190: 530.638078 | DC190: 2375.678545 | DD190: 8059.682976 | DE190: 1060.942119 | DF190: 3380.824532 | DG190: 3580.755222 | DH190: 2982.506026 | DI190: 2486.075613 | DJ190: 305.3535912
DA191: =names!$A$8 -> Business and other services | DB191: 97.61418599 | DC191: 1004.583884 | DD191: 1753.611594 | DE191: 593.6837213 | DF191: 742.7738845 | DG191: 1587.253252 | DH191: 1424.236693 | DI191: 590.8775899 | DJ191: 57.02589323
DA192: =names!$A$9 -> Non-market services | DB192: 4936.25 | DC192: 27381.25 | DD192: 99437.5 | DE192: 20852.5 | DF192: 71200 | DG192: 111186.25 | DH192: 72447.5 | DI192: 56460 | DJ192: 8827.5
DA213: Emp x qualification for occupation 8 for every industry
DA214: 2012 | DB214: =DB184 -> QCF8 | DC214: =DC184 -> QCF7 | DD214: QCF6 | DE214: QCF5 | DF214: QCF4 | DG214: QCF3 | DH214: QCF2 | DI214: QCF1 | DJ214: No Qual
DA215: =names!$A$3 -> All industries | DB215: 127.0441583 | DC215: 2808.844025 | DD215: 10209.75377 | DE215: 8440.884917 | DF215: 1388.651246 | DG215: 3798.557092 | DH215: 3481.516907 | DI215: 1729.029687 | DJ215: 234.8547942
DA216: =names!$A$4 -> Primary sector and utilities | DB216: 0.9976617972 | DC216: 14.45576349 | DD216: 22.36783431 | DE216: 4.349213017 | DF216: 4.999379405 | DG216: 8.871422906 | DH216: 7.990432829 | DI216: 9.584069205 | DJ216: 4.312176317
DA217: =names!$A$5 -> Manufacturing | DB217: 1.947277706 | DC217: 12.26000888 | DD217: 51.26724634 | DE217: 27.27701037 | DF217: 35.79989118 | DG217: 147.4548779 | DH217: 79.02138548 | DI217: 16.05190876 | DJ217: 51.44902256
DA218: =names!$A$6 -> Construction | DB218: 0.1405953172 | DC218: 29.0363326 | DD218: 52.69456773 | DE218: 3.450299882 | DF218: 1.470127606 | DG218: 27.35134186 | DH218: 17.87468509 | DI218: 22.75346854 | DJ218: 7.256113733
DA219: =names!$A$7 -> Trade, accomod. and transport | DB219: 22.8774791 | DC219: 45.29106526 | DD219: 166.9993376 | DE219: 141.1405679 | DF219: 140.5961774 | DG219: 576.1512609 | DH219: 693.0145736 | DI219: 215.4630847 | DJ219: 45.56691801
DA220: =names!$A$8 -> Business and other services | DB220: 18.41842013 | DC220: 534.6935275 | DD220: 1308.076656 | DE220: 499.5524796 | DF220: 330.4387981 | DG220: 629.5710041 | DH220: 607.3370973 | DI220: 341.0488588 | DJ220: 72.5527791
DA221: =names!$A$9 -> Non-market services | DB221: 82.6627242 | DC221: 2173.107327 | DD221: 8608.348131 | DE221: 7765.115347 | DF221: 875.3468727 | DG221: 2409.157184 | DH221: 2076.278732 | DI221: 1124.128297 | DJ221: 53.71778449
B235: =B16&" in "&names!A6 -> 11 Corporate managers and directors in Construction
DA243: Emp x qualification for occupation 9 for every industry
DA244: 2012 | DB244: =DB214 -> QCF8 | DC244: =DC214 -> QCF7 | DD244: QCF6 | DE244: QCF5 | DF244: QCF4 | DG244: QCF3 | DH244: QCF2 | DI244: QCF1 | DJ244: No Qual
DA245: =names!$A$3 -> All industries | DB245: 89.84011745 | DC245: 1219.547933 | DD245: 6006.718044 | DE245: 1682.37859 | DF245: 1700.748658 | DG245: 6477.34095 | DH245: 7629.84156 | DI245: 3771.282167 | DJ245: 631.7299583
DA246: =names!$A$4 -> Primary sector and utilities | DB246: 21.93727427 | DC246: 101.5534685 | DD246: 161.3169717 | DE246: 4.937023461 | DF246: 83.77688956 | DG246: 23.95022708 | DH246: 99.74192242 | DI246: 17.86537828 | DJ246: 32.89199155
DA247: =names!$A$5 -> Manufacturing | DB247: 11.62245797 | DC247: 65.77219583 | DD247: 251.2696698 | DE247: 174.8960268 | DF247: 163.5240758 | DG247: 130.4531131 | DH247: 221.4137157 | DI247: 76.57300395 | DJ247: 22.07541134
DA248: =names!$A$6 -> Construction | DB248: 0.5838027335 | DC248: 18.02966129 | DD248: 37.32383115 | DE248: 11.62522237 | DF248: 58.13454638 | DG248: 83.78058304 | DH248: 77.52653894 | DI248: 62.41502959 | DJ248: 11.50380403
DA249: =names!$A$7 -> Trade, accomod. and transport | DB249: 2.071549486 | DC249: 76.59231543 | DD249: 462.332109 | DE249: 142.3907681 | DF249: 131.1879458 | DG249: 651.1951387 | DH249: 940.6915243 | DI249: 558.1106306 | DJ249: 106.2340548
DA250: =names!$A$8 -> Business and other services | DB250: 42.75596821 | DC250: 416.8976341 | DD250: 1488.486557 | DE250: 401.1513379 | DF250: 329.5663557 | DG250: 1680.285079 | DH250: 1714.31565 | DI250: 934.0869282 | DJ250: 108.5244696
DA251: =names!$A$9 -> Non-market services | DB251: 10.86906478 | DC251: 540.7026578 | DD251: 3605.988905 | DE251: 947.3782116 | DF251: 934.5588448 | DG251: 3907.676809 | DH251: 4576.152209 | DI251: 2122.231197 | DJ251: 350.500227
DA273: Emp x qualification for occupation 10 for every industry
DA274: 2012 | DB274: =DB244 -> QCF8 | DC274: =DC244 -> QCF7 | DD274: QCF6 | DE274: QCF5 | DF274: QCF4 | DG274: QCF3 | DH274: QCF2 | DI274: QCF1 | DJ274: No Qual
DA275: =names!$A$3 -> All industries | DB275: 501.1947937 | DC275: 7327.828713 | DD275: 23486.31838 | DE275: 3132.144687 | DF275: 3679.776704 | DG275: 9951.537205 | DH275: 6759.122992 | DI275: 4488.958452 | DJ275: 1276.277188
DA276: =names!$A$4 -> Primary sector and utilities | DB276: 1.676871829 | DC276: 22.69187576 | DD276: 95.44676527 | DE276: 20.10133649 | DF276: 42.99248239 | DG276: 37.63052335 | DH276: 13.30539651 | DI276: 11.83591824 | DJ276: 1.923806888
DA277: =names!$A$5 -> Manufacturing | DB277: 93.86780788 | DC277: 719.8397559 | DD277: 1905.333499 | DE277: 164.8786808 | DF277: 226.5658591 | DG277: 1062.997028 | DH277: 578.4269606 | DI277: 322.1665216 | DJ277: 98.48979798
DA278: =names!$A$6 -> Construction | DB278: 0.01476443648 | DC278: 20.55068766 | DD278: 65.03018412 | DE278: 4.017125868 | DF278: 58.72835596 | DG278: 89.61062658 | DH278: 92.20369127 | DI278: 23.42139072 | DJ278: 11.83868827
DA279: =names!$A$7 -> Trade, accomod. and transport | DB279: 0.06927695179 | DC279: 97.26876998 | DD279: 793.8534214 | DE279: 257.4472 | DF279: 93.28966454 | DG279: 473.8361051 | DH279: 269.8591725 | DI279: 355.5269109 | DJ279: 84.96266805
DA280: =names!$A$8 -> Business and other services | DB280: 348.1671016 | DC280: 5829.115652 | DD280: 18563.50142 | DE280: 2343.365374 | DF280: 2634.543412 | DG280: 7292.542778 | DH280: 5119.687191 | DI280: 3143.622857 | DJ280: 1000.044865
DA281: =names!$A$9 -> Non-market services | DB281: 57.39897104 | DC281: 638.3619717 | DD281: 2063.153089 | DE281: 342.33497 | DF281: 623.6569297 | DG281: 994.9201447 | DH281: 685.6405801 | DI281: 632.3848537 | DJ281: 79.01736132
B284: =B16&" in "&names!A7 -> 11 Corporate managers and directors in Trade, accomod. and transport
DA303: Emp x qualification for occupation 11 for every industry
DA304: 2012 | DB304: =DB274 -> QCF8 | DC304: =DC274 -> QCF7 | DD304: QCF6 | DE304: QCF5 | DF304: QCF4 | DG304: QCF3 | DH304: QCF2 | DI304: QCF1 | DJ304: No Qual
DA305: =names!$A$3 -> All industries | DB305: 1975.921692 | DC305: 19720.3776 | DD305: 55002.62874 | DE305: 15014.50551 | DF305: 13887.86673 | DG305: 39936.07648 | DH305: 37525.16573 | DI305: 21174.13304 | DJ305: 4157.578393
DA306: =names!$A$4 -> Primary sector and utilities | DB306: 28.24006983 | DC306: 245.4927953 | DD306: 901.8466707 | DE306: 116.7868539 | DF306: 459.6808834 | DG306: 460.1543181 | DH306: 390.1166138 | DI306: 323.3601992 | DJ306: 71.37658806
DA307: =names!$A$5 -> Manufacturing | DB307: 178.6155266 | DC307: 1176.034117 | DD307: 5006.46988 | DE307: 1331.514775 | DF307: 1787.056459 | DG307: 3748.275847 | DH307: 3280.140639 | DI307: 1390.899861 | DJ307: 159.9178823
DA308: =names!$A$6 -> Construction | DB308: 10.66368019 | DC308: 525.2954783 | DD308: 1642.226832 | DE308: 806.4476864 | DF308: 1141.022124 | DG308: 2406.801636 | DH308: 1841.540465 | DI308: 1162.034087 | DJ308: 247.7555456
DA309: =names!$A$7 -> Trade, accomod. and transport | DB309: 178.2022119 | DC309: 1929.962887 | DD309: 8789.153633 | DE309: 1969.002731 | DF309: 2718.532233 | DG309: 10995.13786 | DH309: 12492.16887 | DI309: 7130.78776 | DJ309: 1943.526779
DA310: =names!$A$8 -> Business and other services | DB310: 1250.82998 | DC310: 11896.46397 | DD310: 30377.97111 | DE310: 6576.246179 | DF310: 5766.156205 | DG310: 16326.11976 | DH310: 16061.41879 | DI310: 9263.017608 | DJ310: 1409.485964
DA311: =names!$A$9 -> Non-market services | DB311: 329.3702233 | DC311: 3947.12835 | DD311: 8284.960613 | DE311: 4214.50728 | DF311: 2015.418826 | DG311: 5999.587057 | DH311: 3459.780353 | DI311: 1904.033529 | DJ311: 325.5156335
B333: =B16&" in "&names!A8 -> 11 Corporate managers and directors in Business and other services | DA333: Emp x qualification for occupation 12 for every industry
DA334: 2012 | DB334: =DB304 -> QCF8 | DC334: =DC304 -> QCF7 | DD334: QCF6 | DE334: QCF5 | DF334: QCF4 | DG334: QCF3 | DH334: QCF2 | DI334: QCF1 | DJ334: No Qual
DA335: =names!$A$3 -> All industries | DB335: 874.4507187 | DC335: 9604.433065 | DD335: 38543.39994 | DE335: 15087.25087 | DF335: 14201.96399 | DG335: 46930.11982 | DH335: 61086.46285 | DI335: 32988.71124 | DJ335: 6691.394838
DA336: =names!$A$4 -> Primary sector and utilities | DB336: 6.357986893 | DC336: 183.1221426 | DD336: 487.8320475 | DE336: 149.4592021 | DF336: 265.7947817 | DG336: 619.9677623 | DH336: 715.4535202 | DI336: 479.9097534 | DJ336: 179.3446329
DA337: =names!$A$5 -> Manufacturing | DB337: 41.68274019 | DC337: 416.0220032 | DD337: 2092.610202 | DE337: 752.4707928 | DF337: 1020.100263 | DG337: 2932.621097 | DH337: 4418.134777 | DI337: 2111.463109 | DJ337: 320.1671629
DA338: =names!$A$6 -> Construction | DB338: 62.56583423 | DC338: 424.2959203 | DD338: 1668.715894 | DE338: 973.4345046 | DF338: 659.7619166 | DG338: 2321.900687 | DH338: 2970.234636 | DI338: 3233.959136 | DJ338: 622.058649
DA339: =names!$A$7 -> Trade, accomod. and transport | DB339: 43.02715564 | DC339: 1324.302894 | DD339: 6152.795345 | DE339: 1989.493445 | DF339: 2399.551974 | DG339: 11778.11107 | DH339: 15992.03166 | DI339: 8501.004656 | DJ339: 1911.283492
DA340: =names!$A$8 -> Business and other services | DB340: 366.8903808 | DC340: 4212.082113 | DD340: 16700.96258 | DE340: 5380.951178 | DF340: 5844.32184 | DG340: 16472.06656 | DH340: 21490.46134 | DI340: 10445.19748 | DJ340: 2726.722845
DA341: =names!$A$9 -> Non-market services | DB341: 353.9266209 | DC341: 3044.607992 | DD341: 11440.48387 | DE341: 5841.441747 | DF341: 4012.433218 | DG341: 12805.45265 | DH341: 15500.14692 | DI341: 8217.177106 | DJ341: 931.8180564
DA363: Emp x qualification for occupation 13 for every industry
DA364: 2012 | DB364: =DB334 -> QCF8 | DC364: =DC334 -> QCF7 | DD364: QCF6 | DE364: QCF5 | DF364: QCF4 | DG364: QCF3 | DH364: QCF2 | DI364: QCF1 | DJ364: No Qual
DA365: =names!$A$3 -> All industries | DB365: 115.7403831 | DC365: 2189.104564 | DD365: 9210.76901 | DE365: 4855.749949 | DF365: 4013.328881 | DG365: 14814.68525 | DH365: 21983.48134 | DI365: 17320.92058 | DJ365: 3057.269183
DA366: =names!$A$4 -> Primary sector and utilities | DB366: 0.449440093 | DC366: 10.21684967 | DD366: 116.0729304 | DE366: 54.30094001 | DF366: 101.0613366 | DG366: 354.1942523 | DH366: 265.6649947 | DI366: 200.0504282 | DJ366: 29.46888778
DA367: =names!$A$5 -> Manufacturing | DB367: 1.560075815 | DC367: 46.74405441 | DD367: 302.552443 | DE367: 146.2508258 | DF367: 154.5123634 | DG367: 462.0096902 | DH367: 736.0778464 | DI367: 613.3203965 | DJ367: 191.7342321
DA368: =names!$A$6 -> Construction | DB368: 2.408586078 | DC368: 135.9074504 | DD368: 502.2838998 | DE368: 243.2462588 | DF368: 185.4494481 | DG368: 772.1754633 | DH368: 1136.7272 | DI368: 797.692894 | DJ368: 248.7548248
DA369: =names!$A$7 -> Trade, accomod. and transport | DB369: 52.35432558 | DC369: 312.1348017 | DD369: 1271.013839 | DE369: 595.3426109 | DF369: 355.2336462 | DG369: 2079.998704 | DH369: 3911.738917 | DI369: 2178.303907 | DJ369: 255.6533932
DA370: =names!$A$8 -> Business and other services | DB370: 37.57857529 | DC370: 769.4444992 | DD370: 4202.158346 | DE370: 1457.419586 | DF370: 1302.824293 | DG370: 4640.098979 | DH370: 7723.512966 | DI370: 6788.402123 | DJ370: 1524.904537
DA371: =names!$A$9 -> Non-market services | DB371: 21.38938026 | DC371: 914.6569086 | DD371: 2816.687552 | DE371: 2359.189727 | DF371: 1914.247793 | DG371: 6506.208165 | DH371: 8209.759417 | DI371: 6743.150831 | DJ371: 806.7533089
B382: =B16&" in "&names!A9 -> 11 Corporate managers and directors in Non-market services
DA393: Emp x qualification for occupation 14 for every industry
DA394: 2012 | DB394: =DB364 -> QCF8 | DC394: =DC364 -> QCF7 | DD394: QCF6 | DE394: QCF5 | DF394: QCF4 | DG394: QCF3 | DH394: QCF2 | DI394: QCF1 | DJ394: No Qual
DA395: =names!$A$3 -> All industries | DB395: 63.21283201 | DC395: 375.054318 | DD395: 3291.048551 | DE395: 1664.619287 | DF395: 2592.748826 | DG395: 6212.57176 | DH395: 10297.4674 | DI395: 7125.675148 | DJ395: 4440.931536
DA396: =names!$A$4 -> Primary sector and utilities | DB396: 44.11955701 | DC396: 168.4943853 | DD396: 1947.662765 | DE396: 667.4783558 | DF396: 1450.16296 | DG396: 3344.597031 | DH396: 4787.239343 | DI396: 3565.967703 | DJ396: 2640.709125
DA397: =names!$A$5 -> Manufacturing | DB397: 1.170964433 | DC397: 34.36471748 | DD397: 354.09362 | DE397: 53.98629299 | DF397: 245.7719427 | DG397: 329.2965873 | DH397: 1070.048998 | DI397: 273.2207873 | DJ397: 142.2159649
DA398: =names!$A$6 -> Construction | DB398: 0 | DC398: 15.26369512 | DD398: 15.83248449 | DE398: 68.13044336 | DF398: 128.3449371 | DG398: 69.83091842 | DH398: 186.6600467 | DI398: 347.4274286 | DJ398: 120.3432485
DA399: =names!$A$7 -> Trade, accomod. and transport | DB399: 6.065097221 | DC399: 39.50310281 | DD399: 311.0972373 | DE399: 115.6693918 | DF399: 216.2307228 | DG399: 506.2105206 | DH399: 853.0394806 | DI399: 650.1467279 | DJ399: 159.4839007
DA400: =names!$A$8 -> Business and other services | DB400: 11.85721334 | DC400: 78.97198486 | DD400: 581.468324 | DE400: 670.8602363 | DF400: 509.1473023 | DG400: 1303.83856 | DH400: 2685.751095 | DI400: 1466.37684 | DJ400: 1215.461024
DA401: =names!$A$9 -> Non-market services | DB401: 0 | DC401: 38.45643239 | DD401: 80.89412049 | DE401: 88.49456639 | DF401: 43.09096113 | DG401: 658.798143 | DH401: 714.7284355 | DI401: 822.535661 | DJ401: 162.7182734
DA423: Emp x qualification for occupation 15 for every industry
DA424: 2012 | DB424: =DB394 -> QCF8 | DC424: =DC394 -> QCF7 | DD424: QCF6 | DE424: QCF5 | DF424: QCF4 | DG424: QCF3 | DH424: QCF2 | DI424: QCF1 | DJ424: No Qual
DA425: =names!$A$3 -> All industries | DB425: 81.99140365 | DC425: 1411.876754 | DD425: 5436.610858 | DE425: 1944.675186 | DF425: 8284.805282 | DG425: 43799.48378 | DH425: 30537.0755 | DI425: 14143.99676 | DJ425: 4956.750269
DA426: =names!$A$4 -> Primary sector and utilities | DB426: 7.010549044 | DC426: 35.73494029 | DD426: 131.4686947 | DE426: 13.41401456 | DF426: 419.6727768 | DG426: 896.5661601 | DH426: 488.3020736 | DI426: 312.8109405 | DJ426: 70.18901908
DA427: =names!$A$5 -> Manufacturing | DB427: 0.6043304765 | DC427: 387.6874795 | DD427: 1206.545062 | DE427: 647.869313 | DF427: 2970.921747 | DG427: 13230.91779 | DH427: 8266.475113 | DI427: 4316.827569 | DJ427: 1662.906187
DA428: =names!$A$6 -> Construction | DB428: 2.069584604 | DC428: 70.87810127 | DD428: 665.6863248 | DE428: 180.1403003 | DF428: 1499.345903 | DG428: 9983.897546 | DH428: 7232.648654 | DI428: 2359.488487 | DJ428: 396.8490023
DA429: =names!$A$7 -> Trade, accomod. and transport | DB429: 6.780483286 | DC429: 286.301195 | DD429: 1117.652949 | DE429: 602.4000793 | DF429: 1624.687056 | DG429: 13547.83267 | DH429: 9029.58225 | DI429: 4502.041465 | DJ429: 2030.14254
DA430: =names!$A$8 -> Business and other services | DB430: 55.44448276 | DC430: 562.2111872 | DD430: 1967.707876 | DE430: 410.5144098 | DF430: 1658.911473 | DG430: 5498.279976 | DH430: 4862.118834 | DI430: 2461.321939 | DJ430: 738.7010727
DA431: =names!$A$9 -> Non-market services | DB431: 10.08197348 | DC431: 69.06385114 | DD431: 347.549952 | DE431: 90.33706888 | DF431: 111.2663265 | DG431: 641.9896353 | DH431: 657.9485708 | DI431: 191.5063603 | DJ431: 57.96244703
DA453: Emp x qualification for occupation 16 for every industry
DA454: 2012 | DB454: =DB424 -> QCF8 | DC454: =DC424 -> QCF7 | DD454: QCF6 | DE454: QCF5 | DF454: QCF4 | DG454: QCF3 | DH454: QCF2 | DI454: QCF1 | DJ454: No Qual
DA455: =names!$A$3 -> All industries | DB455: 51.7068945 | DC455: 784.6272525 | DD455: 3434.432364 | DE455: 1941.590796 | DF455: 3262.228844 | DG455: 33661.20485 | DH455: 32335.81866 | DI455: 16185.40193 | DJ455: 8971.351636
... 87 more rows

Sheet Table 7.x.1
A1: Table 7.1.0 | B1: ="Industry Employment, "&B4&" to "&F4&", by Qualification Level" -> Industry Employment, 1994 to 2024, by Qualification Level
B2: All industries
A3: Qualification categories | H3: Change
A4: Employment Levels (000s) | B4: =All!F7 -> 1994 | C4: =All!P7 -> 2004 | D4: =All!Z7 -> 2014 | E4: =All!AE7 -> 2019 | F4: =All!AJ7 -> 2024 | H4: =D4&" - "&F4 -> 2014 - 2024
A5: =names!D4 -> QCF8 Doctorate | B5: 22774.0472 | C5: 20199.95134 | D5: 33123.04032 | E5: 39236.9243 | F5: 44341.14515 | H5: =F5-D5 -> 11218.10482
A6: =names!D5 -> QCF7 Other higher degree | B6: 95602.56314 | C6: 119754.0071 | D6: 217148.7567 | E6: 257575.0939 | F6: 288824.8649 | H6: =F6-D6 -> 71676.10822
A7: =names!D6 -> QCF6 First degree | B7: 218233.7669 | C7: 344270.0534 | D7: 519898.8174 | E7: 656863.8852 | F7: 775348.984 | H7: 255450.1666
A8: =names!D7 -> QCF5 Foundation degree;Nursing;Teaching | B8: 177670.0417 | C8: 154575.0778 | D8: 161627.3395 | E8: 179962.7881 | F8: 196081.1954 | H8: 34453.8559
A9: =names!D8 -> QCF4 HE below degree level | B9: 134627.8242 | C9: 127743.3106 | D9: 150265.1748 | E9: 183487.8677 | F9: 210192.9164 | H9: 59927.74166
A10: =names!D9 -> QCF3 A level & equivalent | B10: 462129.4899 | C10: 547794.2557 | D10: 623111.7812 | E10: 638987.2186 | F10: 648657.4303 | H10: 25545.64904
A11: =names!D10 -> QCF2 GCSE(A-C) & equivalent | B11: 535678.5218 | C11: 633300.3913 | D11: 659530.1784 | E11: 665977.6892 | F11: 650205.7758 | H11: -9324.402587
A12: =names!D11 -> QCF1 GCSE(below grade C) & equivalent | B12: 449117.5052 | C12: 529255.5346 | D12: 428326.8778 | E12: 370961.79 | F12: 299785.7811 | H12: -128541.0967
A13: =names!D12 -> No Qualification | B13: 234396.24 | C13: 277030.4182 | D13: 160865.0339 | E13: 84280.74311 | F13: 51325.90698 | H13: -109539.127
A14: Total | B14: =SUM(B5:B13) -> 2330230 | C14: =SUM(C5:C13) -> 2753923 | D14: =SUM(D5:D13) -> 2953897 | E14: 3077334 | F14: 3164764 | H14: =SUM(H5:H13) -> 210867
A16: Percentage Shares | B16: =B$4 -> 1994 | C16: =C$4 -> 2004 | D16: =D$4 -> 2014 | E16: =E$4 -> 2019 | F16: =F$4 -> 2024 | H16: % change
A17: =$A$5 -> QCF8 Doctorate | B17: =B5/B$14*100 -> 0.9773304438 | C17: 0.7334973179 | D17: 1.121333625 | E17: 1.27502976 | F17: 1.401088522 | H17: =IF(D5>0,H5/D5*100,0) -> 33.86798046
A18: =$A$6 -> QCF7 Other higher degree | B18: 4.102709309 | C18: 4.348487852 | D18: 7.351263659 | E18: 8.370072729 | F18: 9.126268653 | H18: =IF(D6>0,H6/D6*100,0) -> 33.00783726
A19: =$A$7 -> QCF6 First degree | B19: 9.365331616 | C19: 12.50107768 | D19: 17.60043825 | E19: 21.34522561 | F19: 24.49942504 | H19: 49.13459274
A20: =$A$8 -> QCF5 Foundation degree;Nursing;Teaching | B20: 7.624571037 | C20: 5.612904855 | D20: 5.471664702 | E20: 5.848009611 | F20: 6.195760422 | H20: 21.316849
A21: =$A$9 -> QCF4 HE below degree level | B21: 5.777447898 | C21: 4.638594128 | D21: 5.087014705 | E21: 5.962559401 | F21: 6.641661635 | H21: 39.8813243
A22: =$A$10 -> QCF3 A level & equivalent | B22: 19.83192603 | C22: 19.89141511 | D22: 21.09456698 | E22: 20.76431153 | F22: 20.49623385 | H22: 4.099689623
A23: =$A$11 -> QCF2 GCSE(A-C) & equivalent | B23: 22.98822527 | C23: 22.99629987 | D23: 22.32746025 | E23: 21.64138469 | F23: 20.54515837 | H23: -1.413794682
A24: =$A$12 -> QCF1 GCSE(below grade C) & equivalent | B24: 19.27352687 | C24: 19.21824011 | D24: 14.50039991 | E24: 12.05464828 | F24: 9.472610948 | H24: -30.01004684
A25: =$A$13 -> No Qualification | B25: 10.05893152 | C25: 10.05948308 | D25: 5.445857927 | E25: 2.73875839 | F25: 1.621792556 | H25: -68.09380776
A26: Total | B26: 100 | C26: 100 | D26: 100 | E26: 100 | F26: 100 | H26: 7.138603682
A27: =CELL("filename",$A$1) -> R:\Research Info\Individual research project info\Working Futures_ CG data task\East of England\[6EE_East_of_Eng.xlsm]Table 7.x.1
A29: Table 7.1.1 | B29: =$B$1 -> Industry Employment, 1994 to 2024, by Qualification Level
B30: =names!A4 -> Primary sector and utilities
A31: =$A$3 -> Qualification categories | H31: Change
A32: Employment Levels (000s) | B32: =B$4 -> 1994 | C32: =C$4 -> 2004 | D32: =D$4 -> 2014 | E32: =E$4 -> 2019 | F32: =F$4 -> 2024 | H32: =D32&" - "&F32 -> 2014 - 2024
A33: =$A$5 -> QCF8 Doctorate | B33: 755.6877227 | C33: 157.1900942 | D33: 424.6557392 | E33: 534.795343 | F33: 633.1952206 | H33: =F33-D33 -> 208.5394814
A34: =$A$6 -> QCF7 Other higher degree | B34: 3628.56865 | C34: 1349.732665 | D34: 2456.168642 | E34: 2818.408447 | F34: 3110.10754 | H34: =F34-D34 -> 653.9388975
A35: =$A$7 -> QCF6 First degree | B35: 6140.087698 | C35: 5199.959394 | D35: 9132.153961 | E35: 10868.90121 | F35: 12481.16316 | H35: 3349.009198
A36: =$A$8 -> QCF5 Foundation degree;Nursing;Teaching | B36: 4235.320286 | C36: 1696.822284 | D36: 2384.005201 | E36: 2691.915823 | F36: 3048.848618 | H36: 664.8434165
A37: =$A$9 -> QCF4 HE below degree level | B37: 6914.954799 | C37: 3660.956077 | D37: 5627.120967 | E37: 6445.97693 | F37: 7152.338417 | H37: 1525.21745
A38: =$A$10 -> QCF3 A level & equivalent | B38: 15680.67447 | C38: 11302.7152 | D38: 14086.0767 | E38: 12148.55404 | F38: 11064.9777 | H38: -3021.098998
A39: =$A$11 -> QCF2 GCSE(A-C) & equivalent | B39: 17824.52665 | C39: 16516.87445 | D39: 17264.57638 | E39: 15947.88939 | F39: 15072.28289 | H39: -2192.293489
A40: =$A$12 -> QCF1 GCSE(below grade C) & equivalent | B40: 16543.0221 | C40: 14931.66064 | D40: 11950.86126 | E40: 9278.750612 | F40: 7037.391714 | H40: -4913.469545
A41: =$A$13 -> No Qualification | B41: 13809.15763 | C41: 12670.0892 | D41: 6865.381148 | E41: 3500.808202 | F41: 2250.694737 | H41: -4614.686411
A42: Total | B42: =SUM(B33:B41) -> 85532 | C42: =SUM(C33:C41) -> 67486 | D42: =SUM(D33:D41) -> 70191 | E42: =SUM(E33:E41) -> 64236 | F42: =SUM(F33:F41) -> 61851 | H42: =SUM(H33:H41) -> -8340
A44: Percentage Shares | B44: =B$4 -> 1994 | C44: =C$4 -> 2004 | D44: =D$4 -> 2014 | E44: =E$4 -> 2019 | F44: =F$4 -> 2024 | H44: % change
A45: =$A$5 -> QCF8 Doctorate | B45: =B33/B$42*100 -> 0.8835146176 | C45: 0.2329225235 | D45: 0.6050002695 | E45: 0.8325477037 | F45: 1.023742899 | H45: =IF(D33>0,H33/D33*100,0) -> 49.10789192
A46: =$A$6 -> QCF7 Other higher degree | B46: 4.24235216 | C46: 2.000018767 | D46: 3.499264354 | E46: 4.387583983 | F46: 5.028386833 | H46: =IF(D34>0,H34/D34*100,0) -> 26.62434843
A47: =$A$7 -> QCF6 First degree | B47: 7.178702355 | C47: 7.705241671 | D47: 13.01043433 | E47: 16.92026466 | F47: 20.17940399 | H47: 36.6727194
A48: =$A$8 -> QCF5 Foundation degree;Nursing;Teaching | B48: 4.951737696 | C48: 2.514332282 | D48: 3.396454248 | E48: 4.190665394 | F48: 4.929344097 | H48: 27.88766636
A49: =$A$9 -> QCF4 HE below degree level | B49: 8.084640602 | C49: 5.424763768 | D49: 8.016869636 | E49: 10.0348355 | F49: 11.56382018 | H49: 27.10475675
A50: =$A$10 -> QCF3 A level & equivalent | B50: 18.33310863 | C50: 16.74823696 | D50: 20.06820917 | E50: 18.91237631 | F50: 17.88973129 | H50: -21.44741267
A51: =$A$11 -> QCF2 GCSE(A-C) & equivalent | B51: 20.83959997 | C51: 24.47451983 | D51: 24.59656706 | E51: 24.82702751 | F51: 24.36869718 | H51: -12.69821767
A52: =$A$12 -> QCF1 GCSE(below grade C) & equivalent | B52: 19.34132501 | C52: 22.12556773 | D52: 17.02620173 | E52: 14.4447827 | F52: 11.37797564 | H52: -41.1139368
A53: =$A$13 -> No Qualification | B53: 16.14501897 | C53: 18.77439647 | D53: 9.7809992 | E53: 5.449916249 | F53: 3.638897895 | H53: -67.21675478
A54: Total | B54: 100 | C54: 100 | D54: 100 | E54: 100 | F54: 100 | H54: -11.8818652
A55: =$A$27 -> R:\Research Info\Individual research project info\Working Futures_ CG data task\East of England\[6EE_East_of_Eng.xlsm]Table 7.x.1
A57: Table 7.1.2 | B57: =$B$1 -> Industry Employment, 1994 to 2024, by Qualification Level
B58: =names!A5 -> Manufacturing
A59: =$A$3 -> Qualification categories | H59: Change
A60: Employment Levels (000s) | B60: =B$4 -> 1994 | C60: =C$4 -> 2004 | D60: =D$4 -> 2014 | E60: =E$4 -> 2019 | F60: =F$4 -> 2024 | H60: =D60&" - "&F60 -> 2014 - 2024
A61: =$A$5 -> QCF8 Doctorate | B61: 3779.437441 | C61: 2716.387703 | D61: 2014.567298 | E61: 2328.764882 | F61: 2445.335194 | H61: =F61-D61 -> 430.7678956
A62: =$A$6 -> QCF7 Other higher degree | B62: 8700.179052 | C62: 7691.155303 | D62: 10510.02151 | E62: 12426.27843 | F62: 12945.80671 | H62: =F62-D62 -> 2435.785199
A63: =$A$7 -> QCF6 First degree | B63: 27041.79759 | C63: 30625.82331 | D63: 33515.31769 | E63: 40965.22403 | F63: 44334.05977 | H63: 10818.74208
A64: =$A$8 -> QCF5 Foundation degree;Nursing;Teaching | B64: 10801.06862 | C64: 8566.154887 | D64: 7803.423188 | E64: 9621.306291 | F64: 10461.63772 | H64: 2658.214537
A65: =$A$9 -> QCF4 HE below degree level | B65: 24143.7984 | C65: 20457.35511 | D65: 18002.95145 | E65: 20656.30313 | F65: 21249.43992 | H65: 3246.488471
A66: =$A$10 -> QCF3 A level & equivalent | B66: 64852.09726 | C66: 65609.8382 | D66: 56256.77523 | E66: 50709.90243 | F66: 43501.22526 | H66: -12755.54997
A67: =$A$11 -> QCF2 GCSE(A-C) & equivalent | B67: 69869.29306 | C67: 66517.01722 | D67: 52692.5294 | E67: 51854.51066 | F67: 45910.69136 | H67: -6781.838043
A68: =$A$12 -> QCF1 GCSE(below grade C) & equivalent | B68: 59321.36365 | C68: 57079.77033 | D68: 36156.32288 | E68: 31719.58982 | F68: 23670.14578 | H68: -12486.1771
A69: =$A$13 -> No Qualification | B69: 39796.96493 | C69: 38380.49794 | D69: 14271.09135 | E69: 7184.120335 | F69: 3910.658277 | H69: -10360.43307
A70: Total | B70: =SUM(B61:B69) -> 308306 | C70: =SUM(C61:C69) -> 297644 | D70: =SUM(D61:D69) -> 231223 | E70: =SUM(E61:E69) -> 227466 | F70: =SUM(F61:F69) -> 208429 | H70: =SUM(H61:H69) -> -22794
A72: Percentage Shares | B72: =B$4 -> 1994 | C72: =C$4 -> 2004 | D72: =D$4 -> 2014 | E72: =E$4 -> 2019 | F72: =F$4 -> 2024 | H72: % change
A73: =$A$5 -> QCF8 Doctorate | B73: =B61/B$70*100 -> 1.225872166 | C73: 0.9126297532 | D73: 0.8712659632 | E73: 1.02378592 | F73: 1.173222149 | H73: =IF(D61>0,H61/D61*100,0) -> 21.38265105
A74: =$A$6 -> QCF7 Other higher degree | B74: 2.821929853 | C74: 2.584011538 | D74: 4.545404872 | E74: 5.462916845 | F74: 6.211135066 | H74: =IF(D62>0,H62/D62*100,0) -> 23.17583458
A75: =$A$7 -> QCF6 First degree | B75: 8.771090277 | C75: 10.28941397 | D75: 14.49480272 | E75: 18.00938339 | F75: 21.27058124 | H75: 32.27999263
A76: =$A$8 -> QCF5 Foundation degree;Nursing;Teaching | B76: 3.50335985 | C76: 2.877986751 | D76: 3.374847307 | E76: 4.229777765 | F76: 5.019281254 | H76: 34.06472355
A77: =$A$9 -> QCF4 HE below degree level | B77: 7.831115322 | C77: 6.873095076 | D77: 7.785969152 | E77: 9.081050853 | F77: 10.1950496 | H77: 18.03309018
A78: =$A$10 -> QCF3 A level & equivalent | B78: 21.03497735 | C78: 22.04305754 | D78: 24.33009486 | E78: 22.29339876 | F78: 20.87100416 | H78: -22.67380226
A79: =$A$11 -> QCF2 GCSE(A-C) & equivalent | B79: 22.66232025 | C79: 22.34784414 | D79: 22.78861939 | E79: 22.79659846 | F79: 22.02701705 | H79: -12.87058739
A80: =$A$12 -> QCF1 GCSE(below grade C) & equivalent | B80: 19.24106688 | C80: 19.17719501 | D80: 15.63699238 | E80: 13.94476089 | F80: 11.35645509 | H80: -34.53386878
A81: =$A$13 -> No Qualification | B81: 12.90826806 | C81: 12.89476621 | D81: 6.172003367 | E81: 3.158327106 | F81: 1.876254397 | H81: -72.59734254
A82: Total | B82: 100 | C82: 100 | D82: 100 | E82: 100 | F82: 100 | H82: -9.858015855
A83: =$A$27 -> R:\Research Info\Individual research project info\Working Futures_ CG data task\East of England\[6EE_East_of_Eng.xlsm]Table 7.x.1
A85: Table 7.1.3 | B85: =$B$1 -> Industry Employment, 1994 to 2024, by Qualification Level
B86: =names!A6 -> Construction
A87: =$A$3 -> Qualification categories | H87: Change
A88: Employment Levels (000s) | B88: =B$4 -> 1994 | C88: =C$4 -> 2004 | D88: =D$4 -> 2014 | E88: =E$4 -> 2019 | F88: =F$4 -> 2024 | H88: =D88&" - "&F88 -> 2014 - 2024
A89: =$A$5 -> QCF8 Doctorate | B89: 320.8082082 | C89: 358.3285471 | D89: 338.0758979 | E89: 531.2062524 | F89: 726.7412842 | H89: =F89-D89 -> 388.6653863
A90: =$A$6 -> QCF7 Other higher degree | B90: 1418.252667 | C90: 2860.654675 | D90: 5969.008208 | E90: 9114.860873 | F90: 12118.21478 | H90: =F90-D90 -> 6149.206567
A91: =$A$7 -> QCF6 First degree | B91: 7397.077301 | C91: 14213.03 | D91: 16256.60506 | E91: 23973.52728 | F91: 31916.4026 | H91: 15659.79754
A92: =$A$8 -> QCF5 Foundation degree;Nursing;Teaching | B92: 3996.117087 | C92: 5388.023116 | D92: 5768.036799 | E92: 8068.96284 | F92: 10362.78376 | H92: 4594.746966
A93: =$A$9 -> QCF4 HE below degree level | B93: 8871.200267 | C93: 11578.76626 | D93: 12864.99366 | E93: 17749.54608 | F93: 22244.06935 | H93: 9379.075693
A94: =$A$10 -> QCF3 A level & equivalent | B94: 52025.2118 | C94: 70800.14505 | D94: 65743.88349 | E94: 66695.22185 | F94: 66291.21637 | H94: 547.3328849
A95: =$A$11 -> QCF2 GCSE(A-C) & equivalent | B95: 40668.67625 | C95: 61042.23958 | D95: 57767.33162 | E95: 69025.75604 | F95: 76892.29704 | H95: 19124.96542
A96: =$A$12 -> QCF1 GCSE(below grade C) & equivalent | B96: 26055.40068 | C96: 41319.70701 | D96: 32970.00887 | E96: 35367.38602 | F96: 32748.02485 | H96: -221.9840236
A97: =$A$13 -> No Qualification | B97: 18791.25574 | C97: 27536.10577 | D97: 13201.05641 | E97: 7914.532766 | F97: 4415.249975 | H97: -8785.806434
A98: Total | B98: =SUM(B89:B97) -> 159544 | C98: =SUM(C89:C97) -> 235097 | D98: =SUM(D89:D97) -> 210879 | E98: =SUM(E89:E97) -> 238441 | F98: =SUM(F89:F97) -> 257715 | H98: =SUM(H89:H97) -> 46836
A100: Percentage Shares | B100: =B$4 -> 1994 | C100: =C$4 -> 2004 | D100: =D$4 -> 2014 | E100: =E$4 -> 2019 | F100: =F$4 -> 2024 | H100: % change
A101: =$A$5 -> QCF8 Doctorate | B101: =B89/B$98*100 -> 0.201078203 | C101: 0.1524173201 | D101: 0.1603174796 | E101: 0.2227831004 | F101: 0.2819941735 | H101: =IF(D89>0,H89/D89*100,0) -> 114.9639441
A102: =$A$6 -> QCF7 Other higher degree | B102: 0.8889413997 | C102: 1.216797609 | D102: 2.830537042 | E102: 3.822690256 | F102: 4.702176736 | H102: =IF(D90>0,H90/D90*100,0) -> 103.0188995
A103: =$A$7 -> QCF6 First degree | B103: 4.636387016 | C103: 6.045602451 | D103: 7.708972946 | E103: 10.05428063 | F103: 12.3843791 | H103: 96.32883054
A104: =$A$8 -> QCF5 Foundation degree;Nursing;Teaching | B104: 2.504711608 | C104: 2.291829805 | D104: 2.735235277 | E104: 3.384050075 | F104: 4.021024684 | H104: 79.65876651
A105: =$A$9 -> QCF4 HE below degree level | B105: 5.560347157 | C105: 4.925101662 | D105: 6.10065187 | E105: 7.443999179 | F105: 8.631266845 | H105: 72.90385011
A106: =$A$10 -> QCF3 A level & equivalent | B106: 32.60869215 | C106: 30.11529073 | D106: 31.17611687 | E106: 27.97137315 | F106: 25.7226845 | H106: 0.8325228992
A107: =$A$11 -> QCF2 GCSE(A-C) & equivalent | B107: 25.49057078 | C107: 25.96470375 | D107: 27.3935914 | E107: 28.94877812 | F107: 29.83617447 | H107: 33.10688738
A108: =$A$12 -> QCF1 GCSE(below grade C) & equivalent | B108: 16.33116925 | C108: 17.57559944 | D108: 15.63456241 | E108: 14.83276199 | F108: 12.70706977 | H108: -0.673290761
A109: =$A$13 -> No Qualification | B109: 11.77810243 | C109: 11.71265723 | D109: 6.260014705 | E109: 3.319283498 | F109: 1.713229721 | H109: -66.55381328
A110: Total | B110: 100 | C110: 100 | D110: 100 | E110: 100 | F110: 100 | H110: 22.20989288
A111: =$A$27 -> R:\Research Info\Individual research project info\Working Futures_ CG data task\East of England\[6EE_East_of_Eng.xlsm]Table 7.x.1
A113: Table 7.1.4 | B113: =$B$1 -> Industry Employment, 1994 to 2024, by Qualification Level
B114: =names!A7 -> Trade, accomod. and transport
A115: =$A$3 -> Qualification categories | H115: Change
A116: Employment Levels (000s) | B116: =B$4 -> 1994 | C116: =C$4 -> 2004 | D116: =D$4 -> 2014 | E116: =E$4 -> 2019 | F116: =F$4 -> 2024 | H116: =D116&" - "&F116 -> 2014 - 2024
A117: =$A$5 -> QCF8 Doctorate | B117: 1389.532605 | C117: 647.2774927 | D117: 1550.850239 | E117: 2182.330848 | F117: 2620.916055 | H117: =F117-D117 -> 1070.065816
A118: =$A$6 -> QCF7 Other higher degree | B118: 8144.948121 | C118: 8167.270381 | D118: 17063.14018 | E118: 23361.85723 | F118: 28344.22735 | H118: =F118-D118 -> 11281.08717
A119: =$A$7 -> QCF6 First degree | B119: 26144.33619 | C119: 47959.03779 | D119: 80364.26576 | E119: 118186.6917 | F119: 155368.9701 | H119: 75004.70436
A120: =$A$8 -> QCF5 Foundation degree;Nursing;Teaching | B120: 18751.06032 | C120: 16643.60424 | D120: 25226.68436 | E120: 35599.03542 | F120: 45265.70379 | H120: 20039.01943
A121: =$A$9 -> QCF4 HE below degree level | B121: 31304.18657 | C121: 24536.5655 | D121: 30298.22647 | E121: 40998.2109 | F121: 50993.45401 | H121: 20695.22754
A122: =$A$10 -> QCF3 A level & equivalent | B122: 151796.8368 | C122: 165306.3375 | D122: 186874.0641 | E122: 201375.9279 | F122: 209801.9966 | H122: 22927.93245
A123: =$A$11 -> QCF2 GCSE(A-C) & equivalent | B123: 192458.8188 | C123: 217016.9909 | D123: 230779.1837 | E123: 243905.4742 | F123: 241592.3176 | H123: 10813.13396
A124: =$A$12 -> QCF1 GCSE(below grade C) & equivalent | B124: 166209.5007 | C124: 191165.4743 | D124: 160147.7691 | E124: 143776.245 | F124: 115613.4111 | H124: -44534.35792
A125: =$A$13 -> No Qualification | B125: 83831.77987 | C125: 102744.4419 | D125: 64719.81611 | E125: 34543.22683 | F125: 20858.00332 | H125: -43861.81279
A126: Total | B126: =SUM(B117:B125) -> 680031 | C126: =SUM(C117:C125) -> 774187 | D126: =SUM(D117:D125) -> 797024 | E126: =SUM(E117:E125) -> 843929 | F126: =SUM(F117:F125) -> 870459 | H126: =SUM(H117:H125) -> 73435
A128: Percentage Shares | B128: =B$4 -> 1994 | C128: =C$4 -> 2004 | D128: =D$4 -> 2014 | E128: =E$4 -> 2019 | F128: =F$4 -> 2024 | H128: % change
A129: =$A$5 -> QCF8 Doctorate | B129: =B117/B$126*100 -> 0.2043337149 | C129: 0.08360738332 | D129: 0.194580118 | E129: 0.2585917593 | F129: 0.3010958649 | H129: =IF(D117>0,H117/D117*100,0) -> 68.99865561
A130: =$A$6 -> QCF7 Other higher degree | B130: 1.197731886 | C130: 1.054948014 | D130: 2.140856509 | E130: 2.768225435 | F130: 3.256239219 | H130: =IF(D118>0,H118/D118*100,0) -> 66.11378121
A131: =$A$7 -> QCF6 First degree | B131: 3.844580054 | C131: 6.194761446 | D131: 10.08304214 | E131: 14.00434062 | F131: 17.84908538 | H131: 93.33091474
A132: =$A$8 -> QCF5 Foundation degree;Nursing;Teaching | B132: 2.757383166 | C132: 2.149817064 | D132: 3.165109753 | E132: 4.218250045 | F132: 5.200210899 | H132: 79.43580356
A133: =$A$9 -> QCF4 HE below degree level | B133: 4.60334699 | C133: 3.169333184 | D133: 3.80141959 | E133: 4.858016599 | F133: 5.858225834 | H133: 68.30507902
A134: =$A$10 -> QCF3 A level & equivalent | B134: 22.32204661 | C134: 21.3522492 | D134: 23.44647892 | E134: 23.86171442 | F134: 24.1024559 | H134: 12.26918917
A135: =$A$11 -> QCF2 GCSE(A-C) & equivalent | B135: 28.30147726 | C135: 28.03159842 | D135: 28.95511097 | E135: 28.90118413 | F135: 27.75458897 | H135: 4.6854893
A136: =$A$12 -> QCF1 GCSE(below grade C) & equivalent | B136: 24.44145939 | C136: 24.69241595 | D136: 20.0932179 | E136: 17.03653328 | F136: 13.28189049 | H136: -27.80829117
A137: =$A$13 -> No Qualification | B137: 12.32764093 | C137: 13.27126934 | D137: 8.120184099 | E137: 4.093143716 | F137: 2.39620744 | H137: -67.77184397
A138: Total | B138: 100 | C138: 100 | D138: 100 | E138: 100 | F138: 100 | H138: 9.213649777
A139: =$A$27 -> R:\Research Info\Individual research project info\Working Futures_ CG data task\East of England\[6EE_East_of_Eng.xlsm]Table 7.x.1
A141: Table 7.1.5 | B141: =$B$1 -> Industry Employment, 1994 to 2024, by Qualification Level
B142: =names!A8 -> Business and other services
A143: =$A$3 -> Qualification categories | H143: Change
A144: Employment Levels (000s) | B144: =B$4 -> 1994 | C144: =C$4 -> 2004 | D144: =D$4 -> 2014 | E144: =E$4 -> 2019 | F144: =F$4 -> 2024 | H144: =D144&" - "&F144 -> 2014 - 2024
A145: =$A$5 -> QCF8 Doctorate | B145: 8455.706457 | C145: 6535.846435 | D145: 12151.41583 | E145: 14704.06127 | F145: 16394.91106 | H145: =F145-D145 -> 4243.49523
A146: =$A$6 -> QCF7 Other higher degree | B146: 28125.51549 | C146: 43693.80418 | D146: 87070.30997 | E146: 105582.596 | F146: 116913.3741 | H146: =F146-D146 -> 29843.06409
A147: =$A$7 -> QCF6 First degree | B147: 86638.88839 | C147: 148530.8797 | D147: 224899.7838 | E147: 279066.803 | F147: 317317.8427 | H147: 92418.05893
A148: =$A$8 -> QCF5 Foundation degree;Nursing;Teaching | B148: 47456.153 | C148: 44875.57882 | D148: 41869.18186 | E148: 51192.17461 | F148: 60746.49711 | H148: 18877.31525
A149: =$A$9 -> QCF4 HE below degree level | B149: 37061.77757 | C149: 43977.23555 | D149: 52472.82295 | E149: 62944.03065 | F149: 70430.70434 | H149: 17957.88139
A150: =$A$10 -> QCF3 A level & equivalent | B150: 120642.4421 | C150: 150083.288 | D150: 160669.8153 | E150: 153212.5954 | F150: 145559.6672 | H150: -15110.14811
A151: =$A$11 -> QCF2 GCSE(A-C) & equivalent | B151: 124054.0044 | C151: 167516.2677 | D151: 173642.0547 | E151: 169636.8018 | F151: 163438.629 | H151: -10203.42568
A152: =$A$12 -> QCF1 GCSE(below grade C) & equivalent | B152: 85839.63348 | C152: 136369.1954 | D152: 122290.9687 | E152: 111538.9918 | F152: 94928.74046 | H152: -27362.22823
A153: =$A$13 -> No Qualification | B153: 41083.87914 | C153: 63932.90414 | D153: 47415.64685 | E153: 25904.94547 | F153: 16939.63396 | H153: -30476.01288
A154: Total | B154: =SUM(B145:B153) -> 579358 | C154: =SUM(C145:C153) -> 805515 | D154: =SUM(D145:D153) -> 922482 | E154: =SUM(E145:E153) -> 973783 | F154: =SUM(F145:F153) -> 1002670 | H154: =SUM(H145:H153) -> 80188
A156: Percentage Shares | B156: =B$4 -> 1994 | C156: =C$4 -> 2004 | D156: =D$4 -> 2014 | E156: =E$4 -> 2019 | F156: =F$4 -> 2024 | H156: % change
A157: =$A$5 -> QCF8 Doctorate | B157: =B145/B$154*100 -> 1.459495935 | C157: 0.8113873031 | D157: 1.317252351 | E157: 1.50999363 | F157: 1.635125321 | H157: =IF(D145>0,H145/D145*100,0) -> 34.92181726
A158: =$A$6 -> QCF7 Other higher degree | B158: 4.854600349 | C158: 5.424331536 | D158: 9.438700156 | E158: 10.84251789 | F158: 11.66020466 | H158: =IF(D146>0,H146/D146*100,0) -> 34.27467308
A159: =$A$7 -> QCF6 First degree | B159: 14.95429223 | C159: 18.43924443 | D159: 24.37985606 | E159: 28.65800727 | F159: 31.64728602 | H159: 41.09299589
A160: =$A$8 -> QCF5 Foundation degree;Nursing;Teaching | B160: 8.191162114 | C160: 5.571041982 | D160: 4.538753261 | E160: 5.257041313 | F160: 6.058473587 | H160: 45.08642017
A161: =$A$9 -> QCF4 HE below degree level | B161: 6.397042514 | C161: 5.459517892 | D161: 5.688221879 | E161: 6.463866247 | F161: 7.024315512 | H161: 34.22320428
A162: =$A$10 -> QCF3 A level & equivalent | B162: 20.82347047 | C162: 18.63196688 | D162: 17.417122 | E162: 15.7337513 | F162: 14.51720578 | H162: -9.404472194
A163: =$A$11 -> QCF2 GCSE(A-C) & equivalent | B163: 21.41232268 | C163: 20.79616987 | D163: 18.82335425 | E163: 17.42039056 | F163: 16.30034099 | H163: -5.87612586
A164: =$A$12 -> QCF1 GCSE(below grade C) & equivalent | B164: 14.81633696 | C164: 16.92944208 | D164: 13.25673224 | E164: 11.45419378 | F164: 9.467595566 | H164: -22.37469252
A165: =$A$13 -> No Qualification | B165: 7.091276748 | C165: 7.936898027 | D165: 5.14000781 | E165: 2.660238006 | F165: 1.689452558 | H165: -64.27416878
A166: Total | B166: 100 | C166: 100 | D166: 100 | E166: 100 | F166: 100 | H166: 8.692635737
A167: =$A$27 -> R:\Research Info\Individual research project info\Working Futures_ CG data task\East of England\[6EE_East_of_Eng.xlsm]Table 7.x.1
A169: Table 7.1.6 | B169: =$B$1 -> Industry Employment, 1994 to 2024, by Qualification Level
B170: =names!A9 -> Non-market services
A171: =$A$3 -> Qualification categories | H171: Change
A172: Employment Levels (000s) | B172: =B$4 -> 1994 | C172: =C$4 -> 2004 | D172: =D$4 -> 2014 | E172: =E$4 -> 2019 | F172: =F$4 -> 2024 | H172: =D172&" - "&F172 -> 2014 - 2024
A173: =$A$5 -> QCF8 Doctorate | B173: 8072.874767 | C173: 9784.92107 | D173: 16643.47532 | E173: 18955.7657 | F173: 21520.04633 | H173: =F173-D173 -> 4876.571014
A174: =$A$6 -> QCF7 Other higher degree | B174: 45585.09916 | C174: 55991.38992 | D174: 94080.10816 | E174: 104271.0929 | F174: 115393.1345 | H174: =F174-D174 -> 21313.02629
A175: =$A$7 -> QCF6 First degree | B175: 64871.57975 | C175: 97741.32315 | D175: 155730.6911 | E175: 183802.738 | F175: 213930.5456 | H175: 58199.85448
A176: =$A$8 -> QCF5 Foundation degree;Nursing;Teaching | B176: 92430.32237 | C176: 77404.89444 | D176: 78576.00807 | E176: 72789.3931 | F176: 66195.72437 | H176: -12380.2837
A177: =$A$9 -> QCF4 HE below degree level | B177: 26331.90654 | C177: 23532.43209 | D177: 30999.05925 | E177: 34693.80001 | F177: 38122.91037 | H177: 7123.851115
A178: =$A$10 -> QCF3 A level & equivalent | B178: 57132.22754 | C178: 84691.93168 | D178: 139481.1664 | E178: 154845.0169 | F178: 172438.3471 | H178: 32957.18079
A179: =$A$11 -> QCF2 GCSE(A-C) & equivalent | B179: 90803.20263 | C179: 104691.0014 | D179: 127384.5026 | E179: 115607.2571 | F179: 107299.5578 | H179: -20084.94476
A180: =$A$12 -> QCF1 GCSE(below grade C) & equivalent | B180: 95148.58458 | C180: 88389.72699 | D180: 64810.94707 | E180: 39280.82675 | F180: 25788.06721 | H180: -39022.87986
A181: =$A$13 -> No Qualification | B181: 37083.20269 | C181: 31766.37922 | D181: 14392.04207 | E181: 5233.109505 | F181: 2951.666703 | H181: -11440.37537
A182: Total | B182: =SUM(B173:B181) -> 517459 | C182: =SUM(C173:C181) -> 573994 | D182: =SUM(D173:D181) -> 722098 | E182: =SUM(E173:E181) -> 729479 | F182: =SUM(F173:F181) -> 763640 | H182: =SUM(H173:H181) -> 41542
A184: Percentage Shares | B184: =B$4 -> 1994 | C184: =C$4 -> 2004 | D184: =D$4 -> 2014 | E184: =E$4 -> 2019 | F184: =F$4 -> 2024 | H184: % change
A185: =$A$5 -> QCF8 Doctorate | B185: =B173/B$182*100 -> 1.560099402 | C185: 1.704707901 | D185: 2.304877637 | E185: 2.598534804 | F185: 2.818087886 | H185: =IF(D173>0,H173/D173*100,0) -> 29.30019675
A186: =$A$6 -> QCF7 Other higher degree | B186: 8.809412757 | C186: 9.754699513 | D186: 13.02871745 | E186: 14.29391291 | F186: 15.11093375 | H186: =IF(D174>0,H174/D174*100,0) -> 22.65412605
A187: =$A$7 -> QCF6 First degree | B187: 12.5365642 | C187: 17.02828307 | D187: 21.5664205 | E187: 25.19643992 | F187: 28.0145809 | H187: 37.37211597
A188: =$A$8 -> QCF5 Foundation degree;Nursing;Teaching | B188: 17.86234704 | C188: 13.48531421 | D188: 10.8816266 | E188: 9.978271218 | F188: 8.668446436 | H188: -15.75580639
A189: =$A$9 -> QCF4 HE below degree level | B189: 5.088694281 | C189: 4.0997697 | D189: 4.292915816 | E189: 4.755969673 | F189: 4.992262108 | H189: 22.98086228
A190: =$A$10 -> QCF3 A level & equivalent | B190: 11.04091871 | C190: 14.75484616 | D190: 19.31609925 | E190: 21.22679569 | F190: 22.5811046 | H190: 23.62840923
A191: =$A$11 -> QCF2 GCSE(A-C) & equivalent | B191: 17.54790285 | C191: 18.23904108 | D191: 17.64088844 | E191: 15.8479212 | F191: 14.05106566 | H191: -15.76718074
A192: =$A$12 -> QCF1 GCSE(below grade C) & equivalent | B192: 18.38765672 | C192: 15.39906811 | D192: 8.975367204 | E192: 5.38477828 | F192: 3.376992721 | H192: -60.2103219
A193: =$A$13 -> No Qualification | B193: 7.166404041 | C193: 5.534270257 | D193: 1.993087098 | E193: 0.7173763062 | F193: 0.3865259419 | H193: -79.49098059
A194: Total | B194: 100 | C194: 100 | D194: 100 | E194: 100 | F194: 100 | H194: 5.75295874
A195: =$A$27 -> R:\Research Info\Individual research project info\Working Futures_ CG data task\East of England\[6EE_East_of_Eng.xlsm]Table 7.x.1

Sheet Table 7.x.2
A1: Table 7.2.0 | B1: ="Occupational Employment, "&B4&" to "&F4&", by Qualification Level" -> Occupational Employment, 1994 to 2024, by Qualification Level
B2: All Occupations
A3: Qualification categories | H3: Change
A4: Employment Levels (000s) | B4: =All!F7 -> 1994 | C4: =All!P7 -> 2004 | D4: =All!Z7 -> 2014 | E4: =All!AE7 -> 2019 | F4: =All!AJ7 -> 2024 | H4: =D4&" - "&F4 -> 2014 - 2024
A5: =names!D4 -> QCF8 Doctorate | B5: 22774.0472 | C5: 20199.95134 | D5: 33123.04032 | E5: 39236.9243 | F5: 44341.14515 | H5: =F5-D5 -> 11218.10482
A6: =names!D5 -> QCF7 Other higher degree | B6: 95602.56314 | C6: 119754.0071 | D6: 217148.7567 | E6: 257575.0939 | F6: 288824.8649 | H6: =F6-D6 -> 71676.10822
A7: =names!D6 -> QCF6 First degree | B7: 218233.7669 | C7: 344270.0534 | D7: 519898.8174 | E7: 656863.8852 | F7: 775348.984 | H7: 255450.1666
A8: =names!D7 -> QCF5 Foundation degree;Nursing;Teaching | B8: 177670.0417 | C8: 154575.0778 | D8: 161627.3395 | E8: 179962.7881 | F8: 196081.1954 | H8: 34453.8559
A9: =names!D8 -> QCF4 HE below degree level | B9: 134627.8242 | C9: 127743.3106 | D9: 150265.1748 | E9: 183487.8677 | F9: 210192.9164 | H9: 59927.74166
A10: =names!D9 -> QCF3 A level & equivalent | B10: 462129.4899 | C10: 547794.2557 | D10: 623111.7812 | E10: 638987.2186 | F10: 648657.4303 | H10: 25545.64904
A11: =names!D10 -> QCF2 GCSE(A-C) & equivalent | B11: 535678.5218 | C11: 633300.3913 | D11: 659530.1784 | E11: 665977.6892 | F11: 650205.7758 | H11: -9324.402587
A12: =names!D11 -> QCF1 GCSE(below grade C) & equivalent | B12: 449117.5052 | C12: 529255.5346 | D12: 428326.8778 | E12: 370961.79 | F12: 299785.7811 | H12: -128541.0967
A13: =names!D12 -> No Qualification | B13: 234396.24 | C13: 277030.4182 | D13: 160865.0339 | E13: 84280.74311 | F13: 51325.90698 | H13: -109539.127
A14: Total | B14: =SUM(B5:B13) -> 2330230 | C14: =SUM(C5:C13) -> 2753923 | D14: =SUM(D5:D13) -> 2953897 | E14: 3077334 | F14: 3164764 | H14: =SUM(H5:H13) -> 210867
A16: Percentage Shares | B16: =B$4 -> 1994 | C16: =C$4 -> 2004 | D16: =D$4 -> 2014 | E16: =E$4 -> 2019 | F16: =F$4 -> 2024 | H16: % change
A17: =$A$5 -> QCF8 Doctorate | B17: =B5/B$14*100 -> 0.9773304438 | C17: 0.7334973179 | D17: 1.121333625 | E17: 1.27502976 | F17: 1.401088522 | H17: =IF(D5>0,H5/D5*100,0) -> 33.86798046
A18: =$A$6 -> QCF7 Other higher degree | B18: 4.102709309 | C18: 4.348487852 | D18: 7.351263659 | E18: 8.370072729 | F18: 9.126268653 | H18: =IF(D6>0,H6/D6*100,0) -> 33.00783726
A19: =$A$7 -> QCF6 First degree | B19: 9.365331616 | C19: 12.50107768 | D19: 17.60043825 | E19: 21.34522561 | F19: 24.49942504 | H19: 49.13459274
A20: =$A$8 -> QCF5 Foundation degree;Nursing;Teaching | B20: 7.624571037 | C20: 5.612904855 | D20: 5.471664702 | E20: 5.848009611 | F20: 6.195760422 | H20: 21.316849
A21: =$A$9 -> QCF4 HE below degree level | B21: 5.777447898 | C21: 4.638594128 | D21: 5.087014705 | E21: 5.962559401 | F21: 6.641661635 | H21: 39.8813243
A22: =$A$10 -> QCF3 A level & equivalent | B22: 19.83192603 | C22: 19.89141511 | D22: 21.09456698 | E22: 20.76431153 | F22: 20.49623385 | H22: 4.099689623
A23: =$A$11 -> QCF2 GCSE(A-C) & equivalent | B23: 22.98822527 | C23: 22.99629987 | D23: 22.32746025 | E23: 21.64138469 | F23: 20.54515837 | H23: -1.413794682
A24: =$A$12 -> QCF1 GCSE(below grade C) & equivalent | B24: 19.27352687 | C24: 19.21824011 | D24: 14.50039991 | E24: 12.05464828 | F24: 9.472610948 | H24: -30.01004684
A25: =$A$13 -> No Qualification | B25: 10.05893152 | C25: 10.05948308 | D25: 5.445857927 | E25: 2.73875839 | F25: 1.621792556 | H25: -68.09380776
A26: Total | B26: 100 | C26: 100 | D26: 100 | E26: 100 | F26: 100 | H26: 7.138603682
A27: =CELL("filename",$A$1) -> R:\Research Info\Individual research project info\Working Futures_ CG data task\East of England\[6EE_East_of_Eng.xlsm]Table 7.x.2
A29: Table 7.2.1 | B29: =$B$1 -> Occupational Employment, 1994 to 2024, by Qualification Level
B30: =names!C4 -> 11 Corporate managers and directors
A31: =$A$3 -> Qualification categories | H31: Change
A32: Employment Levels (000s) | B32: =B$4 -> 1994 | C32: =C$4 -> 2004 | D32: =D$4 -> 2014 | E32: =E$4 -> 2019 | F32: =F$4 -> 2024 | H32: =D32&" - "&F32 -> 2014 - 2024
A33: =$A$5 -> QCF8 Doctorate | B33: 2010.911818 | C33: 1497.162517 | D33: 2324.271906 | E33: 2910.172153 | F33: 3321.950692 | H33: =F33-D33 -> 997.678787
A34: =$A$6 -> QCF7 Other higher degree | B34: 7933.259596 | C34: 9684.354487 | D34: 18477.17422 | E34: 22581.97369 | F34: 25576.67484 | H34: =F34-D34 -> 7099.500616
A35: =$A$7 -> QCF6 First degree | B35: 18757.51286 | C35: 33831.13396 | D35: 54665.69179 | E35: 72404.73297 | F35: 87564.76994 | H35: 32899.07815
A36: =$A$8 -> QCF5 Foundation degree;Nursing;Teaching | B36: 9291.560594 | C36: 10723.67108 | D36: 11316.3591 | E36: 12968.57088 | F36: 14092.23804 | H36: 2775.878939
A37: =$A$9 -> QCF4 HE below degree level | B37: 10971.97688 | C37: 13888.86369 | D37: 16465.84333 | E37: 20265.28474 | F37: 22965.97754 | H37: 6500.134211
A38: =$A$10 -> QCF3 A level & equivalent | B38: 23065.50022 | C38: 37965.18017 | D38: 42708.91236 | E38: 41888.09135 | F38: 40199.89064 | H38: -2509.021721
A39: =$A$11 -> QCF2 GCSE(A-C) & equivalent | B39: 23110.50606 | C39: 35071.38711 | D39: 37094.19276 | E39: 37682.21865 | F39: 35857.94197 | H39: -1236.250795
A40: =$A$12 -> QCF1 GCSE(below grade C) & equivalent | B40: 12857.33871 | C40: 23784.43338 | D40: 23018.55306 | E40: 22452.2681 | F40: 19103.99957 | H40: -3914.553492
A41: =$A$13 -> No Qualification | B41: 5486.679543 | C41: 8421.641689 | D41: 4493.919276 | E41: 2373.039496 | F41: 1551.374053 | H41: -2942.545223
A42: Total | B42: =SUM(B33:B41) -> 113485.2463 | C42: =SUM(C33:C41) -> 174867.8281 | D42: =SUM(D33:D41) -> 210564.9178 | E42: =SUM(E33:E41) -> 235526.352 | F42: =SUM(F33:F41) -> 250234.8173 | H42: =SUM(H33:H41) -> 39669.89947
A44: Percentage Shares | B44: =B$4 -> 1994 | C44: =C$4 -> 2004 | D44: =D$4 -> 2014 | E44: =E$4 -> 2019 | F44: =F$4 -> 2024 | H44: % change
A45: =$A$5 -> QCF8 Doctorate | B45: =B33/B$42*100 -> 1.771958809 | C45: 0.8561680745 | D45: 1.103826758 | E45: 1.235603629 | F45: 1.327533366 | H45: =IF(D33>0,H33/D33*100,0) -> 42.92435771
A46: =$A$6 -> QCF7 Other higher degree | B46: 6.990564727 | C46: 5.5380996 | D46: 8.775048766 | E46: 9.587875622 | F46: 10.2210696 | H46: =IF(D34>0,H34/D34*100,0) -> 38.4230864
A47: =$A$7 -> QCF6 First degree | B47: 16.52859158 | C47: 19.34668849 | D47: 25.96144332 | E47: 30.7416696 | F47: 34.99304009 | H47: 60.18231375
A48: =$A$8 -> QCF5 Foundation degree;Nursing;Teaching | B48: 8.187461277 | C48: 6.132443683 | D48: 5.374285146 | E48: 5.506208019 | F48: 5.631605622 | H48: 24.52978837
A49: =$A$9 -> QCF4 HE below degree level | B49: 9.668196737 | C49: 7.942492246 | D49: 7.819841737 | E49: 8.604253649 | F49: 9.177770618 | H49: 39.4764731
A50: =$A$10 -> QCF3 A level & equivalent | B50: 20.32466861 | C50: 21.71078613 | D50: 20.28301429 | E50: 17.78488521 | F50: 16.06486702 | H50: -5.874702919
A51: =$A$11 -> QCF2 GCSE(A-C) & equivalent | B51: 20.36432648 | C51: 20.05594025 | D51: 17.61651141 | E51: 15.99915182 | F51: 14.32971733 | H51: -3.332734057
A52: =$A$12 -> QCF1 GCSE(below grade C) & equivalent | B52: 11.32952444 | C52: 13.60137748 | D52: 10.93180825 | E52: 9.532805102 | F52: 7.634429045 | H52: -17.00607975
A53: =$A$13 -> No Qualification | B53: 4.83470735 | C53: 4.816004054 | D53: 2.134220326 | E53: 1.007547341 | F53: 0.6199673052 | H53: -65.47837293
A54: Total | B54: 100 | C54: 100 | D54: 100 | E54: 100 | F54: 100 | H54: 18.8397478
A55: =$A$27 -> R:\Research Info\Individual research project info\Working Futures_ CG data task\East of England\[6EE_East_of_Eng.xlsm]Table 7.x.2
A57: Table 7.2.2 | B57: =$B$1 -> Occupational Employment, 1994 to 2024, by Qualification Level
B58: =names!C5 -> 12 Other managers and proprietors
A59: =$A$3 -> Qualification categories | H59: Change
A60: Employment Levels (000s) | B60: =B$4 -> 1994 | C60: =C$4 -> 2004 | D60: =D$4 -> 2014 | E60: =E$4 -> 2019 | F60: =F$4 -> 2024 | H60: =D60&" - "&F60 -> 2014 - 2024
A61: =$A$5 -> QCF8 Doctorate | B61: 537.2574888 | C61: 367.4272394 | D61: 833.081418 | E61: 1089.795553 | F61: 1311.033429 | H61: =F61-D61 -> 477.9520113
A62: =$A$6 -> QCF7 Other higher degree | B62: 3106.35567 | C62: 3085.021877 | D62: 7323.992503 | E62: 9038.823326 | F62: 10344.82467 | H62: =F62-D62 -> 3020.832167
A63: =$A$7 -> QCF6 First degree | B63: 6177.842708 | C63: 10232.61971 | D63: 19248.86943 | E63: 25350.26407 | F63: 30950.38983 | H63: 11701.5204
A64: =$A$8 -> QCF5 Foundation degree;Nursing;Teaching | B64: 5084.498784 | C64: 4513.211719 | D64: 6641.426277 | E64: 8485.112989 | F64: 10249.16221 | H64: 3607.735929
A65: =$A$9 -> QCF4 HE below degree level | B65: 4696.306145 | C65: 4389.148534 | D65: 6528.572512 | E65: 8288.142504 | F65: 9739.523287 | H65: 3210.950775
A66: =$A$10 -> QCF3 A level & equivalent | B66: 18302.67618 | C66: 18815.66145 | D66: 21301.06575 | E66: 20203.78869 | F66: 19148.02758 | H66: -2153.038177
A67: =$A$11 -> QCF2 GCSE(A-C) & equivalent | B67: 18853.10545 | C67: 19161.70161 | D67: 22040.53915 | E67: 22915.47375 | F67: 23209.80375 | H67: 1169.264605
A68: =$A$12 -> QCF1 GCSE(below grade C) & equivalent | B68: 13623.6995 | C68: 15900.89532 | D68: 13389.10093 | E68: 11681.90607 | F68: 9407.079999 | H68: -3982.02093
A69: =$A$13 -> No Qualification | B69: 9232.02881 | C69: 8853.205907 | D69: 5577.909139 | E69: 3091.915261 | F69: 2030.569627 | H69: -3547.339512
A70: Total | B70: =SUM(B61:B69) -> 79613.77074 | C70: =SUM(C61:C69) -> 85318.89337 | D70: =SUM(D61:D69) -> 102884.5571 | E70: =SUM(E61:E69) -> 110145.2222 | F70: =SUM(F61:F69) -> 116390.4144 | H70: =SUM(H61:H69) -> 13505.85727
A72: Percentage Shares | B72: =B$4 -> 1994 | C72: =C$4 -> 2004 | D72: =D$4 -> 2014 | E72: =E$4 -> 2019 | F72: =F$4 -> 2024 | H72: % change
A73: =$A$5 -> QCF8 Doctorate | B73: =B61/B$70*100 -> 0.6748298489 | C73: 0.4306516703 | D73: 0.8097244537 | E73: 0.9894170001 | F73: 1.12641014 | H73: =IF(D61>0,H61/D61*100,0) -> 57.37158469
A74: =$A$6 -> QCF7 Other higher degree | B74: 3.901781867 | C74: 3.615871884 | D74: 7.118650951 | E74: 8.206278171 | F74: 8.888038353 | H74: =IF(D62>0,H62/D62*100,0) -> 41.24570261
A75: =$A$7 -> QCF6 First degree | B75: 7.759766496 | C75: 11.99338073 | D75: 18.7091921 | E75: 23.01530975 | F75: 26.59187184 | H75: 60.79068928
A76: =$A$8 -> QCF5 Foundation degree;Nursing;Teaching | B76: 6.386456435 | C76: 5.289815117 | D76: 6.45522172 | E76: 7.703568815 | F76: 8.805847338 | H76: 54.32170409
A77: =$A$9 -> QCF4 HE below degree level | B77: 5.898861593 | C77: 5.144403966 | D77: 6.345532017 | E77: 7.524740826 | F77: 8.367977156 | H77: 49.18304529
A78: =$A$10 -> QCF3 A level & equivalent | B78: 22.98933464 | C78: 22.05333509 | D78: 20.70385134 | E78: 18.34286435 | F78: 16.45155031 | H78: -10.10765471
A79: =$A$11 -> QCF2 GCSE(A-C) & equivalent | B79: 23.6807091 | C79: 22.45891953 | D79: 21.42259224 | E79: 20.80478235 | F79: 19.94133613 | H79: 5.305063532
A80: =$A$12 -> QCF1 GCSE(below grade C) & equivalent | B80: 17.11223998 | C80: 18.63701542 | D80: 13.01371295 | E80: 10.60591266 | F80: 8.082349435 | H80: -29.74076416
A81: =$A$13 -> No Qualification | B81: 11.59602004 | C81: 10.37660658 | D81: 5.421522234 | E81: 2.807126082 | F81: 1.744619295 | H81: -63.5962226
A82: Total | B82: 100 | C82: 100 | D82: 100 | E82: 100 | F82: 100 | H82: 13.12719581
A83: =$A$27 -> R:\Research Info\Individual research project info\Working Futures_ CG data task\East of England\[6EE_East_of_Eng.xlsm]Table 7.x.2
A85: Table 7.2.3 | B85: =$B$1 -> Occupational Employment, 1994 to 2024, by Qualification Level
B86: =names!C6 -> 21 Science, research, engineering and technology professionals
A87: =$A$3 -> Qualification categories | H87: Change
A88: Employment Levels (000s) | B88: =B$4 -> 1994 | C88: =C$4 -> 2004 | D88: =D$4 -> 2014 | E88: =E$4 -> 2019 | F88: =F$4 -> 2024 | H88: =D88&" - "&F88 -> 2014 - 2024
A89: =$A$5 -> QCF8 Doctorate | B89: 4996.670389 | C89: 5101.571925 | D89: 7483.183553 | E89: 8624.3926 | F89: 9393.122591 | H89: =F89-D89 -> 1909.939038
A90: =$A$6 -> QCF7 Other higher degree | B90: 9216.214225 | C90: 13667.27987 | D90: 25925.85109 | E90: 31018.56609 | F90: 34741.35687 | H90: =F90-D90 -> 8815.505782
A91: =$A$7 -> QCF6 First degree | B91: 29759.04657 | C91: 43067.43878 | D91: 58075.71296 | E91: 69675.13904 | F91: 77970.18964 | H91: 19894.47668
A92: =$A$8 -> QCF5 Foundation degree;Nursing;Teaching | B92: 6349.765295 | C92: 7138.406166 | D92: 6041.660752 | E92: 6522.079819 | F92: 7095.01071 | H92: 1053.349958
A93: =$A$9 -> QCF4 HE below degree level | B93: 14491.58721 | C93: 17210.02183 | D93: 15927.65844 | E93: 17272.92153 | F93: 16995.6216 | H93: 1067.963162
A94: =$A$10 -> QCF3 A level & equivalent | B94: 16043.63199 | C94: 25088.03517 | D94: 25621.30777 | E94: 22216.05311 | F94: 19249.10803 | H94: -6372.199745
A95: =$A$11 -> QCF2 GCSE(A-C) & equivalent | B95: 12259.46045 | C95: 18458.98835 | D95: 19958.12985 | E95: 19584.19423 | F95: 18640.93867 | H95: -1317.191175
A96: =$A$12 -> QCF1 GCSE(below grade C) & equivalent | B96: 6191.851445 | C96: 10704.56044 | D96: 9803.611559 | E96: 9048.57938 | F96: 7384.977164 | H96: -2418.634394
A97: =$A$13 -> No Qualification | B97: 1385.372227 | C97: 2765.092323 | D97: 2089.174964 | E97: 1347.486707 | F97: 964.8002517 | H97: -1124.374712
A98: Total | B98: =SUM(B89:B97) -> 100693.5998 | C98: =SUM(C89:C97) -> 143201.3949 | D98: =SUM(D89:D97) -> 170926.2909 | E98: =SUM(E89:E97) -> 185309.4125 | F98: =SUM(F89:F97) -> 192435.1255 | H98: =SUM(H89:H97) -> 21508.8346
A100: Percentage Shares | B100: =B$4 -> 1994 | C100: =C$4 -> 2004 | D100: =D$4 -> 2014 | E100: =E$4 -> 2019 | F100: =F$4 -> 2024 | H100: % change
A101: =$A$5 -> QCF8 Doctorate | B101: =B89/B$98*100 -> 4.962252217 | C101: 3.562515526 | D101: 4.378017865 | E101: 4.654049939 | F101: 4.881189214 | H101: =IF(D89>0,H89/D89*100,0) -> 25.52308152
A102: =$A$6 -> QCF7 Other higher degree | B102: 9.152730901 | C102: 9.544096889 | D102: 15.16785449 | E102: 16.73879684 | F102: 18.05354234 | H102: =IF(D90>0,H90/D90*100,0) -> 34.00276331
A103: =$A$7 -> QCF6 First degree | B103: 29.55405967 | C103: 30.07473414 | D103: 33.97705095 | E103: 37.5993524 | F103: 40.51764948 | H103: 34.25610408
A104: =$A$8 -> QCF5 Foundation degree;Nursing;Teaching | B104: 6.306026706 | C104: 4.984871951 | D104: 3.534658547 | E104: 3.519562083 | F104: 3.686962393 | H104: 17.434775
A105: =$A$9 -> QCF4 HE below degree level | B105: 14.39176595 | C105: 12.01805461 | D105: 9.318436827 | E105: 9.321124759 | F105: 8.83187077 | H105: 6.705085788
A106: =$A$10 -> QCF3 A level & equivalent | B106: 15.93311991 | C106: 17.51940698 | D106: 14.98968218 | E106: 11.98862638 | F106: 10.00290772 | H106: -24.8707045
A107: =$A$11 -> QCF2 GCSE(A-C) & equivalent | B107: 12.17501458 | C107: 12.89022943 | D107: 11.67645407 | E107: 10.56837533 | F107: 9.686869079 | H107: -6.59977255
A108: =$A$12 -> QCF1 GCSE(below grade C) & equivalent | B108: 6.149200601 | C108: 7.47517889 | D108: 5.735578479 | E108: 4.882957243 | F108: 3.837645099 | H108: -24.67085094
A109: =$A$13 -> No Qualification | B109: 1.375829477 | C109: 1.930911585 | D109: 1.222266599 | E109: 0.7271550261 | F109: 0.5013639007 | H109: -53.81907842
A110: Total | B110: 100 | C110: 100 | D110: 100 | E110: 100 | F110: 100 | H110: 12.58369001
A111: =$A$27 -> R:\Research Info\Individual research project info\Working Futures_ CG data task\East of England\[6EE_East_of_Eng.xlsm]Table 7.x.2
A113: Table 7.2.4 | B113: =$B$1 -> Occupational Employment, 1994 to 2024, by Qualification Level
B114: =names!C7 -> 22 Health professionals
A115: =$A$3 -> Qualification categories | H115: Change
A116: Employment Levels (000s) | B116: =B$4 -> 1994 | C116: =C$4 -> 2004 | D116: =D$4 -> 2014 | E116: =E$4 -> 2019 | F116: =F$4 -> 2024 | H116: =D116&" - "&F116 -> 2014 - 2024
A117: =$A$5 -> QCF8 Doctorate | B117: 1365.355865 | C117: 2782.769985 | D117: 5625.938011 | E117: 6592.717485 | F117: 7525.010011 | H117: =F117-D117 -> 1899.072
A118: =$A$6 -> QCF7 Other higher degree | B118: 6780.433394 | C118: 8727.091558 | D118: 16155.34764 | E118: 18543.59268 | F118: 20594.62991 | H118: =F118-D118 -> 4439.282269
A119: =$A$7 -> QCF6 First degree | B119: 13596.95707 | C119: 23231.48667 | D119: 38957.37303 | E119: 47909.02766 | F119: 57101.70139 | H119: 18144.32836
A120: =$A$8 -> QCF5 Foundation degree;Nursing;Teaching | B120: 35354.22024 | C120: 27253.42053 | D120: 20456.52203 | E120: 16309.97212 | F120: 10949.74975 | H120: -9506.772281
A121: =$A$9 -> QCF4 HE below degree level | B121: 2293.089159 | C121: 2546.161951 | D121: 2958.043272 | E121: 3559.168132 | F121: 4112.650823 | H121: 1154.607551
A122: =$A$10 -> QCF3 A level & equivalent | B122: 3143.424623 | C122: 6454.245871 | D122: 10461.12495 | E122: 12842.99388 | F122: 15178.5308 | H122: 4717.405849
A123: =$A$11 -> QCF2 GCSE(A-C) & equivalent | B123: 4054.328878 | C123: 7463.355031 | D123: 8674.579632 | E123: 9072.141538 | F123: 9021.734162 | H123: 347.1545295
A124: =$A$12 -> QCF1 GCSE(below grade C) & equivalent | B124: 2907.993932 | C124: 5220.098866 | D124: 5487.631018 | E124: 4808.819996 | F124: 3751.752086 | H124: -1735.878932
A125: =$A$13 -> No Qualification | B125: 468.61528 | C125: 772.5475481 | D125: 637.5209694 | E125: 454.8047677 | F125: 370.4773243 | H125: -267.0436451
A126: Total | B126: =SUM(B117:B125) -> 69964.41844 | C126: =SUM(C117:C125) -> 84451.17801 | D126: =SUM(D117:D125) -> 109414.0806 | E126: =SUM(E117:E125) -> 120093.2383 | F126: =SUM(F117:F125) -> 128606.2363 | H126: =SUM(H117:H125) -> 19192.1557
A128: Percentage Shares | B128: =B$4 -> 1994 | C128: =C$4 -> 2004 | D128: =D$4 -> 2014 | E128: =E$4 -> 2019 | F128: =F$4 -> 2024 | H128: % change
A129: =$A$5 -> QCF8 Doctorate | B129: =B117/B$126*100 -> 1.951500342 | C129: 3.295122757 | D129: 5.141877519 | E129: 5.489665847 | F129: 5.851201489 | H129: =IF(D117>0,H117/D117*100,0) -> 33.75565098
A130: =$A$6 -> QCF7 Other higher degree | B130: 9.691259565 | C130: 10.33388967 | D130: 14.76532779 | E130: 15.44099647 | F130: 16.01371015 | H130: =IF(D118>0,H118/D118*100,0) -> 27.47871706
A131: =$A$7 -> QCF6 First degree | B131: 19.4341029 | C131: 27.50877752 | D131: 35.60544752 | E131: 39.89319328 | F131: 44.40041405 | H131: 46.57482511
A132: =$A$8 -> QCF5 Foundation degree;Nursing;Teaching | B132: 50.53171459 | C132: 32.27121417 | D132: 18.69642548 | E132: 13.58109113 | F132: 8.51416702 | H132: -46.47306255
A133: =$A$9 -> QCF4 HE below degree level | B133: 3.277507639 | C133: 3.014951373 | D133: 2.703530713 | E133: 2.963670714 | F133: 3.197862672 | H133: 39.03281476
A134: =$A$10 -> QCF3 A level & equivalent | B134: 4.492890377 | C134: 7.642576484 | D134: 9.561040864 | E134: 10.69418567 | F134: 11.80232875 | H134: 45.09463246
A135: =$A$11 -> QCF2 GCSE(A-C) & equivalent | B135: 5.794843963 | C135: 8.837478892 | D135: 7.928211421 | E135: 7.554248407 | F135: 7.0150052 | H135: 4.001975245
A136: =$A$12 -> QCF1 GCSE(below grade C) & equivalent | B136: 4.156389772 | C136: 6.181203139 | D136: 5.015470577 | E136: 4.004238761 | F136: 2.917239626 | H136: -31.63257381
A137: =$A$13 -> No Qualification | B137: 0.6697908601 | C137: 0.914785994 | D137: 0.5826681228 | E137: 0.3787097212 | F137: 0.2880710415 | H137: -41.88782141
A138: Total | B138: 100 | C138: 100 | D138: 100 | E138: 100 | F138: 100 | H138: 17.5408463
A139: =$A$27 -> R:\Research Info\Individual research project info\Working Futures_ CG data task\East of England\[6EE_East_of_Eng.xlsm]Table 7.x.2
A141: Table 7.2.5 | B141: =$B$1 -> Occupational Employment, 1994 to 2024, by Qualification Level
B142: =names!C8 -> 23 Teaching and educational professionals
A143: =$A$3 -> Qualification categories | H143: Change
A144: Employment Levels (000s) | B144: =B$4 -> 1994 | C144: =C$4 -> 2004 | D144: =D$4 -> 2014 | E144: =E$4 -> 2019 | F144: =F$4 -> 2024 | H144: =D144&" - "&F144 -> 2014 - 2024
A145: =$A$5 -> QCF8 Doctorate | B145: 5257.416146 | C145: 6071.470439 | D145: 8990.920874 | E145: 10252.25678 | F145: 11556.5602 | H145: =F145-D145 -> 2565.639328
A146: =$A$6 -> QCF7 Other higher degree | B146: 25416.44918 | C146: 34177.83113 | D146: 53745.86187 | E146: 61146.15156 | F146: 67890.94157 | H146: =F146-D146 -> 14145.0797
A147: =$A$7 -> QCF6 First degree | B147: 30213.78948 | C147: 39129.94531 | D147: 45840.23405 | E147: 49293.91998 | F147: 50131.50283 | H147: 4291.268785
A148: =$A$8 -> QCF5 Foundation degree;Nursing;Teaching | B148: 23370.5324 | C148: 18085.74819 | D148: 9620.470688 | E148: 5629.972595 | F148: 3145.807828 | H148: -6474.66286
A149: =$A$9 -> QCF4 HE below degree level | B149: 2946.338689 | C149: 2776.420444 | D149: 2202.125424 | E149: 2423.792054 | F149: 2435.691201 | H149: 233.5657775
A150: =$A$10 -> QCF3 A level & equivalent | B150: 3995.946667 | C150: 5043.21831 | D150: 6481.513819 | E150: 6055.797587 | F150: 5826.260864 | H150: -655.252955
A151: =$A$11 -> QCF2 GCSE(A-C) & equivalent | B151: 3729.848383 | C151: 4880.587129 | D151: 6150.91478 | E151: 6016.339534 | F151: 6109.994356 | H151: -40.92042311
A152: =$A$12 -> QCF1 GCSE(below grade C) & equivalent | B152: 2572.257483 | C152: 3950.368906 | D152: 4165.128858 | E152: 3848.634327 | F152: 3254.107275 | H152: -911.0215833
A153: =$A$13 -> No Qualification | B153: 415.3764851 | C153: 578.5234025 | D153: 713.2468504 | E153: 485.1934685 | F153: 394.4421405 | H153: -318.8047098
A154: Total | B154: =SUM(B145:B153) -> 97917.95491 | C154: =SUM(C145:C153) -> 114694.1133 | D154: =SUM(D145:D153) -> 137910.4172 | E154: =SUM(E145:E153) -> 145152.0579 | F154: =SUM(F145:F153) -> 150745.3083 | H154: =SUM(H145:H153) -> 12834.89106
A156: Percentage Shares | B156: =B$4 -> 1994 | C156: =C$4 -> 2004 | D156: =D$4 -> 2014 | E156: =E$4 -> 2019 | F156: =F$4 -> 2024 | H156: % change
A157: =$A$5 -> QCF8 Doctorate | B157: =B145/B$154*100 -> 5.369205424 | C157: 5.293619931 | D157: 6.519392121 | E157: 7.063115006 | F157: 7.666281846 | H157: =IF(D145>0,H145/D145*100,0) -> 28.53589042
A158: =$A$6 -> QCF7 Other higher degree | B158: 25.95688319 | C158: 29.79911537 | D158: 38.97157514 | E158: 42.12558365 | F158: 45.03685212 | H158: =IF(D146>0,H146/D146*100,0) -> 26.31845357
A159: =$A$7 -> QCF6 First degree | B159: 30.8562301 | C159: 34.11678612 | D159: 33.23913811 | E159: 33.96019367 | F159: 33.25576325 | H159: 9.361358801
A160: =$A$8 -> QCF5 Foundation degree;Nursing;Teaching | B160: 23.86746376 | C160: 15.76868043 | D160: 6.975883971 | E160: 3.878672254 | F160: 2.08683631 | H160: -67.30089483
A161: =$A$9 -> QCF4 HE below degree level | B161: 3.008987158 | C161: 2.420717477 | D161: 1.596779611 | E161: 1.669829618 | F161: 1.615765843 | H161: 10.60637941
A162: =$A$10 -> QCF3 A level & equivalent | B162: 4.080913119 | C162: 4.397103013 | D162: 4.699800022 | E162: 4.172037018 | F162: 3.864969949 | H162: -10.10956658
A163: =$A$11 -> QCF2 GCSE(A-C) & equivalent | B163: 3.809156744 | C163: 4.255307435 | D163: 4.460079887 | E163: 4.144853074 | F163: 4.053190395 | H163: -0.6652737776
A164: =$A$12 -> QCF1 GCSE(below grade C) & equivalent | B164: 2.626951804 | C164: 3.444264744 | D164: 3.020169862 | E164: 2.651450061 | F164: 2.158678974 | H164: -21.87259061
A165: =$A$13 -> No Qualification | B165: 0.4242087015 | C165: 0.5044054887 | D165: 0.5171812723 | E165: 0.3342656491 | F165: 0.2616613048 | H165: -44.69766809
A166: Total | B166: 100 | C166: 100 | D166: 100 | E166: 100 | F166: 100 | H166: 9.306687138
A167: =$A$27 -> R:\Research Info\Individual research project info\Working Futures_ CG data task\East of England\[6EE_East_of_Eng.xlsm]Table 7.x.2
A169: Table 7.2.6 | B169: =$B$1 -> Occupational Employment, 1994 to 2024, by Qualification Level
B170: =names!C9 -> 24 Business, media and public service professionals
A171: =$A$3 -> Qualification categories | H171: Change
A172: Employment Levels (000s) | B172: =B$4 -> 1994 | C172: =C$4 -> 2004 | D172: =D$4 -> 2014 | E172: =E$4 -> 2019 | F172: =F$4 -> 2024 | H172: =D172&" - "&F172 -> 2014 - 2024
A173: =$A$5 -> QCF8 Doctorate | B173: 1035.887108 | C173: 1285.498774 | D173: 2031.004683 | E173: 2478.605444 | F173: 2753.935291 | H173: =F173-D173 -> 722.9306076
A174: =$A$6 -> QCF7 Other higher degree | B174: 9064.208161 | C174: 14221.65753 | D174: 26344.52459 | E174: 30896.86358 | F174: 33310.3711 | H174: =F174-D174 -> 6965.846513
A175: =$A$7 -> QCF6 First degree | B175: 24194.61322 | C175: 40166.90229 | D175: 56671.33262 | E175: 69169.7314 | F175: 77738.53879 | H175: 21067.20617
A176: =$A$8 -> QCF5 Foundation degree;Nursing;Teaching | B176: 20163.10018 | C176: 14329.48999 | D176: 5570.04168 | E176: 4537.973008 | F176: 4055.13771 | H176: -1514.90397
A177: =$A$9 -> QCF4 HE below degree level | B177: 5546.402499 | C177: 6606.005252 | D177: 8643.376791 | E177: 10262.25533 | F177: 11521.97455 | H177: 2878.597756
A178: =$A$10 -> QCF3 A level & equivalent | B178: 9264.79721 | C178: 15867.03077 | D178: 19564.99658 | E178: 19308.89361 | F178: 19235.149 | H178: -329.8475706
A179: =$A$11 -> QCF2 GCSE(A-C) & equivalent | B179: 9515.972091 | C179: 15290.7158 | D179: 14702.74237 | E179: 13774.13298 | F179: 12695.97908 | H179: -2006.763289
A180: =$A$12 -> QCF1 GCSE(below grade C) & equivalent | B180: 5121.05709 | C180: 9241.862534 | D180: 8273.386441 | E180: 7317.960336 | F180: 5804.944579 | H180: -2468.441862
A181: =$A$13 -> No Qualification | B181: 1415.628639 | C181: 2382.721541 | D181: 2080.077386 | E181: 1313.577674 | F181: 973.181502 | H181: -1106.895884
A182: Total | B182: =SUM(B173:B181) -> 85321.6662 | C182: =SUM(C173:C181) -> 119391.8845 | D182: =SUM(D173:D181) -> 143881.4831 | E182: =SUM(E173:E181) -> 159059.9934 | F182: =SUM(F173:F181) -> 168089.2116 | H182: =SUM(H173:H181) -> 24207.72847
A184: Percentage Shares | B184: =B$4 -> 1994 | C184: =C$4 -> 2004 | D184: =D$4 -> 2014 | E184: =E$4 -> 2019 | F184: =F$4 -> 2024 | H184: % change
A185: =$A$5 -> QCF8 Doctorate | B185: =B173/B$182*100 -> 1.214096202 | C185: 1.076705322 | D185: 1.411581698 | E185: 1.558283382 | F185: 1.638377183 | H185: =IF(D173>0,H173/D173*100,0) -> 35.59472874
A186: =$A$6 -> QCF7 Other higher degree | B186: 10.62357144 | C186: 11.91174559 | D186: 18.30987839 | E186: 19.42466042 | F186: 19.81707855 | H186: =IF(D174>0,H174/D174*100,0) -> 26.44134454
A187: =$A$7 -> QCF6 First degree | B187: 28.35693944 | C187: 33.64290836 | D187: 39.38750935 | E187: 43.48656752 | F187: 46.24838087 | H187: 37.1743617
A188: =$A$8 -> QCF5 Foundation degree;Nursing;Teaching | B188: 23.63186407 | C188: 12.00206367 | D188: 3.871270686 | E188: 2.852994592 | F188: 2.412491362 | H188: -27.19735429
A189: =$A$9 -> QCF4 HE below degree level | B189: 6.500579215 | C189: 5.533043792 | D189: 6.007289196 | E189: 6.451814256 | F189: 6.854678202 | H189: 33.30408735
A190: =$A$10 -> QCF3 A level & equivalent | B190: 10.85866887 | C190: 13.2898738 | D190: 13.59799479 | E190: 12.13937785 | F190: 11.44341676 | H190: -1.68590661
A191: =$A$11 -> QCF2 GCSE(A-C) & equivalent | B191: 11.15305469 | C191: 12.80716513 | D191: 10.21864805 | E191: 8.659709263 | F191: 7.553119539 | H191: -13.64890466
A192: =$A$12 -> QCF1 GCSE(below grade C) & equivalent | B192: 6.002059405 | C192: 7.740779513 | D192: 5.75013981 | E192: 4.600754836 | F192: 3.453490276 | H192: -29.83593091
A193: =$A$13 -> No Qualification | B193: 1.65916666 | C193: 1.995714827 | D193: 1.445688035 | E193: 0.8258378784 | F193: 0.5789672595 | H193: -53.21416844
A194: Total | B194: 100 | C194: 100 | D194: 100 | E194: 100 | F194: 100 | H194: 16.8247699
A195: =$A$27 -> R:\Research Info\Individual research project info\Working Futures_ CG data task\East of England\[6EE_East_of_Eng.xlsm]Table 7.x.2
A197: Table 7.2.7 | B197: =$B$1 -> Occupational Employment, 1994 to 2024, by Qualification Level
B198: =names!C10 -> 31 Science, engineering and technology associate professionals
A199: =$A$3 -> Qualification categories | H199: Change
A200: Employment Levels (000s) | B200: =B$4 -> 1994 | C200: =C$4 -> 2004 | D200: =D$4 -> 2014 | E200: =E$4 -> 2019 | F200: =F$4 -> 2024 | H200: =D200&" - "&F200 -> 2014 - 2024
A201: =$A$5 -> QCF8 Doctorate | B201: 695.0344259 | C201: 152.4734266 | D201: 795.4400213 | E201: 983.6300398 | F201: 1094.470175 | H201: =F201-D201 -> 299.0301542
A202: =$A$6 -> QCF7 Other higher degree | B202: 2477.913715 | C202: 1917.671743 | D202: 4291.178975 | E202: 5143.084713 | F202: 5804.571378 | H202: =F202-D202 -> 1513.392404
A203: =$A$7 -> QCF6 First degree | B203: 6304.425201 | C203: 8920.390482 | D203: 12515.05875 | E203: 15508.60444 | F203: 17795.89556 | H203: 5280.836812
A204: =$A$8 -> QCF5 Foundation degree;Nursing;Teaching | B204: 2065.15455 | C204: 1605.870224 | D204: 2200.815154 | E204: 2684.627257 | F204: 3160.48503 | H204: 959.6698759
A205: =$A$9 -> QCF4 HE below degree level | B205: 10880.52117 | C205: 7812.394304 | D205: 6475.998617 | E205: 6865.325349 | F205: 6998.310366 | H205: 522.3117493
A206: =$A$10 -> QCF3 A level & equivalent | B206: 11830.33558 | C206: 13933.17981 | D206: 10966.03714 | E206: 9249.386004 | F206: 7780.12905 | H206: -3185.908086
A207: =$A$11 -> QCF2 GCSE(A-C) & equivalent | B207: 8732.070385 | C207: 10479.23844 | D207: 8287.112325 | E207: 7836.660629 | F207: 7480.857112 | H207: -806.2552123
A208: =$A$12 -> QCF1 GCSE(below grade C) & equivalent | B208: 3812.947524 | C208: 6160.030945 | D208: 5781.149301 | E208: 5704.187987 | F208: 5006.717852 | H208: -774.4314496
A209: =$A$13 -> No Qualification | B209: 1580.973922 | C209: 2280.401142 | D209: 1060.531482 | E209: 746.2732037 | F209: 590.4238266 | H209: -470.1076549
A210: Total | B210: =SUM(B201:B209) -> 48379.37647 | C210: =SUM(C201:C209) -> 53261.65051 | D210: =SUM(D201:D209) -> 52373.32176 | E210: =SUM(E201:E209) -> 54721.77962 | F210: =SUM(F201:F209) -> 55711.86035 | H210: =SUM(H201:H209) -> 3338.538592
A212: Percentage Shares | B212: =B$4 -> 1994 | C212: =C$4 -> 2004 | D212: =D$4 -> 2014 | E212: =E$4 -> 2019 | F212: =F$4 -> 2024 | H212: % change
A213: =$A$5 -> QCF8 Doctorate | B213: =B201/B$210*100 -> 1.436633699 | C213: 0.2862724402 | D213: 1.518788564 | E213: 1.797511058 | F213: 1.964519168 | H213: =IF(D201>0,H201/D201*100,0) -> 37.59304865
A214: =$A$6 -> QCF7 Other higher degree | B214: 5.121838882 | C214: 3.600473745 | D214: 8.193444354 | E214: 9.398606457 | F214: 10.41891501 | H214: =IF(D202>0,H202/D202*100,0) -> 35.26752001
A215: =$A$7 -> QCF6 First degree | B215: 13.03122459 | C215: 16.74824268 | D215: 23.89586593 | E215: 28.34082616 | F215: 31.94274155 | H215: 42.19586114
... 475 more rows

Sheet Figure 7.2
AA4: ="Qualification structure, "&AE5&" - "&BI5&", "&CHAR(13)&names!A3 -> Qualification structure, 1994 - 2024, All industries
AA5: 1990 | AB5: 1991 | AC5: 1992 | AD5: 1993 | AE5: 1994 | AF5: 1995 | AG5: 1996 | AH5: 1997 | AI5: 1998 | AJ5: 1999 | AK5: 2000 | AL5: 2001 | AM5: 2002 | AN5: 2003 | AO5: 2004 | AP5: 2005 | AQ5: 2006 | AR5: 2007 | AS5: 2008 | AT5: 2009 | AU5: 2010 | AV5: 2011 | AW5: 2012 | AX5: 2013 | AY5: 2014 | AZ5: 2015 | BA5: 2016 | BB5: 2017 | BC5: 2018 | BD5: 2019 | BE5: 2020 | BF5: 2021 | BG5: 2022 | BH5: 2023 | BI5: 2024
Z6: =LEFT(names!D4,4) -> QCF8 | AA6: 28754.82043 | AB6: 26492.73981 | AC6: 24524.84929 | AD6: 23465.16351 | AE6: 22774.0472 | AF6: 22633.8624 | AG6: 22118.29563 | AH6: 22251.5796 | AI6: 21954.4857 | AJ6: 20958.9055 | AK6: 20683.20972 | AL6: 19742.30513 | AM6: 19972.17373 | AN6: 19577.61026 | AO6: 20199.95134 | AP6: 21104.54435 | AQ6: 25198.33535 | AR6: 23214.54268 | AS6: 26948.5931 | AT6: 29144.43357 | AU6: 29849.36719 | AV6: 25736.40565 | AW6: 30865.20162 | AX6: 31821.29126 | AY6: 33123.04032 | AZ6: 34857.8671 | BA6: 36013.32704 | BB6: 37101.07623 | BC6: 38180.08341 | BD6: 39236.9243 | BE6: 40354.48003 | BF6: 41400.25531 | BG6: 42444.78664 | BH6: 43424.76919 | BI6: 44341.14515
Z7: =LEFT(names!D5,4) -> QCF7 | AA7: 97748.81107 | AB7: 95824.48796 | AC7: 94169.36407 | AD7: 94454.16194 | AE7: 95602.56314 | AF7: 98268.54522 | AG7: 100044.4539 | AH7: 103434.254 | AI7: 106653.135 | AJ7: 108580.8521 | AK7: 112058.3714 | AL7: 115259.2377 | AM7: 115999.6828 | AN7: 117689.959 | AO7: 119754.0071 | AP7: 151826.0068 | AQ7: 152697.9626 | AR7: 157627.0094 | AS7: 178160.9656 | AT7: 184594.4754 | AU7: 199813.8103 | AV7: 170601.5878 | AW7: 202807.206 | AX7: 208772.4154 | AY7: 217148.7567 | AZ7: 227559.8596 | BA7: 235731.0468 | BB7: 243241.1842 | BC7: 250550.9136 | BD7: 257575.0939 | BE7: 264970.0033 | BF7: 271418.3714 | BG7: 277830.766 | BH7: 283601.037 | BI7: 288824.8649
Z8: =LEFT(names!D6,4) -> QCF6 | AA8: 208710.3548 | AB8: 207566.5834 | AC8: 206485.2844 | AD8: 210567.2111 | AE8: 218233.7669 | AF8: 230577.6741 | AG8: 238579.0477 | AH8: 253625.3781 | AI8: 269440.1428 | AJ8: 279589.7087 | AK8: 295831.962 | AL8: 318717.3605 | AM8: 314087.6337 | AN8: 318873.6524 | AO8: 344270.0534 | AP8: 334741.4212 | AQ8: 354300.2426 | AR8: 370021.5131 | AS8: 377736.265 | AT8: 376123.1569 | AU8: 415796.5125 | AV8: 418349.0403 | AW8: 452403.6977 | AX8: 512469.4838 | AY8: 519898.8174 | AZ8: 552717.331 | BA8: 580143.777 | BB8: 606333.9862 | BC8: 631820.0178 | BD8: 656863.8852 | BE8: 680963.1414 | BF8: 706702.8171 | BG8: 730498.1393 | BH8: 753197.4527 | BI8: 775348.984
Z9: =LEFT(names!D7,4) -> QCF5 | AA9: 196496.8195 | AB9: 188577.6176 | AC9: 182256.7696 | AD9: 179873.3627 | AE9: 177670.0417 | AF9: 175987.7553 | AG9: 173755.5643 | AH9: 170793.0786 | AI9: 169457.7646 | AJ9: 165523.0766 | AK9: 164888.5491 | AL9: 155526.6081 | AM9: 165805.8558 | AN9: 162342.0263 | AO9: 154575.0778 | AP9: 146907.7514 | AQ9: 160871.7864 | AR9: 151578.8177 | AS9: 146528.684 | AT9: 141031.1301 | AU9: 154125.259 | AV9: 145969.9012 | AW9: 148971.6176 | AX9: 164358.2082 | AY9: 161627.3395 | AZ9: 165633.7074 | BA9: 169421.9198 | BB9: 172963.7081 | BC9: 176506.4405 | BD9: 179962.7881 | BE9: 182935.1488 | BF9: 186307.2559 | BG9: 189675.9009 | BH9: 192931.1739 | BI9: 196081.1954
Z10: =LEFT(names!D8,4) -> QCF4 | AA10: 160394.5695 | AB10: 150906.1805 | AC10: 142645.5492 | AD10: 137909.4937 | AE10: 134627.8242 | AF10: 134982.4548 | AG10: 135010.4308 | AH10: 138327.4551 | AI10: 136897.2328 | AJ10: 134536.0246 | AK10: 133393.0041 | AL10: 129567.9872 | AM10: 129037.3406 | AN10: 133370.0701 | AO10: 127743.3106 | AP10: 122906.6079 | AQ10: 118152.8837 | AR10: 122308.5887 | AS10: 119352.3997 | AT10: 116613.6868 | AU10: 133587.2744 | AV10: 129819.2998 | AW10: 137617.7295 | AX10: 153863.6138 | AY10: 150265.1748 | AZ10: 158019.9566 | BA10: 164993.474 | BB10: 171450.8784 | BC10: 177506.5694 | BD10: 183487.8677 | BE10: 189089.5401 | BF10: 194968.8356 | BG10: 200361.8111 | BH10: 205437.099 | BI10: 210192.9164
Z11: =LEFT(names!D9,4) -> QCF3 | AA11: 496845.1705 | AB11: 480035.911 | AC11: 464622.8265 | AD11: 460636.189 | AE11: 462129.4899 | AF11: 472660.7496 | AG11: 477252.626 | AH11: 491864.8347 | AI11: 503371.5144 | AJ11: 507725.9865 | AK11: 519971.5132 | AL11: 529744.211 | AM11: 531830.8871 | AN11: 537225.2177 | AO11: 547794.2557 | AP11: 520468.1646 | AQ11: 531484.6564 | AR11: 537717.2242 | AS11: 543595.1581 | AT11: 584269.5434 | AU11: 551741.6295 | AV11: 571740.8851 | AW11: 589554.2782 | AX11: 575492.2867 | AY11: 623111.7812 | AZ11: 622695.8525 | BA11: 629320.4335 | BB11: 633742.6086 | BC11: 637064.8041 | BD11: 638987.2186 | BE11: 641681.6276 | BF11: 642342.4874 | BG11: 644236.8463 | BH11: 646326.0428 | BI11: 648657.4303
Z12: =LEFT(names!D10,4) -> QCF2 | AA12: 572412.9915 | AB12: 553475.1976 | AC12: 537098.1371 | AD12: 533605.1142 | AE12: 535678.5218 | AF12: 547098.8531 | AG12: 552806.7712 | AH12: 568737.3949 | AI12: 581957.6738 | AJ12: 586165.7365 | AK12: 600658.2144 | AL12: 610871.6636 | AM12: 615286.4263 | AN12: 621145.0741 | AO12: 633300.3913 | AP12: 650713.1069 | AQ12: 660591.155 | AR12: 667057.3887 | AS12: 656777.7232 | AT12: 659527.6373 | AU12: 623348.9696 | AV12: 644344.8856 | AW12: 676054.5421 | AX12: 650782.1438 | AY12: 659530.1784 | AZ12: 674917.5781 | BA12: 674911.5836 | BB12: 672962.3808 | BC12: 669715.198 | BD12: 665977.6892 | BE12: 663696.588 | BF12: 659850.5355 | BG12: 656936.116 | BH12: 653515.7654 | BI12: 650205.7758
Z13: =LEFT(names!D11,4) -> QCF1 | AA13: 476342.0791 | AB13: 461021.7135 | AC13: 448808.8183 | AD13: 447030.0933 | AE13: 449117.5052 | AF13: 457890.2266 | AG13: 463068.458 | AH13: 475398.2519 | AI13: 486362.2606 | AJ13: 489034.712 | AK13: 501489.1252 | AL13: 508916.0746 | AM13: 514651.9342 | AN13: 519162.0682 | AO13: 529255.5346 | AP13: 535433.6877 | AQ13: 550431.778 | AR13: 573988.9891 | AS13: 547393.5964 | AT13: 528332.3126 | AU13: 505599.7262 | AV13: 492768.5367 | AW13: 466351.5734 | AX13: 412447.927 | AY13: 428326.8778 | AZ13: 431954.8984 | BA13: 417916.2014 | BB13: 402871.1241 | BC13: 387106.6196 | BD13: 370961.79 | BE13: 355406.0941 | BF13: 339473.9398 | BG13: 324367.8966 | BH13: 311800.8972 | BI13: 299785.7811
Z14: =LEFT(names!D12,7) -> No Qual | AA14: 250298.3836 | AB14: 242038.5687 | AC14: 234945.4015 | AD14: 233472.2106 | AE14: 234396.24 | AF14: 239354.8788 | AG14: 241871.3524 | AH14: 248792.7732 | AI14: 254571.7905 | AJ14: 256371.9974 | AK14: 262728.0509 | AL14: 267142.5522 | AM14: 269172.0658 | AN14: 271716.322 | AO14: 277030.4182 | AP14: 242085.709 | AQ14: 272388.2001 | AR14: 241470.9263 | AS14: 253497.6148 | AT14: 191710.6239 | AU14: 167726.4514 | AV14: 169345.4579 | AW14: 158224.1539 | AX14: 147091.6299 | AY14: 160865.0339 | AZ14: 130434.9493 | BA14: 118185.2368 | BB14: 106249.0535 | BC14: 94552.35352 | BD14: 84280.74311 | BE14: 75435.37664 | BF14: 67693.50205 | BG14: 61343.73708 | BH14: 55966.76282 | BI14: 51325.90698
AA34: ="Qualification structure, "&AE35&" - "&BI35&", "&CHAR(13)&names!A4 -> Qualification structure, 1994 - 2024, Primary sector and utilities
AA35: 1990 | AB35: 1991 | AC35: 1992 | AD35: 1993 | AE35: 1994 | AF35: 1995 | AG35: 1996 | AH35: 1997 | AI35: 1998 | AJ35: 1999 | AK35: 2000 | AL35: 2001 | AM35: 2002 | AN35: 2003 | AO35: 2004 | AP35: 2005 | AQ35: 2006 | AR35: 2007 | AS35: 2008 | AT35: 2009 | AU35: 2010 | AV35: 2011 | AW35: 2012 | AX35: 2013 | AY35: 2014 | AZ35: 2015 | BA35: 2016 | BB35: 2017 | BC35: 2018 | BD35: 2019 | BE35: 2020 | BF35: 2021 | BG35: 2022 | BH35: 2023 | BI35: 2024
Z36: =$Z$6 -> QCF8 | AA36: 1277.804633 | AB36: 1185.676838 | AC36: 982.3247551 | AD36: 804.7755163 | AE36: 755.6877227 | AF36: 665.0090939 | AG36: 527.7469676 | AH36: 471.5987496 | AI36: 455.1419333 | AJ36: 344.8472665 | AK36: 274.3295844 | AL36: 186.2526694 | AM36: 314.458765 | AN36: 148.9641524 | AO36: 157.1900942 | AP36: 142.6448605 | AQ36: 408.3884595 | AR36: 101.002901 | AS36: 357.4833616 | AT36: 295.283534 | AU36: 404.7830986 | AV36: 323.6318813 | AW36: 432.3092252 | AX36: 418.0308448 | AY36: 424.6557392 | AZ36: 448.2015996 | BA36: 470.2249415 | BB36: 494.1771545 | BC36: 516.2859693 | BD36: 534.795343 | BE36: 554.2029247 | BF36: 573.5090315 | BG36: 594.019023 | BH36: 613.6486778 | BI36: 633.1952206
Z37: =$Z$7 -> QCF7 | AA37: 4663.067423 | AB37: 4198.126255 | AC37: 3854.63951 | AD37: 3580.932342 | AE37: 3628.56865 | AF37: 3065.096771 | AG37: 2367.887494 | AH37: 2267.8481 | AI37: 2422.394829 | AJ37: 2242.724587 | AK37: 1748.573289 | AL37: 1676.41579 | AM37: 1186.211698 | AN37: 1534.47414 | AO37: 1349.732665 | AP37: 1505.336213 | AQ37: 2370.365556 | AR37: 1626.138867 | AS37: 2008.256711 | AT37: 1679.141181 | AU37: 2446.609582 | AV37: 2049.014572 | AW37: 2708.128958 | AX37: 2592.690194 | AY37: 2456.168642 | AZ37: 2526.880598 | BA37: 2607.241184 | BB37: 2684.359138 | BC37: 2761.259276 | BD37: 2818.408447 | BE37: 2881.965007 | BF37: 2937.956898 | BG37: 3000.111982 | BH37: 3056.097859 | BI37: 3110.10754
Z38: =$Z$8 -> QCF6 | AA38: 6362.680619 | AB38: 6296.111857 | AC38: 6193.286239 | AD38: 6028.304411 | AE38: 6140.087698 | AF38: 5549.0134 | AG38: 4790.395206 | AH38: 4919.366646 | AI38: 5855.330542 | AJ38: 5186.068509 | AK38: 4851.97053 | AL38: 4362.477177 | AM38: 4458.840425 | AN38: 4617.18547 | AO38: 5199.959394 | AP38: 4432.272167 | AQ38: 4754.540234 | AR38: 4987.045626 | AS38: 5752.604312 | AT38: 5204.794327 | AU38: 7135.127165 | AV38: 6872.232828 | AW38: 8113.260616 | AX38: 8225.10075 | AY38: 9132.153961 | AZ38: 9318.740151 | BA38: 9689.340546 | BB38: 10138.91207 | BC38: 10525.57275 | BD38: 10868.90121 | BE38: 11202.85135 | BF38: 11548.62015 | BG38: 11887.45666 | BH38: 12187.62012 | BI38: 12481.16316
Z39: =$Z$9 -> QCF5 | AA39: 4903.127783 | AB39: 4696.520738 | AC39: 4489.737326 | AD39: 4294.960622 | AE39: 4235.320286 | AF39: 3609.595731 | AG39: 2974.173989 | AH39: 2910.044964 | AI39: 3394.813955 | AJ39: 2894.433013 | AK39: 2354.512566 | AL39: 1598.057921 | AM39: 2228.031546 | AN39: 2146.924921 | AO39: 1696.822284 | AP39: 1300.894174 | AQ39: 2494.065743 | AR39: 1994.436183 | AS39: 1515.910012 | AT39: 1121.588469 | AU39: 2251.185564 | AV39: 1866.832596 | AW39: 2280.195292 | AX39: 2203.145906 | AY39: 2384.005201 | AZ39: 2344.077559 | BA39: 2428.841661 | BB39: 2523.02349 | BC39: 2610.646689 | BD39: 2691.915823 | BE39: 2771.212426 | BF39: 2848.764992 | BG39: 2924.599548 | BH39: 2988.709098 | BI39: 3048.848618
Z40: =$Z$10 -> QCF4 | AA40: 8298.01812 | AB40: 8010.011825 | AC40: 7467.681583 | AD40: 6841.308923 | AE40: 6914.954799 | AF40: 5945.060751 | AG40: 4682.417444 | AH40: 4581.321809 | AI40: 5390.335515 | AJ40: 4585.388367 | AK40: 4284.988469 | AL40: 2834.993631 | AM40: 3552.853617 | AN40: 4087.225009 | AO40: 3660.956077 | AP40: 2786.294947 | AQ40: 3607.52582 | AR40: 3323.467409 | AS40: 3209.999545 | AT40: 3303.930864 | AU40: 4524.668369 | AV40: 4318.377595 | AW40: 5456.398914 | AX40: 5192.320456 | AY40: 5627.120967 | AZ40: 5640.551598 | BA40: 5833.999701 | BB40: 6063.675741 | BC40: 6266.635398 | BD40: 6445.97693 | BE40: 6618.219958 | BF40: 6776.106572 | BG40: 6925.583857 | BH40: 7044.434683 | BI40: 7152.338417
Z41: =$Z$11 -> QCF3 | AA41: 16510.98814 | AB41: 16210.39233 | AC41: 15815.0145 | AD41: 15386.15633 | AE41: 15680.67447 | AF41: 13934.0878 | AG41: 11727.80136 | AH41: 12174.38898 | AI41: 14767.40843 | AJ41: 12847.35653 | AK41: 11653.62652 | AL41: 9232.514117 | AM41: 10572.77596 | AN41: 10220.4402 | AO41: 11302.7152 | AP41: 9367.8404 | AQ41: 13066.18854 | AR41: 10294.28016 | AS41: 9238.763431 | AT41: 10413.49838 | AU41: 11744.37087 | AV41: 11315.27419 | AW41: 13712.75311 | AX41: 11507.86478 | AY41: 14086.0767 | AZ41: 12975.01971 | BA41: 12731.44073 | BB41: 12563.78453 | BC41: 12392.74788 | BD41: 12148.55404 | BE41: 11935.20874 | BF41: 11677.7266 | BG41: 11473.86244 | BH41: 11256.15631 | BI41: 11064.9777
Z42: =$Z$12 -> QCF2 | AA42: 19153.89065 | AB42: 18630.81648 | AC42: 17836.11345 | AD42: 17301.23277 | AE42: 17824.52665 | AF42: 16581.0193 | AG42: 14743.96885 | AH42: 15565.12723 | AI42: 18415.53414 | AJ42: 15888.16083 | AK42: 14547.16399 | AL42: 10621.27137 | AM42: 13753.39847 | AN42: 12735.79072 | AO42: 16516.87445 | AP42: 12270.02635 | AQ42: 13769.51993 | AR42: 13608.44484 | AS42: 13616.08941 | AT42: 14258.55277 | AU42: 15526.30275 | AV42: 15018.81603 | AW42: 18041.12071 | AX42: 14551.48371 | AY42: 17264.57638 | AZ42: 16724.62208 | BA42: 16505.0649 | BB42: 16341.97503 | BC42: 16177.08562 | BD42: 15947.88939 | BE42: 15762.69668 | BF42: 15562.77333 | BG42: 15413.07442 | BH42: 15234.62466 | BI42: 15072.28289
Z43: =$Z$13 -> QCF1 | AA43: 18246.05058 | AB43: 17484.29395 | AC43: 16760.8214 | AD43: 16397.21249 | AE43: 16543.0221 | AF43: 15625.30195 | AG43: 14258.90019 | AH43: 15289.03568 | AI43: 17235.0315 | AJ43: 14824.78695 | AK43: 13444.33036 | AL43: 9230.753479 | AM43: 12270.90574 | AN43: 12332.94122 | AO43: 14931.66064 | AP43: 13018.13867 | AQ43: 13936.26967 | AR43: 13456.07564 | AS43: 13368.16949 | AT43: 11563.6519 | AU43: 14260.36259 | AV43: 13236.53358 | AW43: 14438.18907 | AX43: 10662.95444 | AY43: 11950.86126 | AZ43: 11542.88405 | BA43: 10920.43905 | BB43: 10376.9095 | BC43: 9839.18904 | BD43: 9278.750612 | BE43: 8749.22059 | BF43: 8229.284857 | BG43: 7766.782659 | BH43: 7386.741586 | BI43: 7037.391714
Z44: =$Z$14 -> No Qual | AA44: 14660.37205 | AB44: 14429.04973 | AC44: 13970.38123 | AD44: 13604.1166 | AE44: 13809.15763 | AF44: 13435.8152 | AG44: 12820.7085 | AH44: 13361.26784 | AI44: 14338.00915 | AJ44: 12082.23395 | AK44: 10793.50468 | AL44: 8240.263842 | AM44: 10234.52379 | AN44: 9548.054171 | AO44: 12670.0892 | AP44: 7792.552219 | AQ44: 10936.13605 | AR44: 9371.108373 | AS44: 8638.723728 | AT44: 7092.558577 | AU44: 7237.590017 | AV44: 6976.286728 | AW44: 7322.644096 | AX44: 5989.408921 | AY44: 6865.381148 | AZ44: 5450.022655 | BA44: 4887.407283 | BB44: 4383.183344 | BC44: 3894.57739 | BD44: 3500.808202 | BE44: 3166.422318 | BF44: 2879.257569 | BG44: 2642.509405 | BH44: 2432.967014 | BI44: 2250.694737
AA64: ="Qualification structure, "&AE65&" - "&BI65&", "&CHAR(13)&names!A5 -> Qualification structure, 1994 - 2024, Manufacturing
AA65: 1990 | AB65: 1991 | AC65: 1992 | AD65: 1993 | AE65: 1994 | AF65: 1995 | AG65: 1996 | AH65: 1997 | AI65: 1998 | AJ65: 1999 | AK65: 2000 | AL65: 2001 | AM65: 2002 | AN65: 2003 | AO65: 2004 | AP65: 2005 | AQ65: 2006 | AR65: 2007 | AS65: 2008 | AT65: 2009 | AU65: 2010 | AV65: 2011 | AW65: 2012 | AX65: 2013 | AY65: 2014 | AZ65: 2015 | BA65: 2016 | BB65: 2017 | BC65: 2018 | BD65: 2019 | BE65: 2020 | BF65: 2021 | BG65: 2022 | BH65: 2023 | BI65: 2024
Z66: =$Z$6 -> QCF8 | AA66: 5432.359139 | AB66: 4874.898145 | AC66: 4374.090027 | AD66: 4020.445441 | AE66: 3779.437441 | AF66: 3779.689146 | AG66: 4011.863442 | AH66: 3801.428729 | AI66: 3665.893526 | AJ66: 3252.993627 | AK66: 2939.763236 | AL66: 2464.29384 | AM66: 2337.403631 | AN66: 2347.441645 | AO66: 2716.387703 | AP66: 1896.445689 | AQ66: 1845.188711 | AR66: 2329.355784 | AS66: 2420.95471 | AT66: 1775.947895 | AU66: 2141.771713 | AV66: 1867.025329 | AW66: 2144.268687 | AX66: 2037.116679 | AY66: 2014.567298 | AZ66: 2107.027603 | BA66: 2184.237349 | BB66: 2250.417968 | BC66: 2295.407173 | BD66: 2328.764882 | BE66: 2362.770897 | BF66: 2388.729711 | BG66: 2411.994564 | BH66: 2432.780881 | BI66: 2445.335194
Z67: =$Z$7 -> QCF7 | AA67: 12116.21035 | AB67: 10896.5484 | AC67: 9832.191428 | AD67: 9045.232673 | AE67: 8700.179052 | AF67: 8884.851214 | AG67: 9921.369087 | AH67: 9927.480831 | AI67: 9918.470832 | AJ67: 9659.598432 | AK67: 9271.226071 | AL67: 8488.638084 | AM67: 8832.355126 | AN67: 8162.542806 | AO67: 7691.155303 | AP67: 10222.41831 | AQ67: 9654.485763 | AR67: 10100.36449 | AS67: 10109.47736 | AT67: 9020.492744 | AU67: 10737.73945 | AV67: 9213.344126 | AW67: 10446.89702 | AX67: 10342.88064 | AY67: 10510.02151 | AZ67: 11117.55647 | BA67: 11616.69768 | BB67: 11966.70354 | BC67: 12230.7938 | BD67: 12426.27843 | BE67: 12614.01123 | BF67: 12735.09716 | BG67: 12839.4521 | BH67: 12916.89145 | BI67: 12945.80671
Z68: =$Z$8 -> QCF6 | AA68: 29877.23017 | AB68: 28420.52586 | AC68: 27025.17638 | AD68: 26418.69908 | AE68: 27041.79759 | AF68: 29270.63232 | AG68: 33671.39567 | AH68: 34411.78507 | AI68: 36046.57265 | AJ68: 34663.7303 | AK68: 34504.58109 | AL68: 36324.05238 | AM68: 34329.09582 | AN68: 31524.42903 | AO68: 30625.82331 | AP68: 29156.61243 | AQ68: 29164.24193 | AR68: 29517.5676 | AS68: 30735.90242 | AT68: 25548.32449 | AU68: 29211.77226 | AV68: 30747.50523 | AW68: 31620.36 | AX68: 34102.1534 | AY68: 33515.31769 | AZ68: 35700.37908 | BA68: 37488.88632 | BB68: 38930.21529 | BC68: 40042.33184 | BD68: 40965.22403 | BE68: 41774.43564 | BF68: 42603.90212 | BG68: 43270.23656 | BH68: 43861.07426 | BI68: 44334.05977
Z69: =$Z$9 -> QCF5 | AA69: 14195.81575 | AB69: 12830.98296 | AC69: 11797.07886 | AD69: 11138.56013 | AE69: 10801.06862 | AF69: 10903.43126 | AG69: 12013.98666 | AH69: 11639.67151 | AI69: 11874.05445 | AJ69: 10996.28969 | AK69: 10439.18917 | AL69: 10713.98452 | AM69: 8959.07775 | AN69: 9932.965004 | AO69: 8566.154887 | AP69: 7693.154998 | AQ69: 7919.546456 | AR69: 7574.344141 | AS69: 5996.316894 | AT69: 6779.854212 | AU69: 7133.103414 | AV69: 7220.58418 | AW69: 7424.677473 | AX69: 8043.890562 | AY69: 7803.423188 | AZ69: 8373.933967 | BA69: 8794.890981 | BB69: 9133.988325 | BC69: 9397.368778 | BD69: 9621.306291 | BE69: 9813.167908 | BF69: 10024.6194 | BG69: 10193.75694 | BH69: 10342.06466 | BI69: 10461.63772
Z70: =$Z$10 -> QCF4 | AA70: 31269.29616 | AB70: 28459.6187 | AC70: 26250.46789 | AD70: 24579.64677 | AE70: 24143.7984 | AF70: 25141.92217 | AG70: 28116.06662 | AH70: 28000.23241 | AI70: 27791.85791 | AJ70: 26020.24306 | AK70: 24984.38749 | AL70: 22852.72846 | AM70: 23566.86351 | AN70: 22114.02963 | AO70: 20457.35511 | AP70: 20013.89723 | AQ70: 16956.64221 | AR70: 17918.18916 | AS70: 16016.58414 | AT70: 14347.5861 | AU70: 16643.93646 | AV70: 17823.04023 | AW70: 18330.06366 | AX70: 19236.11278 | AY70: 18002.95145 | AZ70: 18951.20232 | BA70: 19609.72193 | BB70: 20076.97177 | BC70: 20408.97628 | BD70: 20656.30313 | BE70: 20855.27039 | BF70: 21035.84153 | BG70: 21163.62344 | BH70: 21238.77056 | BI70: 21249.43992
Z71: =$Z$11 -> QCF3 | AA71: 78365.3933 | AB71: 73683.72063 | AC71: 68702.97789 | AD71: 65197.7227 | AE71: 64852.09726 | AF71: 67270.8153 | AG71: 75750.78823 | AH71: 74257.04168 | AI71: 77503.51873 | AJ71: 74515.13493 | AK71: 73595.14635 | AL71: 76482.89681 | AM71: 71301.69112 | AN71: 66290.27741 | AO71: 65609.8382 | AP71: 59450.2994 | AQ71: 57110.11142 | AR71: 54108.32559 | AS71: 57649.29211 | AT71: 58046.75715 | AU71: 52082.17893 | AV71: 54106.13988 | AW71: 56555.69353 | AX71: 52977.90815 | AY71: 56256.77523 | AZ71: 54697.16744 | BA71: 54264.86894 | BB71: 53350.42751 | BC71: 52158.34159 | BD71: 50709.90243 | BE71: 49281.56157 | BF71: 47741.01604 | BG71: 46303.36364 | BH71: 44894.21482 | BI71: 43501.22526
Z72: =$Z$12 -> QCF2 | AA72: 84163.82393 | AB72: 78868.15845 | AC72: 73412.17256 | AD72: 70034.42449 | AE72: 69869.29306 | AF72: 72360.23996 | AG72: 80860.96279 | AH72: 78984.96192 | AI72: 82583.48188 | AJ72: 79435.21593 | AK72: 77929.75978 | AL72: 78967.90294 | AM72: 74803.87929 | AN72: 69660.63974 | AO72: 66517.01722 | AP72: 64592.875 | AQ72: 58970.72054 | AR72: 60204.74757 | AS72: 60512.36244 | AT72: 54140.32013 | AU72: 51555.90778 | AV72: 54235.7665 | AW72: 57798.0249 | AX72: 53199.72923 | AY72: 52692.5294 | AZ72: 54802.58591 | BA72: 54528.7429 | BB72: 53931.77219 | BC72: 52981.15715 | BD72: 51854.51066 | BE72: 50758.34753 | BF72: 49538.29813 | BG72: 48357.32668 | BH72: 47146.36901 | BI72: 45910.69136
Z73: =$Z$13 -> QCF1 | AA73: 72940.96033 | AB73: 67400.18453 | AC73: 62292.53774 | AD73: 59572.98149 | AE73: 59321.36365 | AF73: 61207.59298 | AG73: 67277.47706 | AH73: 65536.48205 | AI73: 69192.4998 | AJ73: 66785.63665 | AK73: 65358.94753 | AL73: 66889.05369 | AM73: 63698.2936 | AN73: 57294.12546 | AO73: 57079.77033 | AP73: 55849.60156 | AQ73: 54767.16306 | AR73: 55138.98368 | AS73: 49714.83407 | AT73: 49417.18658 | AU73: 45216.17645 | AV73: 45240.16439 | AW73: 43440.11681 | AX73: 36441.82778 | AY73: 36156.32288 | AZ73: 37968.40962 | BA73: 36758.81192 | BB73: 35220.0084 | BC73: 33516.63643 | BD73: 31719.58982 | BE73: 29945.70128 | BF73: 28200.86251 | BG73: 26524.56752 | BH73: 25069.69883 | BI73: 23670.14578
Z74: =$Z$14 -> No Qual | AA74: 49592.91087 | AB74: 45462.36233 | AC74: 42385.30723 | AD74: 40117.28722 | AE74: 39796.96493 | AF74: 40555.82564 | AG74: 44150.09045 | AH74: 43000.9158 | AI74: 45371.65024 | AJ74: 44093.15738 | AK74: 43119.99928 | AL74: 43425.44928 | AM74: 40418.34016 | AN74: 37804.54927 | AO74: 38380.49794 | AP74: 28422.69539 | AQ74: 31727.89992 | AR74: 28903.12198 | AS74: 27342.27584 | AT74: 17932.5307 | AU74: 16146.41354 | AV74: 16913.43014 | AW74: 15308.89793 | AX74: 14042.38077 | AY74: 14271.09135 | AZ74: 11933.73758 | BA74: 10690.14198 | BB74: 9428.495008 | BC74: 8232.986951 | BD74: 7184.120335 | BE74: 6282.733566 | BF74: 5505.633393 | BG74: 4886.678548 | BH74: 4359.135533 | BI74: 3910.658277
AA94: ="Qualification structure, "&AE95&" - "&BI95&", "&CHAR(13)&names!A6 -> Qualification structure, 1994 - 2024, Construction
AA95: 1990 | AB95: 1991 | AC95: 1992 | AD95: 1993 | AE95: 1994 | AF95: 1995 | AG95: 1996 | AH95: 1997 | AI95: 1998 | AJ95: 1999 | AK95: 2000 | AL95: 2001 | AM95: 2002 | AN95: 2003 | AO95: 2004 | AP95: 2005 | AQ95: 2006 | AR95: 2007 | AS95: 2008 | AT95: 2009 | AU95: 2010 | AV95: 2011 | AW95: 2012 | AX95: 2013 | AY95: 2014 | AZ95: 2015 | BA95: 2016 | BB95: 2017 | BC95: 2018 | BD95: 2019 | BE95: 2020 | BF95: 2021 | BG95: 2022 | BH95: 2023 | BI95: 2024
Z96: =$Z$6 -> QCF8 | AA96: 585.5249343 | AB96: 492.7128209 | AC96: 401.7415454 | AD96: 363.1605731 | AE96: 320.8082082 | AF96: 309.29053 | AG96: 292.0708397 | AH96: 300.6608183 | AI96: 262.7547188 | AJ96: 266.5373615 | AK96: 247.046244 | AL96: 160.5471304 | AM96: 87.44168865 | AN96: 332.0300784 | AO96: 358.3285471 | AP96: 265.0014312 | AQ96: 114.4407247 | AR96: 0 | AS96: 239.2238606 | AT96: 586.7450304 | AU96: 335.4439136 | AV96: 288.945761 | AW96: 325.3305467 | AX96: 339.7682759 | AY96: 338.0758979 | AZ96: 378.6057857 | BA96: 422.4948502 | BB96: 459.2032256 | BC96: 493.9651967 | BD96: 531.2062524 | BE96: 571.2043198 | BF96: 611.3330411 | BG96: 652.4600975 | BH96: 691.192779 | BI96: 726.7412842
Z97: =$Z$7 -> QCF7 | AA97: 2358.693176 | AB97: 2021.146697 | AC97: 1690.126921 | AD97: 1578.110236 | AE97: 1418.252667 | AF97: 1387.684018 | AG97: 1389.047798 | AH97: 1465.647154 | AI97: 1543.319193 | AJ97: 1740.776944 | AK97: 1937.512221 | AL97: 2187.409285 | AM97: 1918.544454 | AN97: 2784.081001 | AO97: 2860.654675 | AP97: 3864.303169 | AQ97: 3189.375775 | AR97: 4905.648161 | AS97: 4187.782514 | AT97: 6515.322182 | AU97: 5767.508852 | AV97: 5024.503039 | AW97: 5624.188394 | AX97: 5908.776127 | AY97: 5969.008208 | AZ97: 6630.66688 | BA97: 7361.196269 | BB97: 7963.291611 | BC97: 8520.321965 | BD97: 9114.860873 | BE97: 9753.691158 | BF97: 10376.8802 | BG97: 10987.35381 | BH97: 11576.35925 | BI97: 12118.21478
Z98: =$Z$8 -> QCF6 | AA98: 9609.545202 | AB98: 8760.747371 | AC98: 7807.595311 | AD98: 7593.057941 | AE98: 7397.077301 | AF98: 7520.574846 | AG98: 8059.069506 | AH98: 9386.095483 | AI98: 9634.84553 | AJ98: 10116.16414 | AK98: 10924.97373 | AL98: 11254.81047 | AM98: 11733.3074 | AN98: 11183.60506 | AO98: 14213.03 | AP98: 11351.44317 | AQ98: 12114.71399 | AR98: 12872.42735 | AS98: 13762.38597 | AT98: 14817.28854 | AU98: 14286.79029 | AV98: 14952.74894 | AW98: 14790.7085 | AX98: 16661.60082 | AY98: 16256.60506 | AZ98: 17865.57605 | BA98: 19652.93553 | BB98: 21127.65568 | BC98: 22489.36134 | BD98: 23973.52728 | BE98: 25524.58688 | BF98: 27169.59043 | BG98: 28791.88859 | BH98: 30397.67571 | BI98: 31916.4026
Z99: =$Z$9 -> QCF5 | AA99: 5984.081492 | AB99: 5275.937684 | AC99: 4567.764002 | AD99: 4307.107543 | AE99: 3996.117087 | AF99: 3946.571707 | AG99: 4143.31178 | AH99: 4580.886029 | AI99: 4677.34289 | AJ99: 4777.449347 | AK99: 4889.199572 | AL99: 4245.931805 | AM99: 5072.939557 | AN99: 4715.775909 | AO99: 5388.023116 | AP99: 5636.210633 | AQ99: 5465.70334 | AR99: 4058.954138 | AS99: 5170.27783 | AT99: 5450.709721 | AU99: 5420.633661 | AV99: 5556.068887 | AW99: 5409.151601 | AX99: 6083.037261 | AY99: 5768.036799 | AZ99: 6258.203721 | BA99: 6810.204419 | BB99: 7248.908041 | BC99: 7639.035 | BD99: 8068.96284 | BE99: 8510.393766 | BF99: 8983.884825 | BG99: 9476.383887 | BH99: 9935.907745 | BI99: 10362.78376
Z100: =$Z$10 -> QCF4 | AA100: 12463.76561 | AB100: 11287.73925 | AC100: 9944.23452 | AD100: 9338.078285 | AE100: 8871.200267 | AF100: 8737.2038 | AG100: 9178.670596 | AH100: 10654.33391 | AI100: 10532.04085 | AJ100: 11029.28024 | AK100: 11683.04152 | AL100: 11318.04352 | AM100: 11046.89326 | AN100: 12221.83265 | AO100: 11578.76626 | AP100: 12302.96902 | AQ100: 10956.3459 | AR100: 10887.00407 | AS100: 10406.15952 | AT100: 11999.41387 | AU100: 12047.96187 | AV100: 12525.80253 | AW100: 12070.89439 | AX100: 13465.92302 | AY100: 12864.99366 | AZ100: 13905.01403 | BA100: 15082.52161 | BB100: 16007.92204 | BC100: 16834.31286 | BD100: 17749.54608 | BE100: 18698.0912 | BF100: 19653.87868 | BG100: 20580.35149 | BH100: 21463.39414 | BI100: 22244.06935
Z101: =$Z$11 -> QCF3 | AA101: 71531.40112 | AB101: 63376.70306 | AC101: 55487.73013 | AD101: 54100.64363 | AE101: 52025.2118 | AF101: 53255.09893 | AG101: 54041.06353 | AH101: 57777.47993 | AI101: 57278.7861 | AJ101: 61716.1623 | AK101: 63812.35368 | AL101: 63778.2032 | AM101: 64488.16276 | AN101: 65928.57678 | AO101: 70800.14505 | AP101: 69849.751 | AQ101: 63129.72911 | AR101: 62114.56444 | AS101: 66134.03632 | AT101: 72829.18094 | AU101: 64108.73291 | AV101: 64696.74079 | AW101: 61052.53914 | AX101: 61290.76498 | AY101: 65743.88349 | AZ101: 63840.87714 | BA101: 65753.31872 | BB101: 66320.27815 | BC101: 66461.87636 | BD101: 66695.22185 | BE101: 67013.11772 | BF101: 66940.38648 | BG101: 66822.07091 | BH101: 66656.74464 | BI101: 66291.21637
Z102: =$Z$12 -> QCF2 | AA102: 53634.44152 | AB102: 48080.89485 | AC102: 42636.82099 | AD102: 41826.92785 | AE102: 40668.67625 | AF102: 41529.50213 | AG102: 43021.2949 | AH102: 46227.97476 | AI102: 47438.81103 | AJ102: 51649.11041 | AK102: 53799.90522 | AL102: 52759.43657 | AM102: 55208.34613 | AN102: 61956.13169 | AO102: 61042.23958 | AP102: 56685.85385 | AQ102: 55854.15678 | AR102: 61887.02185 | AS102: 58721.82483 | AT102: 63990.13611 | AU102: 57329.41918 | AV102: 59886.81126 | AW102: 58856.60181 | AX102: 57817.09879 | AY102: 57767.33162 | AZ102: 61297.67738 | BA102: 64273.96167 | BB102: 66015.88466 | BC102: 67386.00307 | BD102: 69025.75604 | BE102: 70885.58157 | BF102: 72441.83681 | BG102: 74004.57331 | BH102: 75570.60769 | BI102: 76892.29704
Z103: =$Z$13 -> QCF1 | AA103: 34188.38271 | AB103: 30861.54115 | AC103: 27522.09343 | AD103: 26720.26347 | AE103: 26055.40068 | AF103: 26458.85345 | AG103: 27532.60922 | AH103: 29772.24148 | AI103: 31143.26757 | AJ103: 33811.84438 | AK103: 35305.75277 | AL103: 36627.316 | AM103: 36128.17793 | AN103: 39440.45359 | AO103: 41319.70701 | AP103: 42882.07626 | AQ103: 46163.03177 | AR103: 47375.55282 | AS103: 46407.79975 | AT103: 44455.99188 | AU103: 42387.97697 | AV103: 42278.86625 | AW103: 37590.11028 | AX103: 33523.91687 | AY103: 32970.00887 | AZ103: 35694.39708 | BA103: 36329.46501 | BB103: 36211.28646 | BC103: 35784.90866 | BD103: 35367.38602 | BE103: 34959.91213 | BF103: 34394.05675 | BG103: 33784.57515 | BH103: 33324.7251 | BI103: 32748.02485
